Workbook

Sheet How To Use
B3: Basic Use
B4: 1 - Ensure Macros are enabled.
B5: 2.1 - Proceed to the Overview tab and input your character information.
B7: Example:
B8: Download from Armory
B9: Character Name | F9: Enter your Character Name here
B10: Realm | F10: Enter your Realm Name here
B11: Locale | C11: U.S. | F11: Select the proper zone for your Armory data
B13: 2.2 - Click the "Download from Armory" button.
B14: 2 - Ensure Circular References are Enabled. Click on the Office Button at the top left of Excel. Click "Excel Options" at the bottom. Select the "Formulas" tab. Checkmark "Enable iterative calculation", set "Maximum Iterations" to 100 and "Maximum Change" to 0.001.
B16: 3 - Proceed to the Character tab.
B17: 4.1 - Manually select the gear you are wearing. The "Automatic Enchant, Gem, and Reforge" button will apply the best possible enchants and gems to your gear, then apply reforging to get close to the best possible after meeting Hit and Expertise caps. If these differ from your setup, manually configure spreadsheet to match (or go get new enchants/gems/reforging, if desired).
B20: 3.1 - Update any Reforging information. The Armory does not contain Reforge data - all items listed are the basic item with gems and enchants. Until you manually update this information, your character data will not be 100% accurate. The same goes for Engineering and Tailor Perks (Hand/Back enchants which stack with ordinary enchants).
B22: 4.2 - Configure overall fight settings - Length, Seal used, and so on. Many items have tooltips - mouse over them for futher information, as necessary.
B23: 4.3 - Configure the raid buffs you have available.
B24: 4.4 - Configure the consumables you have available.
B26: Note: Anything in a | C26: Cyan Box | D26: is a setting which can be changed. Gear, gems, and enchants are not Cyan, but can also be changed.
B27: Note: Many items have | C27: Mouseover Tooltips | F27: available to explain settings or details. Hover your mouse over the box for additional information.
B29: Finding Gear Upgrades
B30: 1 - First load all your present character information. This may be done by hand, or by following the "Basic Use" steps.
B31: 2 - Proceed to the "Item Calc" tab.
B32: 3.1 - Configure the settings on the right to narrow your search. The narrower the search, the faster it proceeds.
B33: 3.2 - The default selection is for "All" items. This can be narrowed by selecting a specific item.
B34: 3.3 - Click "Analyse Items."
B36: Important Note:
B37: 1) Each piece of gear is an independent comparison to your present overall gear - a single run does not generate an overall Best in Slot list. For example, an item with hit or expertise that is initially rated very high could become far less valuable if you hit/expertise cap from other items.
B41: Using the Graph
B42: 1 - The Graph can be used to compare the various stats found on gear. The higher the value, the better the stat at increasing your DPS.
B43: 2 - The Graph can be run from its own tab via the "Run Graph Calculation" button. It can also be run from the Overview tab via the "Calculate" button.
B45: Important Note:
B46: 1) Values from the graph are based on your current gear. Dropping below the hit or expertise cap will influence the importance of those stats. Some stats may increase or decrease their value based on the current amount of other stats present on your gear.
B50: Credits
B51: Much credit goes to Bellator, who first built a Retribution spreadsheet for Burning Crusade content.
B52: Thanks to all on the Elitist Jerks forums (www.elitistjerks.com) for the theorycrafting and game testing.

Sheet Overview
B2: Download from Armory | J2: Import/Export
B3: Character Name | O3: Hover over for Instructions
B4: Realm
B5: Locale | C5: U.S.
B7: Character Stats
B9: =Character!B16 -> Information | C9: =Character!C16 -> Stam | D9: =Character!D16 -> Int | E9: =Character!E16 -> Str | F9: =Character!F16 -> AP | G9: =Character!G16 -> Agi | H9: =Character!H16 -> Hit | I9: =Character!I16 -> Crit | J9: =Character!J16 -> Haste | K9: =Character!K16 -> Mastery | L9: =Character!L16 -> WE | M9: =Character!M16 -> SpD | N9: =Character!N16 -> SpH | O9: =Character!O16 -> SpC | P9: =Character!P16 -> Mp5 | Q9: =Character!Q16 -> Health | R9: =Character!R16 -> Mana
B10: =Character!B17 -> Base Information (Human) | C10: =Character!C17 -> 156 | D10: =Character!D17 -> 106 | E10: =Character!E17 -> 164 | F10: =Character!F17 -> 563 | G10: =Character!G17 -> 97 | H10: =Character!H17 -> 0 | I10: =Character!I17 -> 1.12724 | J10: =Character!J17 -> 0 | K10: =Character!K17 -> 0 | L10: =Character!L17 -> 3 | M10: =Character!M17 -> 96 | N10: =Character!N17 -> 0 | O10: =Character!O17 -> 3.542 | P10: =Character!P17 -> 1171 | Q10: =Character!Q17 -> 44665 | R10: =Character!R17 -> 23142
B11: =Character!B18 -> Gear | C11: =Character!C18 -> 5949 | D11: =Character!D18 -> 20 | E11: =Character!E18 -> 5291.25 | F11: =Character!F18 -> 11244.23381 | G11: =Character!G18 -> 20 | H11: =Character!H18 -> 8.001065699 | I11: =Character!I18 -> 5.754357162 | J11: =Character!J18 -> 13.79073274 | K11: =Character!K18 -> 8.260821062 | L11: =Character!L18 -> 14.05392444 | M11: =Character!M18 -> 20 | N11: =Character!N18 -> 9.380551705 | O11: =Character!O18 -> 5.695957162 | P11: =Character!P18 -> 0 | Q11: =Character!Q18 -> 59490 | R11: =Character!R18 -> 490
B12: =Character!B19 -> Talent / Buffs / Debuffs / Pots | C12: =Character!C19 -> 918.45 | D12: =Character!D19 -> 6.3 | E12: =Character!E19 -> 1164.435625 | F12: =Character!F19 -> 3742.481756 | G12: =Character!G19 -> 582.3 | H12: =Character!H19 -> 0 | I12: =Character!I19 -> 7.864916 | J12: =Character!J19 -> 2.666666667 | K12: =Character!K19 -> 0 | L12: =Character!L19 -> 10 | M12: =Character!M19 -> 5149.306136 | N12: =Character!N19 -> 8 | O12: =Character!O19 -> 5.0126 | P12: =Character!P19 -> 828 | Q12: =Character!Q19 -> 9184.5 | R12: =Character!R19 -> 5495.5
B13: =Character!B20 -> Grand Total | C13: =Character!C20 -> 7023.45 | D13: =Character!D20 -> 132.3 | E13: =Character!E20 -> 6619.685625 | F13: =Character!F20 -> 15549.71557 | G13: =Character!G20 -> 699.3 | H13: =Character!H20 -> 8.001065699 | I13: =Character!I20 -> 14.74651316 | J13: =Character!J20 -> 16.4573994 | K13: =Character!K20 -> 8.260821062 | L13: =Character!L20 -> 27.05392444 | M13: =Character!M20 -> 5265.306136 | N13: =Character!N20 -> 17.38055171 | O13: =Character!O20 -> 14.25055716 | P13: =Character!P20 -> 1999 | Q13: =Character!Q20 -> 113339.5 | R13: =Character!R20 -> 29127.5
C15: Str | D15: Hit | E15: Crit | F15: Haste | G15: Mastery | H15: WE | N15: Level | O15: 85 | P15: =O15+1 -> 86 | Q15: =P15+1 -> 87 | R15: 88
B16: Additional increases DPS by | C16: =Graph!C303/Graph!B303 -> 0 | D16: =Graph!D303/Graph!B303 -> 0 | E16: =Graph!E303/Graph!B303 -> 0 | F16: =Graph!F303/Graph!B303 -> 0 | G16: =Graph!G303/Graph!B303 -> 0 | H16: =Graph!H303/Graph!B303 -> 0 | L16: Chance to Miss | O16: =MAX(0,(5% - HitTotal%)) -> 0 | P16: =MAX(0,(5.5% - HitTotal%)) -> 0 | Q16: =MAX(0,(6% - HitTotal%)) -> 0 | R16: =MAX(0,(8% - HitTotal%)) -> 0
B17: Stat Weights | C17: 1 | D17: =IF(D16=0,0,(D16/$C$16)) -> 0 | E17: =IF(E16=0,0,(E16/$C$16)) -> 0 | F17: 0 | G17: 0 | H17: 0 | L17: Chance to be Dodged | O17: =MAX(0,(5% - (0.25% * CurrentExpertise))) -> 0 | P17: =MAX(0,(5.5% - (0.25% * CurrentExpertise))) -> 0 | Q17: =MAX(0,(6% - (0.25% * CurrentExpertise))) -> 0 | R17: =MAX(0,(6.5% - (0.25% * CurrentExpertise))) -> 0
B19: Professions | C19: =Profession1 -> Blacksmithing | E19: =Profession2 -> Jewelcrafting | I19: Talent Spec | K19: =CONCATENATE(Character!S137," / ",Character!T137," / ",Character!U137) -> 7 / 2 / 32
B21: Fight Data
B23: --- Damage Calculations ---
B24: Damage Source | C24: Effective Cooldown | D24: DPS | E24: %
B26: White (Autoattack) | C26: N/A | D26: =AutoattackDPS -> 2649.919508 | E26: =D26/TotalDPS -> 0.100870392
B27: =IF(SealSelection="SoT", "Seal of Truth", "Seal of Righteousness") -> Seal of Truth | C27: N/A | D27: =IF(SealSelection="SoT", SoTDPS, SoRDPS) -> 2253.009496 | E27: 0.0857618318
B28: =IF(SealSelection="SoT", "Censure (SoT DoT)", "") -> Censure (SoT DoT) | C28: N/A | D28: =IF(SealSelection="SoT", SoTDoTDPS, 0) -> 2621.934028 | E28: 0.09980511201
B29: Seals of Command | C29: N/A | D29: =SoCDPS -> 925.74455 | E29: 0.0352388876
B30: Crusader Strike | C30: =CSCooldown -> 3.942289282 | D30: =CSDPS -> 5688.773771 | E30: 0.2165457626
B31: =IF(SealSelection="SoT", "Judgement of Truth", "Judgement of Righteousness") -> Judgement of Truth | C31: =JudgementCD -> 13.58016216 | D31: =IF(SealSelection="SoT",JoTDPS, JoRDPS) -> 851.8219649 | E31: 0.03242499076
B32: Templar's Verdict | C32: =TVCooldown -> 6.930103635 | D32: =TVDPS -> 6510.172955 | E32: 0.2478126963
B33: Consecrate | C33: =ConsCooldown -> 55.66496776 | D33: =ConsDPS -> 189.7265514 | E33: 0.007222027523
B34: Exorcism | C34: =ExoCooldown -> 13.7557248 | D34: =ExoDPS + IF(GlyphOfExorcism="On",ExoGlyphDPS,0) -> 2519.99105 | E34: 0.09592460617
B35: Holy Wrath | C35: =HWCooldown -> 26.9988263 | D35: =HWDPS -> 339.9424606 | E35: 0.01294006447
B36: Hammer of Wrath | C36: =HoWCooldown -> 23.52195885 | D36: =HoWDPS -> 1315.331878 | E36: 0.05006870655
B37: Other Sources | C37: N/A | D37: =IF(Trinket1Bonus="DPS",Trinket1BonusAmount) + IF(Trinket2Bonus="DPS",Trinket2BonusAmount) + IF(GloveEnchantBonus="DPS",GloveEnchantBonusDamage) + IF(OR(Profession1="Engineering",Profession2="Engineering"),Character!S211 + Character!S212,0) -> 404.1701889 | E37: =D37/TotalDPS -> 0.01538492218
B38: Total Damage Per Second | E38: =IF(SealSelection="SoT", SoTTotal, SoRTotal) + IF(Trinket1Bonus="DPS",Trinket1BonusAmount) + IF(Trinket2Bonus="DPS",Trinket2BonusAmount) + IF(GloveEnchantBonus="DPS",GloveEnchantBonusDamage) + IF(OR(Profession1="Engineering",Profession2="Engineering"),Character!S211 + Character!S212,0) + IF(WeaponEnchantBonus="DPS",Character!X128,0) -> 26270.5384
B40: Mana Usage
B42: --- Mana Calculations ---
B43: Mana Usage | E43: MPS | G43: Mana Modifiers | J43: Bonus
B45: Crusader Strike | E45: =0 - (BaseMana * (0.1 * IF(GlyphOfAsceticCrusader="On",0.7,1)))/CSCooldown -> -410.9135287 | G45: Dark Rune | J45: =Character!R219 -> 0
B46: Judgement | E46: =IF(JudgementCD=0,0,(0 - (BaseMana * 0.05) / JudgementCD)) -> -85.20516812 | G46: Mana Pot | J46: =Character!R223 -> 0
B47: Consecration | E47: =IF(ConsCooldown=0,0,(0 - (BaseMana * 0.55) / ConsCooldown)) -> -228.6554814 | G47: Lay on Hands | J47: =Character!R235 -> 0
B48: Hammer of Wrath | E48: =IF(GlyphOfHoW="On",0,IF(HoWCooldown=0,0,(0 - (BaseMana * 0.12) / HoWCooldown))) -> 0 | G48: Time to 0 Mana | J48: =IF(E57>0,"Infinite",(TotalMana+SUM(J45:J47))/-E57) -> Infinite
B49: Exorcism | E49: =IF(ExoCooldown=0,0,(0 - (BaseMana * 0.3) / ExoCooldown)) -> -504.7062296
B50: Holy Wrath | E50: =IF(HWCooldown=0,0,(0 - (BaseMana * 0.2) / HWCooldown)) -> -171.4296743 | G50: Total Divine Plea | J50: 1.499761739
B51: Avenging Wrath | E51: =0 - (BaseMana * 0.08) / (Length / (Length / (180 - (SancWrath * 20)))) -> -15.428 | G51: Free GCD | J51: 2
B52: Zealotry | E52: =0 - (BaseMana * 0.08) / (Length / (Length / (180 - (SancWrath * 20)))) -> -15.428
B53: Judgements of the Bold | E53: =IF(JudgementCD=0,0,(((0.025 * (1 + CurrentHaste/100)) * BaseMana) * (92%+MIN(HitTotal,8)%) * IF(JudgementCD>10,(10/JudgementCD),1))) -> 496.1386147
B54: Replenish | E54: =TotalMana * 0.001 -> 29.1275
B55: MP5 (per second) | E55: =($P$13 / 5) -> 399.8
B56: Divine Plea | E56: =(10% + IF(GlyphOfDivinePlea="On",5%,0%)) * TotalMana * NumDP -> 4368.431006
B57: Total Mana Per Sec | E57: =SUM(E45:E56) -> 3861.731038
B59: Spreadsheet Settings
B61: Estimations | C61: =Estimations -> On | G61: --- Priorities ---
B62: Delay (Latency/Reaction Time) | C62: =Delay -> 0.2 | D62: seconds. | G62: 0 | H62: =IF(InqRefresh="Unused","","Inquisition") -> Inquisition
B63: Length of Fight | C63: =Length -> 450 | D63: seconds. | G63: 1 | H63: =Ability1 -> Crusader Strike
B64: SoT/Trinket Reset | C64: =TrinketReset -> 0 | G64: 2 | H64: =Ability2 -> Hammer of Wrath
B65: Under 20% Health | C65: =HoWPercent -> 0.19 | G65: 3 | H65: =Ability3 -> Exorcism
B66: In Front of Boss | C66: =FrontOfBoss -> Never | G66: 4 | H66: =Ability4 -> Templar's Verdict
B67: Extra Targets | C67: =ExtraTargets -> 0 | G67: 5 | H67: =Ability5 -> Judgement of Truth
B68: Seal Selected | C68: =SealSelection -> SoT | G68: 6 | H68: =Ability6 -> Holy Wrath
B69: Avenging Wrath + Zealotry | C69: =AWZeal -> Together | G69: 7 | H69: =Ability7 -> Consecration
B70: Early Inquisition Refresh | C70: =InqRefresh -> 4 | D70: seconds.
B71: Fillers Between Crusader Strike | C71: =Fillers -> 2

Sheet Character
B1: Spreadsheet Settings | M1: Damage Snapshot | AA1: =CONCATENATE(Estimations, " ", Delay, " ", Length, " ", TrinketReset, " ", HoWPercent, " ", FrontOfBoss, " ", ExtraTargets, " ", SealSelection, " ", AWZeal, " ", InqRefresh, " ", Fillers, " ", CurrentHaste, " ", Mastery, " ", RoLTalent, " ", AoWTalent, " ", DivPurpTalent, " ", SancWrath, " ", ZealotryTalent, " ", A191, " ", A193, " ", Heroism) -> On 0.2 450 0 0.19 Never 0 SoT Together 4 2 16.4573994035938 8.26082106202588 3 3 2 3 1 On On On
H2: --- Priorities --- | AA2: On 0.2 450 0 0.19 Never 0 SoT Together 4 2 16.4573994035938 8.26082106202588 3 3 2 3 1 On On On
B3: Estimations | C3: On | H3: 0 | I3: =IF(InqRefresh="Unused","","Inquisition") -> Inquisition | M3: Damage Source | P3: Effective CD | Q3: DPS | R3: % | S3: % | T3: DPS | U3: Effective CD | V3: Damage Source | AA3: On 0.2 450 0 0.19 Never 0 SoT Together 4 2 11.1082193782285 11.1334225792057 3 3 2 3 1 On On On
B4: Delay/Latency | C4: 0.2 | E4: seconds. | H4: 1 | I4: Crusader Strike
B5: Length of Fight | C5: 450 | E5: seconds. | H5: 2 | I5: Hammer of Wrath | M5: White (Autoattack) | P5: N/A | Q5: =AutoattackDPS -> 2649.919508 | R5: =Q5/TotalDPS -> 0.100870392 | S5: =T5/TotalDPS -> 0.2478126963 | T5: =TVDPS -> 6510.172955 | U5: =TVCooldown -> 6.930103635 | V5: Templar's Verdict
B6: SoT/Trinket Reset | C6: 0 | H6: 3 | I6: Exorcism | M6: =IF(SealSelection="SoT", "Seal of Truth", "Seal of Righteousness") -> Seal of Truth | P6: N/A | Q6: =IF(SealSelection="SoT", SoTDPS, SoRDPS) -> 2253.009496 | R6: 0.0857618318 | S6: 0.007222027523 | T6: =ConsDPS -> 189.7265514 | U6: =ConsCooldown -> 55.66496776 | V6: Consecrate
H7: 4 | I7: Templar's Verdict | M7: =IF(SealSelection="SoT", "Censure (SoT DoT)", "") -> Censure (SoT DoT) | P7: N/A | Q7: =IF(SealSelection="SoT", SoTDoTDPS, 0) -> 2621.934028 | R7: 0.09980511201 | S7: 0.09592460617 | T7: =ExoDPS + IF(GlyphOfExorcism="On",ExoGlyphDPS,0) -> 2519.99105 | U7: =ExoCooldown -> 13.7557248 | V7: Exorcism
B8: Under 20% Health | C8: 0.19 | H8: 5 | I8: Judgement of Truth | M8: Seals of Command | P8: N/A | Q8: =SoCDPS -> 925.74455 | R8: 0.0352388876 | S8: 0.01294006447 | T8: =HWDPS -> 339.9424606 | U8: =HWCooldown -> 26.9988263 | V8: Holy Wrath
B9: In Front of Boss | C9: Never | H9: 6 | I9: Holy Wrath | M9: =IF(ExtraTargets>2,"Divine Storm","Crusader Strike") -> Crusader Strike | P9: =CSCooldown -> 3.942289282 | Q9: =CSDPS -> 5688.773771 | R9: 0.2165457626 | S9: 0.05006870655 | T9: =HoWDPS -> 1315.331878 | U9: =HoWCooldown -> 23.52195885 | V9: Hammer of Wrath
B10: Extra Targets | C10: 0 | H10: 7 | I10: Consecration | M10: =IF(SealSelection="SoT", "Judgement of Truth", "Judgement of Righteousness") -> Judgement of Truth | P10: =JudgementCD -> 13.58016216 | Q10: =IF(SealSelection="SoT",JoTDPS, JoRDPS) -> 851.8219649 | R10: 0.03242499076 | S10: 0.01538492218 | T10: =IF(Trinket1Bonus="DPS",Trinket1BonusAmount) + IF(Trinket2Bonus="DPS",Trinket2BonusAmount) + IF(GloveEnchantBonus="DPS",GloveEnchantBonusDamage) + IF(OR(Profession1="Engineering",Profession2="Engineering"),Character!S211 + Character!S212,0) -> 404.1701889 | U10: N/A | V10: Other Sources
B11: Seal Selection | C11: SoT | M11: Total DPS | P11: =TotalDPS -> 26270.5384 | R11: Time to OOM | U11: =Overview!J48 -> Infinite
B12: AW + Zealotry | C12: Together | I12: Professions | W12: seconds.
B13: Early Inquisition Refresh | C13: 4 | E13: =IF(InqRefresh=1,"second.","seconds.") -> seconds. | I13: Blacksmithing | M13: =IF(OR(Y16<Y26,Z16<Z26,AA16<AA26),"Does Not Meet Meta Requirements!",IF(SUM(S171:S175)>3,"Too many Prime Glyphs!",IF(SUM(S176:S182)>3,"Too many Major Glyphs!",IF(SUM($S$137:$U$137)>41,"Too Many Talents!",0)))) -> 0
B14: Fillers Between Crusader Strike | C14: 2 | I14: Jewelcrafting
B16: Information | C16: Stam | D16: Int | E16: Str | F16: AP | G16: Agi | H16: Hit | I16: Crit | J16: Haste | K16: Mastery | L16: WE | M16: SpD | N16: SpH | O16: SpC | P16: Mp5 | Q16: Health | R16: Mana | Y16: =SUM(Y27:Y119,Y129:Y131) -> 14 | Z16: =SUM(Z27:Z119,Z129:Z131) -> 2 | AA16: =SUM(AA27:AA119,AA129:AA131) -> 3
B17: Base Information (Human) | C17: =VLOOKUP($B$17,RaceTypeInfo,2,FALSE) -> 156 | D17: =VLOOKUP($B$17,RaceTypeInfo,3,FALSE) -> 106 | E17: =VLOOKUP($B$17,RaceTypeInfo,4,FALSE) -> 164 | F17: =VLOOKUP($B$17,RaceTypeInfo,5,FALSE) -> 563 | G17: =VLOOKUP($B$17,RaceTypeInfo,6,FALSE) -> 97 | H17: =VLOOKUP($B$17,RaceTypeInfo,7,FALSE) -> 0 | I17: =VLOOKUP($B$17,RaceTypeInfo,8,FALSE) + (G17 * G223) -> 1.12724 | J17: =VLOOKUP($B$17,RaceTypeInfo,9,FALSE) -> 0 | K17: =VLOOKUP($B$17,RaceTypeInfo,10,FALSE) -> 0 | L17: =VLOOKUP($B$17,RaceTypeInfo,11,FALSE) -> 3 | M17: =VLOOKUP($B$17,RaceTypeInfo,12,FALSE) -> 96 | N17: =VLOOKUP($B$17,RaceTypeInfo,14,FALSE) -> 0 | O17: =VLOOKUP($B$17,RaceTypeInfo,15,FALSE) + (D17 * D223) -> 3.542 | P17: =VLOOKUP($B$17,RaceTypeInfo,16,FALSE) -> 1171 | Q17: =VLOOKUP($B$17,RaceTypeInfo,17,FALSE) -> 44665 | R17: =VLOOKUP($B$17,RaceTypeInfo,18,FALSE) -> 23142 | T17: Gem Cap
B18: Gear | C18: =SUM(C23:C132) -> 5949 | D18: =SUM(D23:D132) -> 20 | E18: =SUM(E23:E132) -> 5291.25 | F18: =SUM(F23:F132)+E18*2 -> 11244.23381 | G18: =SUM(G23:G132) -> 20 | H18: =SUM(H23:H132)/H223 -> 8.001065699 | I18: =SUM(I23:I132)/I223+(SUM(G23:G132)*G223) -> 5.754357162 | J18: =(SUM(J23:J132)/J223) -> 13.79073274 | K18: =(SUM(K23:K132)/K223) -> 8.260821062 | L18: =(SUM(L23:L132)/L223) -> 14.05392444 | M18: =SUM(M23:M132) + D18 -> 20 | N18: =SUM(H23:H132)/N223 -> 9.380551705 | O18: =SUM(I23:I132)/O223 + (SUM(D23:D132)*D223) -> 5.695957162 | P18: =SUM(P23:P132) -> 0 | Q18: =SUM(Q23:Q132) -> 59490 | R18: =SUM(R23:R132) + 190 -> 490 | T18: Rare
B19: Talent / Buffs / Debuffs / Pots | C19: =SUM(C138:C215)+IF(OR(Profession1="Mining",Profession2="Mining"),60,0) -> 918.45 | D19: =SUM(D138:D215) -> 6.3 | E19: =SUM(E138:E215) -> 1164.435625 | F19: =SUM(F138:F215) -> 3742.481756 | G19: =SUM(G138:G215) -> 582.3 | H19: =SUM(H138:H215) -> 0 | I19: =SUM(I138:I215) + IF(OR(Profession1="Skinning",Profession2="Skinning"),40/I223,0) -> 7.864916 | J19: =SUM(J206:J215) + (J201 * 100) -> 2.666666667 | K19: =SUM(K206:K215) -> 0 | L19: =SUM(L138:L215) -> 10 | M19: =SUM(M138:M215) + D19 -> 5149.306136 | N19: =SUM(N138:N139,N141:N215) + (N140 * 100) -> 8 | O19: =SUM(O138:O215) -> 5.0126 | P19: =SUM(P138:P215) -> 828 | Q19: =(C19*10) -> 9184.5 | R19: =SUM(R138:R195) -> 5495.5
B20: Grand Total | C20: =C19+C17+C18 -> 7023.45 | D20: =D19+D17+D18 -> 132.3 | E20: =E19 + E17 + E18 + E220 -> 6619.685625 | F20: =(F19 + F17 + F18 + F220) -> 15549.71557 | G20: =G19+G17+G18+G220 -> 699.3 | H20: =H19+H17+H18+H220 -> 8.001065699 | I20: =IF((I19+I17+I18+I220)>100,100,(I19+I17+I18+I220)) -> 14.74651316 | J20: =J19+J17+J18+J220 -> 16.4573994 | K20: =K19+K17+K18+K220 -> 8.260821062 | L20: =(L19+L17+L18+L220) -> 27.05392444 | M20: =M19+M17+M18+M220 -> 5265.306136 | N20: =N19+N17+N18+N220 -> 17.38055171 | O20: =O19+O17+O18+O220 -> 14.25055716 | P20: =P19+P17+P18 -> 1999 | Q20: =SUM(Q17:Q19) + ICCStam -> 113339.5 | R20: =R19+R17+R18 -> 29127.5
B22: Gear | C22: Stam | D22: Int | E22: Str | F22: AP | G22: Agi | H22: Hit | I22: Crit | J22: Haste | K22: Mastery | L22: WE | M22: SpD | N22: SpH | O22: SpC | P22: Mp5 | Q22: Health | R22: Mana | S22: G1 | T22: G2 | U22: G3 | V22: G4 | W22: Bonus | X22: Amount
B23: Reinforced Sapphirium Helmet | C23: =IF(OR($B23="None",ISBLANK($B23)),0,VLOOKUP($B23,ItemList,HLOOKUP(C$22,StatLoC,2,FALSE),FALSE)) -> 512 | D23: 0 | E23: 281 | F23: 0 | G23: 0 | H23: 0 | I23: =IF(OR($B23="None",ISBLANK($B23)),0,VLOOKUP($B23,ItemList,HLOOKUP(I$22,StatLoC,2,FALSE),FALSE)) -> 0 | J23: 228 | K23: =IF(OR($B23="None",ISBLANK($B23)),0,VLOOKUP($B23,ItemList,HLOOKUP(K$22,StatLoC,2,FALSE),FALSE)) -> 0 | L23: 168 | M23: 0 | N23: =IF(OR($B23="None",ISBLANK($B23)),0,VLOOKUP($B23,ItemList,HLOOKUP(N$22,StatLoC,2,FALSE),FALSE)) -> 0 | O23: 0 | P23: 0 | Q23: =10*C23 -> 5120 | R23: =(D23*15) -> 0 | S23: =IF(OR($B23="None",ISBLANK($B23)),0,VLOOKUP($B23,ItemList,HLOOKUP(S$22,StatLoC,2,FALSE),FALSE)) -> m | T23: y | U23: 0 | V23: 0 | W23: Str | X23: 30
B24: Reforge: Expertise to Mastery | H24: =IF(AND(RIGHT(B24,3)="Hit",H23<=0),(-1 * SUM(I24:L24)),IF(RIGHT(LEFT(B24,12),3)="Hit",ROUNDDOWN((-0.4 * H23),0),0)) -> 0 | I24: =IF(AND(RIGHT(B24,4)="Crit",I23<=0),(-1 * SUM(H24,J24,K24,L24)),IF(RIGHT(LEFT(B24,13),4)="Crit",ROUNDDOWN((-0.4 * I23),0),0)) -> 0 | J24: =IF(AND(RIGHT(B24,5)="Haste",J23<=0),(-1 * SUM(H24:I24,K24:L24)),IF(RIGHT(LEFT(B24,14),5)="Haste",ROUNDDOWN((-0.4 * J23),0),0)) -> 0 | K24: =IF(AND(RIGHT(B24,7)="Mastery",K23<=0),(-1 * SUM(H24:J24,L24)),IF(RIGHT(LEFT(B24,16),7)="Mastery",ROUNDDOWN((-0.4 * K23),0),0)) -> 67 | L24: =IF(AND(RIGHT(B24,9)="Expertise",L23<=0),(-1 * SUM(H24:K24)),IF(RIGHT(LEFT(B24,18),9)="Expertise",ROUNDDOWN((-0.4 * L23),0),0)) -> -67
B25: Arcanum of the Wildhammer | C25: 0 | D25: 0 | E25: 60 | F25: 0 | G25: 0 | H25: 0 | I25: 0 | J25: 0 | K25: 35 | L25: 0 | M25: 0 | N25: 0 | O25: 0 | P25: 0 | Q25: =10*C25 -> 0 | R25: =(D25*15) -> 0 | W25: =IF(SUM(S25:V25)>0,1,0) -> 0
A26: =S23 -> m | B26: 54 Str & 3% Increased Crit Dmg | C26: =IF(ISNONTEXT($S23),0,VLOOKUP($B26,ItemList,HLOOKUP(C$22,StatLoC,2,FALSE),FALSE)) -> 0 | D26: 0 | E26: 54 | F26: 0 | G26: 0 | H26: 0 | I26: 0 | J26: 0 | K26: 0 | L26: 0 | M26: 0 | N26: 0 | O26: 0 | P26: 0 | Q26: 0 | R26: 0 | S26: =IF(ISNONTEXT($S23),0,VLOOKUP($B26,ItemList,HLOOKUP(S$22,StatLoC,2,FALSE),FALSE)) -> m | T26: =IF(ISNONTEXT($S23),0,VLOOKUP($B26,ItemList,HLOOKUP(T$22,StatLoC,2,FALSE),FALSE)) -> 0 | U26: =IF(ISNONTEXT($S23),0,VLOOKUP($B26,ItemList,HLOOKUP(U$22,StatLoC,2,FALSE),FALSE)) -> 0 | V26: =IF(ISNONTEXT($S23),0,VLOOKUP($B26,ItemList,HLOOKUP(V$22,StatLoC,2,FALSE),FALSE)) -> 0 | W26: =IF(ISNONTEXT(S23),"",IF(OR(S23=S26,S23=T26),"","Fail")) ->  | X26: =IF(OR($B26="None",ISBLANK($B26),ISNONTEXT($S23)),0,VLOOKUP($B26,ItemList,HLOOKUP(X$22,StatLoC,2,FALSE),FALSE)) -> Crit | Y26: =IF(S23="m",IF(B26="Chance to Increase Melee Speed",1,IF(B26="54 Crit & 1% Spell Reflect",2,IF(OR(B26="54 Crit & 3% Increased Crit Dmg",B26="54 Str & 3% Increased Crit Dmg"),3,0))),0) -> 3 | Z26: =IF(S23="m",IF(B26="Chance to Increase Melee Speed",1,0),0) -> 0 | AA26: =IF(S23="m",IF(B26="Chance to Increase Melee Speed",1,0),0) -> 0
A27: =T23 -> y | B27: Skillful Ember Topaz (20 Str/20 Mastery) | C27: =IF(ISNONTEXT($T23),0,VLOOKUP($B27,ItemList,HLOOKUP(C$22,StatLoC,2,FALSE),FALSE)) -> 0 | D27: 0 | E27: 20 | F27: 0 | G27: 0 | H27: 0 | I27: 0 | J27: 0 | K27: 20 | L27: 0 | M27: 0 | N27: 0 | O27: 0 | P27: 0 | Q27: 0 | R27: 0 | S27: =IF(ISNONTEXT($T23),0,VLOOKUP($B27,ItemList,HLOOKUP(S$22,StatLoC,2,FALSE),FALSE)) -> r | T27: =IF(ISNONTEXT($T23),0,VLOOKUP($B27,ItemList,HLOOKUP(T$22,StatLoC,2,FALSE),FALSE)) -> y | U27: =IF(ISNONTEXT($T23),0,VLOOKUP($B27,ItemList,HLOOKUP(U$22,StatLoC,2,FALSE),FALSE)) -> 0 | V27: =IF(ISNONTEXT($T23),0,VLOOKUP($B27,ItemList,HLOOKUP(V$22,StatLoC,2,FALSE),FALSE)) -> 0 | W27: =IF(ISNONTEXT(T23),"",IF(OR(T23=S27,T23=T27,T23=U27),"","Fail")) ->  | Y27: =IF(OR(S27="r",T27="r",U27="r"),1,0) -> 1 | Z27: =IF(OR(S27="y",T27="y",U27="y"),1,0) -> 1 | AA27: =IF(OR(S27="b",T27="b",U27="b"),1,0) -> 0
A28: =U23 -> 0 | B28: Bold Chimera's Eye (67 Str) | C28: =IF(ISNONTEXT($U23),0,VLOOKUP($B28,ItemList,HLOOKUP(C$22,StatLoC,2,FALSE),FALSE)) -> 0 | D28: 0 | E28: 0 | F28: 0 | G28: 0 | H28: 0 | I28: 0 | J28: 0 | K28: 0 | L28: 0 | M28: 0 | N28: 0 | O28: 0 | P28: 0 | Q28: 0 | R28: 0 | S28: =IF(ISNONTEXT($U23),0,VLOOKUP($B28,ItemList,HLOOKUP(S$22,StatLoC,2,FALSE),FALSE)) -> 0 | T28: =IF(ISNONTEXT($U23),0,VLOOKUP($B28,ItemList,HLOOKUP(T$22,StatLoC,2,FALSE),FALSE)) -> 0 | U28: =IF(ISNONTEXT($U23),0,VLOOKUP($B28,ItemList,HLOOKUP(U$22,StatLoC,2,FALSE),FALSE)) -> 0 | V28: =IF(ISNONTEXT($U23),0,VLOOKUP($B28,ItemList,HLOOKUP(V$22,StatLoC,2,FALSE),FALSE)) -> 0 | W28: =IF(ISNONTEXT(U23),"",IF(OR(U23=S28,U23=T28,U23=U28),"","Fail")) ->  | Y28: =IF(OR(S28="r",T28="r",U28="r"),1,0) -> 0 | Z28: =IF(OR(S28="y",T28="y",U28="y"),1,0) -> 0 | AA28: =IF(OR(S28="b",T28="b",U28="b"),1,0) -> 0
A29: =IF(AND(ISNONTEXT(A28),ISNONTEXT(A27),ISNONTEXT(A26)),"","bo") -> bo | B29: Bonus: | C29: =IF($W29=TRUE,IF(C$22=$W23,$X23,0),0) -> 0 | D29: 0 | E29: 30 | F29: 0 | G29: 0 | H29: 0 | I29: 0 | J29: 0 | K29: 0 | L29: 0 | M29: 0 | N29: 0 | O29: 0 | P29: 0 | Q29: 0 | R29: 0 | W29: =IF(OR(W26="Fail",W27="Fail",W28="Fail"),FALSE,TRUE) -> TRUE
B30: Reinforced Sapphirium Pauldrons | C30: =IF(OR($B30="None",ISBLANK($B30)),0,VLOOKUP($B30,ItemList,HLOOKUP(C$22,StatLoC,2,FALSE),FALSE)) -> 380 | D30: 0 | E30: 233 | F30: 0 | G30: 0 | H30: 149 | I30: 0 | J30: 169 | K30: 0 | L30: 0 | M30: 0 | N30: =IF(OR($B30="None",ISBLANK($B30)),0,VLOOKUP($B30,ItemList,HLOOKUP(N$22,StatLoC,2,FALSE),FALSE)) -> 0 | O30: 0 | P30: 0 | Q30: 3800 | R30: 0 | S30: =IF(OR($B30="None",ISBLANK($B30)),0,VLOOKUP($B30,ItemList,HLOOKUP(S$22,StatLoC,2,FALSE),FALSE)) -> r | T30: 0 | U30: 0 | V30: 0 | W30: Haste | X30: 10
B31: Reforge: Haste to Mastery | H31: =IF(RIGHT(B31,3)="Hit",(-1 * SUM(I31:L31)),IF(RIGHT(LEFT(B31,12),3)="Hit",ROUNDDOWN((-0.4 * H30),0),0)) -> 0 | I31: =IF(RIGHT(B31,4)="Crit",(-1 * SUM(H31,J31,K31,L31)),IF(RIGHT(LEFT(B31,13),4)="Crit",ROUNDDOWN((-0.4 * I30),0),0)) -> 0 | J31: =IF(RIGHT(B31,5)="Haste",(-1 * SUM(H31:I31,K31:L31)),IF(RIGHT(LEFT(B31,14),5)="Haste",ROUNDDOWN((-0.4 * J30),0),0)) -> -67 | K31: =IF(RIGHT(B31,7)="Mastery",(-1 * SUM(H31:J31,L31)),IF(RIGHT(LEFT(B31,16),7)="Mastery",ROUNDDOWN((-0.4 * K30),0),0)) -> 67 | L31: =IF(RIGHT(B31,9)="Expertise",(-1 * SUM(H31:K31)),IF(RIGHT(LEFT(B31,18),9)="Expertise",ROUNDDOWN((-0.4 * L30),0),0)) -> 0
B32: Greater Inscription of Jagged Stone | C32: 0 | D32: 0 | E32: 50 | F32: 0 | G32: 0 | H32: 0 | I32: 25 | J32: 0 | K32: 0 | L32: 0 | M32: 0 | N32: 0 | O32: 0 | P32: 0 | Q32: 0 | R32: 0 | W32: =IF(SUM(S32:V32)>0,1,0) -> 0
A33: =S30 -> r | B33: Bold Chimera's Eye (67 Str) | C33: =IF(ISNONTEXT($S30),0,VLOOKUP($B33,ItemList,HLOOKUP(C$22,StatLoC,2,FALSE),FALSE)) -> 0 | D33: 0 | E33: 67 | F33: 0 | G33: 0 | H33: 0 | I33: 0 | J33: 0 | K33: 0 | L33: 0 | M33: 0 | N33: 0 | O33: 0 | P33: 0 | Q33: 0 | R33: 0 | S33: =IF(ISNONTEXT($S30),0,VLOOKUP($B33,ItemList,HLOOKUP(S$22,StatLoC,2,FALSE),FALSE)) -> r | T33: =IF(ISNONTEXT($S30),0,VLOOKUP($B33,ItemList,HLOOKUP(T$22,StatLoC,2,FALSE),FALSE)) -> 0 | U33: =IF(ISNONTEXT($S30),0,VLOOKUP($B33,ItemList,HLOOKUP(U$22,StatLoC,2,FALSE),FALSE)) -> 0 | V33: =IF(ISNONTEXT($S30),0,VLOOKUP($B33,ItemList,HLOOKUP(V$22,StatLoC,2,FALSE),FALSE)) -> 0 | W33: =IF(ISNONTEXT(S30),"",IF(OR(S30=S33,S30=T33, S30=U33),"","Fail")) ->  | Y33: =IF(OR(S33="r",T33="r",U33="r"),1,0) -> 1 | Z33: =IF(OR(S33="y",T33="y",U33="y"),1,0) -> 0 | AA33: =IF(OR(S33="b",T33="b",U33="b"),1,0) -> 0
A34: =T30 -> 0 | B34: Bold Chimera's Eye (67 Str) | C34: =IF(ISNONTEXT($T30),0,VLOOKUP($B34,ItemList,HLOOKUP(C$22,StatLoC,2,FALSE),FALSE)) -> 0 | D34: 0 | E34: 0 | F34: 0 | G34: 0 | H34: 0 | I34: 0 | J34: 0 | K34: 0 | L34: 0 | M34: 0 | N34: 0 | O34: 0 | P34: 0 | Q34: 0 | R34: 0 | S34: =IF(ISNONTEXT($T30),0,VLOOKUP($B34,ItemList,HLOOKUP(S$22,StatLoC,2,FALSE),FALSE)) -> 0 | T34: =IF(ISNONTEXT($T30),0,VLOOKUP($B34,ItemList,HLOOKUP(T$22,StatLoC,2,FALSE),FALSE)) -> 0 | U34: =IF(ISNONTEXT($T30),0,VLOOKUP($B34,ItemList,HLOOKUP(U$22,StatLoC,2,FALSE),FALSE)) -> 0 | V34: =IF(ISNONTEXT($T30),0,VLOOKUP($B34,ItemList,HLOOKUP(V$22,StatLoC,2,FALSE),FALSE)) -> 0 | W34: =IF(ISNONTEXT(T30),"",IF(OR(T30=S34,T30=T34,T30=U34),"","Fail")) ->  | Y34: =IF(OR(S34="r",T34="r",U34="r"),1,0) -> 0 | Z34: =IF(OR(S34="y",T34="y",U34="y"),1,0) -> 0 | AA34: =IF(OR(S34="b",T34="b",U34="b"),1,0) -> 0
A35: =U30 -> 0 | B35: Bold Inferno Ruby (40 Str) | C35: =IF(ISNONTEXT($U30),0,VLOOKUP($B35,ItemList,HLOOKUP(C$22,StatLoC,2,FALSE),FALSE)) -> 0 | D35: 0 | E35: 0 | F35: 0 | G35: 0 | H35: 0 | I35: 0 | J35: 0 | K35: 0 | L35: 0 | M35: 0 | N35: 0 | O35: 0 | P35: 0 | Q35: 0 | R35: 0 | S35: =IF(ISNONTEXT($U30),0,VLOOKUP($B35,ItemList,HLOOKUP(S$22,StatLoC,2,FALSE),FALSE)) -> 0 | T35: =IF(ISNONTEXT($U30),0,VLOOKUP($B35,ItemList,HLOOKUP(T$22,StatLoC,2,FALSE),FALSE)) -> 0 | U35: =IF(ISNONTEXT($U30),0,VLOOKUP($B35,ItemList,HLOOKUP(U$22,StatLoC,2,FALSE),FALSE)) -> 0 | V35: =IF(ISNONTEXT($U30),0,VLOOKUP($B35,ItemList,HLOOKUP(V$22,StatLoC,2,FALSE),FALSE)) -> 0 | W35: =IF(ISNONTEXT(U30),"",IF(OR(U30=S35,U30=T35,U30=U35),"","Fail")) ->  | Y35: =IF(OR(S35="r",T35="r",U35="r"),1,0) -> 0 | Z35: =IF(OR(S35="y",T35="y",U35="y"),1,0) -> 0 | AA35: =IF(OR(S35="b",T35="b",U35="b"),1,0) -> 0
A36: =IF(AND(ISNONTEXT(A35),ISNONTEXT(A34),ISNONTEXT(A33)),"","bo") -> bo | B36: Bonus: | C36: =IF($W36=TRUE,IF(C$22=$W30,$X30,0),0) -> 0 | D36: 0 | E36: 0 | F36: 0 | G36: 0 | H36: 0 | I36: 0 | J36: 10 | K36: 0 | L36: 0 | M36: 0 | N36: 0 | O36: 0 | P36: 0 | Q36: 0 | R36: 0 | W36: =IF(OR(W33="Fail",W34="Fail",W35="Fail"),FALSE,TRUE) -> TRUE
B37: Immolation Battleplate | C37: =IF(OR($B37="None",ISBLANK($B37)),0,VLOOKUP($B37,ItemList,HLOOKUP(C$22,StatLoC,2,FALSE),FALSE)) -> 611 | D37: 0 | E37: 368 | F37: 0 | G37: 0 | H37: 0 | I37: 0 | J37: 235 | K37: 0 | L37: 269 | M37: 0 | N37: =IF(OR($B37="None",ISBLANK($B37)),0,VLOOKUP($B37,ItemList,HLOOKUP(N$22,StatLoC,2,FALSE),FALSE)) -> 0 | O37: 0 | P37: 0 | Q37: 6110 | R37: 0 | S37: =IF(OR($B37="None",ISBLANK($B37)),0,VLOOKUP($B37,ItemList,HLOOKUP(S$22,StatLoC,2,FALSE),FALSE)) -> r | T37: b | U37: 0 | V37: 0 | W37: Str | X37: 20
B38: Reforge: Expertise to Mastery | H38: =IF(RIGHT(B38,3)="Hit",(-1 * SUM(I38:L38)),IF(RIGHT(LEFT(B38,12),3)="Hit",ROUNDDOWN((-0.4 * H37),0),0)) -> 0 | I38: =IF(RIGHT(B38,4)="Crit",(-1 * SUM(H38,J38,K38,L38)),IF(RIGHT(LEFT(B38,13),4)="Crit",ROUNDDOWN((-0.4 * I37),0),0)) -> 0 | J38: =IF(RIGHT(B38,5)="Haste",(-1 * SUM(H38:I38,K38:L38)),IF(RIGHT(LEFT(B38,14),5)="Haste",ROUNDDOWN((-0.4 * J37),0),0)) -> 0 | K38: =IF(RIGHT(B38,7)="Mastery",(-1 * SUM(H38:J38,L38)),IF(RIGHT(LEFT(B38,16),7)="Mastery",ROUNDDOWN((-0.4 * K37),0),0)) -> 107 | L38: =IF(RIGHT(B38,9)="Expertise",(-1 * SUM(H38:K38)),IF(RIGHT(LEFT(B38,18),9)="Expertise",ROUNDDOWN((-0.4 * L37),0),0)) -> -107
B39: Peerless Stats | C39: 20 | D39: 20 | E39: 20 | F39: 0 | G39: 20 | H39: 0 | I39: 0 | J39: 0 | K39: 0 | L39: 0 | M39: 0 | N39: 0 | O39: 0 | P39: 0 | Q39: 200 | R39: 300 | W39: =IF(SUM(S39:V39)>0,1,0) -> 0
A40: =S37 -> r | B40: Bold Inferno Ruby (40 Str) | C40: =IF(ISNONTEXT($S37),0,VLOOKUP($B40,ItemList,HLOOKUP(C$22,StatLoC,2,FALSE),FALSE)) -> 0 | D40: 0 | E40: 40 | F40: 0 | G40: 0 | H40: 0 | I40: 0 | J40: 0 | K40: 0 | L40: 0 | M40: 0 | N40: 0 | O40: 0 | P40: 0 | Q40: 0 | R40: 0 | S40: =IF(ISNONTEXT($S37),0,VLOOKUP($B40,ItemList,HLOOKUP(S$22,StatLoC,2,FALSE),FALSE)) -> r | T40: =IF(ISNONTEXT($S37),0,VLOOKUP($B40,ItemList,HLOOKUP(T$22,StatLoC,2,FALSE),FALSE)) -> 0 | U40: =IF(ISNONTEXT($S37),0,VLOOKUP($B40,ItemList,HLOOKUP(U$22,StatLoC,2,FALSE),FALSE)) -> 0 | V40: =IF(ISNONTEXT($S37),0,VLOOKUP($B40,ItemList,HLOOKUP(V$22,StatLoC,2,FALSE),FALSE)) -> 0 | W40: =IF(ISNONTEXT(S37),"",IF(OR(S37=S40,S37=T40, S37=U40),"","Fail")) ->  | Y40: =IF(OR(S40="r",T40="r",U40="r"),1,0) -> 1 | Z40: =IF(OR(S40="y",T40="y",U40="y"),1,0) -> 0 | AA40: =IF(OR(S40="b",T40="b",U40="b"),1,0) -> 0
A41: =T37 -> b | B41: Etched Demonseye (20 Str/20 Hit) | C41: =IF(ISNONTEXT($T37),0,VLOOKUP($B41,ItemList,HLOOKUP(C$22,StatLoC,2,FALSE),FALSE)) -> 0 | D41: 0 | E41: 20 | F41: 0 | G41: 0 | H41: 20 | I41: 0 | J41: 0 | K41: 0 | L41: 0 | M41: 0 | N41: 0 | O41: 0 | P41: 0 | Q41: 0 | R41: 0 | S41: =IF(ISNONTEXT($T37),0,VLOOKUP($B41,ItemList,HLOOKUP(S$22,StatLoC,2,FALSE),FALSE)) -> r | T41: =IF(ISNONTEXT($T37),0,VLOOKUP($B41,ItemList,HLOOKUP(T$22,StatLoC,2,FALSE),FALSE)) -> b | U41: =IF(ISNONTEXT($T37),0,VLOOKUP($B41,ItemList,HLOOKUP(U$22,StatLoC,2,FALSE),FALSE)) -> 0 | V41: =IF(ISNONTEXT($T37),0,VLOOKUP($B41,ItemList,HLOOKUP(V$22,StatLoC,2,FALSE),FALSE)) -> 0 | W41: =IF(ISNONTEXT(T37),"",IF(OR(T37=S41,T37=T41,T37=U41),"","Fail")) ->  | Y41: =IF(OR(S41="r",T41="r",U41="r"),1,0) -> 1 | Z41: =IF(OR(S41="y",T41="y",U41="y"),1,0) -> 0 | AA41: =IF(OR(S41="b",T41="b",U41="b"),1,0) -> 1
A42: =U37 -> 0 | B42: Bold Inferno Ruby (40 Str) | C42: =IF(ISNONTEXT($U37),0,VLOOKUP($B42,ItemList,HLOOKUP(C$22,StatLoC,2,FALSE),FALSE)) -> 0 | D42: 0 | E42: 0 | F42: 0 | G42: 0 | H42: 0 | I42: 0 | J42: 0 | K42: 0 | L42: 0 | M42: 0 | N42: 0 | O42: 0 | P42: 0 | Q42: 0 | R42: 0 | S42: =IF(ISNONTEXT($U37),0,VLOOKUP($B42,ItemList,HLOOKUP(S$22,StatLoC,2,FALSE),FALSE)) -> 0 | T42: =IF(ISNONTEXT($U37),0,VLOOKUP($B42,ItemList,HLOOKUP(T$22,StatLoC,2,FALSE),FALSE)) -> 0 | U42: =IF(ISNONTEXT($U37),0,VLOOKUP($B42,ItemList,HLOOKUP(U$22,StatLoC,2,FALSE),FALSE)) -> 0 | V42: =IF(ISNONTEXT($U37),0,VLOOKUP($B42,ItemList,HLOOKUP(V$22,StatLoC,2,FALSE),FALSE)) -> 0 | W42: =IF(ISNONTEXT(U37),"",IF(OR(U37=S42,U37=T42,U37=U42),"","Fail")) ->  | Y42: =IF(OR(S42="r",T42="r",U42="r"),1,0) -> 0 | Z42: =IF(OR(S42="y",T42="y",U42="y"),1,0) -> 0 | AA42: =IF(OR(S42="b",T42="b",U42="b"),1,0) -> 0
A43: =IF(AND(ISNONTEXT(A42),ISNONTEXT(A41),ISNONTEXT(A40)),"","bo") -> bo | B43: Bonus: | C43: =IF($W43=TRUE,IF(C$22=$W37,$X37,0),0) -> 0 | D43: 0 | E43: 20 | F43: 0 | G43: 0 | H43: 0 | I43: 0 | J43: 0 | K43: 0 | L43: 0 | M43: 0 | N43: 0 | O43: 0 | P43: 0 | Q43: 0 | R43: 0 | W43: =IF(OR(W40="Fail",W41="Fail",W42="Fail"),FALSE,TRUE) -> TRUE
B44: Immolation Legplates | C44: =IF(OR($B44="None",ISBLANK($B44)),0,VLOOKUP($B44,ItemList,HLOOKUP(C$22,StatLoC,2,FALSE),FALSE)) -> 611 | D44: 0 | E44: 368 | F44: 0 | G44: 0 | H44: 0 | I44: 227 | J44: 0 | K44: 274 | L44: 0 | M44: 0 | N44: =IF(OR($B44="None",ISBLANK($B44)),0,VLOOKUP($B44,ItemList,HLOOKUP(N$22,StatLoC,2,FALSE),FALSE)) -> 0 | O44: 0 | P44: 0 | Q44: 6110 | R44: 0 | S44: =IF(OR($B44="None",ISBLANK($B44)),0,VLOOKUP($B44,ItemList,HLOOKUP(S$22,StatLoC,2,FALSE),FALSE)) -> r | T44: y | U44: 0 | V44: 0 | W44: Str | X44: 20
B45: Reforge: Crit to Hit | H45: =IF(RIGHT(B45,3)="Hit",(-1 * SUM(I45:L45)),IF(RIGHT(LEFT(B45,12),3)="Hit",ROUNDDOWN((-0.4 * H44),0),0)) -> 90 | I45: =IF(RIGHT(B45,4)="Crit",(-1 * SUM(H45,J45,K45,L45)),IF(RIGHT(LEFT(B45,13),4)="Crit",ROUNDDOWN((-0.4 * I44),0),0)) -> -90 | J45: =IF(RIGHT(B45,5)="Haste",(-1 * SUM(H45:I45,K45:L45)),IF(RIGHT(LEFT(B45,14),5)="Haste",ROUNDDOWN((-0.4 * J44),0),0)) -> 0 | K45: =IF(RIGHT(B45,7)="Mastery",(-1 * SUM(H45:J45,L45)),IF(RIGHT(LEFT(B45,16),7)="Mastery",ROUNDDOWN((-0.4 * K44),0),0)) -> 0 | L45: =IF(RIGHT(B45,9)="Expertise",(-1 * SUM(H45:K45)),IF(RIGHT(LEFT(B45,18),9)="Expertise",ROUNDDOWN((-0.4 * L44),0),0)) -> 0
B46: Dragonscale Leg Armor | C46: 0 | D46: 0 | E46: 0 | F46: 190 | G46: 0 | H46: 0 | I46: 55 | J46: 0 | K46: 0 | L46: 0 | M46: 0 | N46: 0 | O46: 0 | P46: 0 | Q46: 0 | R46: 0 | W46: =IF(SUM(S46:V46)>0,1,0) -> 0
A47: =S44 -> r | B47: Bold Inferno Ruby (40 Str) | C47: =IF(ISNONTEXT($S44),0,VLOOKUP($B47,ItemList,HLOOKUP(C$22,StatLoC,2,FALSE),FALSE)) -> 0 | D47: 0 | E47: 40 | F47: 0 | G47: 0 | H47: 0 | I47: 0 | J47: 0 | K47: 0 | L47: 0 | M47: 0 | N47: 0 | O47: 0 | P47: 0 | Q47: 0 | R47: 0 | S47: =IF(ISNONTEXT($S44),0,VLOOKUP($B47,ItemList,HLOOKUP(S$22,StatLoC,2,FALSE),FALSE)) -> r | T47: =IF(ISNONTEXT($S44),0,VLOOKUP($B47,ItemList,HLOOKUP(T$22,StatLoC,2,FALSE),FALSE)) -> 0 | U47: =IF(ISNONTEXT($S44),0,VLOOKUP($B47,ItemList,HLOOKUP(U$22,StatLoC,2,FALSE),FALSE)) -> 0 | V47: =IF(ISNONTEXT($S44),0,VLOOKUP($B47,ItemList,HLOOKUP(V$22,StatLoC,2,FALSE),FALSE)) -> 0 | W47: =IF(ISNONTEXT(S44),"",IF(OR(S44=S47,S44=T47, S44=U47),"","Fail")) ->  | Y47: =IF(OR(S47="r",T47="r",U47="r"),1,0) -> 1 | Z47: =IF(OR(S47="y",T47="y",U47="y"),1,0) -> 0 | AA47: =IF(OR(S47="b",T47="b",U47="b"),1,0) -> 0
A48: =T44 -> y | B48: Skillful Ember Topaz (20 Str/20 Mastery) | C48: =IF(ISNONTEXT($T44),0,VLOOKUP($B48,ItemList,HLOOKUP(C$22,StatLoC,2,FALSE),FALSE)) -> 0 | D48: 0 | E48: 20 | F48: 0 | G48: 0 | H48: 0 | I48: 0 | J48: 0 | K48: 20 | L48: 0 | M48: 0 | N48: 0 | O48: 0 | P48: 0 | Q48: 0 | R48: 0 | S48: =IF(ISNONTEXT($T44),0,VLOOKUP($B48,ItemList,HLOOKUP(S$22,StatLoC,2,FALSE),FALSE)) -> r | T48: =IF(ISNONTEXT($T44),0,VLOOKUP($B48,ItemList,HLOOKUP(T$22,StatLoC,2,FALSE),FALSE)) -> y | U48: =IF(ISNONTEXT($T44),0,VLOOKUP($B48,ItemList,HLOOKUP(U$22,StatLoC,2,FALSE),FALSE)) -> 0 | V48: =IF(ISNONTEXT($T44),0,VLOOKUP($B48,ItemList,HLOOKUP(V$22,StatLoC,2,FALSE),FALSE)) -> 0 | W48: =IF(ISNONTEXT(T44),"",IF(OR(T44=S48,T44=T48,T44=U48),"","Fail")) ->  | Y48: =IF(OR(S48="r",T48="r",U48="r"),1,0) -> 1 | Z48: =IF(OR(S48="y",T48="y",U48="y"),1,0) -> 1 | AA48: =IF(OR(S48="b",T48="b",U48="b"),1,0) -> 0
A49: =U44 -> 0 | B49: Bold Inferno Ruby (40 Str) | C49: =IF(ISNONTEXT($U44),0,VLOOKUP($B49,ItemList,HLOOKUP(C$22,StatLoC,2,FALSE),FALSE)) -> 0 | D49: 0 | E49: 0 | F49: 0 | G49: 0 | H49: 0 | I49: 0 | J49: 0 | K49: 0 | L49: 0 | M49: 0 | N49: 0 | O49: 0 | P49: 0 | Q49: 0 | R49: 0 | S49: =IF(ISNONTEXT($U44),0,VLOOKUP($B49,ItemList,HLOOKUP(S$22,StatLoC,2,FALSE),FALSE)) -> 0 | T49: =IF(ISNONTEXT($U44),0,VLOOKUP($B49,ItemList,HLOOKUP(T$22,StatLoC,2,FALSE),FALSE)) -> 0 | U49: =IF(ISNONTEXT($U44),0,VLOOKUP($B49,ItemList,HLOOKUP(U$22,StatLoC,2,FALSE),FALSE)) -> 0 | V49: =IF(ISNONTEXT($U44),0,VLOOKUP($B49,ItemList,HLOOKUP(V$22,StatLoC,2,FALSE),FALSE)) -> 0 | W49: =IF(ISNONTEXT(U44),"",IF(OR(U44=S49,U44=T49,U44=U49),"","Fail")) ->  | Y49: =IF(OR(S49="r",T49="r",U49="r"),1,0) -> 0 | Z49: =IF(OR(S49="y",T49="y",U49="y"),1,0) -> 0 | AA49: =IF(OR(S49="b",T49="b",U49="b"),1,0) -> 0
A50: =IF(AND(ISNONTEXT(A49),ISNONTEXT(A48),ISNONTEXT(A47)),"","bo") -> bo | B50: Bonus: | C50: =IF($W50=TRUE,IF(C$22=$W44,$X44,0),0) -> 0 | D50: 0 | E50: 20 | F50: 0 | G50: 0 | H50: 0 | I50: 0 | J50: 0 | K50: 0 | L50: 0 | M50: 0 | N50: 0 | O50: 0 | P50: 0 | Q50: 0 | R50: 0 | W50: =IF(OR(W47="Fail",W48="Fail",W49="Fail"),FALSE,TRUE) -> TRUE
B51: Fireskin Gauntlets | C51: =IF(OR($B51="None",ISBLANK($B51)),0,VLOOKUP($B51,ItemList,HLOOKUP(C$22,StatLoC,2,FALSE),FALSE)) -> 454 | D51: 0 | E51: 282 | F51: 0 | G51: 0 | H51: 211 | I51: 0 | J51: 0 | K51: 167 | L51: 0 | M51: 0 | N51: =IF(OR($B51="None",ISBLANK($B51)),0,VLOOKUP($B51,ItemList,HLOOKUP(N$22,StatLoC,2,FALSE),FALSE)) -> 0 | O51: 0 | P51: 0 | Q51: 4540 | R51: 0 | S51: =IF(OR($B51="None",ISBLANK($B51)),0,VLOOKUP($B51,ItemList,HLOOKUP(S$22,StatLoC,2,FALSE),FALSE)) -> r | T51: 0 | U51: 0 | V51: 0 | W51: Hit | X51: 10
B52: None | H52: =IF(RIGHT(B52,3)="Hit",(-1 * SUM(I52:L52)),IF(RIGHT(LEFT(B52,12),3)="Hit",ROUNDDOWN((-0.4 * H51),0),0)) -> 0 | I52: =IF(RIGHT(B52,4)="Crit",(-1 * SUM(H52,J52,K52,L52)),IF(RIGHT(LEFT(B52,13),4)="Crit",ROUNDDOWN((-0.4 * I51),0),0)) -> 0 | J52: =IF(RIGHT(B52,5)="Haste",(-1 * SUM(H52:I52,K52:L52)),IF(RIGHT(LEFT(B52,14),5)="Haste",ROUNDDOWN((-0.4 * J51),0),0)) -> 0 | K52: =IF(RIGHT(B52,7)="Mastery",(-1 * SUM(H52:J52,L52)),IF(RIGHT(LEFT(B52,16),7)="Mastery",ROUNDDOWN((-0.4 * K51),0),0)) -> 0 | L52: =IF(RIGHT(B52,9)="Expertise",(-1 * SUM(H52:K52)),IF(RIGHT(LEFT(B52,18),9)="Expertise",ROUNDDOWN((-0.4 * L51),0),0)) -> 0
B53: Mighty Strength | C53: 0 | D53: 0 | E53: 50 | F53: 0 | G53: 0 | H53: 0 | I53: 0 | J53: 0 | K53: 0 | L53: 0 | M53: 0 | N53: 0 | O53: 0 | P53: 0 | Q53: 0 | R53: 0 | W53: =IF(OR($B53="None",ISBLANK($B53)),0,VLOOKUP($B53,ItemList,HLOOKUP(W$22,StatLoC,2,FALSE),FALSE)) -> 0 | X53: =IF(OR($B53="None",ISBLANK($B53)),0,VLOOKUP($B53,ItemList,HLOOKUP(X$22,StatLoC,2,FALSE),FALSE)) -> 0
A54: =S51 -> r | B54: Bold Inferno Ruby (40 Str) | C54: =IF(ISNONTEXT($S51),0,VLOOKUP($B54,ItemList,HLOOKUP(C$22,StatLoC,2,FALSE),FALSE)) -> 0 | D54: 0 | E54: 40 | F54: 0 | G54: 0 | H54: 0 | I54: 0 | J54: 0 | K54: 0 | L54: 0 | M54: 0 | N54: 0 | O54: 0 | P54: 0 | Q54: 0 | R54: 0 | S54: =IF(ISNONTEXT($S51),0,VLOOKUP($B54,ItemList,HLOOKUP(S$22,StatLoC,2,FALSE),FALSE)) -> r | T54: =IF(ISNONTEXT($S51),0,VLOOKUP($B54,ItemList,HLOOKUP(T$22,StatLoC,2,FALSE),FALSE)) -> 0 | U54: =IF(ISNONTEXT($S51),0,VLOOKUP($B54,ItemList,HLOOKUP(U$22,StatLoC,2,FALSE),FALSE)) -> 0 | V54: =IF(ISNONTEXT($S51),0,VLOOKUP($B54,ItemList,HLOOKUP(V$22,StatLoC,2,FALSE),FALSE)) -> 0 | W54: =IF(ISNONTEXT(S51),"",IF(OR(S51=S54,S51=T54, S51=U54),"","Fail")) ->  | Y54: =IF(OR(S54="r",T54="r",U54="r"),1,0) -> 1 | Z54: =IF(OR(S54="y",T54="y",U54="y"),1,0) -> 0 | AA54: =IF(OR(S54="b",T54="b",U54="b"),1,0) -> 0
A55: =T51 -> 0 | B55: Bold Inferno Ruby (40 Str) | C55: =IF(ISNONTEXT($T51),0,VLOOKUP($B55,ItemList,HLOOKUP(C$22,StatLoC,2,FALSE),FALSE)) -> 0 | D55: 0 | E55: 0 | F55: 0 | G55: 0 | H55: 0 | I55: 0 | J55: 0 | K55: 0 | L55: 0 | M55: 0 | N55: 0 | O55: 0 | P55: 0 | Q55: 0 | R55: 0 | S55: =IF(ISNONTEXT($T51),0,VLOOKUP($B55,ItemList,HLOOKUP(S$22,StatLoC,2,FALSE),FALSE)) -> 0 | T55: =IF(ISNONTEXT($T51),0,VLOOKUP($B55,ItemList,HLOOKUP(T$22,StatLoC,2,FALSE),FALSE)) -> 0 | U55: =IF(ISNONTEXT($T51),0,VLOOKUP($B55,ItemList,HLOOKUP(U$22,StatLoC,2,FALSE),FALSE)) -> 0 | V55: =IF(ISNONTEXT($T51),0,VLOOKUP($B55,ItemList,HLOOKUP(V$22,StatLoC,2,FALSE),FALSE)) -> 0 | W55: =IF(ISNONTEXT(T51),"",IF(OR(T51=S55,T51=T55,T51=U55),"","Fail")) ->  | Y55: =IF(OR(S55="r",T55="r",U55="r"),1,0) -> 0 | Z55: =IF(OR(S55="y",T55="y",U55="y"),1,0) -> 0 | AA55: =IF(OR(S55="b",T55="b",U55="b"),1,0) -> 0
A56: Blacksmith | B56: Bold Inferno Ruby (40 Str) | C56: =IF(OR(Profession1="Blacksmithing",Profession2="Blacksmithing"),IF(ISNONTEXT($B56),0,VLOOKUP($B56,ItemList,HLOOKUP(C$22,StatLoC,2,FALSE),FALSE)),0) -> 0 | D56: 0 | E56: 40 | F56: 0 | G56: 0 | H56: 0 | I56: 0 | J56: 0 | K56: 0 | L56: 0 | M56: 0 | N56: 0 | O56: 0 | P56: 0 | Q56: =10*C56 -> 0 | R56: =(D56*15) -> 0 | S56: =IF(OR(Profession1="Blacksmithing",Profession2="Blacksmithing"),IF(ISNONTEXT($B56),0,VLOOKUP($B56,ItemList,HLOOKUP(S$22,StatLoC,2,FALSE),FALSE)),0) -> r | T56: =IF(OR(Profession1="Blacksmithing",Profession2="Blacksmithing"),IF(ISNONTEXT($B56),0,VLOOKUP($B56,ItemList,HLOOKUP(T$22,StatLoC,2,FALSE),FALSE)),0) -> 0 | U56: =IF(OR(Profession1="Blacksmithing",Profession2="Blacksmithing"),IF(ISNONTEXT($B56),0,VLOOKUP($B56,ItemList,HLOOKUP(U$22,StatLoC,2,FALSE),FALSE)),0) -> 0 | W56: Perk | Y56: =IF(OR(S56="r",T56="r",U56="r"),1,0) -> 1 | Z56: =IF(OR(S56="y",T56="y",U56="y"),1,0) -> 0 | AA56: =IF(OR(S56="b",T56="b",U56="b"),1,0) -> 0
A57: =IF(AND(ISNONTEXT(#REF!),ISNONTEXT(A55),ISNONTEXT(A54)),"","bo") -> bo | B57: Bonus: | C57: =IF($W57=TRUE,IF(C$22=$W51,$X51,0),0) -> 0 | D57: 0 | E57: 0 | F57: 0 | G57: 0 | H57: 10 | I57: 0 | J57: 0 | K57: 0 | L57: 0 | M57: 0 | N57: 0 | O57: 0 | P57: 0 | Q57: 0 | R57: 0 | W57: =IF(OR(W54="Fail",W55="Fail"),FALSE,TRUE) -> TRUE
A58: Engineer | B58: None | C58: =IF(OR(Profession1="Engineering",Profession2="Engineering"),IF(OR($B58="None",ISBLANK($B58)),0,VLOOKUP($B58,ItemList,HLOOKUP(C$22,StatLoC,2,FALSE),FALSE)),0) -> 0 | D58: 0 | E58: 0 | F58: 0 | G58: 0 | H58: 0 | I58: 0 | J58: 0 | K58: 0 | L58: 0 | M58: 0 | N58: 0 | O58: 0 | P58: 0 | Q58: =10*C58 -> 0 | R58: =(D58*15) -> 0 | W58: =IF(OR(Profession1="Engineering",Profession2="Engineering"),IF(OR($B58="None",ISBLANK($B58)),0,VLOOKUP($B58,ItemList,HLOOKUP(W$22,StatLoC,2,FALSE),FALSE)),0) -> 0 | X58: =IF(OR(Profession1="Engineering",Profession2="Engineering"),IF(OR($B58="None",ISBLANK($B58)),0,VLOOKUP($B58,ItemList,HLOOKUP(X$22,StatLoC,2,FALSE),FALSE)),0) -> 0 | Y58: =IF(OR(S58="r",T58="r",U58="r"),1,0) -> 0 | Z58: =IF(OR(S58="y",T58="y",U58="y"),1,0) -> 0 | AA58: =IF(OR(S58="b",T58="b",U58="b"),1,0) -> 0
B59: Arachnaflame Treads | C59: =IF(OR($B59="None",ISBLANK($B59)),0,VLOOKUP($B59,ItemList,HLOOKUP(C$22,StatLoC,2,FALSE),FALSE)) -> 454 | D59: 0 | E59: 282 | F59: 0 | G59: 0 | H59: 0 | I59: 202 | J59: 182 | K59: 0 | L59: 0 | M59: 0 | N59: =IF(OR($B59="None",ISBLANK($B59)),0,VLOOKUP($B59,ItemList,HLOOKUP(N$22,StatLoC,2,FALSE),FALSE)) -> 0 | O59: 0 | P59: 0 | Q59: 4540 | R59: 0 | S59: =IF(OR($B59="None",ISBLANK($B59)),0,VLOOKUP($B59,ItemList,HLOOKUP(S$22,StatLoC,2,FALSE),FALSE)) -> r | T59: 0 | U59: 0 | V59: 0 | W59: Str | X59: 10
B60: Reforge: Crit to Mastery | H60: =IF(RIGHT(B60,3)="Hit",(-1 * SUM(I60:L60)),IF(RIGHT(LEFT(B60,12),3)="Hit",ROUNDDOWN((-0.4 * H59),0),0)) -> 0 | I60: =IF(RIGHT(B60,4)="Crit",(-1 * SUM(H60,J60,K60,L60)),IF(RIGHT(LEFT(B60,13),4)="Crit",ROUNDDOWN((-0.4 * I59),0),0)) -> -80 | J60: =IF(RIGHT(B60,5)="Haste",(-1 * SUM(H60:I60,K60:L60)),IF(RIGHT(LEFT(B60,14),5)="Haste",ROUNDDOWN((-0.4 * J59),0),0)) -> 0 | K60: =IF(RIGHT(B60,7)="Mastery",(-1 * SUM(H60:J60,L60)),IF(RIGHT(LEFT(B60,16),7)="Mastery",ROUNDDOWN((-0.4 * K59),0),0)) -> 80 | L60: =IF(RIGHT(B60,9)="Expertise",(-1 * SUM(H60:K60)),IF(RIGHT(LEFT(B60,18),9)="Expertise",ROUNDDOWN((-0.4 * L59),0),0)) -> 0
B61: Mastery | C61: 0 | D61: 0 | E61: 0 | F61: 0 | G61: 0 | H61: 0 | I61: 0 | J61: 0 | K61: 50 | L61: 0 | M61: 0 | N61: 0 | O61: 0 | P61: 0 | Q61: 0 | R61: 0 | W61: =IF(SUM(S61:V61)>0,1,0) -> 0
A62: =S59 -> r | B62: Bold Inferno Ruby (40 Str) | C62: =IF(ISNONTEXT($S59),0,VLOOKUP($B62,ItemList,HLOOKUP(C$22,StatLoC,2,FALSE),FALSE)) -> 0 | D62: 0 | E62: 40 | F62: 0 | G62: 0 | H62: 0 | I62: 0 | J62: 0 | K62: 0 | L62: 0 | M62: 0 | N62: 0 | O62: 0 | P62: 0 | Q62: 0 | R62: 0 | S62: =IF(ISNONTEXT($S59),0,VLOOKUP($B62,ItemList,HLOOKUP(S$22,StatLoC,2,FALSE),FALSE)) -> r | T62: =IF(ISNONTEXT($S59),0,VLOOKUP($B62,ItemList,HLOOKUP(T$22,StatLoC,2,FALSE),FALSE)) -> 0 | U62: =IF(ISNONTEXT($S59),0,VLOOKUP($B62,ItemList,HLOOKUP(U$22,StatLoC,2,FALSE),FALSE)) -> 0 | V62: =IF(ISNONTEXT($S59),0,VLOOKUP($B62,ItemList,HLOOKUP(V$22,StatLoC,2,FALSE),FALSE)) -> 0 | W62: =IF(ISNONTEXT(S59),"",IF(OR(S59=S62,S59=T62, S59=U62),"","Fail")) ->  | Y62: =IF(OR(S62="r",T62="r",U62="r"),1,0) -> 1 | Z62: =IF(OR(S62="y",T62="y",U62="y"),1,0) -> 0 | AA62: =IF(OR(S62="b",T62="b",U62="b"),1,0) -> 0
A63: =T59 -> 0 | B63: Bold Inferno Ruby (40 Str) | C63: =IF(ISNONTEXT($T59),0,VLOOKUP($B63,ItemList,HLOOKUP(C$22,StatLoC,2,FALSE),FALSE)) -> 0 | D63: 0 | E63: 0 | F63: 0 | G63: 0 | H63: 0 | I63: 0 | J63: 0 | K63: 0 | L63: 0 | M63: 0 | N63: 0 | O63: 0 | P63: 0 | Q63: 0 | R63: 0 | S63: =IF(ISNONTEXT($T59),0,VLOOKUP($B63,ItemList,HLOOKUP(S$22,StatLoC,2,FALSE),FALSE)) -> 0 | T63: =IF(ISNONTEXT($T59),0,VLOOKUP($B63,ItemList,HLOOKUP(T$22,StatLoC,2,FALSE),FALSE)) -> 0 | U63: =IF(ISNONTEXT($T59),0,VLOOKUP($B63,ItemList,HLOOKUP(U$22,StatLoC,2,FALSE),FALSE)) -> 0 | V63: =IF(ISNONTEXT($T59),0,VLOOKUP($B63,ItemList,HLOOKUP(V$22,StatLoC,2,FALSE),FALSE)) -> 0 | W63: =IF(ISNONTEXT(T59),"",IF(OR(T59=S63,T59=T63,T59=U63),"","Fail")) ->  | Y63: =IF(OR(S63="r",T63="r",U63="r"),1,0) -> 0 | Z63: =IF(OR(S63="y",T63="y",U63="y"),1,0) -> 0 | AA63: =IF(OR(S63="b",T63="b",U63="b"),1,0) -> 0
A64: =U59 -> 0 | B64: Bold Inferno Ruby (40 Str) | C64: =IF(ISNONTEXT($U59),0,VLOOKUP($B64,ItemList,HLOOKUP(C$22,StatLoC,2,FALSE),FALSE)) -> 0 | D64: 0 | E64: 0 | F64: 0 | G64: 0 | H64: 0 | I64: 0 | J64: 0 | K64: 0 | L64: 0 | M64: 0 | N64: 0 | O64: 0 | P64: 0 | Q64: 0 | R64: 0 | S64: =IF(ISNONTEXT($U59),0,VLOOKUP($B64,ItemList,HLOOKUP(S$22,StatLoC,2,FALSE),FALSE)) -> 0 | T64: =IF(ISNONTEXT($U59),0,VLOOKUP($B64,ItemList,HLOOKUP(T$22,StatLoC,2,FALSE),FALSE)) -> 0 | U64: =IF(ISNONTEXT($U59),0,VLOOKUP($B64,ItemList,HLOOKUP(U$22,StatLoC,2,FALSE),FALSE)) -> 0 | V64: =IF(ISNONTEXT($U59),0,VLOOKUP($B64,ItemList,HLOOKUP(V$22,StatLoC,2,FALSE),FALSE)) -> 0 | W64: =IF(ISNONTEXT(U59),"",IF(OR(U59=S64,U59=T64,U59=U64),"","Fail")) ->  | Y64: =IF(OR(S64="r",T64="r",U64="r"),1,0) -> 0 | Z64: =IF(OR(S64="y",T64="y",U64="y"),1,0) -> 0 | AA64: =IF(OR(S64="b",T64="b",U64="b"),1,0) -> 0
A65: =IF(AND(ISNONTEXT(A64),ISNONTEXT(A63),ISNONTEXT(A62)),"","bo") -> bo | B65: Bonus: | C65: =IF($W65=TRUE,IF(C$22=$W59,$X59,0),0) -> 0 | D65: 0 | E65: 10 | F65: 0 | G65: 0 | H65: 0 | I65: 0 | J65: 0 | K65: 0 | L65: 0 | M65: 0 | N65: 0 | O65: 0 | P65: 0 | Q65: 0 | R65: 0 | W65: =IF(OR(W62="Fail",W63="Fail",W64="Fail"),FALSE,TRUE) -> TRUE
B66: Cinch of the Flaming Ember | C66: =IF(OR($B66="None",ISBLANK($B66)),0,VLOOKUP($B66,ItemList,HLOOKUP(C$22,StatLoC,2,FALSE),FALSE)) -> 454 | D66: 0 | E66: 282 | F66: 0 | G66: 0 | H66: 133 | I66: 230 | J66: 0 | K66: 0 | L66: 0 | M66: 0 | N66: =IF(OR($B66="None",ISBLANK($B66)),0,VLOOKUP($B66,ItemList,HLOOKUP(N$22,StatLoC,2,FALSE),FALSE)) -> 0 | O66: =IF(OR($B66="None",ISBLANK($B66)),0,VLOOKUP($B66,ItemList,HLOOKUP(O$22,StatLoC,2,FALSE),FALSE)) -> 0 | P66: =IF(OR($B66="None",ISBLANK($B66)),0,VLOOKUP($B66,ItemList,HLOOKUP(P$22,StatLoC,2,FALSE),FALSE)) -> 0 | Q66: 4540 | R66: 0 | S66: =IF(OR($B66="None",ISBLANK($B66)),0,VLOOKUP($B66,ItemList,HLOOKUP(S$22,StatLoC,2,FALSE),FALSE)) -> b | T66: 0 | U66: 0 | V66: 0 | W66: Str | X66: 10
B68: Reforge: Crit to Mastery | H68: =IF(RIGHT(B68,3)="Hit",(-1 * SUM(I68:L68)),IF(RIGHT(LEFT(B68,12),3)="Hit",ROUNDDOWN((-0.4 * H66),0),0)) -> 0 | I68: =IF(RIGHT(B68,4)="Crit",(-1 * SUM(H68,J68,K68,L68)),IF(RIGHT(LEFT(B68,13),4)="Crit",ROUNDDOWN((-0.4 * I66),0),0)) -> -92 | J68: =IF(RIGHT(B68,5)="Haste",(-1 * SUM(H68:I68,K68:L68)),IF(RIGHT(LEFT(B68,14),5)="Haste",ROUNDDOWN((-0.4 * J66),0),0)) -> 0 | K68: =IF(RIGHT(B68,7)="Mastery",(-1 * SUM(H68:J68,L68)),IF(RIGHT(LEFT(B68,16),7)="Mastery",ROUNDDOWN((-0.4 * K66),0),0)) -> 92 | L68: =IF(RIGHT(B68,9)="Expertise",(-1 * SUM(H68:K68)),IF(RIGHT(LEFT(B68,18),9)="Expertise",ROUNDDOWN((-0.4 * L66),0),0)) -> 0
A69: =S66 -> b | B69: Etched Demonseye (20 Str/20 Hit) | C69: =IF(ISNONTEXT($S66),0,VLOOKUP($B69,ItemList,HLOOKUP(C$22,StatLoC,2,FALSE),FALSE)) -> 0 | D69: 0 | E69: 20 | F69: 0 | G69: 0 | H69: 20 | I69: 0 | J69: 0 | K69: 0 | L69: 0 | M69: 0 | N69: 0 | O69: 0 | P69: 0 | Q69: 0 | R69: 0 | S69: =IF(ISNONTEXT($S66),0,VLOOKUP($B69,ItemList,HLOOKUP(S$22,StatLoC,2,FALSE),FALSE)) -> r | T69: =IF(ISNONTEXT($S66),0,VLOOKUP($B69,ItemList,HLOOKUP(T$22,StatLoC,2,FALSE),FALSE)) -> b | U69: =IF(ISNONTEXT($S66),0,VLOOKUP($B69,ItemList,HLOOKUP(U$22,StatLoC,2,FALSE),FALSE)) -> 0 | V69: =IF(ISNONTEXT($S66),0,VLOOKUP($B69,ItemList,HLOOKUP(V$22,StatLoC,2,FALSE),FALSE)) -> 0 | W69: =IF(ISNONTEXT(S66),"",IF(OR(S66=S69,S66=T69, S66=U69),"","Fail")) ->  | Y69: =IF(OR(S69="r",T69="r",U69="r"),1,0) -> 1 | Z69: =IF(OR(S69="y",T69="y",U69="y"),1,0) -> 0 | AA69: =IF(OR(S69="b",T69="b",U69="b"),1,0) -> 1
A70: =T66 -> 0 | B70: Bold Inferno Ruby (40 Str) | C70: =IF(ISNONTEXT($T66),0,VLOOKUP($B70,ItemList,HLOOKUP(C$22,StatLoC,2,FALSE),FALSE)) -> 0 | D70: 0 | E70: 0 | F70: 0 | G70: 0 | H70: 0 | I70: 0 | J70: 0 | K70: 0 | L70: 0 | M70: 0 | N70: 0 | O70: 0 | P70: 0 | Q70: 0 | R70: 0 | S70: =IF(ISNONTEXT($T66),0,VLOOKUP($B70,ItemList,HLOOKUP(S$22,StatLoC,2,FALSE),FALSE)) -> 0 | T70: =IF(ISNONTEXT($T66),0,VLOOKUP($B70,ItemList,HLOOKUP(T$22,StatLoC,2,FALSE),FALSE)) -> 0 | U70: =IF(ISNONTEXT($T66),0,VLOOKUP($B70,ItemList,HLOOKUP(U$22,StatLoC,2,FALSE),FALSE)) -> 0 | V70: =IF(ISNONTEXT($T66),0,VLOOKUP($B70,ItemList,HLOOKUP(V$22,StatLoC,2,FALSE),FALSE)) -> 0 | W70: =IF(ISNONTEXT(T66),"",IF(OR(T66=S70,T66=T70,T66=U70),"","Fail")) ->  | Y70: =IF(OR(S70="r",T70="r",U70="r"),1,0) -> 0 | Z70: =IF(OR(S70="y",T70="y",U70="y"),1,0) -> 0 | AA70: =IF(OR(S70="b",T70="b",U70="b"),1,0) -> 0
A71: Free | B71: Bold Inferno Ruby (40 Str) | C71: =IF(ISNONTEXT($B71),0,VLOOKUP($B71,ItemList,HLOOKUP(C$22,StatLoC,2,FALSE),FALSE)) -> 0 | D71: 0 | E71: 40 | F71: 0 | G71: 0 | H71: 0 | I71: 0 | J71: 0 | K71: 0 | L71: 0 | M71: 0 | N71: 0 | O71: 0 | P71: 0 | Q71: =10*C71 -> 0 | R71: =(D71*15) -> 0 | S71: =IF(ISNONTEXT($B71),0,VLOOKUP($B71,ItemList,HLOOKUP(S$22,StatLoC,2,FALSE),FALSE)) -> r | T71: =IF(ISNONTEXT($B71),0,VLOOKUP($B71,ItemList,HLOOKUP(T$22,StatLoC,2,FALSE),FALSE)) -> 0 | U71: =IF(ISNONTEXT($B71),0,VLOOKUP($B71,ItemList,HLOOKUP(U$22,StatLoC,2,FALSE),FALSE)) -> 0 | W71: Free | Y71: =IF(OR(S71="r",T71="r",U71="r"),1,0) -> 1 | Z71: =IF(OR(S71="y",T71="y",U71="y"),1,0) -> 0 | AA71: =IF(OR(S71="b",T71="b",U71="b"),1,0) -> 0
A72: =IF(AND(ISNONTEXT(#REF!),ISNONTEXT(A70),ISNONTEXT(A69)),"","bo") -> bo | B72: Bonus: | C72: =IF($W72=TRUE,IF(C$22=$W66,$X66,0),0) -> 0 | D72: 0 | E72: 10 | F72: 0 | G72: 0 | H72: 0 | I72: 0 | J72: 0 | K72: 0 | L72: 0 | M72: 0 | N72: 0 | O72: 0 | P72: 0 | Q72: 0 | R72: 0 | W72: =IF(OR(W69="Fail",W70="Fail"),FALSE,TRUE) -> TRUE
B73: Earthcrack Bracers | C73: =IF(OR($B73="None",ISBLANK($B73)),0,VLOOKUP($B73,ItemList,HLOOKUP(C$22,StatLoC,2,FALSE),FALSE)) -> 341 | D73: 0 | E73: 227 | F73: 0 | G73: 0 | H73: 0 | I73: 158 | J73: 140 | K73: 0 | L73: 0 | M73: 0 | N73: =IF(OR($B73="None",ISBLANK($B73)),0,VLOOKUP($B73,ItemList,HLOOKUP(N$22,StatLoC,2,FALSE),FALSE)) -> 0 | O73: 0 | P73: 0 | Q73: 3410 | R73: 0 | S73: =IF(OR($B73="None",ISBLANK($B73)),0,VLOOKUP($B73,ItemList,HLOOKUP(S$22,StatLoC,2,FALSE),FALSE)) -> 0 | T73: 0 | U73: 0 | V73: 0 | W73: 0 | X73: 0
B74: Reforge: Crit to Mastery | H74: =IF(RIGHT(B74,3)="Hit",(-1 * SUM(I74:L74)),IF(RIGHT(LEFT(B74,12),3)="Hit",ROUNDDOWN((-0.4 * H73),0),0)) -> 0 | I74: =IF(RIGHT(B74,4)="Crit",(-1 * SUM(H74,J74,K74,L74)),IF(RIGHT(LEFT(B74,13),4)="Crit",ROUNDDOWN((-0.4 * I73),0),0)) -> -63 | J74: =IF(RIGHT(B74,5)="Haste",(-1 * SUM(H74:I74,K74:L74)),IF(RIGHT(LEFT(B74,14),5)="Haste",ROUNDDOWN((-0.4 * J73),0),0)) -> 0 | K74: =IF(RIGHT(B74,7)="Mastery",(-1 * SUM(H74:J74,L74)),IF(RIGHT(LEFT(B74,16),7)="Mastery",ROUNDDOWN((-0.4 * K73),0),0)) -> 63 | L74: =IF(RIGHT(B74,9)="Expertise",(-1 * SUM(H74:K74)),IF(RIGHT(LEFT(B74,18),9)="Expertise",ROUNDDOWN((-0.4 * L73),0),0)) -> 0
B75: Major Strength | C75: 0 | D75: 0 | E75: 50 | F75: 0 | G75: 0 | H75: 0 | I75: 0 | J75: 0 | K75: 0 | L75: 0 | M75: 0 | N75: 0 | O75: 0 | P75: 0 | Q75: 0 | R75: 0 | W75: =IF(SUM(S75:V75)>0,1,0) -> 0
A76: =S73 -> 0 | B76: Bold Inferno Ruby (40 Str) | C76: =IF(ISNONTEXT($S73),0,VLOOKUP($B76,ItemList,HLOOKUP(C$22,StatLoC,2,FALSE),FALSE)) -> 0 | D76: 0 | E76: 0 | F76: 0 | G76: 0 | H76: 0 | I76: 0 | J76: 0 | K76: 0 | L76: 0 | M76: 0 | N76: 0 | O76: 0 | P76: 0 | Q76: 0 | R76: 0 | S76: =IF(ISNONTEXT($S73),0,VLOOKUP($B76,ItemList,HLOOKUP(S$22,StatLoC,2,FALSE),FALSE)) -> 0 | T76: =IF(ISNONTEXT($S73),0,VLOOKUP($B76,ItemList,HLOOKUP(T$22,StatLoC,2,FALSE),FALSE)) -> 0 | U76: =IF(ISNONTEXT($S73),0,VLOOKUP($B76,ItemList,HLOOKUP(U$22,StatLoC,2,FALSE),FALSE)) -> 0 | V76: =IF(ISNONTEXT($S73),0,VLOOKUP($B76,ItemList,HLOOKUP(V$22,StatLoC,2,FALSE),FALSE)) -> 0 | W76: =IF(ISNONTEXT(S73),"",IF(OR(S73=S76,S73=T76, S73=U76),"","Fail")) ->  | Y76: =IF(OR(S76="r",T76="r",U76="r"),1,0) -> 0 | Z76: =IF(OR(S76="y",T76="y",U76="y"),1,0) -> 0 | AA76: =IF(OR(S76="b",T76="b",U76="b"),1,0) -> 0
A77: =T73 -> 0 | B77: Bold Inferno Ruby (40 Str) | C77: =IF(ISNONTEXT($T73),0,VLOOKUP($B77,ItemList,HLOOKUP(C$22,StatLoC,2,FALSE),FALSE)) -> 0 | D77: 0 | E77: 0 | F77: 0 | G77: 0 | H77: 0 | I77: 0 | J77: 0 | K77: 0 | L77: 0 | M77: 0 | N77: 0 | O77: 0 | P77: 0 | Q77: 0 | R77: 0 | S77: =IF(ISNONTEXT($T73),0,VLOOKUP($B77,ItemList,HLOOKUP(S$22,StatLoC,2,FALSE),FALSE)) -> 0 | T77: =IF(ISNONTEXT($T73),0,VLOOKUP($B77,ItemList,HLOOKUP(T$22,StatLoC,2,FALSE),FALSE)) -> 0 | U77: =IF(ISNONTEXT($T73),0,VLOOKUP($B77,ItemList,HLOOKUP(U$22,StatLoC,2,FALSE),FALSE)) -> 0 | V77: =IF(ISNONTEXT($T73),0,VLOOKUP($B77,ItemList,HLOOKUP(V$22,StatLoC,2,FALSE),FALSE)) -> 0 | W77: =IF(ISNONTEXT(T73),"",IF(OR(T73=S77,T73=T77,T73=U77),"","Fail")) ->  | Y77: =IF(OR(S77="r",T77="r",U77="r"),1,0) -> 0 | Z77: =IF(OR(S77="y",T77="y",U77="y"),1,0) -> 0 | AA77: =IF(OR(S77="b",T77="b",U77="b"),1,0) -> 0
A78: Blacksmith | B78: Bold Inferno Ruby (40 Str) | C78: =IF(OR(Profession1="Blacksmithing",Profession2="Blacksmithing"),IF(ISNONTEXT($B78),0,VLOOKUP($B78,ItemList,HLOOKUP(C$22,StatLoC,2,FALSE),FALSE)),0) -> 0 | D78: 0 | E78: 40 | F78: 0 | G78: 0 | H78: 0 | I78: 0 | J78: 0 | K78: 0 | L78: 0 | M78: 0 | N78: 0 | O78: 0 | P78: 0 | Q78: =10*C78 -> 0 | R78: =(D78*15) -> 0 | S78: =IF(OR(Profession1="Blacksmithing",Profession2="Blacksmithing"),IF(ISNONTEXT($B78),0,VLOOKUP($B78,ItemList,HLOOKUP(S$22,StatLoC,2,FALSE),FALSE)),0) -> r | T78: =IF(OR(Profession1="Blacksmithing",Profession2="Blacksmithing"),IF(ISNONTEXT($B78),0,VLOOKUP($B78,ItemList,HLOOKUP(T$22,StatLoC,2,FALSE),FALSE)),0) -> 0 | U78: =IF(OR(Profession1="Blacksmithing",Profession2="Blacksmithing"),IF(ISNONTEXT($B78),0,VLOOKUP($B78,ItemList,HLOOKUP(U$22,StatLoC,2,FALSE),FALSE)),0) -> 0 | W78: Perk | Y78: =IF(OR(S78="r",T78="r",U78="r"),1,0) -> 1 | Z78: =IF(OR(S78="y",T78="y",U78="y"),1,0) -> 0 | AA78: =IF(OR(S78="b",T78="b",U78="b"),1,0) -> 0
A79: =IF(AND(ISNONTEXT(#REF!),ISNONTEXT(A77),ISNONTEXT(A76)),"","bo") ->  | B79: Bonus: | C79: =IF($W79=TRUE,IF(C$22=$W73,$X73,0),0) -> 0 | D79: 0 | E79: 0 | F79: 0 | G79: 0 | H79: 0 | I79: 0 | J79: 0 | K79: 0 | L79: 0 | M79: 0 | N79: 0 | O79: 0 | P79: 0 | Q79: 0 | R79: 0 | W79: =IF(OR(W76="Fail",W77="Fail"),FALSE,TRUE) -> TRUE
B80: Bladed Flamewrath Cover | C80: =IF(OR($B80="None",ISBLANK($B80)),0,VLOOKUP($B80,ItemList,HLOOKUP(C$22,StatLoC,2,FALSE),FALSE)) -> 341 | D80: 0 | E80: 227 | F80: 0 | G80: 0 | H80: 0 | I80: 0 | J80: 173 | K80: 0 | L80: 115 | M80: 0 | N80: =IF(OR($B80="None",ISBLANK($B80)),0,VLOOKUP($B80,ItemList,HLOOKUP(N$22,StatLoC,2,FALSE),FALSE)) -> 0 | O80: 0 | P80: 0 | Q80: 3410 | R80: 0 | S80: =IF(OR($B80="None",ISBLANK($B80)),0,VLOOKUP($B80,ItemList,HLOOKUP(S$22,StatLoC,2,FALSE),FALSE)) -> 0 | T80: 0 | U80: 0 | V80: 0 | W80: 0 | X80: 0
B81: Reforge: Expertise to Mastery | H81: =IF(RIGHT(B81,3)="Hit",(-1 * SUM(I81:L81)),IF(RIGHT(LEFT(B81,12),3)="Hit",ROUNDDOWN((-0.4 * H80),0),0)) -> 0 | I81: =IF(RIGHT(B81,4)="Crit",(-1 * SUM(H81,J81,K81,L81)),IF(RIGHT(LEFT(B81,13),4)="Crit",ROUNDDOWN((-0.4 * I80),0),0)) -> 0 | J81: =IF(RIGHT(B81,5)="Haste",(-1 * SUM(H81:I81,K81:L81)),IF(RIGHT(LEFT(B81,14),5)="Haste",ROUNDDOWN((-0.4 * J80),0),0)) -> 0 | K81: =IF(RIGHT(B81,7)="Mastery",(-1 * SUM(H81:J81,L81)),IF(RIGHT(LEFT(B81,16),7)="Mastery",ROUNDDOWN((-0.4 * K80),0),0)) -> 46 | L81: =IF(RIGHT(B81,9)="Expertise",(-1 * SUM(H81:K81)),IF(RIGHT(LEFT(B81,18),9)="Expertise",ROUNDDOWN((-0.4 * L80),0),0)) -> -46
B82: Critical Strike | C82: 0 | D82: 0 | E82: 0 | F82: 0 | G82: 0 | H82: 0 | I82: 50 | J82: 0 | K82: 0 | L82: 0 | M82: 0 | N82: 0 | O82: 0 | P82: 0 | Q82: 0 | R82: 0 | W82: =IF(SUM(S82:V82)>0,1,0) -> 0
A83: =S80 -> 0 | B83: Bold Inferno Ruby (40 Str) | C83: =IF(ISNONTEXT($S80),0,VLOOKUP($B83,ItemList,HLOOKUP(C$22,StatLoC,2,FALSE),FALSE)) -> 0 | D83: 0 | E83: 0 | F83: 0 | G83: 0 | H83: 0 | I83: 0 | J83: 0 | K83: 0 | L83: 0 | M83: 0 | N83: 0 | O83: 0 | P83: 0 | Q83: 0 | R83: 0 | S83: =IF(ISNONTEXT($S80),0,VLOOKUP($B83,ItemList,HLOOKUP(S$22,StatLoC,2,FALSE),FALSE)) -> 0 | T83: =IF(ISNONTEXT($S80),0,VLOOKUP($B83,ItemList,HLOOKUP(T$22,StatLoC,2,FALSE),FALSE)) -> 0 | U83: =IF(ISNONTEXT($S80),0,VLOOKUP($B83,ItemList,HLOOKUP(U$22,StatLoC,2,FALSE),FALSE)) -> 0 | V83: =IF(ISNONTEXT($S80),0,VLOOKUP($B83,ItemList,HLOOKUP(V$22,StatLoC,2,FALSE),FALSE)) -> 0 | W83: =IF(ISNONTEXT(S80),"",IF(OR(S80=S83,S80=T83),"","Fail")) ->  | Y83: =IF(OR(S83="r",T83="r",U83="r"),1,0) -> 0 | Z83: =IF(OR(S83="y",T83="y",U83="y"),1,0) -> 0 | AA83: =IF(OR(S83="b",T83="b",U83="b"),1,0) -> 0
A84: =T80 -> 0 | B84: Bold Inferno Ruby (40 Str) | C84: =IF(ISNONTEXT($T80),0,VLOOKUP($B84,ItemList,HLOOKUP(C$22,StatLoC,2,FALSE),FALSE)) -> 0 | D84: 0 | E84: 0 | F84: 0 | G84: 0 | H84: 0 | I84: 0 | J84: 0 | K84: 0 | L84: 0 | M84: 0 | N84: 0 | O84: 0 | P84: 0 | Q84: 0 | R84: 0 | S84: =IF(ISNONTEXT($T80),0,VLOOKUP($B84,ItemList,HLOOKUP(S$22,StatLoC,2,FALSE),FALSE)) -> 0 | T84: =IF(ISNONTEXT($T80),0,VLOOKUP($B84,ItemList,HLOOKUP(T$22,StatLoC,2,FALSE),FALSE)) -> 0 | U84: =IF(ISNONTEXT($T80),0,VLOOKUP($B84,ItemList,HLOOKUP(U$22,StatLoC,2,FALSE),FALSE)) -> 0 | V84: =IF(ISNONTEXT($T80),0,VLOOKUP($B84,ItemList,HLOOKUP(V$22,StatLoC,2,FALSE),FALSE)) -> 0 | W84: =IF(ISNONTEXT(T80),"",IF(OR(T80=S84,T80=T84),"","Fail")) ->  | Y84: =IF(OR(S84="r",T84="r",U84="r"),1,0) -> 0 | Z84: =IF(OR(S84="y",T84="y",U84="y"),1,0) -> 0 | AA84: =IF(OR(S84="b",T84="b",U84="b"),1,0) -> 0
A85: =U80 -> 0 | B85: Bold Inferno Ruby (40 Str) | C85: =IF(ISNONTEXT($U80),0,VLOOKUP($B85,ItemList,HLOOKUP(C$22,StatLoC,2,FALSE),FALSE)) -> 0 | D85: 0 | E85: 0 | F85: 0 | G85: 0 | H85: 0 | I85: 0 | J85: 0 | K85: 0 | L85: 0 | M85: 0 | N85: 0 | O85: 0 | P85: 0 | Q85: 0 | R85: 0 | S85: =IF(ISNONTEXT($U80),0,VLOOKUP($B85,ItemList,HLOOKUP(S$22,StatLoC,2,FALSE),FALSE)) -> 0 | T85: =IF(ISNONTEXT($U80),0,VLOOKUP($B85,ItemList,HLOOKUP(T$22,StatLoC,2,FALSE),FALSE)) -> 0 | U85: =IF(ISNONTEXT($U80),0,VLOOKUP($B85,ItemList,HLOOKUP(U$22,StatLoC,2,FALSE),FALSE)) -> 0 | V85: =IF(ISNONTEXT($U80),0,VLOOKUP($B85,ItemList,HLOOKUP(V$22,StatLoC,2,FALSE),FALSE)) -> 0 | W85: =IF(ISNONTEXT(U80),"",IF(OR(U80=S85,U80=T85),"","Fail")) ->  | Y85: =IF(OR(S85="r",T85="r",U85="r"),1,0) -> 0 | Z85: =IF(OR(S85="y",T85="y",U85="y"),1,0) -> 0 | AA85: =IF(OR(S85="b",T85="b",U85="b"),1,0) -> 0
B86: Gift of Nadun | C86: =IF(OR($B86="None",ISBLANK($B86)),0,VLOOKUP($B86,ItemList,HLOOKUP(C$22,StatLoC,2,FALSE),FALSE)) -> 286 | D86: 0 | E86: 190 | F86: 0 | G86: 0 | H86: 0 | I86: 127 | J86: 127 | K86: 0 | L86: 0 | M86: 0 | N86: =IF(OR($B86="None",ISBLANK($B86)),0,VLOOKUP($B86,ItemList,HLOOKUP(N$22,StatLoC,2,FALSE),FALSE)) -> 0 | O86: =IF(OR($B86="None",ISBLANK($B86)),0,VLOOKUP($B86,ItemList,HLOOKUP(O$22,StatLoC,2,FALSE),FALSE)) -> 0 | P86: =IF(OR($B86="None",ISBLANK($B86)),0,VLOOKUP($B86,ItemList,HLOOKUP(P$22,StatLoC,2,FALSE),FALSE)) -> 0 | Q86: 2860 | R86: 0 | S86: =IF(OR($B86="None",ISBLANK($B86)),0,VLOOKUP($B86,ItemList,HLOOKUP(S$22,StatLoC,2,FALSE),FALSE)) -> 0 | T86: 0 | U86: 0 | V86: 0 | W86: 0 | X86: 0
B87: Reforge: Crit to Mastery | H87: =IF(RIGHT(B87,3)="Hit",(-1 * SUM(I87:L87)),IF(RIGHT(LEFT(B87,12),3)="Hit",ROUNDDOWN((-0.4 * H86),0),0)) -> 0 | I87: =IF(RIGHT(B87,4)="Crit",(-1 * SUM(H87,J87,K87,L87)),IF(RIGHT(LEFT(B87,13),4)="Crit",ROUNDDOWN((-0.4 * I86),0),0)) -> -50 | J87: =IF(RIGHT(B87,5)="Haste",(-1 * SUM(H87:I87,K87:L87)),IF(RIGHT(LEFT(B87,14),5)="Haste",ROUNDDOWN((-0.4 * J86),0),0)) -> 0 | K87: =IF(RIGHT(B87,7)="Mastery",(-1 * SUM(H87:J87,L87)),IF(RIGHT(LEFT(B87,16),7)="Mastery",ROUNDDOWN((-0.4 * K86),0),0)) -> 50 | L87: =IF(RIGHT(B87,9)="Expertise",(-1 * SUM(H87:K87)),IF(RIGHT(LEFT(B87,18),9)="Expertise",ROUNDDOWN((-0.4 * L86),0),0)) -> 0
A88: =S86 -> 0 | B88: Bold Inferno Ruby (40 Str) | C88: =IF(ISNONTEXT($S86),0,VLOOKUP($B88,ItemList,HLOOKUP(C$22,StatLoC,2,FALSE),FALSE)) -> 0 | D88: 0 | E88: 0 | F88: 0 | G88: 0 | H88: 0 | I88: 0 | J88: 0 | K88: 0 | L88: 0 | M88: 0 | N88: 0 | O88: 0 | P88: 0 | Q88: 0 | R88: 0 | S88: =IF(ISNONTEXT($S86),0,VLOOKUP($B88,ItemList,HLOOKUP(S$22,StatLoC,2,FALSE),FALSE)) -> 0 | T88: =IF(ISNONTEXT($S86),0,VLOOKUP($B88,ItemList,HLOOKUP(T$22,StatLoC,2,FALSE),FALSE)) -> 0 | U88: =IF(ISNONTEXT($S86),0,VLOOKUP($B88,ItemList,HLOOKUP(U$22,StatLoC,2,FALSE),FALSE)) -> 0 | V88: =IF(ISNONTEXT($S86),0,VLOOKUP($B88,ItemList,HLOOKUP(V$22,StatLoC,2,FALSE),FALSE)) -> 0 | W88: =IF(ISNONTEXT(S86),"",IF(OR(S86=S88,S86=T88,S86=U88),"","Fail")) ->  | Y88: =IF(OR(S88="r",T88="r",U88="r"),1,0) -> 0 | Z88: =IF(OR(S88="y",T88="y",U88="y"),1,0) -> 0 | AA88: =IF(OR(S88="b",T88="b",U88="b"),1,0) -> 0
A89: =T86 -> 0 | B89: Bold Inferno Ruby (40 Str) | C89: =IF(ISNONTEXT($T86),0,VLOOKUP($B89,ItemList,HLOOKUP(C$22,StatLoC,2,FALSE),FALSE)) -> 0 | D89: 0 | E89: 0 | F89: 0 | G89: 0 | H89: 0 | I89: 0 | J89: 0 | K89: 0 | L89: 0 | M89: 0 | N89: 0 | O89: 0 | P89: 0 | Q89: 0 | R89: 0 | S89: =IF(ISNONTEXT($T86),0,VLOOKUP($B89,ItemList,HLOOKUP(S$22,StatLoC,2,FALSE),FALSE)) -> 0 | T89: =IF(ISNONTEXT($T86),0,VLOOKUP($B89,ItemList,HLOOKUP(T$22,StatLoC,2,FALSE),FALSE)) -> 0 | U89: =IF(ISNONTEXT($T86),0,VLOOKUP($B89,ItemList,HLOOKUP(U$22,StatLoC,2,FALSE),FALSE)) -> 0 | V89: =IF(ISNONTEXT($T86),0,VLOOKUP($B89,ItemList,HLOOKUP(V$22,StatLoC,2,FALSE),FALSE)) -> 0 | W89: =IF(ISNONTEXT(T86),"",IF(OR(T86=S89,T86=T89),"","Fail")) ->  | Y89: =IF(OR(S89="r",T89="r",U89="r"),1,0) -> 0 | Z89: =IF(OR(S89="y",T89="y",U89="y"),1,0) -> 0 | AA89: =IF(OR(S89="b",T89="b",U89="b"),1,0) -> 0
A90: =U86 -> 0 | B90: Bold Inferno Ruby (40 Str) | C90: =IF(ISNONTEXT($U86),0,VLOOKUP($B90,ItemList,HLOOKUP(C$22,StatLoC,2,FALSE),FALSE)) -> 0 | D90: 0 | E90: 0 | F90: 0 | G90: 0 | H90: 0 | I90: 0 | J90: 0 | K90: 0 | L90: 0 | M90: 0 | N90: 0 | O90: 0 | P90: 0 | Q90: 0 | R90: 0 | S90: =IF(ISNONTEXT($U86),0,VLOOKUP($B90,ItemList,HLOOKUP(S$22,StatLoC,2,FALSE),FALSE)) -> 0 | T90: =IF(ISNONTEXT($U86),0,VLOOKUP($B90,ItemList,HLOOKUP(T$22,StatLoC,2,FALSE),FALSE)) -> 0 | U90: =IF(ISNONTEXT($U86),0,VLOOKUP($B90,ItemList,HLOOKUP(U$22,StatLoC,2,FALSE),FALSE)) -> 0 | V90: =IF(ISNONTEXT($U86),0,VLOOKUP($B90,ItemList,HLOOKUP(V$22,StatLoC,2,FALSE),FALSE)) -> 0 | W90: =IF(ISNONTEXT(U86),"",IF(OR(U86=S90,U86=T90),"","Fail")) ->  | Y90: =IF(OR(S90="r",T90="r",U90="r"),1,0) -> 0 | Z90: =IF(OR(S90="y",T90="y",U90="y"),1,0) -> 0 | AA90: =IF(OR(S90="b",T90="b",U90="b"),1,0) -> 0
A91: =IF(AND(ISNONTEXT(A90),ISNONTEXT(A89),ISNONTEXT(A88)),"","bo") ->  | B91: Bonus: | C91: =IF($W91=TRUE,IF(C$22=$W86,$X86,0),0) -> 0 | D91: 0 | E91: 0 | F91: 0 | G91: 0 | H91: 0 | I91: 0 | J91: 0 | K91: 0 | L91: 0 | M91: 0 | N91: 0 | O91: 0 | P91: 0 | Q91: 0 | R91: 0 | W91: =IF(OR(W88="Fail",W89="Fail",W90="Fail"),FALSE,TRUE) -> TRUE
B92: Serrated Brimstone Signet | C92: =IF(OR($B92="None",ISBLANK($B92)),0,VLOOKUP($B92,ItemList,HLOOKUP(C$22,StatLoC,2,FALSE),FALSE)) -> 341 | D92: 0 | E92: 227 | F92: 0 | G92: 0 | H92: 0 | I92: 156 | J92: 144 | K92: 0 | L92: 0 | M92: 0 | N92: 0 | O92: 0 | P92: 0 | Q92: 3410 | R92: 0 | S92: =IF(OR($B92="None",ISBLANK($B92)),0,VLOOKUP($B92,ItemList,HLOOKUP(S$22,StatLoC,2,FALSE),FALSE)) -> 0 | T92: =IF(OR($B92="None",ISBLANK($B92)),0,VLOOKUP($B92,ItemList,HLOOKUP(T$22,StatLoC,2,FALSE),FALSE)) -> 0 | U92: =IF(OR($B92="None",ISBLANK($B92)),0,VLOOKUP($B92,ItemList,HLOOKUP(U$22,StatLoC,2,FALSE),FALSE)) -> 0 | W92: =IF(OR($B92="None",ISBLANK($B92)),0,VLOOKUP($B92,ItemList,HLOOKUP(W$22,StatLoC,2,FALSE),FALSE)) -> 0 | X92: =IF(OR($B92="None",ISBLANK($B92)),0,VLOOKUP($B92,ItemList,HLOOKUP(X$22,StatLoC,2,FALSE),FALSE)) -> 0
B93: Reforge: Crit to Hit | H93: =IF(RIGHT(B93,3)="Hit",(-1 * SUM(I93:L93)),IF(RIGHT(LEFT(B93,12),3)="Hit",ROUNDDOWN((-0.4 * H92),0),0)) -> 62 | I93: =IF(RIGHT(B93,4)="Crit",(-1 * SUM(H93,J93,K93,L93)),IF(RIGHT(LEFT(B93,13),4)="Crit",ROUNDDOWN((-0.4 * I92),0),0)) -> -62 | J93: =IF(RIGHT(B93,5)="Haste",(-1 * SUM(H93:I93,K93:L93)),IF(RIGHT(LEFT(B93,14),5)="Haste",ROUNDDOWN((-0.4 * J92),0),0)) -> 0 | K93: =IF(RIGHT(B93,7)="Mastery",(-1 * SUM(H93:J93,L93)),IF(RIGHT(LEFT(B93,16),7)="Mastery",ROUNDDOWN((-0.4 * K92),0),0)) -> 0 | L93: =IF(RIGHT(B93,9)="Expertise",(-1 * SUM(H93:K93)),IF(RIGHT(LEFT(B93,18),9)="Expertise",ROUNDDOWN((-0.4 * L92),0),0)) -> 0
A94: ="Enchant" -> Enchant | B94: None | C94: =IF(OR($B94="None",ISBLANK($B94)),0,VLOOKUP($B94,ItemList,HLOOKUP(C$22,StatLoC,2,FALSE),FALSE)) -> 0 | D94: 0 | E94: 0 | F94: 0 | G94: 0 | H94: 0 | I94: 0 | J94: 0 | K94: 0 | L94: 0 | M94: 0 | N94: =IF(OR($B94="None",ISBLANK($B94)),0,VLOOKUP($B94,ItemList,HLOOKUP(N$22,StatLoC,2,FALSE),FALSE)) -> 0 | O94: =IF(OR($B94="None",ISBLANK($B94)),0,VLOOKUP($B94,ItemList,HLOOKUP(O$22,StatLoC,2,FALSE),FALSE)) -> 0 | P94: =IF(OR($B94="None",ISBLANK($B94)),0,VLOOKUP($B94,ItemList,HLOOKUP(P$22,StatLoC,2,FALSE),FALSE)) -> 0 | Q94: 0 | R94: 0 | S94: Perk | W94: =IF(SUM(S94:V94)>0,1,0) -> 0
A95: =S92 -> 0 | B95: Bold Inferno Ruby (40 Str) | C95: =IF(ISNONTEXT($S92),0,VLOOKUP($B95,ItemList,HLOOKUP(C$22,StatLoC,2,FALSE),FALSE)) -> 0 | D95: 0 | E95: 0 | F95: 0 | G95: 0 | H95: 0 | I95: 0 | J95: 0 | K95: 0 | L95: 0 | M95: 0 | N95: 0 | O95: 0 | P95: 0 | Q95: =10*C95 -> 0 | R95: =(D95*15) -> 0 | S95: =IF(ISNONTEXT($S92),0,VLOOKUP($B95,ItemList,HLOOKUP(S$22,StatLoC,2,FALSE),FALSE)) -> 0 | T95: =IF(ISNONTEXT($S92),0,VLOOKUP($B95,ItemList,HLOOKUP(T$22,StatLoC,2,FALSE),FALSE)) -> 0 | U95: =IF(ISNONTEXT($S92),0,VLOOKUP($B95,ItemList,HLOOKUP(U$22,StatLoC,2,FALSE),FALSE)) -> 0 | V95: =IF(ISNONTEXT($S92),0,VLOOKUP($B95,ItemList,HLOOKUP(V$22,StatLoC,2,FALSE),FALSE)) -> 0 | W95: =IF(ISNONTEXT(S92),"",IF(OR(S92=S95,S92=T95, S92=U95),"","Fail")) ->  | Y95: =IF(OR(S95="r",T95="r",U95="r"),1,0) -> 0 | Z95: =IF(OR(S95="y",T95="y",U95="y"),1,0) -> 0 | AA95: =IF(OR(S95="b",T95="b",U95="b"),1,0) -> 0
A96: =T92 -> 0 | B96: Bold Inferno Ruby (40 Str) | C96: =IF(ISNONTEXT($T92),0,VLOOKUP($B96,ItemList,HLOOKUP(C$22,StatLoC,2,FALSE),FALSE)) -> 0 | D96: 0 | E96: 0 | F96: 0 | G96: 0 | H96: 0 | I96: 0 | J96: 0 | K96: 0 | L96: 0 | M96: 0 | N96: 0 | O96: 0 | P96: 0 | Q96: =10*C96 -> 0 | R96: =(D96*15) -> 0 | S96: =IF(ISNONTEXT($T92),0,VLOOKUP($B96,ItemList,HLOOKUP(S$22,StatLoC,2,FALSE),FALSE)) -> 0 | T96: =IF(ISNONTEXT($T92),0,VLOOKUP($B96,ItemList,HLOOKUP(T$22,StatLoC,2,FALSE),FALSE)) -> 0 | U96: =IF(ISNONTEXT($T92),0,VLOOKUP($B96,ItemList,HLOOKUP(U$22,StatLoC,2,FALSE),FALSE)) -> 0 | V96: =IF(ISNONTEXT($T92),0,VLOOKUP($B96,ItemList,HLOOKUP(V$22,StatLoC,2,FALSE),FALSE)) -> 0 | W96: =IF(ISNONTEXT(T92),"",IF(OR(T92=S96,T92=T96, T92=U96),"","Fail")) -> 
A97: =U92 -> 0 | B97: Bold Inferno Ruby (40 Str) | C97: =IF(ISNONTEXT($U92),0,VLOOKUP($B97,ItemList,HLOOKUP(C$22,StatLoC,2,FALSE),FALSE)) -> 0 | D97: 0 | E97: 0 | F97: 0 | G97: 0 | H97: 0 | I97: 0 | J97: 0 | K97: 0 | L97: 0 | M97: 0 | N97: 0 | O97: 0 | P97: 0 | Q97: =10*C97 -> 0 | R97: =(D97*15) -> 0 | S97: =IF(ISNONTEXT($U92),0,VLOOKUP($B97,ItemList,HLOOKUP(S$22,StatLoC,2,FALSE),FALSE)) -> 0 | T97: =IF(ISNONTEXT($U92),0,VLOOKUP($B97,ItemList,HLOOKUP(T$22,StatLoC,2,FALSE),FALSE)) -> 0 | U97: =IF(ISNONTEXT($U92),0,VLOOKUP($B97,ItemList,HLOOKUP(U$22,StatLoC,2,FALSE),FALSE)) -> 0 | V97: =IF(ISNONTEXT($U92),0,VLOOKUP($B97,ItemList,HLOOKUP(V$22,StatLoC,2,FALSE),FALSE)) -> 0 | W97: =IF(ISNONTEXT(U92),"",IF(OR(U92=S97,U92=T97, U92=U97),"","Fail")) -> 
A98: =IF(AND(ISNONTEXT(A97),ISNONTEXT(A96),ISNONTEXT(A95)),"","bo") ->  | B98: Bonus: | C98: =IF($W98=TRUE,IF(C$22=$W92,$X92,0),0) -> 0 | D98: 0 | E98: 0 | F98: 0 | G98: 0 | H98: 0 | I98: 0 | J98: 0 | K98: 0 | L98: 0 | M98: 0 | N98: 0 | O98: 0 | P98: 0 | Q98: =10*C98 -> 0 | R98: =(D98*15) -> 0 | W98: =IF(OR(W95="Fail",W96="Fail",W97="Fail"),FALSE,TRUE) -> TRUE
B99: Alysrazor's Band | C99: =IF(OR($B99="None",ISBLANK($B99)),0,VLOOKUP($B99,ItemList,HLOOKUP(C$22,StatLoC,2,FALSE),FALSE)) -> 341 | D99: 0 | E99: 227 | F99: 0 | G99: 0 | H99: 0 | I99: 0 | J99: 107 | K99: 0 | L99: 150 | M99: 0 | N99: 0 | O99: 0 | P99: 0 | Q99: 3410 | R99: =(D99*15) -> 0 | S99: =IF(OR($B99="None",ISBLANK($B99)),0,VLOOKUP($B99,ItemList,HLOOKUP(S$22,StatLoC,2,FALSE),FALSE)) -> r | T99: =IF(OR($B99="None",ISBLANK($B99)),0,VLOOKUP($B99,ItemList,HLOOKUP(T$22,StatLoC,2,FALSE),FALSE)) -> 0 | U99: =IF(OR($B99="None",ISBLANK($B99)),0,VLOOKUP($B99,ItemList,HLOOKUP(U$22,StatLoC,2,FALSE),FALSE)) -> 0 | W99: =IF(OR($B99="None",ISBLANK($B99)),0,VLOOKUP($B99,ItemList,HLOOKUP(W$22,StatLoC,2,FALSE),FALSE)) -> Str | X99: =IF(OR($B99="None",ISBLANK($B99)),0,VLOOKUP($B99,ItemList,HLOOKUP(X$22,StatLoC,2,FALSE),FALSE)) -> 10
B100: Reforge: Expertise to Hit | H100: =IF(RIGHT(B100,3)="Hit",(-1 * SUM(I100:L100)),IF(RIGHT(LEFT(B100,12),3)="Hit",ROUNDDOWN((-0.4 * H99),0),0)) -> 60 | I100: =IF(RIGHT(B100,4)="Crit",(-1 * SUM(H100,J100,K100,L100)),IF(RIGHT(LEFT(B100,13),4)="Crit",ROUNDDOWN((-0.4 * I99),0),0)) -> 0 | J100: =IF(RIGHT(B100,5)="Haste",(-1 * SUM(H100:I100,K100:L100)),IF(RIGHT(LEFT(B100,14),5)="Haste",ROUNDDOWN((-0.4 * J99),0),0)) -> 0 | K100: =IF(RIGHT(B100,7)="Mastery",(-1 * SUM(H100:J100,L100)),IF(RIGHT(LEFT(B100,16),7)="Mastery",ROUNDDOWN((-0.4 * K99),0),0)) -> 0 | L100: =IF(RIGHT(B100,9)="Expertise",(-1 * SUM(H100:K100)),IF(RIGHT(LEFT(B100,18),9)="Expertise",ROUNDDOWN((-0.4 * L99),0),0)) -> -60
A101: Enchant | B101: None | C101: =IF(OR($B101="None",ISBLANK($B101)),0,VLOOKUP($B101,ItemList,HLOOKUP(C$22,StatLoC,2,FALSE),FALSE)) -> 0 | D101: 0 | E101: 0 | F101: 0 | G101: 0 | H101: 0 | I101: 0 | J101: 0 | K101: 0 | L101: 0 | M101: 0 | N101: =IF(OR($B101="None",ISBLANK($B101)),0,VLOOKUP($B101,ItemList,HLOOKUP(N$22,StatLoC,2,FALSE),FALSE)) -> 0 | O101: =IF(OR($B101="None",ISBLANK($B101)),0,VLOOKUP($B101,ItemList,HLOOKUP(O$22,StatLoC,2,FALSE),FALSE)) -> 0 | P101: =IF(OR($B101="None",ISBLANK($B101)),0,VLOOKUP($B101,ItemList,HLOOKUP(P$22,StatLoC,2,FALSE),FALSE)) -> 0 | Q101: =10*C101 -> 0 | R101: 0 | S101: Perk | W101: =IF(SUM(S101:V101)>0,1,0) -> 0
A102: =S99 -> r | B102: Bold Inferno Ruby (40 Str) | C102: =IF(ISNONTEXT($S99),0,VLOOKUP($B102,ItemList,HLOOKUP(C$22,StatLoC,2,FALSE),FALSE)) -> 0 | D102: 0 | E102: 40 | F102: 0 | G102: 0 | H102: 0 | I102: 0 | J102: 0 | K102: 0 | L102: 0 | M102: 0 | N102: 0 | O102: 0 | P102: 0 | Q102: 0 | R102: 0 | S102: =IF(ISNONTEXT($S99),0,VLOOKUP($B102,ItemList,HLOOKUP(S$22,StatLoC,2,FALSE),FALSE)) -> r | T102: =IF(ISNONTEXT($S99),0,VLOOKUP($B102,ItemList,HLOOKUP(T$22,StatLoC,2,FALSE),FALSE)) -> 0 | U102: =IF(ISNONTEXT($S99),0,VLOOKUP($B102,ItemList,HLOOKUP(U$22,StatLoC,2,FALSE),FALSE)) -> 0 | V102: =IF(ISNONTEXT($S99),0,VLOOKUP($B102,ItemList,HLOOKUP(V$22,StatLoC,2,FALSE),FALSE)) -> 0 | W102: =IF(ISNONTEXT(S99),"",IF(OR(S99=S102,S99=T102, S99=U102),"","Fail")) ->  | Y102: =IF(OR(S102="r",T102="r",U102="r"),1,0) -> 1 | Z102: =IF(OR(S102="y",T102="y",U102="y"),1,0) -> 0 | AA102: =IF(OR(S102="b",T102="b",U102="b"),1,0) -> 0
A103: =T99 -> 0 | B103: Bold Inferno Ruby (40 Str) | C103: =IF(ISNONTEXT($T99),0,VLOOKUP($B103,ItemList,HLOOKUP(C$22,StatLoC,2,FALSE),FALSE)) -> 0 | D103: 0 | E103: 0 | F103: 0 | G103: 0 | H103: 0 | I103: 0 | J103: 0 | K103: 0 | L103: 0 | M103: 0 | N103: 0 | O103: 0 | P103: 0 | Q103: 0 | R103: 0 | S103: =IF(ISNONTEXT($T99),0,VLOOKUP($B103,ItemList,HLOOKUP(S$22,StatLoC,2,FALSE),FALSE)) -> 0 | T103: =IF(ISNONTEXT($T99),0,VLOOKUP($B103,ItemList,HLOOKUP(T$22,StatLoC,2,FALSE),FALSE)) -> 0 | U103: =IF(ISNONTEXT($T99),0,VLOOKUP($B103,ItemList,HLOOKUP(U$22,StatLoC,2,FALSE),FALSE)) -> 0 | V103: =IF(ISNONTEXT($T99),0,VLOOKUP($B103,ItemList,HLOOKUP(V$22,StatLoC,2,FALSE),FALSE)) -> 0 | W103: =IF(ISNONTEXT(T99),"",IF(OR(T99=S103,T99=T103, T99=U103),"","Fail")) -> 
A104: =U99 -> 0 | B104: Bold Inferno Ruby (40 Str) | C104: =IF(ISNONTEXT($U99),0,VLOOKUP($B104,ItemList,HLOOKUP(C$22,StatLoC,2,FALSE),FALSE)) -> 0 | D104: 0 | E104: 0 | F104: 0 | G104: 0 | H104: 0 | I104: 0 | J104: 0 | K104: 0 | L104: 0 | M104: 0 | N104: 0 | O104: 0 | P104: 0 | Q104: 0 | R104: 0 | S104: =IF(ISNONTEXT($U99),0,VLOOKUP($B104,ItemList,HLOOKUP(S$22,StatLoC,2,FALSE),FALSE)) -> 0 | T104: =IF(ISNONTEXT($U99),0,VLOOKUP($B104,ItemList,HLOOKUP(T$22,StatLoC,2,FALSE),FALSE)) -> 0 | U104: =IF(ISNONTEXT($U99),0,VLOOKUP($B104,ItemList,HLOOKUP(U$22,StatLoC,2,FALSE),FALSE)) -> 0 | V104: =IF(ISNONTEXT($U99),0,VLOOKUP($B104,ItemList,HLOOKUP(V$22,StatLoC,2,FALSE),FALSE)) -> 0 | W104: =IF(ISNONTEXT(U99),"",IF(OR(U99=S104,U99=T104, U99=U104),"","Fail")) -> 
A105: =IF(AND(ISNONTEXT(A104),ISNONTEXT(A103),ISNONTEXT(A102)),"","bo") -> bo | B105: Bonus: | C105: =IF($W105=TRUE,IF(C$22=$W99,$X99,0),0) -> 0 | D105: =IF($W105=TRUE,IF(D$22=$W99,$X99,0),0) -> 0 | E105: 10 | F105: 0 | G105: 0 | H105: 0 | I105: 0 | J105: 0 | K105: 0 | L105: 0 | M105: 0 | N105: 0 | O105: 0 | P105: 0 | Q105: =10*C105 -> 0 | R105: =(D105*15) -> 0 | W105: =IF(OR(W102="Fail",W103="Fail",W104="Fail"),FALSE,TRUE) -> TRUE
B106: Essence of the Eternal Flame | C106: =IF(OR($B106="None",ISBLANK($B106)),0,VLOOKUP($B106,ItemList,HLOOKUP(C$22,StatLoC,2,FALSE),FALSE)) + IF(AND(NOT(ISTEXT($S106)),NOT(ISTEXT($T106)),NOT(ISTEXT($U106)),NOT(ISTEXT($V106)),$W106=C$22),$X106,0) -> 0 | D106: 0 | E106: 319.25 | F106: 0 | G106: 0 | H106: 0 | I106: 0 | J106: 0 | K106: 383 | L106: 0 | M106: 0 | N106: =IF(OR($B106="None",ISBLANK($B106)),0,VLOOKUP($B106,ItemList,HLOOKUP(N$22,StatLoC,2,FALSE),FALSE)) -> 0 | O106: 0 | P106: 0 | Q106: 0 | R106: 0 | S106: =IF(OR($B106="None",ISBLANK($B106)),0,VLOOKUP($B106,ItemList,HLOOKUP(S$22,StatLoC,2,FALSE),FALSE)) -> 0 | T106: =IF(OR($B106="None",ISBLANK($B106)),0,VLOOKUP($B106,ItemList,HLOOKUP(T$22,StatLoC,2,FALSE),FALSE)) -> 0 | U106: =IF(OR($B106="None",ISBLANK($B106)),0,VLOOKUP($B106,ItemList,HLOOKUP(U$22,StatLoC,2,FALSE),FALSE)) -> 0 | W106: =IF(OR($B106="None",ISBLANK($B106)),0,VLOOKUP($B106,ItemList,HLOOKUP(W$22,StatLoC,2,FALSE),FALSE)) -> Str | X106: =IF(OR($B106="None",ISBLANK($B106)),0,VLOOKUP($B106,ItemList,HLOOKUP(X$22,StatLoC,2,FALSE),FALSE)) -> 319.25
B107: Reforge: Mastery to Hit | H107: =IF(RIGHT(B107,3)="Hit",(-1 * SUM(I107:L107)),IF(RIGHT(LEFT(B107,12),3)="Hit",ROUNDDOWN((-0.4 * H106),0),0)) -> 153 | I107: =IF(RIGHT(B107,4)="Crit",(-1 * SUM(H107,J107,K107,L107)),IF(RIGHT(LEFT(B107,13),4)="Crit",ROUNDDOWN((-0.4 * I106),0),0)) -> 0 | J107: =IF(RIGHT(B107,5)="Haste",(-1 * SUM(H107:I107,K107:L107)),IF(RIGHT(LEFT(B107,14),5)="Haste",ROUNDDOWN((-0.4 * J106),0),0)) -> 0 | K107: =IF(RIGHT(B107,7)="Mastery",(-1 * SUM(H107:J107,L107)),IF(RIGHT(LEFT(B107,16),7)="Mastery",ROUNDDOWN((-0.4 * K106),0),0)) -> -153 | L107: =IF(RIGHT(B107,9)="Expertise",(-1 * SUM(H107:K107)),IF(RIGHT(LEFT(B107,18),9)="Expertise",ROUNDDOWN((-0.4 * L106),0),0)) -> 0
B108: None
A109: =S106 -> 0 | B109: Bold Inferno Ruby (40 Str) | C109: =IF(ISNONTEXT($S106),0,VLOOKUP($B109,ItemList,HLOOKUP(C$22,StatLoC,2,FALSE),FALSE)) -> 0 | D109: 0 | E109: 0 | F109: 0 | G109: 0 | H109: 0 | I109: 0 | J109: 0 | K109: 0 | L109: 0 | M109: 0 | N109: 0 | O109: 0 | P109: 0 | Q109: =10*C109 -> 0 | R109: =(D109*15) -> 0 | S109: =IF(ISNONTEXT($S106),0,VLOOKUP($B109,ItemList,HLOOKUP(S$22,StatLoC,2,FALSE),FALSE)) -> 0 | T109: =IF(ISNONTEXT($S106),0,VLOOKUP($B109,ItemList,HLOOKUP(T$22,StatLoC,2,FALSE),FALSE)) -> 0 | U109: =IF(ISNONTEXT($S106),0,VLOOKUP($B109,ItemList,HLOOKUP(U$22,StatLoC,2,FALSE),FALSE)) -> 0 | V109: =IF(ISNONTEXT($S106),0,VLOOKUP($B109,ItemList,HLOOKUP(V$22,StatLoC,2,FALSE),FALSE)) -> 0 | W109: =IF(ISNONTEXT(S106),"",IF(OR(S106=S109,S106=T109, S106=U109),"","Fail")) ->  | Y109: =IF(OR(S109="r",T109="r",U109="r"),1,0) -> 0 | Z109: =IF(OR(S109="y",T109="y",U109="y"),1,0) -> 0 | AA109: =IF(OR(S109="b",T109="b",U109="b"),1,0) -> 0
A110: =T106 -> 0 | B110: Bold Inferno Ruby (40 Str) | C110: =IF(ISNONTEXT($T106),0,VLOOKUP($B110,ItemList,HLOOKUP(C$22,StatLoC,2,FALSE),FALSE)) -> 0 | D110: 0 | E110: 0 | F110: 0 | G110: 0 | H110: 0 | I110: 0 | J110: 0 | K110: 0 | L110: 0 | M110: 0 | N110: 0 | O110: 0 | P110: 0 | Q110: =10*C110 -> 0 | R110: =(D110*15) -> 0 | S110: =IF(ISNONTEXT($T106),0,VLOOKUP($B110,ItemList,HLOOKUP(S$22,StatLoC,2,FALSE),FALSE)) -> 0 | T110: =IF(ISNONTEXT($T106),0,VLOOKUP($B110,ItemList,HLOOKUP(T$22,StatLoC,2,FALSE),FALSE)) -> 0 | U110: =IF(ISNONTEXT($T106),0,VLOOKUP($B110,ItemList,HLOOKUP(U$22,StatLoC,2,FALSE),FALSE)) -> 0 | V110: =IF(ISNONTEXT($T106),0,VLOOKUP($B110,ItemList,HLOOKUP(V$22,StatLoC,2,FALSE),FALSE)) -> 0 | W110: =IF(ISNONTEXT(T106),"",IF(OR(T106=S110,T106=T110, T106=U110),"","Fail")) -> 
A111: =U106 -> 0 | B111: Bold Inferno Ruby (40 Str) | C111: =IF(ISNONTEXT($U106),0,VLOOKUP($B111,ItemList,HLOOKUP(C$22,StatLoC,2,FALSE),FALSE)) -> 0 | D111: 0 | E111: 0 | F111: 0 | G111: 0 | H111: 0 | I111: 0 | J111: 0 | K111: 0 | L111: 0 | M111: 0 | N111: 0 | O111: 0 | P111: 0 | Q111: =10*C111 -> 0 | R111: =(D111*15) -> 0 | S111: =IF(ISNONTEXT($U106),0,VLOOKUP($B111,ItemList,HLOOKUP(S$22,StatLoC,2,FALSE),FALSE)) -> 0 | T111: =IF(ISNONTEXT($U106),0,VLOOKUP($B111,ItemList,HLOOKUP(T$22,StatLoC,2,FALSE),FALSE)) -> 0 | U111: =IF(ISNONTEXT($U106),0,VLOOKUP($B111,ItemList,HLOOKUP(U$22,StatLoC,2,FALSE),FALSE)) -> 0 | V111: =IF(ISNONTEXT($U106),0,VLOOKUP($B111,ItemList,HLOOKUP(V$22,StatLoC,2,FALSE),FALSE)) -> 0 | W111: =IF(ISNONTEXT(U106),"",IF(OR(U106=S111,U106=T111, U106=U111),"","Fail")) -> 
A112: =IF(AND(ISNONTEXT(A111),ISNONTEXT(A110),ISNONTEXT(A109)),"","bo") ->  | B112: Bonus: | C112: =IF($W112=TRUE,IF(C$22=$W106,$X106,0),0) -> 0 | D112: =IF($W112=TRUE,IF(D$22=$W106,$X106,0),0) -> 0 | E112: 0 | F112: 0 | G112: 0 | H112: 0 | I112: 0 | J112: 0 | K112: 0 | L112: 0 | M112: 0 | N112: 0 | O112: 0 | P112: =IF($W112=TRUE,IF(P$22=$W106,$X106,0),0) -> 0 | Q112: =10*C112 -> 0 | R112: =(D112*15) -> 0 | W112: =IF(OR(W109="Fail",W110="Fail",W111="Fail"),FALSE,IF(AND(S106=0,T106=0,U106=0),FALSE,TRUE)) -> FALSE
B113: Darkmoon Card: Hurricane | C113: =IF(OR($B113="None",ISBLANK($B113)),0,VLOOKUP($B113,ItemList,HLOOKUP(C$22,StatLoC,2,FALSE),FALSE)) + IF(AND(NOT(ISTEXT($S113)),NOT(ISTEXT($T113)),NOT(ISTEXT($U113)),NOT(ISTEXT($V113)),$W113=C$22),$X113,0) -> 0 | D113: 0 | E113: 321 | F113: 0 | G113: 0 | H113: 0 | I113: 0 | J113: 0 | K113: 0 | L113: 0 | M113: 0 | N113: =IF(OR($B113="None",ISBLANK($B113)),0,VLOOKUP($B113,ItemList,HLOOKUP(N$22,StatLoC,2,FALSE),FALSE)) -> 0 | O113: 0 | P113: 0 | Q113: 0 | R113: 0 | S113: =IF(OR($B113="None",ISBLANK($B113)),0,VLOOKUP($B113,ItemList,HLOOKUP(S$22,StatLoC,2,FALSE),FALSE)) -> 0 | T113: =IF(OR($B113="None",ISBLANK($B113)),0,VLOOKUP($B113,ItemList,HLOOKUP(T$22,StatLoC,2,FALSE),FALSE)) -> 0 | U113: =IF(OR($B113="None",ISBLANK($B113)),0,VLOOKUP($B113,ItemList,HLOOKUP(U$22,StatLoC,2,FALSE),FALSE)) -> 0 | W113: =IF(OR($B113="None",ISBLANK($B113)),0,VLOOKUP($B113,ItemList,HLOOKUP(W$22,StatLoC,2,FALSE),FALSE)) -> DPS | X113: =IF(OR($B113="None",ISBLANK($B113)),0,VLOOKUP($B113,ItemList,HLOOKUP(X$22,StatLoC,2,FALSE),FALSE)) -> 404.1701889
B114: None | H114: =IF(RIGHT(B114,3)="Hit",(-1 * SUM(I114:L114)),IF(RIGHT(LEFT(B114,12),3)="Hit",ROUNDDOWN((-0.4 * H113),0),0)) -> 0 | I114: =IF(RIGHT(B114,4)="Crit",(-1 * SUM(H114,J114,K114,L114)),IF(RIGHT(LEFT(B114,13),4)="Crit",ROUNDDOWN((-0.4 * I113),0),0)) -> 0 | J114: =IF(RIGHT(B114,5)="Haste",(-1 * SUM(H114:I114,K114:L114)),IF(RIGHT(LEFT(B114,14),5)="Haste",ROUNDDOWN((-0.4 * J113),0),0)) -> 0 | K114: =IF(RIGHT(B114,7)="Mastery",(-1 * SUM(H114:J114,L114)),IF(RIGHT(LEFT(B114,16),7)="Mastery",ROUNDDOWN((-0.4 * K113),0),0)) -> 0 | L114: =IF(RIGHT(B114,9)="Expertise",(-1 * SUM(H114:K114)),IF(RIGHT(LEFT(B114,18),9)="Expertise",ROUNDDOWN((-0.4 * L113),0),0)) -> 0
B115: None
A116: =S113 -> 0 | B116: Bold Inferno Ruby (40 Str) | C116: =IF(ISNONTEXT($S113),0,VLOOKUP($B116,ItemList,HLOOKUP(C$22,StatLoC,2,FALSE),FALSE)) -> 0 | D116: 0 | E116: 0 | F116: 0 | G116: 0 | H116: 0 | I116: 0 | J116: 0 | K116: 0 | L116: 0 | M116: 0 | N116: 0 | O116: 0 | P116: 0 | Q116: 0 | R116: 0 | S116: =IF(ISNONTEXT($S113),0,VLOOKUP($B116,ItemList,HLOOKUP(S$22,StatLoC,2,FALSE),FALSE)) -> 0 | T116: =IF(ISNONTEXT($S113),0,VLOOKUP($B116,ItemList,HLOOKUP(T$22,StatLoC,2,FALSE),FALSE)) -> 0 | U116: =IF(ISNONTEXT($S113),0,VLOOKUP($B116,ItemList,HLOOKUP(U$22,StatLoC,2,FALSE),FALSE)) -> 0 | V116: =IF(ISNONTEXT($S113),0,VLOOKUP($B116,ItemList,HLOOKUP(V$22,StatLoC,2,FALSE),FALSE)) -> 0 | W116: =IF(ISNONTEXT(S113),"",IF(OR(S113=S116,S113=T116, S113=U116),"","Fail")) ->  | Y116: =IF(OR(S116="r",T116="r",U116="r"),1,0) -> 0 | Z116: =IF(OR(S116="y",T116="y",U116="y"),1,0) -> 0 | AA116: =IF(OR(S116="b",T116="b",U116="b"),1,0) -> 0
A117: =T113 -> 0 | B117: Bold Inferno Ruby (40 Str) | C117: =IF(ISNONTEXT($T113),0,VLOOKUP($B117,ItemList,HLOOKUP(C$22,StatLoC,2,FALSE),FALSE)) -> 0 | D117: 0 | E117: 0 | F117: 0 | G117: 0 | H117: 0 | I117: 0 | J117: 0 | K117: 0 | L117: 0 | M117: 0 | N117: 0 | O117: 0 | P117: 0 | Q117: 0 | R117: 0 | S117: =IF(ISNONTEXT($T113),0,VLOOKUP($B117,ItemList,HLOOKUP(S$22,StatLoC,2,FALSE),FALSE)) -> 0 | T117: =IF(ISNONTEXT($T113),0,VLOOKUP($B117,ItemList,HLOOKUP(T$22,StatLoC,2,FALSE),FALSE)) -> 0 | U117: =IF(ISNONTEXT($T113),0,VLOOKUP($B117,ItemList,HLOOKUP(U$22,StatLoC,2,FALSE),FALSE)) -> 0 | V117: =IF(ISNONTEXT($T113),0,VLOOKUP($B117,ItemList,HLOOKUP(V$22,StatLoC,2,FALSE),FALSE)) -> 0 | W117: =IF(ISNONTEXT(T113),"",IF(OR(T113=S117,T113=T117, T113=U117),"","Fail")) -> 
A118: =U113 -> 0 | B118: Bold Inferno Ruby (40 Str) | C118: =IF(ISNONTEXT($U113),0,VLOOKUP($B118,ItemList,HLOOKUP(C$22,StatLoC,2,FALSE),FALSE)) -> 0 | D118: 0 | E118: 0 | F118: 0 | G118: 0 | H118: 0 | I118: 0 | J118: 0 | K118: 0 | L118: 0 | M118: 0 | N118: 0 | O118: 0 | P118: 0 | Q118: 0 | R118: 0 | S118: =IF(ISNONTEXT($U113),0,VLOOKUP($B118,ItemList,HLOOKUP(S$22,StatLoC,2,FALSE),FALSE)) -> 0 | T118: =IF(ISNONTEXT($U113),0,VLOOKUP($B118,ItemList,HLOOKUP(T$22,StatLoC,2,FALSE),FALSE)) -> 0 | U118: =IF(ISNONTEXT($U113),0,VLOOKUP($B118,ItemList,HLOOKUP(U$22,StatLoC,2,FALSE),FALSE)) -> 0 | V118: =IF(ISNONTEXT($U113),0,VLOOKUP($B118,ItemList,HLOOKUP(V$22,StatLoC,2,FALSE),FALSE)) -> 0 | W118: =IF(ISNONTEXT(U113),"",IF(OR(U113=S118,U113=T118, U113=U118),"","Fail")) -> 
A119: =IF(AND(ISNONTEXT(A118),ISNONTEXT(A117),ISNONTEXT(A116)),"","bo") ->  | B119: Bonus: | C119: =IF($W119=TRUE,IF(C$22=$W112,$X112,0),0) -> 0 | D119: =IF($W119=TRUE,IF(D$22=$W112,$X112,0),0) -> 0 | E119: 0 | F119: 0 | G119: 0 | H119: 0 | I119: 0 | J119: 0 | K119: 0 | L119: 0 | M119: 0 | N119: 0 | O119: 0 | P119: 0 | Q119: =10*C119 -> 0 | R119: =(D119*15) -> 0 | W119: =IF(OR(W116="Fail",W117="Fail",W118="Fail"),FALSE,IF(AND(S113=0,T113=0,U113=0),FALSE,TRUE)) -> FALSE
B120: Relic of the Elemental Lords | C120: =IF(OR($B120="None",ISBLANK($B120)),0,VLOOKUP($B120,ItemList,HLOOKUP(C$22,StatLoC,2,FALSE),FALSE)) -> 192 | D120: 0 | E120: 128 | F120: 0 | G120: 0 | H120: 0 | I120: 83 | J120: 86 | K120: 0 | L120: 0 | M120: 0 | N120: 0 | O120: 0 | P120: 0 | Q120: =10*C120 -> 1920 | R120: =(D120*15) -> 0 | S120: =IF(OR($B120="None",ISBLANK($B120)),0,VLOOKUP($B120,ItemList,HLOOKUP(S$22,StatLoC,2,FALSE),FALSE)) -> r | W120: =IF(OR($B120="None",ISBLANK($B120)),0,VLOOKUP($B120,ItemList,HLOOKUP(W$22,StatLoC,2,FALSE),FALSE)) -> 0 | X120: =IF(OR($B120="None",ISBLANK($B120)),0,VLOOKUP($B120,ItemList,HLOOKUP(X$22,StatLoC,2,FALSE),FALSE)) -> 0 | Y120: Speed | Z120: Dps
B121: Reforge: Crit to Hit | H121: =IF(RIGHT(B121,3)="Hit",(-1 * SUM(I121:L121)),IF(RIGHT(LEFT(B121,12),3)="Hit",ROUNDDOWN((-0.4 * H120),0),0)) -> 33 | I121: =IF(RIGHT(B121,4)="Crit",(-1 * SUM(H121,J121,K121,L121)),IF(RIGHT(LEFT(B121,13),4)="Crit",ROUNDDOWN((-0.4 * I120),0),0)) -> -33 | J121: =IF(RIGHT(B121,5)="Haste",(-1 * SUM(H121:I121,K121:L121)),IF(RIGHT(LEFT(B121,14),5)="Haste",ROUNDDOWN((-0.4 * J120),0),0)) -> 0 | K121: =IF(RIGHT(B121,7)="Mastery",(-1 * SUM(H121:J121,L121)),IF(RIGHT(LEFT(B121,16),7)="Mastery",ROUNDDOWN((-0.4 * K120),0),0)) -> 0 | L121: =IF(RIGHT(B121,9)="Expertise",(-1 * SUM(H121:K121)),IF(RIGHT(LEFT(B121,18),9)="Expertise",ROUNDDOWN((-0.4 * L120),0),0)) -> 0
B122: None
A123: =S123 -> r | B123: Bold Inferno Ruby (40 Str) | C123: =IF(ISNONTEXT($S120),0,VLOOKUP($B123,ItemList,HLOOKUP(C$22,StatLoC,2,FALSE),FALSE)) -> 0 | D123: 0 | E123: 40 | F123: 0 | G123: 0 | H123: 0 | I123: 0 | J123: 0 | K123: 0 | L123: 0 | M123: 0 | N123: 0 | O123: 0 | P123: 0 | Q123: 0 | R123: 0 | S123: =IF(ISNONTEXT($S120),0,VLOOKUP($B123,ItemList,HLOOKUP(S$22,StatLoC,2,FALSE),FALSE)) -> r | T123: =IF(ISNONTEXT($S120),0,VLOOKUP($B123,ItemList,HLOOKUP(T$22,StatLoC,2,FALSE),FALSE)) -> 0 | U123: =IF(ISNONTEXT($S120),0,VLOOKUP($B123,ItemList,HLOOKUP(U$22,StatLoC,2,FALSE),FALSE)) -> 0 | V123: =IF(ISNONTEXT($S120),0,VLOOKUP($B123,ItemList,HLOOKUP(V$22,StatLoC,2,FALSE),FALSE)) -> 0 | W123: =IF(ISNONTEXT(S120),"",IF(OR(S120=S123,S120=T123),"","Fail")) ->  | Y123: =IF(OR(S123="r",T123="r",U123="r"),1,0) -> 1 | Z123: =IF(OR(S123="y",T123="y",U123="y"),1,0) -> 0 | AA123: =IF(OR(S123="b",T123="b",U123="b"),1,0) -> 0
A124: =T120 -> 0 | B124: None | C124: =IF(ISNONTEXT($T120),0,VLOOKUP($B124,ItemList,HLOOKUP(C$22,StatLoC,2,FALSE),FALSE)) -> 0 | D124: 0 | E124: 0 | F124: 0 | G124: 0 | H124: 0 | I124: 0 | J124: 0 | K124: 0 | L124: 0 | M124: 0 | N124: 0 | O124: 0 | P124: 0 | Q124: 0 | R124: 0 | S124: =IF(ISNONTEXT($T120),0,VLOOKUP($B124,ItemList,HLOOKUP(S$22,StatLoC,2,FALSE),FALSE)) -> 0 | T124: =IF(ISNONTEXT($T120),0,VLOOKUP($B124,ItemList,HLOOKUP(T$22,StatLoC,2,FALSE),FALSE)) -> 0 | U124: =IF(ISNONTEXT($T120),0,VLOOKUP($B124,ItemList,HLOOKUP(U$22,StatLoC,2,FALSE),FALSE)) -> 0 | V124: =IF(ISNONTEXT($T120),0,VLOOKUP($B124,ItemList,HLOOKUP(V$22,StatLoC,2,FALSE),FALSE)) -> 0 | W124: =IF(ISNONTEXT(T120),"",IF(OR(T120=S124,T120=T124, T120=U124),"","Fail")) -> 
A125: =U120 -> 0 | B125: None | C125: =IF(ISNONTEXT($U120),0,VLOOKUP($B125,ItemList,HLOOKUP(C$22,StatLoC,2,FALSE),FALSE)) -> 0 | D125: 0 | E125: 0 | F125: 0 | G125: 0 | H125: 0 | I125: 0 | J125: 0 | K125: 0 | L125: 0 | M125: 0 | N125: 0 | O125: 0 | P125: 0 | Q125: 0 | R125: 0 | S125: =IF(ISNONTEXT($U120),0,VLOOKUP($B125,ItemList,HLOOKUP(S$22,StatLoC,2,FALSE),FALSE)) -> 0 | T125: =IF(ISNONTEXT($U120),0,VLOOKUP($B125,ItemList,HLOOKUP(T$22,StatLoC,2,FALSE),FALSE)) -> 0 | U125: =IF(ISNONTEXT($U120),0,VLOOKUP($B125,ItemList,HLOOKUP(U$22,StatLoC,2,FALSE),FALSE)) -> 0 | V125: =IF(ISNONTEXT($U120),0,VLOOKUP($B125,ItemList,HLOOKUP(V$22,StatLoC,2,FALSE),FALSE)) -> 0 | W125: =IF(ISNONTEXT(U120),"",IF(OR(U120=S125,U120=T125, U120=U125),"","Fail")) -> 
B126: Zoid's Firelit Greatsword | C126: =IF(OR($B126="None",ISBLANK($B126)),0,VLOOKUP($B126,ItemList,HLOOKUP(C$22,StatLoC,2,FALSE),FALSE)) -> 611 | D126: =IF(OR($B126="None",ISBLANK($B126)),0,VLOOKUP($B126,ItemList,HLOOKUP(D$22,StatLoC,2,FALSE),FALSE)) -> 0 | E126: =IF(OR($B126="None",ISBLANK($B126)),0,VLOOKUP($B126,ItemList,HLOOKUP(E$22,StatLoC,2,FALSE),FALSE)) -> 408 | F126: 0 | G126: 0 | H126: 0 | I126: 284 | J126: 232 | K126: 0 | L126: 0 | M126: 0 | N126: =IF(OR($B126="None",ISBLANK($B126)),0,VLOOKUP($B126,ItemList,HLOOKUP(N$22,StatLoC,2,FALSE),FALSE)) -> 0 | O126: 0 | P126: 0 | Q126: 6110 | R126: 0 | S126: =IF(OR($B126="None",ISBLANK($B126)),0,VLOOKUP($B126,ItemList,HLOOKUP(S$22,StatLoC,2,FALSE),FALSE)) -> b | T126: 0 | U126: 0 | V126: 0 | W126: Str | X126: 10 | Y126: =IF(OR($B126="None",ISBLANK($B126)),0,VLOOKUP($B126,ItemList,HLOOKUP(Y$120,StatLoC,2,FALSE),FALSE)) + Y220 -> 3.6 | Z126: =IF(OR($B126="None",ISBLANK($B126)),0,VLOOKUP($B126,ItemList,HLOOKUP(Z$120,StatLoC,2,FALSE),FALSE)) + Z220 -> 744.1
B127: Reforge: Crit to Mastery | H127: =IF(RIGHT(B127,3)="Hit",(-1 * SUM(I127:L127)),IF(RIGHT(LEFT(B127,12),3)="Hit",ROUNDDOWN((-0.4 * H126),0),0)) -> 0 | I127: =IF(RIGHT(B127,4)="Crit",(-1 * SUM(H127,J127,K127,L127)),IF(RIGHT(LEFT(B127,13),4)="Crit",ROUNDDOWN((-0.4 * I126),0),0)) -> -113 | J127: =IF(RIGHT(B127,5)="Haste",(-1 * SUM(H127:I127,K127:L127)),IF(RIGHT(LEFT(B127,14),5)="Haste",ROUNDDOWN((-0.4 * J126),0),0)) -> 0 | K127: =IF(RIGHT(B127,7)="Mastery",(-1 * SUM(H127:J127,L127)),IF(RIGHT(LEFT(B127,16),7)="Mastery",ROUNDDOWN((-0.4 * K126),0),0)) -> 113 | L127: =IF(RIGHT(B127,9)="Expertise",(-1 * SUM(H127:K127)),IF(RIGHT(LEFT(B127,18),9)="Expertise",ROUNDDOWN((-0.4 * L126),0),0)) -> 0
B128: Landslide | C128: =IF(OR($B128="None",ISBLANK($B128)),0,VLOOKUP($B128,ItemList,HLOOKUP(C$22,StatLoC,2,FALSE),FALSE)) -> 0 | D128: =IF(OR($B128="None",ISBLANK($B128)),0,VLOOKUP($B128,ItemList,HLOOKUP(D$22,StatLoC,2,FALSE),FALSE)) -> 0 | E128: 0 | F128: 471.7338091 | G128: 0 | H128: 0 | I128: 0 | J128: 0 | K128: 0 | L128: 0 | M128: 0 | N128: 0 | O128: 0 | P128: 0 | Q128: 0 | R128: 0 | W128: =IF(OR($B128="None",ISBLANK($B128)),0,VLOOKUP($B128,ItemList,HLOOKUP(W$22,StatLoC,2,FALSE),FALSE)) -> 0 | X128: =IF(OR($B128="None",ISBLANK($B128)),0,VLOOKUP($B128,ItemList,HLOOKUP(X$22,StatLoC,2,FALSE),FALSE)) -> 0
A129: =S126 -> b | B129: Etched Demonseye (20 Str/20 Hit) | C129: =IF(ISNONTEXT($S126),0,VLOOKUP($B129,ItemList,HLOOKUP(C$22,StatLoC,2,FALSE),FALSE)) -> 0 | D129: 0 | E129: 20 | F129: 0 | G129: 0 | H129: 20 | I129: 0 | J129: 0 | K129: 0 | L129: 0 | M129: 0 | N129: 0 | O129: 0 | P129: 0 | Q129: 0 | R129: 0 | S129: =IF(ISNONTEXT($S126),0,VLOOKUP($B129,ItemList,HLOOKUP(S$22,StatLoC,2,FALSE),FALSE)) -> r | T129: =IF(ISNONTEXT($S126),0,VLOOKUP($B129,ItemList,HLOOKUP(T$22,StatLoC,2,FALSE),FALSE)) -> b | U129: =IF(ISNONTEXT($S126),0,VLOOKUP($B129,ItemList,HLOOKUP(U$22,StatLoC,2,FALSE),FALSE)) -> 0 | V129: =IF(ISNONTEXT($S126),0,VLOOKUP($B129,ItemList,HLOOKUP(V$22,StatLoC,2,FALSE),FALSE)) -> 0 | W129: =IF(ISNONTEXT(S126),"",IF(OR(S126=S129,S126=T129),"","Fail")) ->  | Y129: =IF(OR(S129="r",T129="r",U129="r"),1,0) -> 1 | Z129: =IF(OR(S129="y",T129="y",U129="y"),1,0) -> 0 | AA129: =IF(OR(S129="b",T129="b",U129="b"),1,0) -> 1
A130: =T126 -> 0 | B130: Bold Inferno Ruby (40 Str) | C130: =IF(ISNONTEXT($T126),0,VLOOKUP($B130,ItemList,HLOOKUP(C$22,StatLoC,2,FALSE),FALSE)) -> 0 | D130: 0 | E130: 0 | F130: 0 | G130: 0 | H130: 0 | I130: 0 | J130: 0 | K130: 0 | L130: 0 | M130: 0 | N130: 0 | O130: 0 | P130: 0 | Q130: 0 | R130: 0 | S130: =IF(ISNONTEXT($T126),0,VLOOKUP($B130,ItemList,HLOOKUP(S$22,StatLoC,2,FALSE),FALSE)) -> 0 | T130: =IF(ISNONTEXT($T126),0,VLOOKUP($B130,ItemList,HLOOKUP(T$22,StatLoC,2,FALSE),FALSE)) -> 0 | U130: =IF(ISNONTEXT($T126),0,VLOOKUP($B130,ItemList,HLOOKUP(U$22,StatLoC,2,FALSE),FALSE)) -> 0 | V130: =IF(ISNONTEXT($T126),0,VLOOKUP($B130,ItemList,HLOOKUP(V$22,StatLoC,2,FALSE),FALSE)) -> 0 | W130: =IF(ISNONTEXT(T126),"",IF(OR(T126=S130,T126=T130,T126=U130),"","Fail")) ->  | Y130: =IF(OR(S130="r",T130="r",U130="r"),1,0) -> 0 | Z130: =IF(OR(S130="y",T130="y",U130="y"),1,0) -> 0 | AA130: =IF(OR(S130="b",T130="b",U130="b"),1,0) -> 0
A131: =U126 -> 0 | B131: Bold Inferno Ruby (40 Str) | C131: =IF(ISNONTEXT($U126),0,VLOOKUP($B131,ItemList,HLOOKUP(C$22,StatLoC,2,FALSE),FALSE)) -> 0 | D131: 0 | E131: 0 | F131: 0 | G131: 0 | H131: 0 | I131: 0 | J131: 0 | K131: 0 | L131: 0 | M131: 0 | N131: 0 | O131: 0 | P131: 0 | Q131: 0 | R131: 0 | S131: =IF(ISNONTEXT($U126),0,VLOOKUP($B131,ItemList,HLOOKUP(S$22,StatLoC,2,FALSE),FALSE)) -> 0 | T131: =IF(ISNONTEXT($U126),0,VLOOKUP($B131,ItemList,HLOOKUP(T$22,StatLoC,2,FALSE),FALSE)) -> 0 | U131: =IF(ISNONTEXT($U126),0,VLOOKUP($B131,ItemList,HLOOKUP(U$22,StatLoC,2,FALSE),FALSE)) -> 0 | V131: =IF(ISNONTEXT($U126),0,VLOOKUP($B131,ItemList,HLOOKUP(V$22,StatLoC,2,FALSE),FALSE)) -> 0 | W131: =IF(ISNONTEXT(U126),"",IF(OR(U126=S131,U126=T131,U126=U131),"","Fail")) ->  | Y131: =IF(OR(S131="r",T131="r",U131="r"),1,0) -> 0 | Z131: =IF(OR(S131="y",T131="y",U131="y"),1,0) -> 0 | AA131: =IF(OR(S131="b",T131="b",U131="b"),1,0) -> 0
A132: =IF(AND(ISNONTEXT(A131),ISNONTEXT(A130),ISNONTEXT(A129)),"","bo") -> bo | B132: Bonus: | C132: =IF($W132=TRUE,IF(C$22=$W126,$X126,0),0) -> 0 | D132: 0 | E132: 10 | F132: 0 | G132: 0 | H132: 0 | I132: 0 | J132: 0 | K132: 0 | L132: 0 | M132: 0 | N132: 0 | O132: 0 | P132: 0 | Q132: 0 | R132: 0 | W132: =IF(OR(W129="Fail",W130="Fail",W131="Fail"),FALSE,TRUE) -> TRUE
C133: Stam | D133: Int | E133: Str | F133: AP | G133: Agi | H133: Hit | I133: Crit | J133: Haste | K133: Mastery | L133: WE | M133: SpD | N133: SpH | O133: SpC | P133: Mp5 | Q133: Health | R133: Mana | S133: G1 | T133: G2 | U133: G3 | V133: G4 | W133: Bonus | X133: Amount
B134: Rating Totals | C134: =SUM(C23:C132) -> 5949 | D134: =SUM(D23:D132) -> 20 | E134: 5291.25 | F134: 661.7338091 | G134: 20 | H134: 961 | I134: 1014 | J134: 1766 | K134: 1481 | L134: 422 | M134: 0 | N134: 0 | O134: 0 | P134: 0 | Q134: 59490 | R134: 300
B135: Goals | H135: =ROUNDUP(((8 * H223) - IF(Race="Base Information (Draenei)",H223,0)),0) -> 961 | L135: =ROUNDUP((781 - (L17 * L223) - IF(GlyphOfSoT="On",(10 * L223),0)),0) -> 391
B137: Talents | C137: Stam | D137: Int | E137: Str | F137: AP | G137: Agi | H137: Hit | I137: Crit | J137: Haste | K137: Mastery | L137: WE | M137: SpD | N137: SpH | O137: SpC | P137: Mp5 | Q137: Health | R137: Mana | S137: =SUM(A142:A145) -> 7 | T137: =SUM(A146:A148) -> 2 | U137: =SUM(A149:A168) -> 32
B138: Hand of Light
B139: Judgements of the Wise
B140: Sheath of Light | M140: =0.3 * (F17 + F18 + F19 + F220) -> 4664.91467 | N140: 0.08
B141: Two-Handed Weapon Specialization
A142: 2 | B142: Arbiter of Light | T142: Spec
A143: 0 | B143: Protector of the Innocent | T143: =CONCATENATE(S137,"/",T137,"/",U137) -> 7/2/32
A144: 3 | B144: Judgements of the Pure | J144: =3%*A144 -> 0.09
A145: 2 | B145: Blazing Light
A146: 0 | B146: Divinity
A147: 2 | B147: Seals of the Pure
A148: 0 | B148: Eternal Glory
A149: 2 | B149: Eye for an Eye
A150: 3 | B150: Crusade
A151: 2 | B151: Improved Judgement
A152: 0 | B152: Eternal Glory
A153: 3 | B153: Rule of Law
A154: 2 | B154: Pursuit of Justice
A155: 1 | B155: Communion
A156: 3 | B156: Art of War
A157: 2 | B157: Long Arm of the Law
A158: 1 | B158: Divine Storm
A159: 1 | B159: Sacred Shield
A160: 1 | B160: Sanctity of Battle
A161: 1 | B161: Seals of Command
A162: 3 | B162: Sanctified Wrath
A163: 0 | B163: Selfless Healer
A164: 1 | B164: Repentance
A165: 2 | B165: Divine Purpose
A166: 3 | B166: Inquiry of Faith
A167: 0 | B167: Acts of Sacrifice
A168: 1 | B168: Zealotry
B170: Glyphs | C170: Stam | D170: Int | E170: Str | F170: AP | G170: Agi | H170: Hit | I170: Crit | J170: Haste | K170: Mastery | L170: WE | M170: SpD | N170: SpH | O170: SpC | P170: Mp5 | Q170: Health | R170: Mana
A171: Off | B171: Glyph of Crusader Strike (Prime) | S171: =IF(A171="On",1,0) -> 0
A172: On | B172: Glyph of Exorcism (Prime) | S172: 1
A173: Off | B173: Glyph of Judgement (Prime) | S173: 0
A174: On | B174: Glyph of Seal of Truth (Prime) | L174: =IF(A174="On",10,0) -> 10 | S174: 1
A175: On | B175: Glyph of Templar's Verdict (Prime) | S175: 1
A176: On | B176: Glyph of the Ascetic Crusader (Major) | S176: 1
A177: Off | B177: Glyph of Consecration (Major) | S177: =IF(A177="On",1,0) -> 0
A178: Off | B178: Glyph of Divine Plea (Major) | S178: 0
A179: Off | B179: Glyph of Divinity (Major) | S179: =IF(A179="On",1,0) -> 0
A180: On | B180: Glyph of Hammer of Wrath (Major) | S180: =IF(A180="On",1,0) -> 1
A181: Off | B181: Glyph of Holy Wrath (Major) | S181: =IF(A181="On",1,0) -> 0
A182: On | B182: Glyph of Rebuke (Major) | S182: 1
B184: Buffs / Debuffs | C184: Stam | D184: Int | E184: Str | F184: AP | G184: Agi | H184: Hit | I184: Crit | J184: Haste | K184: Mastery | L184: WE | M184: SpD | N184: SpH | O184: SpC | P184: Mp5 | Q184: Health | R184: Mana
B185: Plate Specialization: +5% Str | E185: =5% * SUM(E17,E18,E138:E184,E186,E188:E215,E220) -> 300.2125 | F185: =E185*2 -> 600.425
A186: On | B186: Attack Power: +10% | C186: 0 | D186: 0 | E186: 0 | F186: =(IF(A186="On",10% * SUM(F17,F18,F138:F185,F187:F215,F220),0)) -> 1413.610506 | G186: 0 | H186: 0 | I186: 0 | K186: 0 | L186: 0 | M186: 0 | N186: 0 | O186: 0 | P186: 0 | Q186: =C186*10 -> 0 | R186: =(D186*15) -> 0 | S186: DK/Hunter/Paladin/Enh Shaman
A187: On | B187: Stats: +5% | C187: =(IF(A187="On",5% * (SUM(C17,C18,C138:C186,C188:C215,C220)+IF(OR(Profession1="Mining",Profession2="Mining"),50,0)),0)) -> 334.45 | D187: =(IF(A187="On",5% * SUM(D17,D18,D138:D186,D188:D215,D220),0)) -> 6.3 | E187: =(IF(A187="On",5% * SUM(E17,E18,E138:E185,E186,E188:E215,E220),0)) -> 315.223125 | F187: =E187*2 -> 630.44625 | G187: =(IF(A187="On",5% * SUM(G17,G18,G138:G186,G188:G215,G220),0)) -> 33.3 | H187: 0 | I187: =(G187*G223) -> 0.163836 | K187: 0 | L187: 0 | N187: 0 | O187: =D187*D223 -> 0.0126 | P187: 0 | Q187: =C187*10 -> 3344.5 | R187: =(D187*15) -> 94.5 | S187: Paladin
A188: On | B188: Mana Regen | P188: =(IF(A188="On",828,0)) -> 828 | S188: Paladin/Shaman/Warlock(Felhunter)
A189: On | B189: Damage: +3% | S189: Hunter/Mage/Paladin
A190: On | B190: Crit: +5% | C190: 0 | D190: 0 | E190: 0 | F190: 0 | G190: 0 | H190: 0 | I190: =(IF(A190="On",5,0)) -> 5 | K190: 0 | L190: 0 | M190: 0 | N190: 0 | O190: =(IF(A190="On",5,0)) -> 5 | P190: 0 | Q190: =C190*10 -> 0 | R190: =(D190*15) -> 0 | S190: Feral Druid/Subtlety Rogue/Elemental Shaman/Warrior
A191: On | B191: Melee Attack Speed: +10% | C191: 0 | D191: 0 | E191: 0 | F191: 0 | G191: 0 | H191: 0 | I191: 0 | J191: =IF(A191="On",10%,0) -> 0.1 | K191: 0 | L191: 0 | M191: 0 | N191: 0 | O191: 0 | P191: 0 | Q191: =C191*10 -> 0 | R191: 0 | S191: Hunter/Enh Shaman/Frost DK
A192: On | B192: Agility and Strength | C192: 0 | D192: 0 | E192: =IF(A192="On",549,0) -> 549 | F192: =(2*E192) -> 1098 | G192: =IF(A192="On",549,0) -> 549 | H192: 0 | I192: =(G192*G223) -> 2.70108 | K192: 0 | M192: 0 | N192: 0 | O192: 0 | P192: 0 | Q192: =C192*10 -> 0 | R192: 0 | S192: DK/Shaman/Warrior
A193: On | B193: Spell Haste: +5% | J193: =IF(A193="On",5%,0) -> 0.05 | S193: Balance Druid/Shadow Priest/Shaman
A194: 10 | B194: =CONCATENATE("Spell Power: +", IF(A194="Off","",A194),"%") -> Spell Power: +10% | M194: =(IF(A194="Off",0,A194% * SUM(M17,M18,M138:M193,M195:M215,M220))) -> 478.091467 | O194: 0 | R194: 0 | S194: Shaman, Mage (Ele Shaman, Demo Warlock)
A195: On | B195: Mana Pool | O195: =D195*D223 -> 0 | R195: =IF(A195="On",5401,0) -> 5401 | S195: Mage/Warlock(Felhunter)
A196: On | B196: Tricks of the Trade | S196: Rogue
A197: On | B197: Stamina | C197: =IF(A197="On",584,0) -> 584 | Q197: =10*C197 -> 5840 | S197: Priest/Warlock(Imp)/Warrior
A198: On | B198: Physical Damage Debuff: +4% | L198: 0 | Q198: =C198*10 -> 0 | R198: =(D198*15) -> 0 | S198: Warrior/Rogue
A199: On | B199: Armor Debuff: -12% | R199: =(D199*15) -> 0 | S199: Warrior/Rogue
A200: On | B200: Spell Damage Debuff: +8% | R200: =(D200*15) -> 0 | S200: Unholy DK/Balance Druid/Warlock
A201: On | B201: Heroism | J201: =IF(AND(A201="On",Estimations="On"),(30% * (40 / Length)),0) -> 0.02666666667 | S201: Shaman/Mage
A202: Off | B202: Spell Crit Debuff: +5% | O202: =(IF(A202="On",5,0)) -> 0 | S202: Fire Mage/Warlock
A203: 0 | B203: Icecrown Buff (read Note) | Q203: =SUM(Q17:Q19) * ICCBuff -> 0
B205: Consumables | C205: Stam | D205: Int | E205: Str | F205: AP | G205: Agi | H205: Hit | I205: Crit | J205: Haste | K205: Mastery | L205: WE | M205: SpD | N205: SpH | O205: SpC | P205: Mp5 | Q205: Health | R205: Mana
A206: Off | B206: Dark Rune/Demonic Rune | R206: =IF(A206="Off",0,1200) -> 0
A207: Off | B207: Mythical Mana Potion | R207: =IF(A207="Off",0,10000) -> 0
... 41 more rows

Sheet Item Calc
B1: ="Individual Item Upgrade Analysis - Based on " & SealSelection & " Rotation" -> Individual Item Upgrade Analysis - Based on SoT Rotation | L1: Options Panel
B3: All
L6: Misc Options:
L7: Only Show Upgrades | M7: Yes
L8: Only Show Name & Dps Diff | M8: Yes
L9: Do not show items under iLevel | M9: 365
L11: Show Loot of Rarity:
L12: Epic | M12: Yes
L13: Rare | M13: No
L15: Show Loot From:
L16: Pre-Raid Dungeons | M16: No
L17: Quest | M17: No
L18: World Boss | M18: No
L19: World Drop | M19: No
L20: Vendor / Badge | M20: Yes
L21: Craftable | M21: Yes
L22: PvP | M22: Yes
L23: User Added | M23: No
L24: The Bastion of Twilight | M24: No
L25: Blackwing Descent | M25: No
L26: Throne of the Four Winds | M26: No
L27: Firelands | M27: Yes
L31: Accuracy is to within approximately 5 DPS.

Sheet Reforge Calc (hidden)
A1: Secondary Stat Priority | C1: Priority | H1: Priority | Q1: Priority
A2: Mastery > Haste > Crit | C2: =IF(OR(A2="Crit > Haste > Mastery",A2="Crit > Mastery > Haste"),1,IF(OR(A2="Mastery > Crit > Haste",A2="Haste > Crit > Mastery"),2,3)) -> 3 | D2: =IF(OR(A2="Haste > Mastery > Crit",A2="Haste > Crit > Mastery"),1,IF(OR(A2="Crit > Haste > Mastery",A2="Mastery > Haste > Crit"),2,3)) -> 2 | E2: =IF(OR(A2="Mastery > Haste > Crit",A2="Mastery > Crit > Haste"),1,IF(OR(A2="Crit > Mastery > Haste",A2="Haste > Mastery > Crit"),2,3)) -> 1 | H2: =IF(OR(A2="Crit > Haste > Mastery",A2="Crit > Mastery > Haste"),1,IF(OR(A2="Mastery > Crit > Haste",A2="Haste > Crit > Mastery"),2,3)) -> 3 | I2: =IF(OR(A2="Haste > Mastery > Crit",A2="Haste > Crit > Mastery"),1,IF(OR(A2="Crit > Haste > Mastery",A2="Mastery > Haste > Crit"),2,3)) -> 2 | J2: =IF(OR(A2="Mastery > Haste > Crit",A2="Mastery > Crit > Haste"),1,IF(OR(A2="Crit > Mastery > Haste",A2="Haste > Mastery > Crit"),2,3)) -> 1 | L2: Hit | Q2: 3 | R2: 2 | S2: 1
A3: Gear | B3: Hit | C3: Crit | D3: Haste | E3: Mastery | F3: WE | G3: Hit | H3: Crit | I3: Haste | J3: Mastery | K3: WE | L3: Unchanged | M3: Min | N3: Max | P3: Reforge for Hitcap | Q3: =HLOOKUP(3,$H$2:$J$3,2,FALSE) -> Crit | R3: =HLOOKUP(2,$H$2:$J$3,2,FALSE) -> Haste | S3: =HLOOKUP(1,$H$2:$J$3,2,FALSE) -> Mastery | T3: WE | U3: Biggest Loser
A4: =MyHead -> Reinforced Sapphirium Helmet | B4: =IF(OR($A4="None",ISBLANK($A4)),0,VLOOKUP($A4,ItemList,HLOOKUP(B$3,StatLoC,2,FALSE),FALSE)) -> 0 | C4: 0 | D4: 228 | E4: 0 | F4: 168 | G4: =ROUNDUP((B4*0.6),0) -> 0 | H4: =ROUNDDOWN((C4*0.4),0) -> 0 | I4: =ROUNDDOWN((D4*0.4),0) -> 91 | J4: 0 | K4: 67 | L4: =IF(B4=0,0,N4) -> 0 | M4: =IF(G4>0,G4,LARGE(H4:K4,2)) -> 67 | N4: =IF(G4>0,B4,MAX(H4:K4)) -> 91 | O4: 67 | P4: =IF(O4=L4,"None",IF(O4=G4,"Reforge: Hit to ",CONCATENATE("Reforge: ",U4," to Hit"))) -> Reforge: Expertise to Hit | Q4: =IF(HLOOKUP(3,$H$2:$J$19,3,FALSE)=$O4,$Q$3,FALSE) -> FALSE | R4: =IF(HLOOKUP(2,$H$2:$J$19,3,FALSE)=$O4,$R$3,FALSE) -> FALSE | S4: =IF(HLOOKUP(1,$H$2:$J$19,3,FALSE)=$O4,$S$3,FALSE) -> FALSE | T4: =IF(K4=$O4,"Expertise",FALSE) -> Expertise | U4: =IF(AND(Q4=FALSE,R4=FALSE,S4=FALSE),T4,IF(AND(Q4=FALSE,R4=FALSE),S4,IF(Q4=FALSE,R4,Q4))) -> Expertise
A5: =MyShoulder -> Reinforced Sapphirium Pauldrons | B5: 149 | C5: 0 | D5: 169 | E5: 0 | F5: 0 | G5: =ROUNDUP((B5*0.6),0) -> 90 | H5: =ROUNDDOWN((C5*0.4),0) -> 0 | I5: =ROUNDDOWN((D5*0.4),0) -> 67 | J5: =ROUNDDOWN((E5*0.4),0) -> 0 | K5: =ROUNDDOWN((F5*0.4),0) -> 0 | L5: =IF(B5=0,0,N5) -> 149 | M5: 90 | N5: 149 | O5: 90 | P5: =IF(O5=L5,"None",IF(O5=G5,"Reforge: Hit to ",CONCATENATE("Reforge: ",U5," to Hit"))) -> Reforge: Hit to | Q5: =IF(HLOOKUP(3,$H$2:$J$19,4,FALSE)=$O5,$Q$3,FALSE) -> FALSE | R5: =IF(HLOOKUP(2,$H$2:$J$19,4,FALSE)=$O5,$R$3,FALSE) -> FALSE | S5: =IF(HLOOKUP(1,$H$2:$J$19,4,FALSE)=$O5,$S$3,FALSE) -> FALSE | T5: =IF(K5=$O5,"Expertise",FALSE) -> FALSE | U5: =IF(AND(Q5=FALSE,R5=FALSE,S5=FALSE),T5,IF(AND(Q5=FALSE,R5=FALSE),S5,IF(Q5=FALSE,R5,Q5))) -> FALSE
A6: =MyChest -> Immolation Battleplate | B6: 0 | C6: 0 | D6: 235 | E6: 0 | F6: 269 | G6: 0 | H6: 0 | I6: 94 | J6: 0 | K6: 107 | L6: 0 | M6: 94 | N6: 107 | O6: 94 | P6: Reforge: Haste to Hit | Q6: =IF(HLOOKUP(3,$H$2:$J$19,5,FALSE)=$O6,$Q$3,FALSE) -> FALSE | R6: =IF(HLOOKUP(2,$H$2:$J$19,5,FALSE)=$O6,$R$3,FALSE) -> Haste | S6: =IF(HLOOKUP(1,$H$2:$J$19,5,FALSE)=$O6,$S$3,FALSE) -> FALSE | T6: FALSE | U6: Haste
A7: =MyLegs -> Immolation Legplates | B7: 0 | C7: 227 | D7: 0 | E7: 274 | F7: 0 | G7: 0 | H7: 90 | I7: 0 | J7: 109 | K7: 0 | L7: 0 | M7: 90 | N7: 109 | O7: 90 | P7: Reforge: Crit to Hit | Q7: =IF(HLOOKUP(3,$H$2:$J$19,6,FALSE)=$O7,$Q$3,FALSE) -> Crit | R7: =IF(HLOOKUP(2,$H$2:$J$19,6,FALSE)=$O7,$R$3,FALSE) -> FALSE | S7: =IF(HLOOKUP(1,$H$2:$J$19,6,FALSE)=$O7,$S$3,FALSE) -> FALSE | T7: FALSE | U7: Crit
A8: =MyGloves -> Fireskin Gauntlets | B8: 211 | C8: 0 | D8: 0 | E8: 167 | F8: 0 | G8: 127 | H8: 0 | I8: 0 | J8: 66 | K8: 0 | L8: 211 | M8: 127 | N8: 211 | O8: 127 | P8: Reforge: Hit to | Q8: =IF(HLOOKUP(3,$H$2:$J$19,7,FALSE)=$O8,$Q$3,FALSE) -> FALSE | R8: =IF(HLOOKUP(2,$H$2:$J$19,7,FALSE)=$O8,$R$3,FALSE) -> FALSE | S8: =IF(HLOOKUP(1,$H$2:$J$19,7,FALSE)=$O8,$S$3,FALSE) -> FALSE | T8: FALSE | U8: FALSE
A9: =MyFeet -> Arachnaflame Treads | B9: 0 | C9: 202 | D9: 182 | E9: 0 | F9: 0 | G9: 0 | H9: 80 | I9: 72 | J9: 0 | K9: 0 | L9: 0 | M9: 72 | N9: 80 | O9: 72 | P9: Reforge: Haste to Hit | Q9: =IF(HLOOKUP(3,$H$2:$J$19,8,FALSE)=$O9,$Q$3,FALSE) -> FALSE | R9: =IF(HLOOKUP(2,$H$2:$J$19,8,FALSE)=$O9,$R$3,FALSE) -> Haste | S9: =IF(HLOOKUP(1,$H$2:$J$19,8,FALSE)=$O9,$S$3,FALSE) -> FALSE | T9: FALSE | U9: Haste
A10: =MyBelt -> Cinch of the Flaming Ember | B10: 133 | C10: 230 | D10: 0 | E10: 0 | F10: 0 | G10: 80 | H10: 92 | I10: 0 | J10: 0 | K10: 0 | L10: 133 | M10: 80 | N10: 133 | O10: 80 | P10: Reforge: Hit to | Q10: =IF(HLOOKUP(3,$H$2:$J$19,9,FALSE)=$O10,$Q$3,FALSE) -> FALSE | R10: =IF(HLOOKUP(2,$H$2:$J$19,9,FALSE)=$O10,$R$3,FALSE) -> FALSE | S10: =IF(HLOOKUP(1,$H$2:$J$19,9,FALSE)=$O10,$S$3,FALSE) -> FALSE | T10: FALSE | U10: FALSE
A11: =MyBracer -> Earthcrack Bracers | B11: 0 | C11: 158 | D11: 140 | E11: 0 | F11: 0 | G11: 0 | H11: 63 | I11: 56 | J11: 0 | K11: 0 | L11: 0 | M11: 56 | N11: 63 | O11: 56 | P11: Reforge: Haste to Hit | Q11: =IF(HLOOKUP(3,$H$2:$J$19,10,FALSE)=$O11,$Q$3,FALSE) -> FALSE | R11: =IF(HLOOKUP(2,$H$2:$J$19,10,FALSE)=$O11,$R$3,FALSE) -> Haste | S11: =IF(HLOOKUP(1,$H$2:$J$19,10,FALSE)=$O11,$S$3,FALSE) -> FALSE | T11: FALSE | U11: Haste
A12: =MyBack -> Bladed Flamewrath Cover | B12: 0 | C12: 0 | D12: 173 | E12: 0 | F12: 115 | G12: 0 | H12: 0 | I12: 69 | J12: 0 | K12: 46 | L12: 0 | M12: 46 | N12: 69 | O12: 69 | P12: Reforge: Haste to Hit | Q12: =IF(HLOOKUP(3,$H$2:$J$19,11,FALSE)=$O12,$Q$3,FALSE) -> FALSE | R12: =IF(HLOOKUP(2,$H$2:$J$19,11,FALSE)=$O12,$R$3,FALSE) -> Haste | S12: =IF(HLOOKUP(1,$H$2:$J$19,11,FALSE)=$O12,$S$3,FALSE) -> FALSE | T12: FALSE | U12: Haste
A13: =MyNeck -> Gift of Nadun | B13: 0 | C13: 127 | D13: 127 | E13: 0 | F13: 0 | G13: 0 | H13: 50 | I13: 50 | J13: 0 | K13: 0 | L13: 0 | M13: 50 | N13: 50 | O13: 50 | P13: Reforge: Crit to Hit | Q13: =IF(HLOOKUP(3,$H$2:$J$19,12,FALSE)=$O13,$Q$3,FALSE) -> Crit | R13: =IF(HLOOKUP(2,$H$2:$J$19,12,FALSE)=$O13,$R$3,FALSE) -> Haste | S13: =IF(HLOOKUP(1,$H$2:$J$19,12,FALSE)=$O13,$S$3,FALSE) -> FALSE | T13: FALSE | U13: Crit
A14: =MyRing1 -> Serrated Brimstone Signet | B14: =IF(OR($A14="None",ISBLANK($A14)),0,VLOOKUP($A14,ItemList,HLOOKUP(B$3,StatLoC,2,FALSE),FALSE)) -> 0 | C14: 156 | D14: 144 | E14: 0 | F14: 0 | G14: 0 | H14: 62 | I14: 57 | J14: 0 | K14: 0 | L14: 0 | M14: 57 | N14: 62 | O14: 62 | P14: Reforge: Crit to Hit | Q14: =IF(HLOOKUP(3,$H$2:$J$19,13,FALSE)=$O14,$Q$3,FALSE) -> Crit | R14: =IF(HLOOKUP(2,$H$2:$J$19,13,FALSE)=$O14,$R$3,FALSE) -> FALSE | S14: =IF(HLOOKUP(1,$H$2:$J$19,13,FALSE)=$O14,$S$3,FALSE) -> FALSE | T14: FALSE | U14: Crit
A15: =MyRing2 -> Alysrazor's Band | B15: 0 | C15: 0 | D15: 107 | E15: 0 | F15: 150 | G15: 0 | H15: 0 | I15: 42 | J15: 0 | K15: 60 | L15: 0 | M15: 42 | N15: 60 | O15: 0 | P15: None | Q15: =IF(HLOOKUP(3,$H$2:$J$19,14,FALSE)=$O15,$Q$3,FALSE) -> Crit | R15: =IF(HLOOKUP(2,$H$2:$J$19,14,FALSE)=$O15,$R$3,FALSE) -> FALSE | S15: =IF(HLOOKUP(1,$H$2:$J$19,14,FALSE)=$O15,$S$3,FALSE) -> Mastery | T15: FALSE | U15: Crit
A16: =MyTrinket1 -> Essence of the Eternal Flame | B16: 0 | C16: 0 | D16: 0 | E16: 383 | F16: 0 | G16: 0 | H16: 0 | I16: 0 | J16: 153 | K16: 0 | L16: 0 | M16: 0 | N16: 153 | O16: 0 | P16: None | Q16: =IF(HLOOKUP(3,$H$2:$J$19,15,FALSE)=$O16,$Q$3,FALSE) -> Crit | R16: =IF(HLOOKUP(2,$H$2:$J$19,15,FALSE)=$O16,$R$3,FALSE) -> Haste | S16: =IF(HLOOKUP(1,$H$2:$J$19,15,FALSE)=$O16,$S$3,FALSE) -> FALSE | T16: Expertise | U16: Crit
A17: =MyTrinket2 -> Darkmoon Card: Hurricane | B17: 0 | C17: 0 | D17: 0 | E17: 0 | F17: 0 | G17: 0 | H17: 0 | I17: 0 | J17: 0 | K17: 0 | L17: 0 | M17: 0 | N17: 0 | O17: 0 | P17: None | Q17: =IF(HLOOKUP(3,$H$2:$J$19,16,FALSE)=$O17,$Q$3,FALSE) -> Crit | R17: =IF(HLOOKUP(2,$H$2:$J$19,16,FALSE)=$O17,$R$3,FALSE) -> Haste | S17: =IF(HLOOKUP(1,$H$2:$J$19,16,FALSE)=$O17,$S$3,FALSE) -> Mastery | T17: Expertise | U17: Crit
A18: =MyLibram -> Relic of the Elemental Lords | B18: 0 | C18: 83 | D18: 86 | E18: 0 | F18: 0 | G18: 0 | H18: 33 | I18: 34 | J18: 0 | K18: 0 | L18: 0 | M18: 33 | N18: 34 | O18: 34 | P18: Reforge: Haste to Hit | Q18: =IF(HLOOKUP(3,$H$2:$J$19,17,FALSE)=$O18,$Q$3,FALSE) -> FALSE | R18: =IF(HLOOKUP(2,$H$2:$J$19,17,FALSE)=$O18,$R$3,FALSE) -> Haste | S18: =IF(HLOOKUP(1,$H$2:$J$19,17,FALSE)=$O18,$S$3,FALSE) -> FALSE | T18: FALSE | U18: Haste
A19: =MyWeapon -> Zoid's Firelit Greatsword | B19: 0 | C19: 284 | D19: 232 | E19: 0 | F19: 0 | G19: 0 | H19: 113 | I19: 92 | J19: 0 | K19: 0 | L19: 0 | M19: 92 | N19: 113 | O19: 0 | P19: None | Q19: =IF(HLOOKUP(3,$H$2:$J$19,18,FALSE)=$O19,$Q$3,FALSE) -> FALSE | R19: =IF(HLOOKUP(2,$H$2:$J$19,18,FALSE)=$O19,$R$3,FALSE) -> FALSE | S19: =IF(HLOOKUP(1,$H$2:$J$19,18,FALSE)=$O19,$S$3,FALSE) -> Mastery | T19: Expertise | U19: Mastery
H21: =IF(OR(A2="Crit > Haste > Mastery",A2="Crit > Mastery > Haste"),1,IF(OR(A2="Mastery > Crit > Haste",A2="Haste > Crit > Mastery"),2,3)) -> 3 | I21: =IF(OR(A2="Haste > Mastery > Crit",A2="Haste > Crit > Mastery"),1,IF(OR(A2="Crit > Haste > Mastery",A2="Mastery > Haste > Crit"),2,3)) -> 2 | J21: =IF(OR(A2="Mastery > Haste > Crit",A2="Mastery > Crit > Haste"),1,IF(OR(A2="Crit > Mastery > Haste",A2="Haste > Mastery > Crit"),2,3)) -> 1 | L21: Expertise | R21: 3 | S21: 2 | T21: 1
G22: Hit | H22: Crit | I22: Haste | J22: Mastery | K22: WE | L22: Unchanged | M22: Min | N22: Max | P22: Reforge for Expcap | Q22: Hit | R22: =HLOOKUP(3,$C$2:$E$3,2,FALSE) -> Crit | S22: =HLOOKUP(2,$C$2:$E$3,2,FALSE) -> Haste | T22: =HLOOKUP(1,$C$2:$E$3,2,FALSE) -> Mastery | U22: Biggest Loser
G23: =ROUNDDOWN((B4*0.4),0) -> 0 | H23: =ROUNDDOWN((C4*0.4),0) -> 0 | I23: =ROUNDDOWN((D4*0.4),0) -> 91 | J23: =ROUNDDOWN((E4*0.4),0) -> 0 | K23: =ROUNDUP((F4*0.6),0) -> 101 | L23: =IF(P4="Reforge: Expertise to Hit",K23,F4) -> 101 | M23: =IF(P4="Reforge: Hit to ",G23,IF(P4="None",IF(K23>0,K23,LARGE(H23:J23,2)),IF(P4="Reforge: Expertise to Hit",K23,IF(RIGHT(P4,3)="Hit",L23,0)))) -> 101 | N23: =IF(P4="Reforge: Hit to ",G23,IF(P4="None",IF(K23>0,F4,MAX(H23:J23)),IF(P4="Reforge: Expertise to Hit",K23,IF(RIGHT(P4,3)="Hit",L23,0)))) -> 101 | O23: 101 | P23: =IF(OR(RIGHT(P4,3)="Hit",O23=F4),P4,IF(O23=K23,IF(K23=0,P4,"Reforge: Expertise to "),CONCATENATE("Reforge: ",U23," to Expertise"))) -> Reforge: Expertise to Hit | Q23: =IF(AND(O23>0,O23=G23),"Hit",FALSE) -> FALSE | R23: =IF(HLOOKUP(3,$H$21:$J$38,3,FALSE)>0,$R$22,FALSE) -> FALSE | S23: =IF(HLOOKUP(2,$H$21:$J$38,3,FALSE)>0,$S$22,FALSE) -> Haste | T23: =IF(HLOOKUP(1,$H$21:$J$38,3,FALSE)>0,$T$22,FALSE) -> FALSE | U23: =IF(P4="Reforge: Hit to ","Hit",IF(AND(Q23=FALSE,R23=FALSE,S23=FALSE),T23,IF(AND(Q23=FALSE,R23=FALSE),S23,IF(Q23=FALSE,R23,Q23)))) -> Haste
G24: 59 | H24: 0 | I24: 67 | J24: 0 | K24: 0 | L24: =IF(P5="Reforge: Expertise to Hit",K24,F5) -> 0 | M24: 59 | N24: =IF(P5="Reforge: Hit to ",G24,IF(P5="None",IF(K24>0,F5,MAX(H24:J24)),IF(P5="Reforge: Expertise to Hit",K24,IF(RIGHT(P5,3)="Hit",L24,0)))) -> 59 | O24: 0 | P24: Reforge: Hit to | Q24: =IF(AND(O24>0,O24=G24),"Hit",FALSE) -> FALSE | R24: =IF(HLOOKUP(3,$H$21:$J$38,4,FALSE)>0,$R$22,FALSE) -> FALSE | S24: =IF(HLOOKUP(2,$H$21:$J$38,4,FALSE)>0,$S$22,FALSE) -> Haste | T24: =IF(HLOOKUP(1,$H$21:$J$38,4,FALSE)>0,$T$22,FALSE) -> FALSE | U24: =IF(P5="Reforge: Hit to ","Hit",IF(AND(Q24=FALSE,R24=FALSE,S24=FALSE),T24,IF(AND(Q24=FALSE,R24=FALSE),S24,IF(Q24=FALSE,R24,Q24)))) -> Hit
G25: 0 | H25: 0 | I25: 94 | J25: 0 | K25: 162 | L25: 269 | M25: 269 | N25: 269 | O25: 269 | P25: Reforge: Haste to Hit | Q25: =IF(AND(O25>0,O25=G25),"Hit",FALSE) -> FALSE | R25: =IF(HLOOKUP(3,$H$21:$J$38,5,FALSE)>0,$R$22,FALSE) -> FALSE | S25: =IF(HLOOKUP(2,$H$21:$J$38,5,FALSE)>0,$S$22,FALSE) -> Haste | T25: =IF(HLOOKUP(1,$H$21:$J$38,5,FALSE)>0,$T$22,FALSE) -> FALSE | U25: Haste
G26: 0 | H26: 90 | I26: 0 | J26: 109 | K26: 0 | L26: 0 | M26: 0 | N26: 0 | O26: 0 | P26: Reforge: Crit to Hit | Q26: FALSE | R26: =IF(HLOOKUP(3,$H$21:$J$38,6,FALSE)>0,$R$22,FALSE) -> Crit | S26: =IF(HLOOKUP(2,$H$21:$J$38,6,FALSE)>0,$S$22,FALSE) -> FALSE | T26: =IF(HLOOKUP(1,$H$21:$J$38,6,FALSE)>0,$T$22,FALSE) -> Mastery | U26: Crit
G27: 84 | H27: 0 | I27: 0 | J27: 66 | K27: 0 | L27: 0 | M27: 84 | N27: 84 | O27: 0 | P27: Reforge: Hit to | Q27: FALSE | R27: =IF(HLOOKUP(3,$H$21:$J$38,7,FALSE)>0,$R$22,FALSE) -> FALSE | S27: =IF(HLOOKUP(2,$H$21:$J$38,7,FALSE)>0,$S$22,FALSE) -> FALSE | T27: =IF(HLOOKUP(1,$H$21:$J$38,7,FALSE)>0,$T$22,FALSE) -> Mastery | U27: Hit
G28: 0 | H28: 80 | I28: 72 | J28: 0 | K28: 0 | L28: 0 | M28: 0 | N28: 0 | O28: 0 | P28: Reforge: Haste to Hit | Q28: FALSE | R28: =IF(HLOOKUP(3,$H$21:$J$38,8,FALSE)>0,$R$22,FALSE) -> Crit | S28: =IF(HLOOKUP(2,$H$21:$J$38,8,FALSE)>0,$S$22,FALSE) -> Haste | T28: =IF(HLOOKUP(1,$H$21:$J$38,8,FALSE)>0,$T$22,FALSE) -> FALSE | U28: Crit
G29: 53 | H29: 92 | I29: 0 | J29: 0 | K29: 0 | L29: 0 | M29: 53 | N29: 53 | O29: 0 | P29: Reforge: Hit to | Q29: FALSE | R29: =IF(HLOOKUP(3,$H$21:$J$38,9,FALSE)>0,$R$22,FALSE) -> Crit | S29: =IF(HLOOKUP(2,$H$21:$J$38,9,FALSE)>0,$S$22,FALSE) -> FALSE | T29: =IF(HLOOKUP(1,$H$21:$J$38,9,FALSE)>0,$T$22,FALSE) -> FALSE | U29: Hit
G30: 0 | H30: 63 | I30: 56 | J30: 0 | K30: 0 | L30: 0 | M30: 0 | N30: 0 | O30: 0 | P30: Reforge: Haste to Hit | Q30: FALSE | R30: =IF(HLOOKUP(3,$H$21:$J$38,10,FALSE)>0,$R$22,FALSE) -> Crit | S30: =IF(HLOOKUP(2,$H$21:$J$38,10,FALSE)>0,$S$22,FALSE) -> Haste | T30: =IF(HLOOKUP(1,$H$21:$J$38,10,FALSE)>0,$T$22,FALSE) -> FALSE | U30: Crit
G31: 0 | H31: 0 | I31: 69 | J31: 0 | K31: 69 | L31: 115 | M31: 115 | N31: 115 | O31: 115 | P31: Reforge: Haste to Hit | Q31: FALSE | R31: =IF(HLOOKUP(3,$H$21:$J$38,11,FALSE)>0,$R$22,FALSE) -> FALSE | S31: =IF(HLOOKUP(2,$H$21:$J$38,11,FALSE)>0,$S$22,FALSE) -> Haste | T31: =IF(HLOOKUP(1,$H$21:$J$38,11,FALSE)>0,$T$22,FALSE) -> FALSE | U31: Haste
G32: 0 | H32: 50 | I32: 50 | J32: 0 | K32: 0 | L32: 0 | M32: 0 | N32: 0 | O32: 0 | P32: Reforge: Crit to Hit | Q32: FALSE | R32: =IF(HLOOKUP(3,$H$21:$J$38,12,FALSE)>0,$R$22,FALSE) -> Crit | S32: =IF(HLOOKUP(2,$H$21:$J$38,12,FALSE)>0,$S$22,FALSE) -> Haste | T32: =IF(HLOOKUP(1,$H$21:$J$38,12,FALSE)>0,$T$22,FALSE) -> FALSE | U32: Crit
G33: 0 | H33: 62 | I33: 57 | J33: 0 | K33: 0 | L33: 0 | M33: 0 | N33: 0 | O33: 0 | P33: Reforge: Crit to Hit | Q33: FALSE | R33: =IF(HLOOKUP(3,$H$21:$J$38,13,FALSE)>0,$R$22,FALSE) -> Crit | S33: =IF(HLOOKUP(2,$H$21:$J$38,13,FALSE)>0,$S$22,FALSE) -> Haste | T33: =IF(HLOOKUP(1,$H$21:$J$38,13,FALSE)>0,$T$22,FALSE) -> FALSE | U33: Crit
G34: 0 | H34: 0 | I34: 42 | J34: 0 | K34: 90 | L34: 150 | M34: 90 | N34: 150 | O34: 90 | P34: Reforge: Expertise to | Q34: FALSE | R34: =IF(HLOOKUP(3,$H$21:$J$38,14,FALSE)>0,$R$22,FALSE) -> FALSE | S34: =IF(HLOOKUP(2,$H$21:$J$38,14,FALSE)>0,$S$22,FALSE) -> Haste | T34: =IF(HLOOKUP(1,$H$21:$J$38,14,FALSE)>0,$T$22,FALSE) -> FALSE | U34: Haste
G35: 0 | H35: 0 | I35: 0 | J35: 153 | K35: 0 | L35: 0 | M35: 0 | N35: 153 | O35: 0 | P35: None | Q35: FALSE | R35: =IF(HLOOKUP(3,$H$21:$J$38,15,FALSE)>0,$R$22,FALSE) -> FALSE | S35: =IF(HLOOKUP(2,$H$21:$J$38,15,FALSE)>0,$S$22,FALSE) -> FALSE | T35: =IF(HLOOKUP(1,$H$21:$J$38,15,FALSE)>0,$T$22,FALSE) -> Mastery | U35: Mastery
G36: 0 | H36: 0 | I36: 0 | J36: 0 | K36: 0 | L36: 0 | M36: 0 | N36: 0 | O36: 0 | P36: None | Q36: FALSE | R36: =IF(HLOOKUP(3,$H$21:$J$38,16,FALSE)>0,$R$22,FALSE) -> FALSE | S36: =IF(HLOOKUP(2,$H$21:$J$38,16,FALSE)>0,$S$22,FALSE) -> FALSE | T36: =IF(HLOOKUP(1,$H$21:$J$38,16,FALSE)>0,$T$22,FALSE) -> FALSE | U36: FALSE
G37: 0 | H37: 33 | I37: 34 | J37: 0 | K37: 0 | L37: 0 | M37: 0 | N37: 0 | O37: 0 | P37: =IF(OR(RIGHT(P18,3)="Hit",O37=F18),P18,IF(O37=K37,IF(K37=0,P18,"Reforge: Expertise to "),CONCATENATE("Reforge: ",U37," to Expertise"))) -> Reforge: Haste to Hit | Q37: FALSE | R37: =IF(HLOOKUP(3,$H$21:$J$38,17,FALSE)>0,$R$22,FALSE) -> Crit | S37: =IF(HLOOKUP(2,$H$21:$J$38,17,FALSE)>0,$S$22,FALSE) -> Haste | T37: =IF(HLOOKUP(1,$H$21:$J$38,17,FALSE)>0,$T$22,FALSE) -> FALSE | U37: Crit
G38: 0 | H38: 113 | I38: 92 | J38: 0 | K38: 0 | L38: 0 | M38: =IF(P19="Reforge: Hit to ",G38,IF(P19="None",IF(K38>0,K38,LARGE(H38:J38,2)),IF(P19="Reforge: Expertise to Hit",K38,IF(RIGHT(P19,3)="Hit",L38,0)))) -> 92 | N38: =IF(P19="Reforge: Hit to ",G38,IF(P19="None",IF(K38>0,F19,MAX(H38:J38)),IF(P19="Reforge: Expertise to Hit",K38,IF(RIGHT(P19,3)="Hit",L38,0)))) -> 113 | O38: 0 | P38: =IF(OR(RIGHT(P19,3)="Hit",O38=F19),P19,IF(O38=K38,IF(K38=0,P19,"Reforge: Expertise to "),CONCATENATE("Reforge: ",U38," to Expertise"))) -> None | Q38: =IF(AND(O38>0,O38=G38),"Hit",FALSE) -> FALSE | R38: =IF(HLOOKUP(3,$H$21:$J$38,18,FALSE)>0,$R$22,FALSE) -> Crit | S38: =IF(HLOOKUP(2,$H$21:$J$38,18,FALSE)>0,$S$22,FALSE) -> Haste | T38: =IF(HLOOKUP(1,$H$21:$J$38,18,FALSE)>0,$T$22,FALSE) -> FALSE | U38: Crit
R40: 1 | S40: 2 | T40: 3
P41: Complete "Hit/Exp to" | R41: =HLOOKUP(1,$C$2:$E$3,2,FALSE) -> Mastery | S41: =HLOOKUP(2,$C$2:$E$3,2,FALSE) -> Haste | T41: =HLOOKUP(3,$C$2:$E$3,2,FALSE) -> Crit | U41: Biggest Winner
P42: =IF(OR(P23="Reforge: Hit to ",P23="Reforge: Expertise to "),CONCATENATE(P23,U42),P23) -> Reforge: Expertise to Hit | R42: =IF(HLOOKUP(1,$H$21:$J$38,3,FALSE)>0,$R$41,FALSE) -> FALSE | S42: =IF(HLOOKUP(2,$H$21:$J$38,3,FALSE)>0,$S$41,FALSE) -> Haste | T42: =IF(HLOOKUP(3,$H$21:$J$38,3,FALSE)>0,$T$41,FALSE) -> FALSE | U42: =IF(R42=FALSE,$R$41,IF(S42=FALSE,$S$41,$T$41)) -> Mastery
P43: =IF(OR(P24="Reforge: Hit to ",P24="Reforge: Expertise to "),CONCATENATE(P24,U43),P24) -> Reforge: Hit to Mastery | R43: =IF(HLOOKUP(1,$H$21:$J$38,4,FALSE)>0,$R$41,FALSE) -> FALSE | S43: =IF(HLOOKUP(2,$H$21:$J$38,4,FALSE)>0,$S$41,FALSE) -> Haste | T43: =IF(HLOOKUP(3,$H$21:$J$38,4,FALSE)>0,$T$41,FALSE) -> FALSE | U43: =IF(R43=FALSE,$R$41,IF(S43=FALSE,$S$41,$T$41)) -> Mastery
P44: Reforge: Haste to Hit | R44: =IF(HLOOKUP(1,$H$21:$J$38,5,FALSE)>0,$R$41,FALSE) -> FALSE | S44: =IF(HLOOKUP(2,$H$21:$J$38,5,FALSE)>0,$S$41,FALSE) -> Haste | T44: =IF(HLOOKUP(3,$H$21:$J$38,5,FALSE)>0,$T$41,FALSE) -> FALSE | U44: Mastery
P45: Reforge: Crit to Hit | R45: =IF(HLOOKUP(1,$H$21:$J$38,6,FALSE)>0,$R$41,FALSE) -> Mastery | S45: =IF(HLOOKUP(2,$H$21:$J$38,6,FALSE)>0,$S$41,FALSE) -> FALSE | T45: =IF(HLOOKUP(3,$H$21:$J$38,6,FALSE)>0,$T$41,FALSE) -> Crit | U45: Haste
P46: Reforge: Hit to Haste | R46: =IF(HLOOKUP(1,$H$21:$J$38,7,FALSE)>0,$R$41,FALSE) -> Mastery | S46: =IF(HLOOKUP(2,$H$21:$J$38,7,FALSE)>0,$S$41,FALSE) -> FALSE | T46: =IF(HLOOKUP(3,$H$21:$J$38,7,FALSE)>0,$T$41,FALSE) -> FALSE | U46: Haste
P47: Reforge: Haste to Hit | R47: =IF(HLOOKUP(1,$H$21:$J$38,8,FALSE)>0,$R$41,FALSE) -> FALSE | S47: =IF(HLOOKUP(2,$H$21:$J$38,8,FALSE)>0,$S$41,FALSE) -> Haste | T47: =IF(HLOOKUP(3,$H$21:$J$38,8,FALSE)>0,$T$41,FALSE) -> Crit | U47: Mastery
P48: Reforge: Hit to Mastery | R48: =IF(HLOOKUP(1,$H$21:$J$38,9,FALSE)>0,$R$41,FALSE) -> FALSE | S48: =IF(HLOOKUP(2,$H$21:$J$38,9,FALSE)>0,$S$41,FALSE) -> FALSE | T48: =IF(HLOOKUP(3,$H$21:$J$38,9,FALSE)>0,$T$41,FALSE) -> Crit | U48: Mastery
P49: Reforge: Haste to Hit | R49: =IF(HLOOKUP(1,$H$21:$J$38,10,FALSE)>0,$R$41,FALSE) -> FALSE | S49: =IF(HLOOKUP(2,$H$21:$J$38,10,FALSE)>0,$S$41,FALSE) -> Haste | T49: =IF(HLOOKUP(3,$H$21:$J$38,10,FALSE)>0,$T$41,FALSE) -> Crit | U49: Mastery
P50: Reforge: Haste to Hit | R50: =IF(HLOOKUP(1,$H$21:$J$38,11,FALSE)>0,$R$41,FALSE) -> FALSE | S50: =IF(HLOOKUP(2,$H$21:$J$38,11,FALSE)>0,$S$41,FALSE) -> Haste | T50: =IF(HLOOKUP(3,$H$21:$J$38,11,FALSE)>0,$T$41,FALSE) -> FALSE | U50: Mastery
P51: Reforge: Crit to Hit | R51: =IF(HLOOKUP(1,$H$21:$J$38,12,FALSE)>0,$R$41,FALSE) -> FALSE | S51: =IF(HLOOKUP(2,$H$21:$J$38,12,FALSE)>0,$S$41,FALSE) -> Haste | T51: =IF(HLOOKUP(3,$H$21:$J$38,12,FALSE)>0,$T$41,FALSE) -> Crit | U51: Mastery
P52: Reforge: Crit to Hit | R52: =IF(HLOOKUP(1,$H$21:$J$38,13,FALSE)>0,$R$41,FALSE) -> FALSE | S52: =IF(HLOOKUP(2,$H$21:$J$38,13,FALSE)>0,$S$41,FALSE) -> Haste | T52: =IF(HLOOKUP(3,$H$21:$J$38,13,FALSE)>0,$T$41,FALSE) -> Crit | U52: Mastery
P53: Reforge: Expertise to Mastery | R53: =IF(HLOOKUP(1,$H$21:$J$38,14,FALSE)>0,$R$41,FALSE) -> FALSE | S53: =IF(HLOOKUP(2,$H$21:$J$38,14,FALSE)>0,$S$41,FALSE) -> Haste | T53: =IF(HLOOKUP(3,$H$21:$J$38,14,FALSE)>0,$T$41,FALSE) -> FALSE | U53: Mastery
P54: None | R54: =IF(HLOOKUP(1,$H$21:$J$38,15,FALSE)>0,$R$41,FALSE) -> Mastery | S54: =IF(HLOOKUP(2,$H$21:$J$38,15,FALSE)>0,$S$41,FALSE) -> FALSE | T54: =IF(HLOOKUP(3,$H$21:$J$38,15,FALSE)>0,$T$41,FALSE) -> FALSE | U54: Haste
P55: None | R55: =IF(HLOOKUP(1,$H$21:$J$38,16,FALSE)>0,$R$41,FALSE) -> FALSE | S55: =IF(HLOOKUP(2,$H$21:$J$38,16,FALSE)>0,$S$41,FALSE) -> FALSE | T55: =IF(HLOOKUP(3,$H$21:$J$38,16,FALSE)>0,$T$41,FALSE) -> FALSE | U55: Mastery
P56: Reforge: Haste to Hit | R56: =IF(HLOOKUP(1,$H$21:$J$38,17,FALSE)>0,$R$41,FALSE) -> FALSE | S56: =IF(HLOOKUP(2,$H$21:$J$38,17,FALSE)>0,$S$41,FALSE) -> Haste | T56: =IF(HLOOKUP(3,$H$21:$J$38,17,FALSE)>0,$T$41,FALSE) -> Crit | U56: Mastery
P57: None | R57: =IF(HLOOKUP(1,$H$21:$J$38,18,FALSE)>0,$R$41,FALSE) -> FALSE | S57: =IF(HLOOKUP(2,$H$21:$J$38,18,FALSE)>0,$S$41,FALSE) -> Haste | T57: =IF(HLOOKUP(3,$H$21:$J$38,18,FALSE)>0,$T$41,FALSE) -> Crit | U57: Mastery
R59: 3 | S59: 2 | T59: 1
P60: Auto Reforge Recommendation | R60: =HLOOKUP(3,$C$2:$E$3,2,FALSE) -> Crit | S60: =HLOOKUP(2,$C$2:$E$3,2,FALSE) -> Haste | T60: =HLOOKUP(1,$C$2:$E$3,2,FALSE) -> Mastery
P61: =IF(P42="None",U61,P42) -> Reforge: Expertise to Hit | R61: =IF(HLOOKUP(3,$H$21:$J$38,3,FALSE)>0,$R$22,FALSE) -> FALSE | S61: =IF(HLOOKUP(2,$H$21:$J$38,3,FALSE)>0,$S$22,FALSE) -> Haste | T61: =IF(HLOOKUP(1,$H$21:$J$38,3,FALSE)>0,$T$22,FALSE) -> FALSE | U61: =IF(AND(R61=$R$60,T61=FALSE),CONCATENATE("Reforge: ",$R$60, " to ",$T$60),IF(AND(R61=$R$60,S61=FALSE),CONCATENATE("Reforge: ",$R$60, " to ",$S$60),IF(AND(S61=$S$60,T61=FALSE),CONCATENATE("Reforge: ",$S$60, " to ",$T$60),"None"))) -> Reforge: Haste to Mastery
P62: =IF(P43="None",U62,P43) -> Reforge: Hit to Mastery | R62: =IF(HLOOKUP(3,$H$21:$J$38,4,FALSE)>0,$R$22,FALSE) -> FALSE | S62: =IF(HLOOKUP(2,$H$21:$J$38,4,FALSE)>0,$S$22,FALSE) -> Haste | T62: =IF(HLOOKUP(1,$H$21:$J$38,4,FALSE)>0,$T$22,FALSE) -> FALSE | U62: =IF(AND(R62=$R$60,T62=FALSE),CONCATENATE("Reforge: ",$R$60, " to ",$T$60),IF(AND(R62=$R$60,S62=FALSE),CONCATENATE("Reforge: ",$R$60, " to ",$S$60),IF(AND(S62=$S$60,T62=FALSE),CONCATENATE("Reforge: ",$S$60, " to ",$T$60),"None"))) -> Reforge: Haste to Mastery
P63: Reforge: Haste to Hit | R63: =IF(HLOOKUP(3,$H$21:$J$38,5,FALSE)>0,$R$22,FALSE) -> FALSE | S63: =IF(HLOOKUP(2,$H$21:$J$38,5,FALSE)>0,$S$22,FALSE) -> Haste | T63: =IF(HLOOKUP(1,$H$21:$J$38,5,FALSE)>0,$T$22,FALSE) -> FALSE | U63: Reforge: Haste to Mastery
P64: Reforge: Crit to Hit | R64: =IF(HLOOKUP(3,$H$21:$J$38,6,FALSE)>0,$R$22,FALSE) -> Crit | S64: =IF(HLOOKUP(2,$H$21:$J$38,6,FALSE)>0,$S$22,FALSE) -> FALSE | T64: =IF(HLOOKUP(1,$H$21:$J$38,6,FALSE)>0,$T$22,FALSE) -> Mastery | U64: Reforge: Crit to Haste
P65: Reforge: Hit to Haste | R65: =IF(HLOOKUP(3,$H$21:$J$38,7,FALSE)>0,$R$22,FALSE) -> FALSE | S65: =IF(HLOOKUP(2,$H$21:$J$38,7,FALSE)>0,$S$22,FALSE) -> FALSE | T65: =IF(HLOOKUP(1,$H$21:$J$38,7,FALSE)>0,$T$22,FALSE) -> Mastery | U65: None
P66: Reforge: Haste to Hit | R66: =IF(HLOOKUP(3,$H$21:$J$38,8,FALSE)>0,$R$22,FALSE) -> Crit | S66: =IF(HLOOKUP(2,$H$21:$J$38,8,FALSE)>0,$S$22,FALSE) -> Haste | T66: =IF(HLOOKUP(1,$H$21:$J$38,8,FALSE)>0,$T$22,FALSE) -> FALSE | U66: Reforge: Crit to Mastery
P67: Reforge: Hit to Mastery | R67: =IF(HLOOKUP(3,$H$21:$J$38,9,FALSE)>0,$R$22,FALSE) -> Crit | S67: =IF(HLOOKUP(2,$H$21:$J$38,9,FALSE)>0,$S$22,FALSE) -> FALSE | T67: =IF(HLOOKUP(1,$H$21:$J$38,9,FALSE)>0,$T$22,FALSE) -> FALSE | U67: Reforge: Crit to Mastery
P68: Reforge: Haste to Hit | R68: =IF(HLOOKUP(3,$H$21:$J$38,10,FALSE)>0,$R$22,FALSE) -> Crit | S68: =IF(HLOOKUP(2,$H$21:$J$38,10,FALSE)>0,$S$22,FALSE) -> Haste | T68: =IF(HLOOKUP(1,$H$21:$J$38,10,FALSE)>0,$T$22,FALSE) -> FALSE | U68: Reforge: Crit to Mastery
P69: Reforge: Haste to Hit | R69: =IF(HLOOKUP(3,$H$21:$J$38,11,FALSE)>0,$R$22,FALSE) -> FALSE | S69: =IF(HLOOKUP(2,$H$21:$J$38,11,FALSE)>0,$S$22,FALSE) -> Haste | T69: =IF(HLOOKUP(1,$H$21:$J$38,11,FALSE)>0,$T$22,FALSE) -> FALSE | U69: Reforge: Haste to Mastery
P70: Reforge: Crit to Hit | R70: =IF(HLOOKUP(3,$H$21:$J$38,12,FALSE)>0,$R$22,FALSE) -> Crit | S70: =IF(HLOOKUP(2,$H$21:$J$38,12,FALSE)>0,$S$22,FALSE) -> Haste | T70: =IF(HLOOKUP(1,$H$21:$J$38,12,FALSE)>0,$T$22,FALSE) -> FALSE | U70: Reforge: Crit to Mastery
P71: Reforge: Crit to Hit | R71: =IF(HLOOKUP(3,$H$21:$J$38,13,FALSE)>0,$R$22,FALSE) -> Crit | S71: =IF(HLOOKUP(2,$H$21:$J$38,13,FALSE)>0,$S$22,FALSE) -> Haste | T71: =IF(HLOOKUP(1,$H$21:$J$38,13,FALSE)>0,$T$22,FALSE) -> FALSE | U71: Reforge: Crit to Mastery
P72: Reforge: Expertise to Mastery | R72: =IF(HLOOKUP(3,$H$21:$J$38,14,FALSE)>0,$R$22,FALSE) -> FALSE | S72: =IF(HLOOKUP(2,$H$21:$J$38,14,FALSE)>0,$S$22,FALSE) -> Haste | T72: =IF(HLOOKUP(1,$H$21:$J$38,14,FALSE)>0,$T$22,FALSE) -> FALSE | U72: Reforge: Haste to Mastery
P73: None | R73: =IF(HLOOKUP(3,$H$21:$J$38,15,FALSE)>0,$R$22,FALSE) -> FALSE | S73: =IF(HLOOKUP(2,$H$21:$J$38,15,FALSE)>0,$S$22,FALSE) -> FALSE | T73: =IF(HLOOKUP(1,$H$21:$J$38,15,FALSE)>0,$T$22,FALSE) -> Mastery | U73: None
P74: None | R74: =IF(HLOOKUP(3,$H$21:$J$38,16,FALSE)>0,$R$22,FALSE) -> FALSE | S74: =IF(HLOOKUP(2,$H$21:$J$38,16,FALSE)>0,$S$22,FALSE) -> FALSE | T74: =IF(HLOOKUP(1,$H$21:$J$38,16,FALSE)>0,$T$22,FALSE) -> FALSE | U74: None
P75: Reforge: Haste to Hit | R75: =IF(HLOOKUP(3,$H$21:$J$38,17,FALSE)>0,$R$22,FALSE) -> Crit | S75: =IF(HLOOKUP(2,$H$21:$J$38,17,FALSE)>0,$S$22,FALSE) -> Haste | T75: =IF(HLOOKUP(1,$H$21:$J$38,17,FALSE)>0,$T$22,FALSE) -> FALSE | U75: Reforge: Crit to Mastery
P76: Reforge: Crit to Mastery | R76: =IF(HLOOKUP(3,$H$21:$J$38,18,FALSE)>0,$R$22,FALSE) -> Crit | S76: =IF(HLOOKUP(2,$H$21:$J$38,18,FALSE)>0,$S$22,FALSE) -> Haste | T76: =IF(HLOOKUP(1,$H$21:$J$38,18,FALSE)>0,$T$22,FALSE) -> FALSE | U76: Reforge: Crit to Mastery
C100: Priority | H100: Priority | Q100: Priority
C101: =IF(OR(StatPrio="Crit > Haste > Mastery",StatPrio="Crit > Mastery > Haste"),1,IF(OR(StatPrio="Mastery > Crit > Haste",StatPrio="Haste > Crit > Mastery"),2,3)) -> 3 | D101: =IF(OR(StatPrio="Haste > Mastery > Crit",StatPrio="Haste > Crit > Mastery"),1,IF(OR(StatPrio="Crit > Haste > Mastery",StatPrio="Mastery > Haste > Crit"),2,3)) -> 2 | E101: =IF(OR(StatPrio="Mastery > Haste > Crit",StatPrio="Mastery > Crit > Haste"),1,IF(OR(StatPrio="Crit > Mastery > Haste",StatPrio="Haste > Mastery > Crit"),2,3)) -> 1 | H101: =IF(OR(StatPrio="Crit > Haste > Mastery",StatPrio="Crit > Mastery > Haste"),1,IF(OR(StatPrio="Mastery > Crit > Haste",StatPrio="Haste > Crit > Mastery"),2,3)) -> 3 | I101: =IF(OR(StatPrio="Haste > Mastery > Crit",StatPrio="Haste > Crit > Mastery"),1,IF(OR(StatPrio="Crit > Haste > Mastery",StatPrio="Mastery > Haste > Crit"),2,3)) -> 2 | J101: =IF(OR(StatPrio="Mastery > Haste > Crit",StatPrio="Mastery > Crit > Haste"),1,IF(OR(StatPrio="Crit > Mastery > Haste",StatPrio="Haste > Mastery > Crit"),2,3)) -> 1 | L101: Expertise | Q101: 3 | R101: 2 | S101: 1
A102: Gear | B102: Hit | C102: Crit | D102: Haste | E102: Mastery | F102: WE | G102: Hit | H102: Crit | I102: Haste | J102: Mastery | K102: WE | L102: Unchanged | M102: Min | N102: Max | P102: Reforge for Expcap | Q102: =HLOOKUP(3,$H$2:$J$3,2,FALSE) -> Crit | R102: =HLOOKUP(2,$H$2:$J$3,2,FALSE) -> Haste | S102: =HLOOKUP(1,$H$2:$J$3,2,FALSE) -> Mastery | T102: Hit | U102: Biggest Loser
A103: =MyHead -> Reinforced Sapphirium Helmet | B103: =IF(OR($A103="None",ISBLANK($A103)),0,VLOOKUP($A103,ItemList,HLOOKUP(B$3,StatLoC,2,FALSE),FALSE)) -> 0 | C103: 0 | D103: 228 | E103: 0 | F103: 168 | G103: =ROUNDUP((B103*0.4),0) -> 0 | H103: =ROUNDDOWN((C103*0.4),0) -> 0 | I103: =ROUNDDOWN((D103*0.4),0) -> 91 | J103: =ROUNDDOWN((E103*0.4),0) -> 0 | K103: =ROUNDDOWN((F103*0.6),0) -> 100 | L103: =IF(F103=0,0,N103) -> 168 | M103: =IF(K103>0,K103,LARGE(G103:J103,2)) -> 100 | N103: =IF(K103>0,F103,MAX(G103:J103)) -> 168 | O103: 100 | P103: =IF(O103=L103,"None",IF(O103=K103,"Reforge: Expertise to ",CONCATENATE("Reforge: ",U103," to Expertise"))) -> Reforge: Expertise to | Q103: =IF(HLOOKUP(3,$H$2:$J$19,3,FALSE)=$O103,$Q$3,FALSE) -> FALSE | R103: =IF(HLOOKUP(2,$H$2:$J$19,3,FALSE)=$O103,$R$3,FALSE) -> FALSE | S103: =IF(HLOOKUP(1,$H$2:$J$19,3,FALSE)=$O103,$S$3,FALSE) -> FALSE | T103: =IF(G103=$O103,"Hit",FALSE) -> FALSE | U103: =IF(AND(Q103=FALSE,R103=FALSE,S103=FALSE),T103,IF(AND(Q103=FALSE,R103=FALSE),S103,IF(Q103=FALSE,R103,Q103))) -> FALSE
A104: =MyShoulder -> Reinforced Sapphirium Pauldrons | B104: 149 | C104: 0 | D104: 169 | E104: 0 | F104: 0 | G104: =ROUNDUP((B104*0.4),0) -> 60 | H104: =ROUNDDOWN((C104*0.4),0) -> 0 | I104: 67 | J104: 0 | K104: =ROUNDDOWN((F104*0.6),0) -> 0 | L104: =IF(F104=0,0,N104) -> 0 | M104: =IF(K104>0,K104,LARGE(G104:J104,2)) -> 60 | N104: =IF(K104>0,F104,MAX(G104:J104)) -> 67 | O104: 0 | P104: =IF(O104=L104,"None",IF(O104=K104,"Reforge: Expertise to ",CONCATENATE("Reforge: ",U104," to Expertise"))) -> None | Q104: =IF(HLOOKUP(3,$H$2:$J$19,4,FALSE)=$O104,$Q$3,FALSE) -> Crit | R104: =IF(HLOOKUP(2,$H$2:$J$19,4,FALSE)=$O104,$R$3,FALSE) -> FALSE | S104: =IF(HLOOKUP(1,$H$2:$J$19,4,FALSE)=$O104,$S$3,FALSE) -> Mastery | T104: =IF(G104=$O104,"Hit",FALSE) -> FALSE | U104: =IF(AND(Q104=FALSE,R104=FALSE,S104=FALSE),T104,IF(AND(Q104=FALSE,R104=FALSE),S104,IF(Q104=FALSE,R104,Q104))) -> Crit
A105: =MyChest -> Immolation Battleplate | B105: 0 | C105: 0 | D105: 235 | E105: 0 | F105: 269 | G105: 0 | H105: 0 | I105: 94 | J105: 0 | K105: 161 | L105: 269 | M105: 161 | N105: 269 | O105: 161 | P105: Reforge: Expertise to | Q105: =IF(HLOOKUP(3,$H$2:$J$19,5,FALSE)=$O105,$Q$3,FALSE) -> FALSE | R105: =IF(HLOOKUP(2,$H$2:$J$19,5,FALSE)=$O105,$R$3,FALSE) -> FALSE | S105: =IF(HLOOKUP(1,$H$2:$J$19,5,FALSE)=$O105,$S$3,FALSE) -> FALSE | T105: =IF(G105=$O105,"Hit",FALSE) -> FALSE | U105: FALSE
A106: =MyLegs -> Immolation Legplates | B106: 0 | C106: 227 | D106: 0 | E106: 274 | F106: 0 | G106: 0 | H106: 90 | I106: 0 | J106: 109 | K106: 0 | L106: 0 | M106: 90 | N106: 109 | O106: 0 | P106: None | Q106: =IF(HLOOKUP(3,$H$2:$J$19,6,FALSE)=$O106,$Q$3,FALSE) -> FALSE | R106: =IF(HLOOKUP(2,$H$2:$J$19,6,FALSE)=$O106,$R$3,FALSE) -> Haste | S106: =IF(HLOOKUP(1,$H$2:$J$19,6,FALSE)=$O106,$S$3,FALSE) -> FALSE | T106: Hit | U106: Haste
A107: =MyGloves -> Fireskin Gauntlets | B107: 211 | C107: 0 | D107: 0 | E107: 167 | F107: 0 | G107: 85 | H107: 0 | I107: 0 | J107: 66 | K107: 0 | L107: 0 | M107: 66 | N107: 85 | O107: 0 | P107: None | Q107: =IF(HLOOKUP(3,$H$2:$J$19,7,FALSE)=$O107,$Q$3,FALSE) -> Crit | R107: =IF(HLOOKUP(2,$H$2:$J$19,7,FALSE)=$O107,$R$3,FALSE) -> Haste | S107: =IF(HLOOKUP(1,$H$2:$J$19,7,FALSE)=$O107,$S$3,FALSE) -> FALSE | T107: FALSE | U107: Crit
A108: =MyFeet -> Arachnaflame Treads | B108: 0 | C108: 202 | D108: 182 | E108: 0 | F108: 0 | G108: 0 | H108: 80 | I108: 72 | J108: 0 | K108: 0 | L108: 0 | M108: 72 | N108: 80 | O108: 0 | P108: None | Q108: =IF(HLOOKUP(3,$H$2:$J$19,8,FALSE)=$O108,$Q$3,FALSE) -> FALSE | R108: =IF(HLOOKUP(2,$H$2:$J$19,8,FALSE)=$O108,$R$3,FALSE) -> FALSE | S108: =IF(HLOOKUP(1,$H$2:$J$19,8,FALSE)=$O108,$S$3,FALSE) -> Mastery | T108: Hit | U108: Mastery
A109: =MyBelt -> Cinch of the Flaming Ember | B109: 133 | C109: 230 | D109: 0 | E109: 0 | F109: 0 | G109: 54 | H109: 92 | I109: 0 | J109: 0 | K109: 0 | L109: 0 | M109: 54 | N109: 92 | O109: 0 | P109: None | Q109: =IF(HLOOKUP(3,$H$2:$J$19,9,FALSE)=$O109,$Q$3,FALSE) -> FALSE | R109: =IF(HLOOKUP(2,$H$2:$J$19,9,FALSE)=$O109,$R$3,FALSE) -> Haste | S109: =IF(HLOOKUP(1,$H$2:$J$19,9,FALSE)=$O109,$S$3,FALSE) -> Mastery | T109: FALSE | U109: Haste
A110: =MyBracer -> Earthcrack Bracers | B110: 0 | C110: 158 | D110: 140 | E110: 0 | F110: 0 | G110: 0 | H110: 63 | I110: 56 | J110: 0 | K110: 0 | L110: 0 | M110: 56 | N110: 63 | O110: 0 | P110: None | Q110: =IF(HLOOKUP(3,$H$2:$J$19,10,FALSE)=$O110,$Q$3,FALSE) -> FALSE | R110: =IF(HLOOKUP(2,$H$2:$J$19,10,FALSE)=$O110,$R$3,FALSE) -> FALSE | S110: =IF(HLOOKUP(1,$H$2:$J$19,10,FALSE)=$O110,$S$3,FALSE) -> Mastery | T110: Hit | U110: Mastery
A111: =MyBack -> Bladed Flamewrath Cover | B111: 0 | C111: 0 | D111: 173 | E111: 0 | F111: 115 | G111: 0 | H111: 0 | I111: 69 | J111: 0 | K111: 69 | L111: 115 | M111: 69 | N111: 115 | O111: 69 | P111: Reforge: Expertise to | Q111: =IF(HLOOKUP(3,$H$2:$J$19,11,FALSE)=$O111,$Q$3,FALSE) -> FALSE | R111: =IF(HLOOKUP(2,$H$2:$J$19,11,FALSE)=$O111,$R$3,FALSE) -> Haste | S111: =IF(HLOOKUP(1,$H$2:$J$19,11,FALSE)=$O111,$S$3,FALSE) -> FALSE | T111: FALSE | U111: Haste
A112: =MyNeck -> Gift of Nadun | B112: 0 | C112: 127 | D112: 127 | E112: 0 | F112: 0 | G112: 0 | H112: 50 | I112: 50 | J112: 0 | K112: 0 | L112: 0 | M112: 50 | N112: 50 | O112: 0 | P112: None | Q112: =IF(HLOOKUP(3,$H$2:$J$19,12,FALSE)=$O112,$Q$3,FALSE) -> FALSE | R112: =IF(HLOOKUP(2,$H$2:$J$19,12,FALSE)=$O112,$R$3,FALSE) -> FALSE | S112: =IF(HLOOKUP(1,$H$2:$J$19,12,FALSE)=$O112,$S$3,FALSE) -> Mastery | T112: Hit | U112: Mastery
A113: =MyRing1 -> Serrated Brimstone Signet | B113: 0 | C113: 156 | D113: 144 | E113: 0 | F113: 0 | G113: 0 | H113: 62 | I113: 57 | J113: 0 | K113: 0 | L113: 0 | M113: 57 | N113: 62 | O113: 0 | P113: None | Q113: =IF(HLOOKUP(3,$H$2:$J$19,13,FALSE)=$O113,$Q$3,FALSE) -> FALSE | R113: =IF(HLOOKUP(2,$H$2:$J$19,13,FALSE)=$O113,$R$3,FALSE) -> FALSE | S113: =IF(HLOOKUP(1,$H$2:$J$19,13,FALSE)=$O113,$S$3,FALSE) -> Mastery | T113: Hit | U113: Mastery
A114: =MyRing2 -> Alysrazor's Band | B114: 0 | C114: 0 | D114: 107 | E114: 0 | F114: 150 | G114: 0 | H114: 0 | I114: 42 | J114: 0 | K114: 90 | L114: 150 | M114: 90 | N114: 150 | O114: 90 | P114: Reforge: Expertise to | Q114: =IF(HLOOKUP(3,$H$2:$J$19,14,FALSE)=$O114,$Q$3,FALSE) -> FALSE | R114: =IF(HLOOKUP(2,$H$2:$J$19,14,FALSE)=$O114,$R$3,FALSE) -> FALSE | S114: =IF(HLOOKUP(1,$H$2:$J$19,14,FALSE)=$O114,$S$3,FALSE) -> FALSE | T114: FALSE | U114: FALSE
A115: =MyTrinket1 -> Essence of the Eternal Flame | B115: 0 | C115: 0 | D115: 0 | E115: 383 | F115: 0 | G115: 0 | H115: 0 | I115: 0 | J115: 153 | K115: 0 | L115: 0 | M115: 0 | N115: 153 | O115: 0 | P115: None | Q115: =IF(HLOOKUP(3,$H$2:$J$19,15,FALSE)=$O115,$Q$3,FALSE) -> Crit | R115: =IF(HLOOKUP(2,$H$2:$J$19,15,FALSE)=$O115,$R$3,FALSE) -> Haste | S115: =IF(HLOOKUP(1,$H$2:$J$19,15,FALSE)=$O115,$S$3,FALSE) -> FALSE | T115: Hit | U115: Crit
A116: =MyTrinket2 -> Darkmoon Card: Hurricane | B116: 0 | C116: 0 | D116: 0 | E116: 0 | F116: 0 | G116: 0 | H116: 0 | I116: 0 | J116: 0 | K116: 0 | L116: 0 | M116: 0 | N116: 0 | O116: 0 | P116: None | Q116: =IF(HLOOKUP(3,$H$2:$J$19,16,FALSE)=$O116,$Q$3,FALSE) -> Crit | R116: =IF(HLOOKUP(2,$H$2:$J$19,16,FALSE)=$O116,$R$3,FALSE) -> Haste | S116: =IF(HLOOKUP(1,$H$2:$J$19,16,FALSE)=$O116,$S$3,FALSE) -> Mastery | T116: Hit | U116: Crit
A117: =MyLibram -> Relic of the Elemental Lords | B117: 0 | C117: 83 | D117: 86 | E117: 0 | F117: 0 | G117: 0 | H117: 33 | I117: 34 | J117: 0 | K117: 0 | L117: 0 | M117: 33 | N117: 34 | O117: 0 | P117: None | Q117: =IF(HLOOKUP(3,$H$2:$J$19,17,FALSE)=$O117,$Q$3,FALSE) -> FALSE | R117: =IF(HLOOKUP(2,$H$2:$J$19,17,FALSE)=$O117,$R$3,FALSE) -> FALSE | S117: =IF(HLOOKUP(1,$H$2:$J$19,17,FALSE)=$O117,$S$3,FALSE) -> Mastery | T117: Hit | U117: Mastery
A118: =MyWeapon -> Zoid's Firelit Greatsword | B118: 0 | C118: 284 | D118: 232 | E118: 0 | F118: 0 | G118: 0 | H118: 113 | I118: 92 | J118: 0 | K118: 0 | L118: 0 | M118: 92 | N118: 113 | O118: 0 | P118: None | Q118: =IF(HLOOKUP(3,$H$2:$J$19,18,FALSE)=$O118,$Q$3,FALSE) -> FALSE | R118: =IF(HLOOKUP(2,$H$2:$J$19,18,FALSE)=$O118,$R$3,FALSE) -> FALSE | S118: =IF(HLOOKUP(1,$H$2:$J$19,18,FALSE)=$O118,$S$3,FALSE) -> Mastery | T118: =IF(G118=$O118,"Hit",FALSE) -> Hit | U118: Mastery
H120: =IF(OR(StatPrio="Crit > Haste > Mastery",StatPrio="Crit > Mastery > Haste"),1,IF(OR(StatPrio="Mastery > Crit > Haste",StatPrio="Haste > Crit > Mastery"),2,3)) -> 3 | I120: =IF(OR(StatPrio="Haste > Mastery > Crit",StatPrio="Haste > Crit > Mastery"),1,IF(OR(StatPrio="Crit > Haste > Mastery",StatPrio="Mastery > Haste > Crit"),2,3)) -> 2 | J120: =IF(OR(StatPrio="Mastery > Haste > Crit",StatPrio="Mastery > Crit > Haste"),1,IF(OR(StatPrio="Crit > Mastery > Haste",StatPrio="Haste > Mastery > Crit"),2,3)) -> 1 | L120: Hit | R120: 3 | S120: 2 | T120: 1
G121: Hit | H121: Crit | I121: Haste | J121: Mastery | K121: WE | L121: Unchanged | M121: Min | N121: Max | P121: Reforge for Hitcap | Q121: WE | R121: =HLOOKUP(3,$C$2:$E$3,2,FALSE) -> Crit | S121: =HLOOKUP(2,$C$2:$E$3,2,FALSE) -> Haste | T121: =HLOOKUP(1,$C$2:$E$3,2,FALSE) -> Mastery | U121: Biggest Loser
G122: =ROUNDDOWN((B103*0.6),0) -> 0 | H122: =ROUNDDOWN((C103*0.4),0) -> 0 | I122: =ROUNDDOWN((D103*0.4),0) -> 91 | J122: =ROUNDDOWN((E103*0.4),0) -> 0 | K122: =ROUNDUP((F103*0.4),0) -> 68 | L122: =IF(P103="Reforge: Expertise to Hit",G122,B103) -> 0 | M122: =IF(P103="Reforge: Expertise to ",K122,IF(P103="None",IF(G122>0,G122,LARGE(H122:J122,2)),IF(P103="Reforge: Hit to Expertise",G122,IF(RIGHT(P103,3)="Expertise",L122,0)))) -> 68 | N122: =IF(P103="Reforge: Expertise to ",K122,IF(P103="None",IF(G122>0,B103,MAX(H122:K122)),IF(P103="Reforge: Hit to Expertise",G122,IF(RIGHT(P103,3)="Expertise",L122,0)))) -> 68 | O122: 68 | P122: =IF(OR(RIGHT(P103,9)="Expertise",O122=B103),P103,IF(O122=G122,IF(G122=0,P103,"Reforge: Hit to "),CONCATENATE("Reforge: ",U122," to Hit"))) -> Reforge: Expertise to Hit | Q122: =IF(AND(O122>0,O122=K122),"Expertise",FALSE) -> Expertise | R122: =IF(HLOOKUP(3,$H$21:$J$38,3,FALSE)>0,$R$22,FALSE) -> FALSE | S122: =IF(HLOOKUP(2,$H$21:$J$38,3,FALSE)>0,$S$22,FALSE) -> Haste | T122: =IF(HLOOKUP(1,$H$21:$J$38,3,FALSE)>0,$T$22,FALSE) -> FALSE | U122: =IF(P103="Reforge: Hit to ","Hit",IF(AND(Q122=FALSE,R122=FALSE,S122=FALSE),T122,IF(AND(Q122=FALSE,R122=FALSE),S122,IF(Q122=FALSE,R122,Q122)))) -> Expertise
G123: =ROUNDDOWN((B104*0.6),0) -> 89 | H123: 0 | I123: 67 | J123: 0 | K123: =ROUNDUP((F104*0.4),0) -> 0 | L123: =IF(P104="Reforge: Expertise to Hit",G123,B104) -> 149 | M123: 89 | N123: 149 | O123: 89 | P123: =IF(OR(RIGHT(P104,9)="Expertise",O123=B104),P104,IF(O123=G123,IF(G123=0,P104,"Reforge: Hit to "),CONCATENATE("Reforge: ",U123," to Hit"))) -> Reforge: Hit to | Q123: =IF(AND(O123>0,O123=K123),"Expertise",FALSE) -> FALSE | R123: =IF(HLOOKUP(3,$H$21:$J$38,4,FALSE)>0,$R$22,FALSE) -> FALSE | S123: =IF(HLOOKUP(2,$H$21:$J$38,4,FALSE)>0,$S$22,FALSE) -> Haste | T123: =IF(HLOOKUP(1,$H$21:$J$38,4,FALSE)>0,$T$22,FALSE) -> FALSE | U123: =IF(P104="Reforge: Hit to ","Hit",IF(AND(Q123=FALSE,R123=FALSE,S123=FALSE),T123,IF(AND(Q123=FALSE,R123=FALSE),S123,IF(Q123=FALSE,R123,Q123)))) -> Haste
G124: 0 | H124: 0 | I124: 94 | J124: 0 | K124: 108 | L124: =IF(P105="Reforge: Expertise to Hit",G124,B105) -> 0 | M124: 108 | N124: 108 | O124: 108 | P124: Reforge: Expertise to Hit | Q124: =IF(AND(O124>0,O124=K124),"Expertise",FALSE) -> Expertise | R124: =IF(HLOOKUP(3,$H$21:$J$38,5,FALSE)>0,$R$22,FALSE) -> FALSE | S124: =IF(HLOOKUP(2,$H$21:$J$38,5,FALSE)>0,$S$22,FALSE) -> Haste | T124: =IF(HLOOKUP(1,$H$21:$J$38,5,FALSE)>0,$T$22,FALSE) -> FALSE | U124: Expertise
G125: 0 | H125: 90 | I125: 0 | J125: 109 | K125: 0 | L125: 0 | M125: 90 | N125: 109 | O125: 90 | P125: Reforge: Crit to Hit | Q125: FALSE | R125: =IF(HLOOKUP(3,$H$21:$J$38,6,FALSE)>0,$R$22,FALSE) -> Crit | S125: =IF(HLOOKUP(2,$H$21:$J$38,6,FALSE)>0,$S$22,FALSE) -> FALSE | T125: =IF(HLOOKUP(1,$H$21:$J$38,6,FALSE)>0,$T$22,FALSE) -> Mastery | U125: Crit
G126: 126 | H126: 0 | I126: 0 | J126: 66 | K126: 0 | L126: 211 | M126: 126 | N126: 211 | O126: 126 | P126: Reforge: Hit to | Q126: FALSE | R126: =IF(HLOOKUP(3,$H$21:$J$38,7,FALSE)>0,$R$22,FALSE) -> FALSE | S126: =IF(HLOOKUP(2,$H$21:$J$38,7,FALSE)>0,$S$22,FALSE) -> FALSE | T126: =IF(HLOOKUP(1,$H$21:$J$38,7,FALSE)>0,$T$22,FALSE) -> Mastery | U126: Mastery
G127: 0 | H127: 80 | I127: 72 | J127: 0 | K127: 0 | L127: 0 | M127: 72 | N127: 80 | O127: 72 | P127: Reforge: Crit to Hit | Q127: FALSE | R127: =IF(HLOOKUP(3,$H$21:$J$38,8,FALSE)>0,$R$22,FALSE) -> Crit | S127: =IF(HLOOKUP(2,$H$21:$J$38,8,FALSE)>0,$S$22,FALSE) -> Haste | T127: =IF(HLOOKUP(1,$H$21:$J$38,8,FALSE)>0,$T$22,FALSE) -> FALSE | U127: Crit
G128: 79 | H128: 92 | I128: 0 | J128: 0 | K128: 0 | L128: 133 | M128: 79 | N128: 133 | O128: 79 | P128: Reforge: Hit to | Q128: FALSE | R128: =IF(HLOOKUP(3,$H$21:$J$38,9,FALSE)>0,$R$22,FALSE) -> Crit | S128: =IF(HLOOKUP(2,$H$21:$J$38,9,FALSE)>0,$S$22,FALSE) -> FALSE | T128: =IF(HLOOKUP(1,$H$21:$J$38,9,FALSE)>0,$T$22,FALSE) -> FALSE | U128: Crit
G129: 0 | H129: 63 | I129: 56 | J129: 0 | K129: 0 | L129: 0 | M129: 56 | N129: 63 | O129: 56 | P129: Reforge: Crit to Hit | Q129: FALSE | R129: =IF(HLOOKUP(3,$H$21:$J$38,10,FALSE)>0,$R$22,FALSE) -> Crit | S129: =IF(HLOOKUP(2,$H$21:$J$38,10,FALSE)>0,$S$22,FALSE) -> Haste | T129: =IF(HLOOKUP(1,$H$21:$J$38,10,FALSE)>0,$T$22,FALSE) -> FALSE | U129: Crit
G130: 0 | H130: 0 | I130: 69 | J130: 0 | K130: 46 | L130: 0 | M130: 46 | N130: 46 | O130: 0 | P130: Reforge: Expertise to | Q130: FALSE | R130: =IF(HLOOKUP(3,$H$21:$J$38,11,FALSE)>0,$R$22,FALSE) -> FALSE | S130: =IF(HLOOKUP(2,$H$21:$J$38,11,FALSE)>0,$S$22,FALSE) -> Haste | T130: =IF(HLOOKUP(1,$H$21:$J$38,11,FALSE)>0,$T$22,FALSE) -> FALSE | U130: Haste
G131: 0 | H131: 50 | I131: 50 | J131: 0 | K131: 0 | L131: 0 | M131: 50 | N131: 50 | O131: 50 | P131: Reforge: Crit to Hit | Q131: FALSE | R131: =IF(HLOOKUP(3,$H$21:$J$38,12,FALSE)>0,$R$22,FALSE) -> Crit | S131: =IF(HLOOKUP(2,$H$21:$J$38,12,FALSE)>0,$S$22,FALSE) -> Haste | T131: =IF(HLOOKUP(1,$H$21:$J$38,12,FALSE)>0,$T$22,FALSE) -> FALSE | U131: Crit
G132: 0 | H132: 62 | I132: 57 | J132: 0 | K132: 0 | L132: 0 | M132: 57 | N132: 62 | O132: 0 | P132: None | Q132: FALSE | R132: =IF(HLOOKUP(3,$H$21:$J$38,13,FALSE)>0,$R$22,FALSE) -> Crit | S132: =IF(HLOOKUP(2,$H$21:$J$38,13,FALSE)>0,$S$22,FALSE) -> Haste | T132: =IF(HLOOKUP(1,$H$21:$J$38,13,FALSE)>0,$T$22,FALSE) -> FALSE | U132: Crit
G133: 0 | H133: 0 | I133: 42 | J133: 0 | K133: 60 | L133: 0 | M133: 60 | N133: 60 | O133: 0 | P133: Reforge: Expertise to | Q133: FALSE | R133: =IF(HLOOKUP(3,$H$21:$J$38,14,FALSE)>0,$R$22,FALSE) -> FALSE | S133: =IF(HLOOKUP(2,$H$21:$J$38,14,FALSE)>0,$S$22,FALSE) -> Haste | T133: =IF(HLOOKUP(1,$H$21:$J$38,14,FALSE)>0,$T$22,FALSE) -> FALSE | U133: Haste
G134: 0 | H134: 0 | I134: 0 | J134: 153 | K134: 0 | L134: 0 | M134: 0 | N134: 153 | O134: 153 | P134: Reforge: Mastery to Hit | Q134: FALSE | R134: =IF(HLOOKUP(3,$H$21:$J$38,15,FALSE)>0,$R$22,FALSE) -> FALSE | S134: =IF(HLOOKUP(2,$H$21:$J$38,15,FALSE)>0,$S$22,FALSE) -> FALSE | T134: =IF(HLOOKUP(1,$H$21:$J$38,15,FALSE)>0,$T$22,FALSE) -> Mastery | U134: Mastery
G135: 0 | H135: 0 | I135: 0 | J135: 0 | K135: 0 | L135: 0 | M135: 0 | N135: 0 | O135: 0 | P135: None | Q135: FALSE | R135: =IF(HLOOKUP(3,$H$21:$J$38,16,FALSE)>0,$R$22,FALSE) -> FALSE | S135: =IF(HLOOKUP(2,$H$21:$J$38,16,FALSE)>0,$S$22,FALSE) -> FALSE | T135: =IF(HLOOKUP(1,$H$21:$J$38,16,FALSE)>0,$T$22,FALSE) -> FALSE | U135: FALSE
G136: 0 | H136: 33 | I136: 34 | J136: 0 | K136: 0 | L136: 0 | M136: 33 | N136: 34 | O136: 0 | P136: None | Q136: FALSE | R136: =IF(HLOOKUP(3,$H$21:$J$38,17,FALSE)>0,$R$22,FALSE) -> Crit | S136: =IF(HLOOKUP(2,$H$21:$J$38,17,FALSE)>0,$S$22,FALSE) -> Haste | T136: =IF(HLOOKUP(1,$H$21:$J$38,17,FALSE)>0,$T$22,FALSE) -> FALSE | U136: Crit
G137: 0 | H137: 113 | I137: 92 | J137: 0 | K137: 0 | L137: =IF(P118="Reforge: Expertise to Hit",G137,B118) -> 0 | M137: 92 | N137: 113 | O137: 0 | P137: None | Q137: =IF(AND(O137>0,O137=K137),"Expertise",FALSE) -> FALSE | R137: =IF(HLOOKUP(3,$H$21:$J$38,18,FALSE)>0,$R$22,FALSE) -> Crit | S137: =IF(HLOOKUP(2,$H$21:$J$38,18,FALSE)>0,$S$22,FALSE) -> Haste | T137: =IF(HLOOKUP(1,$H$21:$J$38,18,FALSE)>0,$T$22,FALSE) -> FALSE | U137: Crit
R139: 1 | S139: 2 | T139: 3
P140: Complete "Hit/Exp to" | R140: =HLOOKUP(1,$C$2:$E$3,2,FALSE) -> Mastery | S140: =HLOOKUP(2,$C$2:$E$3,2,FALSE) -> Haste | T140: =HLOOKUP(3,$C$2:$E$3,2,FALSE) -> Crit | U140: Biggest Winner
P141: =IF(OR(P122="Reforge: Hit to ",P122="Reforge: Expertise to "),CONCATENATE(P122,U141),P122) -> Reforge: Expertise to Hit | R141: =IF(HLOOKUP(1,$H$21:$J$38,3,FALSE)>0,$R$41,FALSE) -> FALSE | S141: =IF(HLOOKUP(2,$H$21:$J$38,3,FALSE)>0,$S$41,FALSE) -> Haste | T141: =IF(HLOOKUP(3,$H$21:$J$38,3,FALSE)>0,$T$41,FALSE) -> FALSE | U141: =IF(R141=FALSE,$R$41,IF(S141=FALSE,$S$41,$T$41)) -> Mastery
P142: =IF(OR(P123="Reforge: Hit to ",P123="Reforge: Expertise to "),CONCATENATE(P123,U142),P123) -> Reforge: Hit to Mastery | R142: =IF(HLOOKUP(1,$H$21:$J$38,4,FALSE)>0,$R$41,FALSE) -> FALSE | S142: =IF(HLOOKUP(2,$H$21:$J$38,4,FALSE)>0,$S$41,FALSE) -> Haste | T142: =IF(HLOOKUP(3,$H$21:$J$38,4,FALSE)>0,$T$41,FALSE) -> FALSE | U142: =IF(R142=FALSE,$R$41,IF(S142=FALSE,$S$41,$T$41)) -> Mastery
P143: Reforge: Expertise to Hit | R143: =IF(HLOOKUP(1,$H$21:$J$38,5,FALSE)>0,$R$41,FALSE) -> FALSE | S143: =IF(HLOOKUP(2,$H$21:$J$38,5,FALSE)>0,$S$41,FALSE) -> Haste | T143: =IF(HLOOKUP(3,$H$21:$J$38,5,FALSE)>0,$T$41,FALSE) -> FALSE | U143: Mastery
P144: Reforge: Crit to Hit | R144: =IF(HLOOKUP(1,$H$21:$J$38,6,FALSE)>0,$R$41,FALSE) -> Mastery | S144: =IF(HLOOKUP(2,$H$21:$J$38,6,FALSE)>0,$S$41,FALSE) -> FALSE | T144: =IF(HLOOKUP(3,$H$21:$J$38,6,FALSE)>0,$T$41,FALSE) -> Crit | U144: Haste
P145: Reforge: Hit to Haste | R145: =IF(HLOOKUP(1,$H$21:$J$38,7,FALSE)>0,$R$41,FALSE) -> Mastery | S145: =IF(HLOOKUP(2,$H$21:$J$38,7,FALSE)>0,$S$41,FALSE) -> FALSE | T145: =IF(HLOOKUP(3,$H$21:$J$38,7,FALSE)>0,$T$41,FALSE) -> FALSE | U145: Haste
P146: Reforge: Crit to Hit | R146: =IF(HLOOKUP(1,$H$21:$J$38,8,FALSE)>0,$R$41,FALSE) -> FALSE | S146: =IF(HLOOKUP(2,$H$21:$J$38,8,FALSE)>0,$S$41,FALSE) -> Haste | T146: =IF(HLOOKUP(3,$H$21:$J$38,8,FALSE)>0,$T$41,FALSE) -> Crit | U146: Mastery
P147: Reforge: Hit to Mastery | R147: =IF(HLOOKUP(1,$H$21:$J$38,9,FALSE)>0,$R$41,FALSE) -> FALSE | S147: =IF(HLOOKUP(2,$H$21:$J$38,9,FALSE)>0,$S$41,FALSE) -> FALSE | T147: =IF(HLOOKUP(3,$H$21:$J$38,9,FALSE)>0,$T$41,FALSE) -> Crit | U147: Mastery
P148: Reforge: Crit to Hit | R148: =IF(HLOOKUP(1,$H$21:$J$38,10,FALSE)>0,$R$41,FALSE) -> FALSE | S148: =IF(HLOOKUP(2,$H$21:$J$38,10,FALSE)>0,$S$41,FALSE) -> Haste | T148: =IF(HLOOKUP(3,$H$21:$J$38,10,FALSE)>0,$T$41,FALSE) -> Crit | U148: Mastery
P149: Reforge: Expertise to Mastery | R149: =IF(HLOOKUP(1,$H$21:$J$38,11,FALSE)>0,$R$41,FALSE) -> FALSE | S149: =IF(HLOOKUP(2,$H$21:$J$38,11,FALSE)>0,$S$41,FALSE) -> Haste | T149: =IF(HLOOKUP(3,$H$21:$J$38,11,FALSE)>0,$T$41,FALSE) -> FALSE | U149: Mastery
P150: Reforge: Crit to Hit | R150: =IF(HLOOKUP(1,$H$21:$J$38,12,FALSE)>0,$R$41,FALSE) -> FALSE | S150: =IF(HLOOKUP(2,$H$21:$J$38,12,FALSE)>0,$S$41,FALSE) -> Haste | T150: =IF(HLOOKUP(3,$H$21:$J$38,12,FALSE)>0,$T$41,FALSE) -> Crit | U150: Mastery
P151: None | R151: =IF(HLOOKUP(1,$H$21:$J$38,13,FALSE)>0,$R$41,FALSE) -> FALSE | S151: =IF(HLOOKUP(2,$H$21:$J$38,13,FALSE)>0,$S$41,FALSE) -> Haste | T151: =IF(HLOOKUP(3,$H$21:$J$38,13,FALSE)>0,$T$41,FALSE) -> Crit | U151: Mastery
P152: Reforge: Expertise to Mastery | R152: =IF(HLOOKUP(1,$H$21:$J$38,14,FALSE)>0,$R$41,FALSE) -> FALSE | S152: =IF(HLOOKUP(2,$H$21:$J$38,14,FALSE)>0,$S$41,FALSE) -> Haste | T152: =IF(HLOOKUP(3,$H$21:$J$38,14,FALSE)>0,$T$41,FALSE) -> FALSE | U152: Mastery
P153: Reforge: Mastery to Hit | R153: =IF(HLOOKUP(1,$H$21:$J$38,15,FALSE)>0,$R$41,FALSE) -> Mastery | S153: =IF(HLOOKUP(2,$H$21:$J$38,15,FALSE)>0,$S$41,FALSE) -> FALSE | T153: =IF(HLOOKUP(3,$H$21:$J$38,15,FALSE)>0,$T$41,FALSE) -> FALSE | U153: Haste
P154: None | R154: =IF(HLOOKUP(1,$H$21:$J$38,16,FALSE)>0,$R$41,FALSE) -> FALSE | S154: =IF(HLOOKUP(2,$H$21:$J$38,16,FALSE)>0,$S$41,FALSE) -> FALSE | T154: =IF(HLOOKUP(3,$H$21:$J$38,16,FALSE)>0,$T$41,FALSE) -> FALSE | U154: Mastery
P155: None | R155: =IF(HLOOKUP(1,$H$21:$J$38,17,FALSE)>0,$R$41,FALSE) -> FALSE | S155: =IF(HLOOKUP(2,$H$21:$J$38,17,FALSE)>0,$S$41,FALSE) -> Haste | T155: =IF(HLOOKUP(3,$H$21:$J$38,17,FALSE)>0,$T$41,FALSE) -> Crit | U155: Mastery
P156: None | R156: =IF(HLOOKUP(1,$H$21:$J$38,18,FALSE)>0,$R$41,FALSE) -> FALSE | S156: =IF(HLOOKUP(2,$H$21:$J$38,18,FALSE)>0,$S$41,FALSE) -> Haste | T156: =IF(HLOOKUP(3,$H$21:$J$38,18,FALSE)>0,$T$41,FALSE) -> Crit | U156: Mastery
R158: 3 | S158: 2 | T158: 1
P159: Auto Reforge Recommendation | R159: =HLOOKUP(3,$C$2:$E$3,2,FALSE) -> Crit | S159: =HLOOKUP(2,$C$2:$E$3,2,FALSE) -> Haste | T159: =HLOOKUP(1,$C$2:$E$3,2,FALSE) -> Mastery
P160: =IF(P141="None",U160,P141) -> Reforge: Expertise to Hit | R160: =IF(HLOOKUP(3,$H$21:$J$38,3,FALSE)>0,$R$22,FALSE) -> FALSE | S160: =IF(HLOOKUP(2,$H$21:$J$38,3,FALSE)>0,$S$22,FALSE) -> Haste | T160: =IF(HLOOKUP(1,$H$21:$J$38,3,FALSE)>0,$T$22,FALSE) -> FALSE | U160: =IF(AND(R160=$R$60,T160=FALSE),CONCATENATE("Reforge: ",$R$60, " to ",$T$60),IF(AND(R160=$R$60,S160=FALSE),CONCATENATE("Reforge: ",$R$60, " to ",$S$60),IF(AND(S160=$S$60,T160=FALSE),CONCATENATE("Reforge: ",$S$60, " to ",$T$60),"None"))) -> Reforge: Haste to Mastery
P161: =IF(P142="None",U161,P142) -> Reforge: Hit to Mastery | R161: =IF(HLOOKUP(3,$H$21:$J$38,4,FALSE)>0,$R$22,FALSE) -> FALSE | S161: =IF(HLOOKUP(2,$H$21:$J$38,4,FALSE)>0,$S$22,FALSE) -> Haste | T161: =IF(HLOOKUP(1,$H$21:$J$38,4,FALSE)>0,$T$22,FALSE) -> FALSE | U161: =IF(AND(R161=$R$60,T161=FALSE),CONCATENATE("Reforge: ",$R$60, " to ",$T$60),IF(AND(R161=$R$60,S161=FALSE),CONCATENATE("Reforge: ",$R$60, " to ",$S$60),IF(AND(S161=$S$60,T161=FALSE),CONCATENATE("Reforge: ",$S$60, " to ",$T$60),"None"))) -> Reforge: Haste to Mastery
P162: Reforge: Expertise to Hit | R162: =IF(HLOOKUP(3,$H$21:$J$38,5,FALSE)>0,$R$22,FALSE) -> FALSE | S162: =IF(HLOOKUP(2,$H$21:$J$38,5,FALSE)>0,$S$22,FALSE) -> Haste | T162: =IF(HLOOKUP(1,$H$21:$J$38,5,FALSE)>0,$T$22,FALSE) -> FALSE | U162: Reforge: Haste to Mastery
P163: Reforge: Crit to Hit | R163: =IF(HLOOKUP(3,$H$21:$J$38,6,FALSE)>0,$R$22,FALSE) -> Crit | S163: =IF(HLOOKUP(2,$H$21:$J$38,6,FALSE)>0,$S$22,FALSE) -> FALSE | T163: =IF(HLOOKUP(1,$H$21:$J$38,6,FALSE)>0,$T$22,FALSE) -> Mastery | U163: Reforge: Crit to Haste
P164: Reforge: Hit to Haste | R164: =IF(HLOOKUP(3,$H$21:$J$38,7,FALSE)>0,$R$22,FALSE) -> FALSE | S164: =IF(HLOOKUP(2,$H$21:$J$38,7,FALSE)>0,$S$22,FALSE) -> FALSE | T164: =IF(HLOOKUP(1,$H$21:$J$38,7,FALSE)>0,$T$22,FALSE) -> Mastery | U164: None
P165: Reforge: Crit to Hit | R165: =IF(HLOOKUP(3,$H$21:$J$38,8,FALSE)>0,$R$22,FALSE) -> Crit | S165: =IF(HLOOKUP(2,$H$21:$J$38,8,FALSE)>0,$S$22,FALSE) -> Haste | T165: =IF(HLOOKUP(1,$H$21:$J$38,8,FALSE)>0,$T$22,FALSE) -> FALSE | U165: Reforge: Crit to Mastery
P166: Reforge: Hit to Mastery | R166: =IF(HLOOKUP(3,$H$21:$J$38,9,FALSE)>0,$R$22,FALSE) -> Crit | S166: =IF(HLOOKUP(2,$H$21:$J$38,9,FALSE)>0,$S$22,FALSE) -> FALSE | T166: =IF(HLOOKUP(1,$H$21:$J$38,9,FALSE)>0,$T$22,FALSE) -> FALSE | U166: Reforge: Crit to Mastery
P167: Reforge: Crit to Hit | R167: =IF(HLOOKUP(3,$H$21:$J$38,10,FALSE)>0,$R$22,FALSE) -> Crit | S167: =IF(HLOOKUP(2,$H$21:$J$38,10,FALSE)>0,$S$22,FALSE) -> Haste | T167: =IF(HLOOKUP(1,$H$21:$J$38,10,FALSE)>0,$T$22,FALSE) -> FALSE | U167: Reforge: Crit to Mastery
P168: Reforge: Expertise to Mastery | R168: =IF(HLOOKUP(3,$H$21:$J$38,11,FALSE)>0,$R$22,FALSE) -> FALSE | S168: =IF(HLOOKUP(2,$H$21:$J$38,11,FALSE)>0,$S$22,FALSE) -> Haste | T168: =IF(HLOOKUP(1,$H$21:$J$38,11,FALSE)>0,$T$22,FALSE) -> FALSE | U168: Reforge: Haste to Mastery
P169: Reforge: Crit to Hit | R169: =IF(HLOOKUP(3,$H$21:$J$38,12,FALSE)>0,$R$22,FALSE) -> Crit | S169: =IF(HLOOKUP(2,$H$21:$J$38,12,FALSE)>0,$S$22,FALSE) -> Haste | T169: =IF(HLOOKUP(1,$H$21:$J$38,12,FALSE)>0,$T$22,FALSE) -> FALSE | U169: Reforge: Crit to Mastery
P170: Reforge: Crit to Mastery | R170: =IF(HLOOKUP(3,$H$21:$J$38,13,FALSE)>0,$R$22,FALSE) -> Crit | S170: =IF(HLOOKUP(2,$H$21:$J$38,13,FALSE)>0,$S$22,FALSE) -> Haste | T170: =IF(HLOOKUP(1,$H$21:$J$38,13,FALSE)>0,$T$22,FALSE) -> FALSE | U170: Reforge: Crit to Mastery
P171: Reforge: Expertise to Mastery | R171: =IF(HLOOKUP(3,$H$21:$J$38,14,FALSE)>0,$R$22,FALSE) -> FALSE | S171: =IF(HLOOKUP(2,$H$21:$J$38,14,FALSE)>0,$S$22,FALSE) -> Haste | T171: =IF(HLOOKUP(1,$H$21:$J$38,14,FALSE)>0,$T$22,FALSE) -> FALSE | U171: Reforge: Haste to Mastery
P172: Reforge: Mastery to Hit | R172: =IF(HLOOKUP(3,$H$21:$J$38,15,FALSE)>0,$R$22,FALSE) -> FALSE | S172: =IF(HLOOKUP(2,$H$21:$J$38,15,FALSE)>0,$S$22,FALSE) -> FALSE | T172: =IF(HLOOKUP(1,$H$21:$J$38,15,FALSE)>0,$T$22,FALSE) -> Mastery | U172: None
P173: None | R173: =IF(HLOOKUP(3,$H$21:$J$38,16,FALSE)>0,$R$22,FALSE) -> FALSE | S173: =IF(HLOOKUP(2,$H$21:$J$38,16,FALSE)>0,$S$22,FALSE) -> FALSE | T173: =IF(HLOOKUP(1,$H$21:$J$38,16,FALSE)>0,$T$22,FALSE) -> FALSE | U173: None
P174: Reforge: Crit to Mastery | R174: =IF(HLOOKUP(3,$H$21:$J$38,17,FALSE)>0,$R$22,FALSE) -> Crit | S174: =IF(HLOOKUP(2,$H$21:$J$38,17,FALSE)>0,$S$22,FALSE) -> Haste | T174: =IF(HLOOKUP(1,$H$21:$J$38,17,FALSE)>0,$T$22,FALSE) -> FALSE | U174: Reforge: Crit to Mastery
P175: Reforge: Crit to Mastery | R175: =IF(HLOOKUP(3,$H$21:$J$38,18,FALSE)>0,$R$22,FALSE) -> Crit | S175: =IF(HLOOKUP(2,$H$21:$J$38,18,FALSE)>0,$S$22,FALSE) -> Haste | T175: =IF(HLOOKUP(1,$H$21:$J$38,18,FALSE)>0,$T$22,FALSE) -> FALSE | U175: Reforge: Crit to Mastery

Sheet Graph
K2: Graph Scale | M2: 1 | O2: =IF(OR(Verify3=Verify1,StrDPSGain=0),"","Settings changed, you should re-run the graph.") -> 
W3: DPS Increase per point | X3: Stat Weight
U4: Stat
U5: Strength | W5: =C303/B303 -> 0 | X5: 1
U6: Hit | W6: =D303/B303 -> 0 | X6: =W6/W5 -> 
U7: Crit | W7: =E303/B303 -> 0 | X7: =W7/W5 -> 
U8: Haste | W8: =F303/B303 -> 0 | X8: =W8/W5 -> 
U9: Mastery | W9: =G303/B303 -> 0 | X9: =W9/W5 -> 
U10: WE | W10: =H303/B303 -> 0 | X10: =W10/W5 -> 
U12: Weaponspeed | W12: 0 | X12: =W12/W5 -> 
U13: Weapon DPS | W13: 0 | X13: =W13/W5 -> 
B201: Item Point | C201: ="Str (" & SealSelection & ")" -> Str (SoT) | D201: ="Hit (" & SealSelection & ")" -> Hit (SoT) | E201: ="Crit (" & SealSelection & ")" -> Crit (SoT) | F201: ="Haste (" & SealSelection & ")" -> Haste (SoT) | G201: ="Mastery (" & SealSelection & ")" -> Mastery (SoT) | H201: ="WE (" & SealSelection & ")" -> WE (SoT)
B202: 0 | C202: 0 | D202: 0 | E202: 0 | F202: 0 | G202: 0 | H202: 0 | I202: 0
B203: =GraphScale * I203 -> 1 | I203: 1
B204: 2 | I204: 2
B205: 3 | I205: 3
B206: 4 | I206: 4
B207: 5 | I207: 5
B208: 6 | I208: 6
B209: 7 | I209: 7
B210: 8 | I210: 8
B211: 9 | I211: 9
B212: 10 | I212: 10
B213: 11 | I213: 11
B214: 12 | I214: 12
B215: 13 | I215: 13
B216: 14 | I216: 14
B217: 15 | I217: 15
B218: 16 | I218: 16
B219: 17 | I219: 17
B220: 18 | I220: 18
B221: 19 | I221: 19
B222: 20 | I222: 20
B223: 21 | I223: 21
B224: 22 | I224: 22
B225: 23 | I225: 23
B226: 24 | I226: 24
B227: 25 | I227: 25
B228: 26 | I228: 26
B229: 27 | I229: 27
B230: 28 | I230: 28
B231: 29 | I231: 29
B232: 30 | I232: 30
B233: 31 | I233: 31
B234: 32 | I234: 32
B235: =GraphScale * I235 -> 33 | I235: 33
B236: 34 | I236: 34
B237: 35 | I237: 35
B238: 36 | I238: 36
B239: 37 | I239: 37
B240: 38 | I240: 38
B241: 39 | I241: 39
B242: 40 | I242: 40
B243: 41 | I243: 41
B244: 42 | I244: 42
B245: 43 | I245: 43
B246: 44 | I246: 44
B247: 45 | I247: 45
B248: 46 | I248: 46
B249: 47 | I249: 47
B250: 48 | I250: 48
B251: 49 | I251: 49
B252: 50 | I252: 50
B253: 51 | I253: 51
B254: 52 | I254: 52
B255: 53 | I255: 53
B256: 54 | I256: 54
B257: 55 | I257: 55
B258: 56 | I258: 56
B259: 57 | I259: 57
B260: 58 | I260: 58
B261: 59 | I261: 59
B262: 60 | I262: 60
B263: 61 | I263: 61
B264: 62 | I264: 62
B265: 63 | I265: 63
B266: 64 | I266: 64
B267: =GraphScale * I267 -> 65 | I267: 65
B268: 66 | I268: 66
B269: 67 | I269: 67
B270: 68 | I270: 68
B271: 69 | I271: 69
B272: 70 | I272: 70
B273: 71 | I273: 71
B274: 72 | I274: 72
B275: 73 | I275: 73
B276: 74 | I276: 74
B277: 75 | I277: 75
B278: 76 | I278: 76
B279: 77 | I279: 77
B280: 78 | I280: 78
B281: 79 | I281: 79
B282: 80 | I282: 80
B283: 81 | I283: 81
B284: 82 | I284: 82
B285: 83 | I285: 83
B286: 84 | I286: 84
B287: 85 | I287: 85
B288: 86 | I288: 86
B289: 87 | I289: 87
B290: 88 | I290: 88
B291: 89 | I291: 89
B292: 90 | I292: 90
B293: 91 | I293: 91
B294: 92 | I294: 92
B295: 93 | I295: 93
B296: 94 | I296: 94
B297: 95 | I297: 95
B298: 96 | I298: 96
B299: 97 | I299: 97
B300: 98 | I300: 98
B301: 99 | I301: 99
B302: 100 | I302: 100
B303: =AVERAGE(B202:B302) -> 50 | C303: =AVERAGE(C202:C302) -> 0 | D303: =AVERAGE(D202:D302) -> 0 | E303: 0 | F303: 0 | G303: 0 | H303: 0

Sheet Priority
C1: --- Suggested Priority ---
C2: 0 | D2: =IF(ROUND(LastDPSValue,2)=ROUND(TotalDPS,2),"Inquisition","Recalculate") -> Recalculate
C3: 1 | D3: =SuggestedAbility1 -> 
C4: 2 | D4: =SuggestedAbility2 -> 
C5: 3 | D5: =SuggestedAbility3 -> 
C6: 4 | D6: =SuggestedAbility4 -> 
C7: 5 | D7: =SuggestedAbility5 -> 
C8: 6 | D8: =SuggestedAbility6 -> 
C9: 7 | D9: =SuggestedAbility7 -> 
A11: Ability 1 | B11: Ability 2 | C11: Ability 3 | D11: Ability 4 | E11: DPS
A12: Crusader Strike | B12: Templar's Verdict | C12: Exorcism | D12: Hammer of Wrath | E12: 24867.29906 | F12: Crusader Strike | G12: Templar's Verdict | H12: Exorcism | I12: Hammer of Wrath
A13: Crusader Strike | B13: Templar's Verdict | C13: Hammer of Wrath | D13: Exorcism | E13: 24945.85511 | F13: Crusader Strike | G13: Templar's Verdict | H13: Hammer of Wrath | I13: Exorcism
A14: Crusader Strike | B14: Exorcism | C14: Templar's Verdict | D14: Hammer of Wrath | E14: 25090.20959 | F14: Crusader Strike | G14: Exorcism | H14: Templar's Verdict | I14: Hammer of Wrath
A15: Crusader Strike | B15: Exorcism | C15: Hammer of Wrath | D15: Templar's Verdict | E15: 25272.28228 | F15: Crusader Strike | G15: Exorcism | H15: Hammer of Wrath | I15: Templar's Verdict
A16: Crusader Strike | B16: Hammer of Wrath | C16: Templar's Verdict | D16: Exorcism | E16: 25115.9477 | F16: Crusader Strike | G16: Hammer of Wrath | H16: Templar's Verdict | I16: Exorcism
A17: Crusader Strike | B17: Hammer of Wrath | C17: Exorcism | D17: Templar's Verdict | E17: 25365.65124 | F17: Crusader Strike | G17: Hammer of Wrath | H17: Exorcism | I17: Templar's Verdict
A18: Templar's Verdict | B18: Crusader Strike | C18: Hammer of Wrath | D18: Exorcism | E18: 23703.54171 | F18: Templar's Verdict | G18: Crusader Strike | H18: Hammer of Wrath | I18: Exorcism
A19: Templar's Verdict | B19: Crusader Strike | C19: Exorcism | D19: Hammer of Wrath | E19: 23630.67936 | F19: Templar's Verdict | G19: Crusader Strike | H19: Exorcism | I19: Hammer of Wrath
A20: Templar's Verdict | B20: Exorcism | C20: Hammer of Wrath | D20: Crusader Strike | E20: 22957.45833 | F20: Templar's Verdict | G20: Exorcism | H20: Hammer of Wrath | I20: Crusader Strike
A21: Templar's Verdict | B21: Exorcism | C21: Crusader Strike | D21: Hammer of Wrath | E21: 23096.94901 | F21: Templar's Verdict | G21: Exorcism | H21: Crusader Strike | I21: Hammer of Wrath
A22: Templar's Verdict | B22: Hammer of Wrath | C22: Exorcism | D22: Crusader Strike | E22: 23009.96647 | F22: Templar's Verdict | G22: Hammer of Wrath | H22: Exorcism | I22: Crusader Strike
A23: Templar's Verdict | B23: Hammer of Wrath | C23: Crusader Strike | D23: Exorcism | E23: 23544.95061 | F23: Templar's Verdict | G23: Hammer of Wrath | H23: Crusader Strike | I23: Exorcism
A24: Exorcism | B24: Crusader Strike | C24: Templar's Verdict | D24: Hammer of Wrath | E24: 24471.78915 | F24: Exorcism | G24: Crusader Strike | H24: Templar's Verdict | I24: Hammer of Wrath
A25: Exorcism | B25: Crusader Strike | C25: Hammer of Wrath | D25: Templar's Verdict | E25: 24646.93308 | F25: Exorcism | G25: Crusader Strike | H25: Hammer of Wrath | I25: Templar's Verdict
A26: Exorcism | B26: Templar's Verdict | C26: Crusader Strike | D26: Hammer of Wrath | E26: 23356.67816 | F26: Exorcism | G26: Templar's Verdict | H26: Crusader Strike | I26: Hammer of Wrath
A27: Exorcism | B27: Templar's Verdict | C27: Hammer of Wrath | D27: Crusader Strike | E27: 23196.94999 | F27: Exorcism | G27: Templar's Verdict | H27: Hammer of Wrath | I27: Crusader Strike
A28: Exorcism | B28: Hammer of Wrath | C28: Crusader Strike | D28: Templar's Verdict | E28: 24428.6936 | F28: Exorcism | G28: Hammer of Wrath | H28: Crusader Strike | I28: Templar's Verdict
A29: Exorcism | B29: Hammer of Wrath | C29: Templar's Verdict | D29: Crusader Strike | E29: 23375.19244 | F29: Exorcism | G29: Hammer of Wrath | H29: Templar's Verdict | I29: Crusader Strike
A30: Hammer of Wrath | B30: Crusader Strike | C30: Exorcism | D30: Templar's Verdict | E30: 25116.91677 | F30: Hammer of Wrath | G30: Crusader Strike | H30: Exorcism | I30: Templar's Verdict
A31: Hammer of Wrath | B31: Crusader Strike | C31: Templar's Verdict | D31: Exorcism | E31: 24894.97934 | F31: Hammer of Wrath | G31: Crusader Strike | H31: Templar's Verdict | I31: Exorcism
A32: Hammer of Wrath | B32: Templar's Verdict | C32: Exorcism | D32: Crusader Strike | E32: 23173.79169 | F32: Hammer of Wrath | G32: Templar's Verdict | H32: Exorcism | I32: Crusader Strike
A33: Hammer of Wrath | B33: Templar's Verdict | C33: Crusader Strike | D33: Exorcism | E33: 23716.41248 | F33: Hammer of Wrath | G33: Templar's Verdict | H33: Crusader Strike | I33: Exorcism
A34: Hammer of Wrath | B34: Exorcism | C34: Templar's Verdict | D34: Crusader Strike | E34: 23441.17508 | F34: Hammer of Wrath | G34: Exorcism | H34: Templar's Verdict | I34: Crusader Strike
A35: Hammer of Wrath | B35: Exorcism | C35: Crusader Strike | D35: Templar's Verdict | E35: 24495.20653 | F35: Hammer of Wrath | G35: Exorcism | H35: Crusader Strike | I35: Templar's Verdict
A37: Best: | B37: =VLOOKUP(MAX(E12:E35),E12:I35,2,FALSE) -> Crusader Strike | C37: =IF(ROUND(LastDPSValue,2)=ROUND(TotalDPS,2),B37,"") ->  | E37: Current DPS
B38: =VLOOKUP(MAX(E12:E35),E12:I35,3,FALSE) -> Hammer of Wrath | E38: 25365.65124
B39: =VLOOKUP(MAX(E12:E35),E12:I35,4,FALSE) -> Exorcism
B40: =VLOOKUP(MAX(E12:E35),E12:I35,5,FALSE) -> Templar's Verdict
B41: =IF(SealSelection="SoT","Judgement of Truth", "Judgement of Righteousness") -> Judgement of Truth
B42: Holy Wrath
B43: Consecration

Sheet Gear
B2: General Info | L2: Melee Stats | T2: Caster Stats | Y2: Gem Info | AE2: Weapon | AG2: Lookup Info
B3: Name | C3: Quality | D3: Filter1 | E3: Filter2 | F3: DropA | G3: DropB | H3: Filter-Inc | I3: Ilvl | J3: Arm | K3: Stam | L3: Str | M3: AP | N3: Agi | O3: Hit | P3: Crit | Q3: Haste | R3: Mastery | S3: WE | T3: Int | U3: SpD | V3: Mp5 | W3: SpH | X3: SpC | Y3: G1 | Z3: G2 | AA3: G3 | AB3: G4 | AC3: Bonus | AD3: Amount | AE3: Speed | AF3: Dps | AG3: Loc | AH3: MyLoc
B4: 1 | C4: =B4+1 -> 2 | D4: =C4+1 -> 3 | E4: 4 | F4: 5 | G4: 6 | H4: 7 | I4: 8 | J4: 9 | K4: 10 | L4: 11 | M4: 12 | N4: 13 | O4: 14 | P4: 15 | Q4: 16 | R4: 17 | S4: 18 | T4: 19 | U4: 20 | V4: 21 | W4: 22 | X4: 23 | Y4: 24 | Z4: 25 | AA4: 26 | AB4: 27 | AC4: 28 | AD4: 29 | AE4: 30 | AF4: 31 | AG4: 32 | AH4: 33
B5: -----Plate-----
B6: Crown of Chelonian Freedom | C6: Rare | D6: Plate | E6: Quest | F6: Quest | G6: Children of Tortolla | H6: =IF(AND(VLOOKUP(C6,FilterRareLookup,2,FALSE)="Yes",VLOOKUP(E6,FilterLootLookup,2,FALSE)="Yes",I6>=iLevelFilter),"Yes","No") -> No | I6: 288 | J6: 2116 | K6: 264 | L6: 176 | M6: 0 | N6: 0 | O6: 0 | P6: 119 | Q6: 115 | R6: 0 | S6: 0 | T6: 0 | U6: 0 | V6: 0 | AG6: Head | AH6: MyHead
B7: Bell-Ringer's Skullcap | C7: Rare | D7: Plate | E7: Quest | F7: Quest | G7: Take Him to the Earthcaller | H7: No | I7: 289 | J7: 2125 | K7: 267 | L7: 178 | M7: 0 | N7: 0 | O7: 0 | P7: 107 | Q7: 0 | R7: 125 | S7: 0 | T7: 0 | U7: 0 | V7: 0 | AG7: Head | AH7: MyHead
B8: Helm of Fatal Vision | C8: Rare | D8: Plate | E8: World Drop | F8: World Drop | H8: No | I8: 308 | J8: 2296 | K8: 319 | L8: 212 | M8: 0 | N8: 0 | O8: 0 | P8: 142 | Q8: 0 | R8: 142 | S8: 0 | T8: 0 | U8: 0 | V8: 0 | AG8: Head | AH8: MyHead
B9: Anomuran Helm | C9: Rare | D9: Plate | E9: Pre-Raid Dungeons | F9: Throne of the Tides | G9: Mindbender Ghur'sha | H9: No | I9: 308 | J9: 2296 | K9: 319 | L9: 212 | M9: 0 | N9: 0 | O9: 0 | P9: 142 | Q9: 0 | R9: 142 | S9: 0 | T9: 0 | U9: 0 | V9: 0 | AG9: Head | AH9: MyHead
B10: Great General's Crown | C10: Rare | D10: Plate | E10: Quest | F10: Quest | G10: Salhet the Tactician | H10: No | I10: 312 | J10: 2333 | K10: 331 | L10: 220 | M10: 0 | N10: 0 | O10: 153 | P10: 0 | Q10: 0 | R10: 136 | S10: 0 | T10: 0 | U10: 0 | V10: 0 | AG10: Head | AH10: MyHead
B11: Helm of Verdant Explosion | C11: Rare | D11: Plate | E11: Quest | F11: Quest | G11: Breach in the Defenses | H11: No | I11: 318 | J11: 2391 | K11: 349 | L11: 233 | M11: 0 | N11: 0 | O11: 171 | P11: 0 | Q11: 129 | R11: 0 | S11: 0 | T11: 0 | U11: 0 | V11: 0 | AG11: Head | AH11: MyHead
B12: Stonemason's Helm (Heroic) | C12: Rare | D12: Plate | E12: Pre-Raid Dungeons | F12: Heroic The Deadmines | G12: Vanessa VanCleef | H12: No | I12: 346 | J12: 2680 | K12: 454 | L12: 242 | M12: 0 | N12: 0 | O12: 0 | P12: 142 | Q12: 202 | R12: 0 | S12: 0 | T12: 0 | U12: 0 | V12: 0 | Y12: m | Z12: b | AC12: Str | AD12: 30 | AG12: Head | AH12: MyHead
B13: Helm of Easeful Death | C13: Rare | D13: Plate | E13: Vendor / Badge | F13: Vendor | G13: 2200 Justice Points | H13: No | I13: 346 | J13: 2680 | K13: 454 | L13: 242 | M13: 0 | N13: 0 | O13: 0 | P13: 0 | Q13: 162 | R13: 182 | S13: 0 | T13: 0 | U13: 0 | V13: 0 | Y13: m | Z13: r | AC13: Mastery | AD13: 30 | AG13: Head | AH13: MyHead
B14: Anomuran Helm (Heroic) | C14: Rare | D14: Plate | E14: Pre-Raid Dungeons | F14: Heroic Throne of the Tides | G14: Mindbender Ghur'sha | H14: No | I14: 346 | J14: 2680 | K14: 454 | L14: 242 | M14: 0 | N14: 0 | O14: 0 | P14: 162 | Q14: 0 | R14: 182 | S14: 0 | T14: 0 | U14: 0 | V14: 0 | Y14: m | Z14: y | AC14: Crit | AD14: 30 | AG14: Head | AH14: MyHead
B15: Roaring Mask of Bethekk | C15: Epic | D15: Plate | E15: Pre-Raid Dungeons | F15: Heroic Zul'Gurub | G15: High Priestess Kilnara | H15: No | I15: 353 | J15: 2735 | K15: 484 | L15: 263 | M15: 0 | N15: 0 | P15: 192 | Q15: 175 | R15: 0 | S15: 0 | T15: 0 | U15: 0 | V15: 0 | Y15: m | Z15: r | AC15: Crit | AD15: 30 | AG15: Head | AH15: MyHead
B16: Reinforced Sapphirium Helmet | C16: Epic | D16: Plate | E16: Blackwing Descent | F16: Blackwing Descent | G16: Nefarian | H16: No | I16: 359 | J16: 2784 | K16: 512 | L16: 281 | M16: 0 | N16: 0 | O16: 0 | P16: 0 | Q16: 228 | R16: 0 | S16: 168 | T16: 0 | U16: 0 | V16: 0 | Y16: m | Z16: y | AC16: Str | AD16: 30 | AG16: Head | AH16: MyHead
B17: Helm of Maddening Whispers | C17: Epic | D17: Plate | E17: The Bastion of Twilight | F17: The Bastion of Twilight | G17: Cho'gall | H17: No | I17: 359 | J17: 2784 | K17: 512 | L17: 281 | M17: 0 | N17: 0 | O17: 0 | P17: 168 | Q17: 228 | R17: 0 | S17: 0 | T17: 0 | U17: 0 | V17: 0 | Y17: m | Z17: b | AC17: Haste | AD17: 30 | AG17: Head | AH17: MyHead
B18: Dragon Bone Warhelm | C18: Epic | D18: Plate | E18: Blackwing Descent | F18: Blackwing Descent | G18: Maloriak | H18: No | I18: 359 | J18: 2784 | K18: 512 | L18: 259 | M18: 0 | N18: 0 | O18: 0 | P18: 0 | Q18: 0 | R18: 281 | S18: 113 | T18: 0 | U18: 0 | V18: 0 | Y18: m | Z18: r | AC18: Sta | AD18: 45 | AG18: Head | AH18: MyHead
B19: Reinforced Sapphirium Helmet (Heroic) | C19: Epic | D19: Plate | E19: The Bastion of Twilight | F19: Heroic Raid Endboss | G19: Heroic Raid Endboss | H19: No | I19: 372 | J19: 2891 | K19: 578 | L19: 325 | M19: 0 | N19: 0 | O19: 0 | P19: 0 | Q19: 257 | R19: 0 | S19: 197 | T19: 0 | U19: 0 | V19: 0 | Y19: m | Z19: y | AC19: Str | AD19: 30 | AG19: Head | AH19: MyHead
B20: Helm of Maddening Whispers (Heroic) | C20: Epic | D20: Plate | E20: The Bastion of Twilight | F20: Heroic The Bastion of Twilight | G20: Cho'gall | H20: No | I20: 372 | J20: 2891 | K20: 578 | L20: 325 | M20: 0 | N20: 0 | O20: 0 | P20: 197 | Q20: 257 | R20: 0 | S20: 0 | T20: 0 | U20: 0 | V20: 0 | Y20: m | Z20: b | AC20: Haste | AD20: 30 | AG20: Head | AH20: MyHead
B21: Dragon Bone Warhelm (Heroic) | C21: Epic | D21: Plate | E21: Blackwing Descent | F21: Heroic Blackwing Descent | G21: Maloriak | H21: No | I21: 372 | J21: 2891 | K21: 578 | L21: 293 | M21: 0 | N21: 0 | O21: 0 | P21: 0 | Q21: 0 | R21: 325 | S21: 135 | T21: 0 | U21: 0 | V21: 0 | Y21: m | Z21: r | AC21: Sta | AD21: 45 | AG21: Head | AH21: MyHead
B22: Greathelm of the Voracious Maw | C22: Epic | D22: Plate | E22: Firelands | F22: Firelands | G22: Alysrazor | H22: Yes | I22: 378 | J22: 2943 | K22: 611 | L22: 348 | M22: 0 | N22: 0 | O22: 0 | P22: 192 | Q22: 0 | R22: 284 | S22: 0 | T22: 0 | U22: 0 | V22: 0 | Y22: m | Z22: b | AC22: Str | AD22: 30 | AG22: Head | AH22: MyHead
B23: Immolation Helmet | C23: Epic | D23: Plate | E23: Firelands | F23: Firelands | G23: Ragnaros | H23: Yes | I23: 378 | J23: 2943 | K23: 611 | L23: 348 | M23: 0 | N23: 0 | O23: 199 | P23: 279 | Q23: 0 | R23: 0 | S23: 0 | T23: 0 | U23: 0 | V23: 0 | Y23: m | Z23: r | AC23: Str | AD23: 30 | AG23: Head | AH23: MyHead
B24: Greathelm of the Voracious Maw (Heroic) | C24: Epic | D24: Plate | E24: Firelands | F24: Heroic Firelands | G24: Alysrazor | H24: Yes | I24: 391 | J24: 3057 | K24: 689 | L24: 400 | M24: 0 | N24: 0 | O24: 0 | P24: 224 | Q24: 0 | R24: 320 | S24: 0 | T24: 0 | U24: 0 | V24: 0 | Y24: m | Z24: b | AC24: Str | AD24: 30 | AG24: Head | AH24: MyHead
B25: Immolation Helmet (Heroic) | C25: Epic | D25: Plate | E25: Firelands | F25: Heroic Firelands | G25: Crystallized Firestone | H25: Yes | I25: 391 | J25: 3057 | K25: 689 | L25: 400 | M25: 0 | N25: 0 | O25: 232 | P25: 315 | Q25: 0 | R25: 0 | S25: 0 | T25: 0 | U25: 0 | V25: 0 | Y25: m | Z25: r | AC25: s | AD25: 30 | AG25: Head | AH25: MyHead
B27: -----PVP-----
B28: Bloodthirsty Gladiator's Scaled Helm | C28: Rare | D28: Plate | E28: PvP | F28: PvP | H28: =IF(AND(VLOOKUP(C28,FilterRareLookup,2,FALSE)="Yes",VLOOKUP(E28,FilterLootLookup,2,FALSE)="Yes",I28>=iLevelFilter),"Yes","No") -> No | I28: 352 | J28: 2727 | K28: 480 | L28: =260 + IF(PvPBonus>1,(70/PvPBonus),0) + IF(PvPBonus>3,(90/PvPBonus),0) -> 260 | M28: 0 | N28: 0 | O28: 0 | P28: 0 | Q28: 0 | R28: 153 | S28: 0 | T28: 0 | U28: 0 | V28: 0 | Y28: m | Z28: r | AG28: Head | AH28: MyHead
B29: Vicious Gladiator's Scaled Helm | C29: Epic | D29: Plate | E29: PvP | F29: PvP | H29: Yes | I29: 365 | J29: 2833 | K29: 541 | L29: =301 + IF(PvPBonus>1,(70/PvPBonus),0) + IF(PvPBonus>3,(90/PvPBonus),0) -> 301 | M29: 0 | N29: 0 | O29: 0 | P29: 0 | Q29: 0 | R29: 181 | S29: 0 | T29: 0 | U29: 0 | V29: 0 | Y29: m | Z29: r | AG29: Head | AH29: MyHead
B31: ----Craft----
B32: Redsteel Helm | C32: Rare | D32: Plate | E32: Craftable | F32: Craftable | G32: Blacksmithing | H32: =IF(AND(VLOOKUP(C32,FilterRareLookup,2,FALSE)="Yes",VLOOKUP(E32,FilterLootLookup,2,FALSE)="Yes",I32>=iLevelFilter),"Yes","No") -> No | I32: 333 | J32: 2542 | K32: 401 | L32: 208 | M32: 0 | N32: 0 | O32: 0 | P32: 138 | Q32: 0 | R32: 0 | S32: 158 | T32: 0 | U32: 0 | V32: 0 | Y32: m | Z32: r | AC32: Str | AD32: 30 | AG32: Head | AH32: MyHead
B33: Reinforced Bio-Optic Killshades | C33: Epic | D33: Plate | E33: Craftable | F33: Craftable | G33: Engineering | H33: =IF(AND(VLOOKUP(C33,FilterRareLookup,2,FALSE)="Yes",VLOOKUP(E33,FilterLootLookup,2,FALSE)="Yes",I33>=iLevelFilter),"Yes","No") -> No | I33: 359 | J33: 2784 | K33: 512 | L33: 301 | M33: 0 | N33: 0 | O33: 0 | P33: 0 | Q33: 0 | R33: 0 | S33: 0 | T33: 0 | U33: 0 | V33: 0 | Y33: m | Z33: c | AA33: c | AC33: Str | AD33: 20 | AG33: Head | AH33: MyHead
B35: ----User Added----
B39: -----Plate-----
B40: Pauldrons of Toil | C40: Rare | D40: Plate | E40: World Drop | F40: World Drop | H40: =IF(AND(VLOOKUP(C40,FilterRareLookup,2,FALSE)="Yes",VLOOKUP(E40,FilterLootLookup,2,FALSE)="Yes",I40>=iLevelFilter),"Yes","No") -> No | I40: 292 | J40: 1985 | K40: 204 | L40: 136 | M40: 0 | N40: 0 | O40: 0 | P40: 79 | Q40: 0 | R40: 97 | S40: 0 | T40: 0 | U40: 0 | V40: 0 | AG40: Shoulder | AH40: MyShoulder
B41: Geodecrack Shoulderguards | C41: Rare | D41: Plate | E41: Quest | F41: Quest | G41: Clingy | H41: No | I41: 305 | J41: 2093 | K41: 230 | L41: 153 | M41: 0 | N41: 0 | O41: 102 | P41: 0 | Q41: 102 | R41: 0 | S41: 0 | T41: 0 | U41: 0 | V41: 0 | AG41: Shoulder | AH41: MyShoulder
B42: Raz's Pauldrons | C42: Rare | D42: Plate | E42: Pre-Raid Dungeons | F42: Blackrock Caverns | G42: Ascendant Lord Obsidius | H42: No | I42: 308 | J42: 2119 | K42: 237 | L42: 158 | M42: 0 | N42: 0 | O42: 92 | P42: 0 | Q42: 0 | R42: 113 | S42: 0 | T42: 0 | U42: 0 | V42: 0 | AG42: Shoulder | AH42: MyShoulder
B43: Staffseeker Shoulderplates | C43: Rare | D43: Plate | E43: Quest | F43: Quest | G43: Just the Tip | H43: No | I43: 312 | J43: 2154 | K43: 245 | L43: 164 | M43: 0 | N43: 0 | O43: 0 | P43: 0 | Q43: 124 | R43: 83 | S43: 0 | T43: 0 | U43: 0 | V43: 0 | AG43: Shoulder | AH43: MyShoulder
B44: Caimas' Spaulders | C44: Rare | D44: Plate | E44: Quest | F44: Quest | G44: The Pit of Scales | H44: No | I44: 312 | J44: 2154 | K44: 245 | L44: 164 | M44: 0 | N44: 0 | O44: 0 | P44: 114 | Q44: 0 | R44: 0 | S44: 101 | T44: 0 | U44: 0 | V44: 0 | AG44: Shoulder | AH44: MyShoulder
B45: Pauldrons of Unholy Rituals | C45: Rare | D45: Plate | E45: Quest | F45: Quest | G45: Followers and Leaders | H45: No | I45: 316 | J45: 2189 | K45: 255 | L45: 170 | M45: 0 | N45: 0 | O45: 0 | P45: 99 | Q45: 0 | R45: 121 | S45: 0 | T45: 0 | U45: 0 | V45: 0 | AG45: Shoulder | AH45: MyShoulder
B46: Song-Reflecting Spaulders | C46: Rare | D46: Plate | E46: Quest | F46: Quest | G46: Siren's Song/Mo' Better Shredder | H46: No | I46: 318 | J46: 2207 | K46: 260 | L46: 173 | M46: 0 | N46: 0 | O46: 0 | P46: 0 | Q46: 0 | R46: 104 | S46: 122 | T46: 0 | U46: 0 | V46: 0 | AG46: Shoulder | AH46: MyShoulder
B47: Signal Smoke Shoulderpads | C47: Rare | D47: Plate | E47: Quest | F47: Quest | G47: Call in the Artillery | H47: No | I47: 318 | J47: 2207 | K47: 260 | L47: 173 | M47: 0 | N47: 0 | O47: 0 | P47: 117 | Q47: 112 | R47: 0 | S47: 0 | T47: 0 | U47: 0 | V47: 0 | AG47: Shoulder | AH47: MyShoulder
B48: Raz's Pauldrons (Heroic) | C48: Rare | D48: Plate | E48: Pre-Raid Dungeons | F48: Heroic Blackrock Caverns | G48: Ascendant Lord Obsidius | H48: No | I48: 346 | J48: 2474 | K48: 337 | L48: 205 | M48: 0 | N48: 0 | O48: 111 | P48: 0 | Q48: 0 | R48: 161 | S48: 0 | T48: 0 | U48: 0 | V48: 0 | Y48: r | AC48: Hit | AD48: 10 | AG48: Shoulder | AH48: MyShoulder
B49: Pauldrons of the High Requiem | C49: Rare | D49: Plate | E49: Vendor / Badge | F49: Vendor | G49: 1650 Justice Points | H49: No | I49: 346 | J49: 2474 | K49: 337 | L49: 205 | M49: 0 | N49: 0 | O49: 111 | P49: 0 | Q49: 0 | R49: 0 | S49: 161 | T49: 0 | U49: 0 | V49: 0 | Y49: r | AC49: WE | AD49: 10 | AG49: Shoulder | AH49: MyShoulder
B50: Missing Diplomat's Pauldrons (Heroic) | C50: Rare | D50: Plate | E50: Pre-Raid Dungeons | F50: Heroic The Deadmines | G50: Glubtok | H50: No | I50: 346 | J50: 2474 | K50: 337 | L50: 205 | M50: 0 | N50: 0 | O50: 0 | P50: 150 | Q50: 0 | R50: 130 | S50: 0 | T50: 0 | U50: 0 | V50: 0 | Y50: b | AC50: Str | AD50: 10 | AG50: Shoulder | AH50: MyShoulder
B51: Skullpiercer Pauldrons | C51: Epic | D51: Plate | E51: Pre-Raid Dungeons | F51: Heroic Zul'Aman | G51: Daakara | H51: No | I51: 353 | J51: 2525 | K51: 360 | L51: 220 | M51: 0 | N51: 0 | O51: 0 | P51: 152 | Q51: 0 | R51: 148 | S51: 0 | T51: 0 | U51: 0 | V51: 0 | Y51: r | AC51: WE | AD51: 10 | AG51: Shoulder | AH51: MyShoulder
B52: Reinforced Sapphirium Pauldrons | C52: Epic | D52: Plate | E52: The Bastion of Twilight | F52: Bastion of Twilight | G52: Cho'gall | H52: No | I52: 359 | J52: 2570 | K52: 380 | L52: 233 | M52: 0 | N52: 0 | O52: 149 | P52: 0 | Q52: 169 | R52: 0 | S52: 0 | T52: 0 | U52: 0 | V52: 0 | Y52: r | AC52: Haste | AD52: 10 | AG52: Shoulder | AH52: MyShoulder
B53: Pauldrons of the Great Ettin | C53: Epic | D53: Plate | E53: The Bastion of Twilight | F53: Bastion of Twilight | G53: Halfus Wyrmbreaker | H53: No | I53: 359 | J53: 2570 | K53: 380 | L53: 233 | M53: 0 | N53: 0 | O53: 0 | P53: 169 | Q53: 0 | R53: 149 | S53: 0 | T53: 0 | U53: 0 | V53: 0 | Y53: b | AC53: Str | AD53: 10 | AG53: Shoulder | AH53: MyShoulder
B54: Reinforced Sapphirium Pauldrons (Heroic) | C54: Epic | D54: Plate | E54: The Bastion of Twilight | F54: Heroic Raid Endboss | G54: Heroic Raid Endboss | H54: No | I54: 372 | J54: 2669 | K54: 429 | L54: 266 | M54: 0 | N54: 0 | O54: 171 | P54: 0 | Q54: 191 | R54: 0 | S54: 0 | T54: 0 | U54: 0 | V54: 0 | Y54: r | AC54: Haste | AD54: 10 | AG54: Shoulder | AH54: MyShoulder
B55: Pauldrons of the Great Ettin (Heroic) | C55: Epic | D55: Plate | E55: The Bastion of Twilight | F55: Heroic Bastion of Twilight | G55: Halfus Wyrmbreaker | H55: No | I55: 372 | J55: 2669 | K55: 429 | L55: 266 | M55: 0 | N55: 0 | O55: 0 | P55: 191 | Q55: 0 | R55: 171 | S55: 0 | T55: 0 | U55: 0 | V55: 0 | Y55: b | AC55: Str | AD55: 10 | AG55: Shoulder | AH55: MyShoulder
B56: Immolation Pauldrons | C56: Epic | D56: Plate | E56: Firelands | F56: Firelands | G56: Majordomo Staghelm | H56: Yes | I56: 378 | J56: 2716 | K56: 454 | L56: 282 | M56: 0 | N56: 0 | O56: 0 | P56: 211 | Q56: 167 | R56: 0 | S56: 0 | T56: 0 | U56: 0 | V56: 0 | Y56: y | AC56: Str | AD56: 10 | AG56: Shoulder | AH56: MyShoulder
B57: Immolation Pauldrons (Heroic) | C57: Epic | D57: Plate | E57: Firelands | F57: Heroic Firelands | G57: Crystallized Firestone | H57: Yes | I57: 391 | J57: 2822 | K57: 513 | L57: 322 | M57: 0 | N57: 0 | O57: 0 | P57: 238 | Q57: 191 | R57: 0 | S57: 0 | T57: 0 | U57: 0 | V57: 0 | Y57: y | AC57: Str | AD57: 10 | AG57: Shoulder | AH57: MyShoulder
B59: -----PVP-----
B60: Bloodthirsty Gladiator's Scaled Shoulders | C60: Rare | D60: Plate | E60: PvP | F60: PVP | H60: =IF(AND(VLOOKUP(C60,FilterRareLookup,2,FALSE)="Yes",VLOOKUP(E60,FilterLootLookup,2,FALSE)="Yes",I60>=iLevelFilter),"Yes","No") -> No | I60: 352 | J60: 2517 | K60: 357 | L60: =218 + IF(PvPBonus>1,(70/PvPBonus),0) + IF(PvPBonus>3,(90/PvPBonus),0) -> 218 | M60: 0 | N60: 0 | O60: 0 | P60: 0 | Q60: 0 | R60: 0 | S60: 138 | T60: 0 | U60: 0 | V60: 0 | W60: 0 | X60: 0 | Y60: y | AC60: Str | AD60: 10 | AG60: Shoulder | AH60: MyShoulder
B61: Vicious Gladiator's Scaled Shoulders | C61: Epic | D61: Plate | E61: PvP | F61: PVP | H61: =IF(AND(VLOOKUP(C61,FilterRareLookup,2,FALSE)="Yes",VLOOKUP(E61,FilterLootLookup,2,FALSE)="Yes",I61>=iLevelFilter),"Yes","No") -> Yes | I61: 365 | J61: 2615 | K61: 402 | L61: =248 + IF(PvPBonus>1,(70/PvPBonus),0) + IF(PvPBonus>3,(90/PvPBonus),0) -> 248 | M61: 0 | N61: 0 | O61: 0 | P61: 0 | Q61: 0 | R61: 0 | S61: 159 | T61: 0 | U61: 0 | V61: 0 | W61: 0 | X61: 0 | Y61: y | AC61: Str | AD61: 10 | AG61: Shoulder | AH61: MyShoulder
B63: ----Craft----
B64: Redsteel Shoulders | C64: Rare | D64: Plate | E64: Craftable | F64: Craftable | G64: Blacksmithing | H64: =IF(AND(VLOOKUP(C64,FilterRareLookup,2,FALSE)="Yes",VLOOKUP(E64,FilterLootLookup,2,FALSE)="Yes",I64>=iLevelFilter),"Yes","No") -> No | I64: 325 | J64: 2271 | K64: 277 | L64: 185 | M64: 0 | N64: 0 | O64: 0 | P64: 0 | Q64: 123 | R64: 0 | S64: 123 | T64: 0 | U64: 0 | V64: 0 | AG64: Shoulder | AH64: MyShoulder
B66: ----User Added----
B69: -----Plate-----
B70: Chestplate of Viridian Renewal | C70: Rare | D70: Plate | E70: Quest | F70: Quest | G70: Aessina's Miracle | H70: =IF(AND(VLOOKUP(C70,FilterRareLookup,2,FALSE)="Yes",VLOOKUP(E70,FilterLootLookup,2,FALSE)="Yes",I70>=iLevelFilter),"Yes","No") -> No | I70: 288 | J70: 2614 | K70: 264 | L70: 176 | M70: 0 | N70: 0 | O70: 0 | P70: 115 | Q70: 0 | R70: 119 | S70: 0 | T70: 0 | U70: 0 | V70: 0 | AG70: Chest | AH70: MyChest
B71: Rough Stone Carapace | C71: Rare | D71: Plate | E71: Quest | F71: Quest | G71: Question the Slaves | H71: No | I71: 289 | J71: 2615 | K71: 267 | L71: 178 | M71: 0 | N71: 0 | O71: 0 | P71: 125 | Q71: 107 | R71: 0 | S71: 0 | T71: 0 | U71: 0 | V71: 0 | AG71: Chest | AH71: MyChest
B72: Colossus Smasher Breastplate | C72: Rare | D72: Plate | E72: Quest | F72: Quest | G72: Fortune and Glory | H72: No | I72: 312 | J72: 2872 | K72: 331 | L72: 220 | M72: 0 | N72: 0 | O72: 125 | P72: 0 | Q72: 160 | R72: 0 | S72: 0 | T72: 0 | U72: 0 | V72: 0 | AG72: Chest | AH72: MyChest
B73: Canopic Chestplate | C73: Rare | D73: Plate | E73: Quest | F73: Quest | G73: Fire From the Sky | H73: No | I73: 312 | J73: 2872 | K73: 331 | L73: 220 | M73: 0 | N73: 0 | O73: 0 | P73: 136 | Q73: 0 | R73: 153 | S73: 0 | T73: 0 | U73: 0 | V73: 0 | AG73: Chest | AH73: MyChest
B74: Harbinger's Breastplate | C74: Rare | D74: Plate | E74: World Drop | F74: World Drop | H74: No | I74: 333 | J74: 3128 | K74: 401 | L74: 268 | M74: 0 | N74: 0 | O74: 0 | P74: 178 | Q74: 0 | R74: 178 | S74: 0 | T74: 0 | U74: 0 | V74: 0 | AG74: Chest | AH74: MyChest
B75: Flynn's Favorite Chestplate | C75: Rare | D75: Plate | E75: Quest | F75: Quest | G75: Doing It Like a Dunwald/Krazz Works! | H75: No | I75: 333 | J75: 3128 | K75: 401 | L75: 268 | M75: 0 | N75: 0 | O75: 0 | P75: 0 | Q75: 148 | R75: 196 | S75: 0 | T75: 0 | U75: 0 | V75: 0 | AG75: Chest | AH75: MyChest
B76: Breastplate of the Risen Land | C76: Rare | D76: Plate | E76: Pre-Raid Dungeons | F76: Halls of Origination | G76: Earthrager Ptah | H76: No | I76: 333 | J76: 3128 | K76: 401 | L76: 268 | M76: 0 | N76: 0 | O76: 0 | P76: 178 | Q76: 0 | R76: 178 | S76: 0 | T76: 0 | U76: 0 | V76: 0 | AG76: Chest | AH76: MyChest
B77: Phantom Armor (Heroic) | C77: Rare | D77: Plate | E77: Pre-Raid Dungeons | F77: Heroic Shadowfang Keep | G77: Lord Walden | H77: No | I77: 346 | J77: 3298 | K77: 454 | L77: 262 | M77: 0 | N77: 0 | O77: 0 | P77: 172 | Q77: 0 | R77: 192 | S77: 0 | T77: 0 | U77: 0 | V77: 0 | Y77: y | Z77: b | AC77: Str | AD77: 20 | AG77: Chest | AH77: MyChest
B78: Lord Walden's Breastplate (Heroic) | C78: Rare | D78: Plate | E78: Pre-Raid Dungeons | F78: Heroic Shadowfang Keep | G78: Lord Godfrey | H78: No | I78: 346 | J78: 3298 | K78: 454 | L78: 262 | M78: 0 | N78: 0 | O78: 0 | P78: 0 | Q78: 162 | R78: 202 | S78: 0 | T78: 0 | U78: 0 | V78: 0 | Y78: r | Z78: b | AC78: Haste | AD78: 20 | AG78: Chest | AH78: MyChest
B79: Breastplate of the Risen Land (Heroic) | C79: Rare | D79: Plate | E79: Pre-Raid Dungeons | F79: Heroic Halls of Origination | G79: Earthrager Ptah | H79: No | I79: 346 | J79: 3298 | K79: 454 | L79: 262 | M79: 0 | N79: 0 | O79: 0 | P79: 202 | Q79: 0 | R79: 162 | S79: 0 | T79: 0 | U79: 0 | V79: 0 | Y79: r | Z79: b | AC79: Crit | AD79: 20 | AG79: Chest | AH79: MyChest
B80: Breastplate of Raging Fury | C80: Rare | D80: Plate | E80: Vendor / Badge | F80: Vendor | G80: 2200 Justice Points | H80: No | I80: 346 | J80: 3298 | K80: 454 | L80: 262 | M80: 0 | N80: 0 | O80: 172 | P80: 192 | Q80: 0 | R80: 0 | S80: 0 | T80: 0 | U80: 0 | V80: 0 | Y80: r | Z80: b | AC80: Crit | AD80: 20 | AG80: Chest | AH80: MyChest
B81: Chestplate of Hubris | C81: Epic | D81: Plate | E81: Pre-Raid Dungeons | F81: Heroic Zul'Aman | G81: Timed Chest | H81: No | I81: 353 | J81: 3366 | K81: 484 | L81: 283 | M81: 0 | N81: 0 | O81: 0 | P81: 204 | Q81: 186 | R81: 0 | S81: 0 | T81: 0 | U81: 0 | V81: 0 | Y81: y | Z81: b | AC81: Str | AD81: 20 | AG81: Chest | AH81: MyChest
B82: Reinforced Sapphirium Battleplate | C82: Epic | D82: Plate | E82: Vendor / Badge | F82: Vendor | G82: 2200 Valor Points | H82: No | I82: 359 | J82: 3426 | K82: 512 | L82: 301 | M82: 0 | N82: 0 | O82: 0 | P82: 228 | Q82: 188 | R82: 0 | S82: 0 | T82: 0 | U82: 0 | V82: 0 | Y82: r | Z82: b | AC82: Str | AD82: 20 | AG82: Chest | AH82: MyChest
B83: Battleplate of Ancient Kings | C83: Epic | D83: Plate | E83: Blackwing Descent | F83: Blackwing Descent | G83: Atramedes | H83: No | I83: 359 | J83: 3426 | K83: 512 | L83: 301 | M83: 0 | N83: 0 | O83: 0 | P83: 0 | Q83: 228 | R83: 0 | S83: 188 | T83: 0 | U83: 0 | V83: 0 | Y83: r | Z83: y | AC83: Haste | AD83: 20 | AG83: Chest | AH83: MyChest
B84: Reinforced Sapphirium Battleplate (Heroic) | C84: Epic | D84: Plate | E84: The Bastion of Twilight | F84: Heroic Raid Endboss | G84: Heroic Raid Endboss | H84: No | I84: 372 | J84: 3559 | K84: 578 | L84: 345 | M84: 0 | N84: 0 | O84: 0 | P84: 257 | Q84: 217 | R84: 0 | S84: 0 | T84: 0 | U84: 0 | V84: 0 | Y84: r | Z84: b | AC84: Str | AD84: 20 | AG84: Chest | AH84: MyChest
B85: Battleplate of Ancient Kings (Heroic) | C85: Epic | D85: Plate | E85: Blackwing Descent | F85: Blackwing Descent | G85: Atramedes | H85: No | I85: 372 | J85: 3559 | K85: 578 | L85: 345 | M85: 0 | N85: 0 | O85: 0 | P85: 0 | Q85: 257 | R85: 0 | S85: 217 | T85: 0 | U85: 0 | V85: 0 | Y85: r | Z85: y | AC85: Haste | AD85: 20 | AG85: Chest | AH85: MyChest
B86: Breastplate of Shifting Visions | C86: Epic | D86: Plate | E86: Firelands | F86: Firelands | G86: Majordomo Staghelm | H86: Yes | I86: 378 | J86: 3622 | K86: 611 | L86: 368 | M86: 0 | N86: 0 | O86: 0 | P86: 0 | Q86: 233 | R86: 265 | S86: 0 | T86: 0 | U86: 0 | V86: 0 | Y86: r | Z86: b | AC86: Str | AD86: 20 | AG86: Chest | AH86: MyChest
B87: Immolation Battleplate | C87: Epic | D87: Plate | E87: Firelands | F87: Firelands | G87: 2200 Valor Points | H87: Yes | I87: 378 | J87: 3622 | K87: 611 | L87: 368 | M87: 0 | N87: 0 | O87: 0 | P87: 0 | Q87: 235 | R87: 0 | S87: 269 | T87: 0 | U87: 0 | V87: 0 | Y87: r | Z87: b | AC87: Str | AD87: 20 | AG87: Chest | AH87: MyChest
B88: Breastplate of Shifting Visions (Heroic) | C88: Epic | D88: Plate | E88: Firelands | F88: Heroic Firelands | G88: Majordomo Staghelm | H88: =IF(AND(VLOOKUP(C88,FilterRareLookup,2,FALSE)="Yes",VLOOKUP(E88,FilterLootLookup,2,FALSE)="Yes",J88>=iLevelFilter),"Yes","No") -> Yes | I88: 391 | J88: 3762 | K88: 689 | L88: 420 | M88: 0 | N88: 0 | O88: 0 | P88: 0 | Q88: 266 | R88: 301 | S88: 0 | T88: 0 | U88: 0 | V88: 0 | Y88: r | Z88: b | AC88: Str | AD88: 20 | AG88: Chest | AH88: MyChest
B89: Immolation Battleplate (Heroic) | C89: Epic | D89: Plate | E89: Firelands | F89: Heroic Firelands | G89: Crystallized Firestone | H89: =IF(AND(VLOOKUP(C89,FilterRareLookup,2,FALSE)="Yes",VLOOKUP(E89,FilterLootLookup,2,FALSE)="Yes",I89>=iLevelFilter),"Yes","No") -> Yes | I89: 391 | J89: 3762 | K89: 689 | L89: 420 | M89: 0 | N89: 0 | O89: 0 | P89: 0 | Q89: 269 | R89: 0 | S89: 303 | T89: 0 | U89: 0 | V89: 0 | Y89: r | Z89: b | AC89: Str | AD89: 20 | AG89: Chest | AH89: MyChest
B91: -----PVP-----
B92: Bloodthirsty Gladiator's Scaled Chestpiece | C92: Rare | D92: Plate | E92: PvP | F92: PVP | H92: =IF(AND(VLOOKUP(C92,FilterRareLookup,2,FALSE)="Yes",VLOOKUP(E92,FilterLootLookup,2,FALSE)="Yes",I92>=iLevelFilter),"Yes","No") -> No | I92: 352 | J92: 3357 | K92: 480 | L92: =280 + IF(PvPBonus>1,(70/PvPBonus),0) + IF(PvPBonus>3,(90/PvPBonus),0) -> 280 | M92: 0 | N92: 0 | O92: 0 | P92: 173 | Q92: 0 | R92: 0 | S92: 0 | T92: 0 | U92: 0 | V92: 0 | W92: 0 | X92: 0 | Y92: r | Z92: y | AG92: Chest | AH92: MyChest
B93: Vicious Gladiator's Scaled Chestpiece | C93: Epic | D93: Plate | E93: PvP | F93: PVP | H93: =IF(AND(VLOOKUP(C93,FilterRareLookup,2,FALSE)="Yes",VLOOKUP(E93,FilterLootLookup,2,FALSE)="Yes",I93>=iLevelFilter),"Yes","No") -> Yes | I93: 365 | J93: 3487 | K93: 541 | L93: =321 + IF(PvPBonus>1,(70/PvPBonus),0) + IF(PvPBonus>3,(90/PvPBonus),0) -> 321 | M93: 0 | N93: 0 | O93: 0 | P93: 201 | Q93: 0 | R93: 0 | S93: 0 | T93: 0 | U93: 0 | V93: 0 | W93: 0 | X93: 0 | Y93: r | Z93: y | AG93: Chest | AH93: MyChest
B95: ----Craft----
B96: Redsteel Breastplate | C96: Rare | E96: Craftable | F96: Craftable | G96: Blacksmithing | H96: =IF(AND(VLOOKUP(C96,FilterRareLookup,2,FALSE)="Yes",VLOOKUP(E96,FilterLootLookup,2,FALSE)="Yes",I96>=iLevelFilter),"Yes","No") -> No | I96: 333 | J96: 3128 | K96: 401 | L96: 268 | M96: 0 | N96: 0 | O96: 0 | P96: 0 | Q96: 178 | R96: 178 | S96: 0 | T96: 0 | U96: 0 | V96: 0 | AG96: Chest | AH96: MyChest
B97: Elementium Deathplate | C97: Epic | E97: Craftable | F97: Craftable | G97: Blacksmithing | H97: =IF(AND(VLOOKUP(C97,FilterRareLookup,2,FALSE)="Yes",VLOOKUP(E97,FilterLootLookup,2,FALSE)="Yes",I97>=iLevelFilter),"Yes","No") -> No | I97: 359 | J97: 3426 | K97: 512 | L97: 321 | M97: 0 | N97: 0 | O97: 0 | P97: 228 | Q97: 0 | R97: 208 | S97: 0 | T97: 0 | U97: 0 | V97: 0 | Y97: y | AC97: Str | AD97: 8 | AG97: Chest | AH97: MyChest
B99: ----User Added----
B102: -----Plate-----
B103: Greaves of the Outcast Knight | C103: Rare | D103: Plate | E103: World Drop | F103: World Drop | H103: =IF(AND(VLOOKUP(C103,FilterRareLookup,2,FALSE)="Yes",VLOOKUP(E103,FilterLootLookup,2,FALSE)="Yes",I103>=iLevelFilter),"Yes","No") -> No | I103: 300 | J103: 2393 | K103: 296 | L103: 197 | M103: 0 | N103: 0 | O103: 115 | P103: 141 | Q103: 0 | R103: 0 | S103: 0 | T103: 0 | U103: 0 | V103: 0 | AG103: Legs | AH103: MyLegs
B104: Alpheus Legguards | C104: Rare | D104: Plate | E104: World Drop | F104: Zone Drop | G104: Throne of the Tides | H104: No | I104: 308 | J104: 2472 | K104: 319 | L104: 212 | M104: 0 | N104: 0 | O104: 124 | P104: 152 | Q104: 0 | R104: 0 | S104: 0 | T104: 0 | U104: 0 | V104: 0 | AG104: Legs | AH104: MyLegs
B105: Sunwatcher's Legplates | C105: Rare | D105: Plate | E105: Quest | F105: Quest | G105: The Scepter of Orsis | H105: No | I105: 312 | J105: 2513 | K105: 331 | L105: 220 | M105: 0 | N105: 0 | O105: 115 | P105: 0 | Q105: 0 | R105: 166 | S105: 0 | T105: 0 | U105: 0 | V105: 0 | AG105: Legs | AH105: MyLegs
B106: Legguards of Winnowing Wind | C106: Rare | D106: Plate | E106: Pre-Raid Dungeons | F106: The Vortex Pinnacle | G106: Asaad | H106: No | I106: 316 | J106: 2554 | K106: 343 | L106: 229 | M106: 0 | N106: 0 | O106: 0 | P106: 134 | Q106: 0 | R106: 164 | S106: 0 | T106: 0 | U106: 0 | V106: 0 | AG106: Legs | AH106: MyLegs
B107: Legplates of Remnants | C107: Rare | D107: Plate | E107: Quest | F107: Quest | G107: Small Comforts/Smoot's Samophlange | H107: No | I107: 318 | J107: 2575 | K107: 349 | L107: 233 | M107: 0 | N107: 0 | O107: 0 | P107: 151 | Q107: 158 | R107: 0 | S107: 0 | T107: 0 | U107: 0 | V107: 0 | AG107: Legs | AH107: MyLegs
B108: Lava-Melted Legplates | C108: Rare | D108: Plate | E108: Quest | F108: Quest | G108: A Fiery Reunion | H108: No | I108: 318 | J108: 2575 | K108: 349 | L108: 233 | M108: 0 | N108: 0 | O108: 175 | P108: 0 | Q108: 0 | R108: 0 | S108: 122 | T108: 0 | U108: 0 | V108: 0 | AG108: Legs | AH108: MyLegs
B109: Fungus-Stained Legplates | C109: Rare | D109: Plate | E109: Quest | F109: Quest | G109: Wrath of the Fungalmancer | H109: No | I109: 318 | J109: 2575 | K109: 349 | L109: 233 | M109: 0 | N109: 0 | O109: 0 | P109: 0 | Q109: 175 | R109: 122 | S109: 0 | T109: 0 | U109: 0 | V109: 0 | AG109: Legs | AH109: MyLegs
B110: Offline Greaves | C110: Rare | D110: Plate | E110: Quest | F110: Quest | G110: Penetrating Their Defenses | H110: No | I110: 333 | J110: 2737 | K110: 401 | L110: 268 | M110: 0 | N110: 0 | O110: 0 | P110: 191 | Q110: 0 | R110: 0 | S110: 157 | T110: 0 | U110: 0 | V110: 0 | AG110: Legs | AH110: MyLegs
B111: Legguards of Winnowing Wind (Heroic) | C111: Rare | D111: Plate | E111: Pre-Raid Dungeons | F111: Heroic The Vortex Pinnacle | G111: Asaad | H111: No | I111: 346 | J111: 2886 | K111: 454 | L111: 262 | M111: 0 | N111: 0 | O111: 0 | P111: 167 | Q111: 0 | R111: 185 | S111: 0 | T111: 0 | U111: 0 | V111: 0 | Y111: r | Z111: b | AC111: Mastery | AD111: 20 | AG111: Legs | AH111: MyLegs
B112: Greaves of Gallantry | C112: Rare | D112: Plate | E112: Vendor / Badge | F112: Vendor | G112: 2200 Justice Pointts | H112: No | I112: 346 | J112: 2886 | K112: 454 | L112: 262 | M112: 0 | N112: 0 | O112: 0 | P112: 182 | Q112: 182 | R112: 0 | S112: 0 | T112: 0 | U112: 0 | V112: 0 | Y112: y | Z112: b | AC112: Str | AD112: 20 | AG112: Legs | AH112: MyLegs
B113: Jungle Striders | C113: Epic | D113: Plate | E113: Pre-Raid Dungeons | F113: Heroic Zul'Aman | G113: Nalorakk | H113: No | I113: 353 | J113: 2946 | K113: 484 | L113: 283 | M113: 0 | N113: 0 | O113: 0 | P113: 0 | Q113: 199 | R113: 0 | S113: 190 | T113: 0 | U113: 0 | V113: 0 | Y113: r | Z113: y | AC113: Haste | AD113: 20 | AG113: Legs | AH113: MyLegs
B114: Terrastra's Legguards | C114: Epic | D114: Plate | E114: The Bastion of Twilight | F114: The Bastion of Twilight | G114: Elementium Monstrosity | H114: No | I114: 359 | J114: 2998 | K114: 512 | L114: 301 | M114: 0 | N114: 0 | O114: 188 | P114: 0 | Q114: 228 | R114: 0 | S114: 0 | T114: 0 | U114: 0 | V114: 0 | Y114: y | Z114: y | AC114: Haste | AD114: 20 | AG114: Legs | AH114: MyLegs
B115: Reinforced Sapphirium Legplates | C115: Epic | D115: Plate | E115: Vendor / Badge | F115: Vendor | G115: 2200 Valor Points | H115: No | I115: 359 | J115: 2998 | K115: 512 | L115: 301 | M115: 0 | N115: 0 | O115: 188 | P115: 0 | Q115: 0 | R115: 228 | S115: 0 | T115: 0 | U115: 0 | V115: 0 | Y115: y | Z115: y | AC115: Haste | AD115: 20 | AG115: Legs | AH115: MyLegs
B116: Corefire Legplates | C116: Epic | D116: Plate | E116: World Drop | F116: World Drop | G116: Heroic Dungeons | H116: No | I116: 359 | J116: 2998 | K116: 512 | L116: 301 | M116: 0 | N116: 0 | O116: 165 | P116: 0 | Q116: 241 | R116: 0 | S116: 0 | T116: 0 | U116: 0 | V116: 0 | Y116: y | Z116: y | AC116: Haste | AD116: 20 | AG116: Legs | AH116: MyLegs
B117: Terrastra's Legguards (Heroic) | C117: Epic | D117: Plate | E117: The Bastion of Twilight | F117: Heroic The Bastion of Twilight | G117: Elementium Monstrosity | H117: No | I117: 372 | J117: 3114 | K117: 578 | L117: 345 | M117: 0 | N117: 0 | O117: 217 | P117: 0 | Q117: 257 | R117: 0 | S117: 0 | T117: 0 | U117: 0 | V117: 0 | Y117: y | Z117: y | AC117: Haste | AD117: 20 | AG117: Legs | AH117: MyLegs
B118: Reinforced Sapphirium Legplates (Heroic) | C118: Epic | D118: Plate | E118: The Bastion of Twilight | F118: Heroic Raid Endboss | G118: Heroic Raid Endboss | H118: No | I118: 372 | J118: 3114 | K118: 578 | L118: 345 | M118: 0 | N118: 0 | O118: 217 | P118: 0 | Q118: 0 | R118: 257 | S118: 0 | T118: 0 | U118: 0 | V118: 0 | Y118: y | Z118: y | AC118: Haste | AD118: 20 | AG118: Legs | AH118: MyLegs
B119: Lavawork Legplates | C119: Epic | D119: Plate | E119: Firelands | F119: Firelands | G119: Alysrazor | H119: Yes | I119: 378 | J119: 3169 | K119: 611 | L119: 368 | M119: 0 | N119: 0 | O119: 284 | P119: 0 | Q119: 0 | R119: 212 | S119: 0 | T119: 0 | U119: 0 | V119: 0 | Y119: r | Z119: y | AC119: Mastery | AD119: 20 | AG119: Legs | AH119: MyLegs
B120: Immolation Legplates | C120: Epic | D120: Plate | E120: Firelands | F120: Firelands | G120: 2200 Valor Points | H120: Yes | I120: 378 | J120: 3169 | K120: 611 | L120: 368 | M120: 0 | N120: 0 | O120: 0 | P120: 227 | Q120: 0 | R120: 274 | S120: 0 | T120: 0 | U120: 0 | V120: 0 | Y120: r | Z120: y | AC120: Str | AD120: 20 | AG120: Legs | AH120: MyLegs
B121: Lavawork Legplates (Heroic) | C121: Epic | D121: Plate | E121: Firelands | F121: Heroic Firelands | G121: Alysrazor | H121: Yes | I121: 391 | J121: 3292 | K121: 689 | L121: 420 | M121: 0 | N121: 0 | O121: 320 | P121: 0 | Q121: 0 | R121: 244 | S121: 0 | T121: 0 | U121: 0 | V121: 0 | Y121: r | Z121: y | AC121: Mastery | AD121: 20 | AG121: Legs | AH121: MyLegs
B122: Immolation Legplates (Heroic) | C122: Epic | D122: Plate | E122: Firelands | F122: Heroic Firelands | G122: Crystallized Firestone | H122: Yes | I122: 391 | J122: 3292 | K122: 689 | L122: 420 | M122: 0 | N122: 0 | O122: 0 | P122: 261 | Q122: 0 | R122: 309 | S122: 0 | T122: 0 | U122: 0 | V122: 0 | Y122: r | Z122: y | AC122: Str | AD122: 20 | AG122: Legs | AH122: MyLegs
B124: -----PVP-----
B125: Bloodthirsty Gladiator's Scaled Legguards | C125: Rare | D125: Plate | E125: PvP | F125: PVP | H125: =IF(AND(VLOOKUP(C125,FilterRareLookup,2,FALSE)="Yes",VLOOKUP(E125,FilterLootLookup,2,FALSE)="Yes",I125>=iLevelFilter),"Yes","No") -> No | I125: 352 | J125: 2937 | K125: 480 | L125: =280 + IF(PvPBonus>1,(70/PvPBonus),0) + IF(PvPBonus>3,(90/PvPBonus),0) -> 280 | M125: 0 | N125: 0 | O125: 0 | P125: 0 | Q125: 173 | R125: 0 | S125: 0 | T125: 0 | U125: 0 | V125: 0 | W125: 0 | X125: 0 | Y125: r | Z125: b | AG125: Legs | AH125: MyLegs
B126: Vicious Gladiator's Scaled Legguards | C126: Epic | D126: Plate | E126: PvP | F126: PVP | H126: =IF(AND(VLOOKUP(C126,FilterRareLookup,2,FALSE)="Yes",VLOOKUP(E126,FilterLootLookup,2,FALSE)="Yes",I126>=iLevelFilter),"Yes","No") -> Yes | I126: 365 | J126: 3051 | K126: 541 | L126: =321 + IF(PvPBonus>1,(70/PvPBonus),0) + IF(PvPBonus>3,(90/PvPBonus),0) -> 321 | M126: 0 | N126: 0 | O126: 0 | P126: 0 | Q126: 201 | R126: 0 | S126: 0 | T126: 0 | U126: 0 | V126: 0 | W126: 0 | X126: 0 | Y126: r | Z126: b | AG126: Legs | AH126: MyLegs
B128: ----Craft----
B129: Redsteel Legguards | C129: Rare | D129: Plate | E129: Craftable | F129: Craftable | G129: Blacksmithing | H129: =IF(AND(VLOOKUP(C129,FilterRareLookup,2,FALSE)="Yes",VLOOKUP(E129,FilterLootLookup,2,FALSE)="Yes",I129>=iLevelFilter),"Yes","No") -> No | I129: 325 | J129: 2649 | K129: 373 | L129: 249 | M129: 0 | N129: 0 | O129: 0 | P129: 166 | Q129: 0 | R129: 166 | S129: 0 | T129: 0 | U129: 0 | V129: 0 | AG129: Legs | AH129: MyLegs
B131: ----User Added----
B135: -----Plate-----
B136: Catapult Loader's Gloves | C136: Rare | D136: Plate | E136: Quest | F136: Quest | G136: Close Escort | H136: =IF(AND(VLOOKUP(C136,FilterRareLookup,2,FALSE)="Yes",VLOOKUP(E136,FilterLootLookup,2,FALSE)="Yes",I136>=iLevelFilter),"Yes","No") -> No | I136: 305 | J136: 1744 | K136: 230 | L136: 153 | M136: 0 | N136: 0 | O136: 116 | P136: 78 | Q136: 0 | R136: 0 | S136: 0 | T136: 0 | U136: 0 | V136: 0 | AG136: Gloves | AH136: MyGloves
B137: Gauntlets of Delicate Aim | C137: Rare | D137: Plate | E137: Quest | F137: Quest | G137: Battlezone | H137: No | I137: 312 | J137: 1795 | K137: 245 | L137: 164 | M137: 0 | N137: 0 | O137: 0 | P137: 0 | Q137: 112 | R137: 104 | S137: 0 | T137: 0 | U137: 0 | V137: 0 | AG137: Gloves | AH137: MyGloves
B138: Hematite Plate Gloves | C138: Rare | D138: Plate | E138: Pre-Raid Dungeons | F138: The Stonecore | G138: Slabhide | H138: No | I138: 316 | J138: 1824 | K138: 255 | L138: 170 | M138: 0 | N138: 0 | O138: 0 | P138: 99 | Q138: 121 | R138: 0 | S138: 0 | T138: 0 | U138: 0 | V138: 0 | AG138: Gloves | AH138: MyGloves
B139: Klem's Rusted Gauntlets | C139: Rare | D139: Plate | E139: Quest | F139: Quest | G139: Distract Them for Me | H139: No | I139: 318 | J139: 1839 | K139: 260 | L139: 173 | M139: 0 | N139: 0 | O139: 0 | P139: 0 | Q139: 0 | R139: 115 | S139: 115 | T139: 0 | U139: 0 | V139: 0 | AG139: Gloves | AH139: MyGloves
B140: Coregrip Gauntlets | C140: Rare | D140: Plate | E140: Quest | F140: Quest | G140: Any Portal in a Storm | H140: No | I140: 318 | J140: 1839 | K140: 260 | L140: 173 | M140: 0 | N140: 0 | O140: 0 | P140: 120 | Q140: 107 | R140: 0 | S140: 0 | T140: 0 | U140: 0 | V140: 0 | AG140: Gloves | AH140: MyGloves
B141: Endwyn's Flickering Gauntlets | C141: Rare | D141: Plate | E141: World Drop | F141: World Drop | H141: No | I141: 325 | J141: 1892 | K141: 277 | L141: 185 | M141: 0 | N141: 0 | O141: 0 | P141: 108 | Q141: 132 | R141: 0 | S141: 0 | T141: 0 | U141: 0 | V141: 0 | AG141: Gloves | AH141: MyGloves
B142: Reaping Gauntlets | C142: Rare | D142: Plate | E142: Vendor / Badge | F142: Vendor | G142: 1650 Justice Points | H142: No | I142: 346 | J142: 2061 | K142: 337 | L142: 205 | M142: 0 | N142: 0 | O142: 0 | P142: 111 | Q142: 0 | R142: 161 | S142: 0 | T142: 0 | U142: 0 | V142: 0 | Y142: b | AC142: Str | AD142: 10 | AG142: Gloves | AH142: MyGloves
B143: Hematite Plate Gloves (Heroic) | C143: Rare | D143: Plate | E143: Pre-Raid Dungeons | F143: Heroic The Stonecore | G143: Slabhide | H143: No | I143: 346 | J143: 2061 | K143: 337 | L143: 205 | M143: 0 | N143: 0 | O143: 0 | P143: 131 | Q143: 141 | R143: 0 | S143: 0 | T143: 0 | U143: 0 | V143: 0 | Y143: r | AC143: Haste | AD143: 10 | AG143: Gloves | AH143: MyGloves
B144: Gryphon Talon Gauntlets | C144: Rare | D144: Plate | E144: Vendor / Badge | F144: Vendor | G144: Wildhammer/Dragonmaw | H144: No | I144: 346 | J144: 2061 | K144: 337 | L144: 205 | M144: 0 | N144: 0 | O144: 0 | P144: 150 | Q144: 130 | R144: 0 | S144: 0 | T144: 0 | U144: 0 | V144: 0 | Y144: y | AC144: Crit | AD144: 10 | AG144: Gloves | AH144: MyGloves
B145: Gear-Marked Gauntlets (Heroic) | C145: Rare | D145: Plate | E145: Pre-Raid Dungeons | F145: Heroic The Deadmines | G145: Helix Gearbreaker | H145: No | I145: 346 | J145: 2061 | K145: 337 | L145: 205 | M145: 0 | N145: 0 | O145: 0 | P145: 0 | Q145: 150 | R145: 130 | S145: 0 | T145: 0 | U145: 0 | V145: 0 | Y145: r | AC145: Haste | AD145: 10 | AG145: Gloves | AH145: MyGloves
B146: Plunderer's Gauntlets | C146: Epic | D146: Plate | E146: Pre-Raid Dungeons | F146: Heroic Zul'Gurub | G146: Edge of Madness | H146: No | I146: 353 | J146: 2104 | K146: 360 | L146: 220 | M146: 0 | N146: 0 | O146: 0 | P146: 0 | Q146: 137 | R146: 0 | S146: 158 | T146: 0 | U146: 0 | V146: 0 | Y146: b | AC146: Str | AD146: 10 | AG146: Gloves | AH146: MyGloves
B147: Reinforced Sapphirium Gauntlets | C147: Epic | D147: Plate | E147: Vendor / Badge | F147: Vendor | G147: 1650 Valor Points | H147: No | I147: 359 | J147: 2141 | K147: 380 | L147: 233 | M147: 0 | N147: 0 | O147: 0 | P147: 0 | Q147: 169 | R147: 149 | S147: 0 | T147: 0 | U147: 0 | V147: 0 | Y147: b | AC147: Str | AD147: 10 | AG147: Gloves | AH147: MyGloves
B148: Plated Fists of Provocation | C148: Epic | D148: Plate | E148: Blackwing Descent | F148: Blackwing Descent | G148: Chimaeron | H148: No | I148: 359 | J148: 2141 | K148: 380 | L148: 233 | M148: 0 | N148: 0 | O148: 0 | P148: 169 | Q148: 149 | R148: 0 | S148: 0 | T148: 0 | U148: 0 | V148: 0 | Y148: y | AC148: Crit | AD148: 10 | AG148: Gloves | AH148: MyGloves
B149: Gravitational Pull | C149: Epic | D149: Plate | E149: The Bastion of Twilight | F149: Bastion of Twilight | G149: Elementium Monstrosity | H149: No | I149: 359 | J149: 2141 | K149: 380 | L149: 233 | M149: 0 | N149: 0 | O149: 0 | P149: 0 | Q149: 0 | R149: 243 | S149: 108 | T149: 0 | U149: 0 | V149: 0 | Y149: y | AC149: Mastery | AD149: 10 | AG149: Gloves | AH149: MyGloves
B150: Reinforced Sapphirium Gauntlets (Heroic) | C150: Epic | D150: Plate | E150: The Bastion of Twilight | F150: Heroic Raid Endboss | G150: Heroic Raid Endboss | H150: No | I150: 372 | J150: 2224 | K150: 429 | L150: 266 | M150: 0 | N150: 0 | O150: 0 | P150: 0 | Q150: 191 | R150: 171 | S150: 0 | T150: 0 | U150: 0 | V150: 0 | Y150: b | AC150: Str | AD150: 10 | AG150: Gloves | AH150: MyGloves
B151: Plated Fists of Provocation (Heroic) | C151: Epic | D151: Plate | E151: Blackwing Descent | F151: Heroic Blackwing Descent | G151: Chimaeron | H151: No | I151: 372 | J151: 2224 | K151: 429 | L151: 266 | M151: 0 | N151: 0 | O151: 0 | P151: 191 | Q151: 171 | R151: 0 | S151: 0 | T151: 0 | U151: 0 | V151: 0 | Y151: y | AC151: Crit | AD151: 10 | AG151: Gloves | AH151: MyGloves
B152: Gravitational Pull (Heroic) | C152: Epic | D152: Plate | E152: The Bastion of Twilight | F152: Heroic The Bastion of Twilight | G152: Elementium Monstrosity | H152: No | I152: 372 | J152: 2224 | K152: 429 | L152: 266 | M152: 0 | N152: 0 | O152: 0 | P152: 0 | Q152: 0 | R152: 276 | S152: 125 | T152: 0 | U152: 0 | V152: 0 | Y152: y | AC152: Mastery | AD152: 10 | AG152: Gloves | AH152: MyGloves
B153: Fireskin Gauntlets | C153: Epic | D153: Plate | E153: Firelands | F153: Firelands | G153: Lord Rhyolith | H153: Yes | I153: 378 | J153: 2264 | K153: 454 | L153: 282 | M153: 0 | N153: 0 | O153: 211 | P153: 0 | Q153: 0 | R153: 167 | S153: 0 | T153: 0 | U153: 0 | V153: 0 | Y153: r | AC153: Hit | AD153: 10 | AG153: Gloves | AH153: MyGloves
B154: Immolation Gauntlets | C154: Epic | D154: Plate | E154: Firelands | F154: Firelands | G154: 1650 Valor Points | H154: Yes | I154: 378 | J154: 2264 | K154: 454 | L154: 282 | M154: 0 | N154: 0 | O154: 178 | P154: 0 | Q154: 0 | R154: 182 | S154: 0 | T154: 0 | U154: 0 | V154: 0 | Y154: b | AC154: Str | AD154: 10 | AG154: Gloves | AH154: MyGloves
B155: Fireskin Gauntlets (Heroic) | C155: Epic | D155: Plate | E155: Firelands | F155: Heroic Firelands | G155: Lord Rhyolith | H155: Yes | I155: 391 | J155: 2351 | K155: 513 | L155: 322 | M155: 0 | N155: 0 | O155: 238 | P155: 0 | Q155: 0 | R155: 191 | S155: 0 | T155: 0 | U155: 0 | V155: 0 | Y155: r | AC155: Hit | AD155: 10 | AG155: Gloves | AH155: MyGloves
B156: Immolation Gauntlets (Heroic) | C156: Epic | D156: Plate | E156: Firelands | F156: Heroic Firelands | G156: Crystallized Firestone | H156: Yes | I156: 391 | J156: 2351 | K156: 513 | L156: 322 | M156: 0 | N156: 0 | O156: 204 | P156: 0 | Q156: 0 | R156: 209 | S156: 0 | T156: 0 | U156: 0 | V156: 0 | Y156: b | AC156: Str | AD156: 10 | AG156: Gloves | AH156: MyGloves
B158: -----PVP-----
B159: Bloodthirsty Gladiator's Scaled Gauntlets | C159: Rare | D159: Plate | E159: PvP | F159: PVP | H159: =IF(AND(VLOOKUP(C159,FilterRareLookup,2,FALSE)="Yes",VLOOKUP(E159,FilterLootLookup,2,FALSE)="Yes",I159>=iLevelFilter),"Yes","No") -> No | I159: 352 | J159: 2098 | K159: 357 | L159: =218 + IF(PvPBonus>1,(70/PvPBonus),0) + IF(PvPBonus>3,(90/PvPBonus),0) -> 218 | M159: 0 | N159: 0 | O159: 138 | P159: 0 | Q159: 0 | R159: 0 | S159: 0 | T159: 0 | U159: 0 | V159: 0 | Y159: b | AC159: Str | AD159: 10 | AG159: Gloves | AH159: MyGloves
B160: Vicious Gladiator's Scaled Gauntlets | C160: Epic | D160: Plate | E160: PvP | F160: PVP | H160: Yes | I160: 365 | J160: 2179 | K160: 402 | L160: =248 + IF(PvPBonus>1,(70/PvPBonus),0) + IF(PvPBonus>3,(90/PvPBonus),0) -> 248 | M160: 0 | N160: 0 | O160: 159 | P160: 0 | Q160: 0 | R160: 0 | S160: 0 | T160: 0 | U160: 0 | V160: 0 | Y160: b | AC160: Str | AD160: 10 | AG160: Gloves | AH160: MyGloves
B161: Ruthless Gladiator's Scaled Gauntlets | C161: Epic | D161: Plate | E161: PvP | F161: PVP | H161: =IF(AND(VLOOKUP(C161,FilterRareLookup,2,FALSE)="Yes",VLOOKUP(E161,FilterLootLookup,2,FALSE)="Yes",I161>=iLevelFilter),"Yes","No") -> Yes | I161: 384 | J161: 2304 | K161: 480 | L161: 300 | M161: 0 | N161: 0 | O161: 194 | P161: 0 | Q161: 0 | R161: 0 | S161: 0 | T161: 0 | U161: 0 | V161: 0 | Y161: b | AC161: Str | AD161: 10 | AG161: Gloves | AH161: MyGloves
B163: ----Craft----
B164: Redsteel Gauntlets | C164: Rare | D164: Plate | E164: Craftable | F164: Craftable | G164: Blacksmithing | H164: =IF(AND(VLOOKUP(C164,FilterRareLookup,2,FALSE)="Yes",VLOOKUP(E164,FilterLootLookup,2,FALSE)="Yes",I164>=iLevelFilter),"Yes","No") -> No | I164: 289 | J164: 1634 | K164: 198 | L164: 132 | M164: 0 | N164: 0 | O164: 0 | P164: 0 | Q164: 88 | R164: 88 | S164: 0 | T164: 0 | U164: 0 | V164: 0 | AG164: Gloves | AH164: MyGloves
B165: Fists of Fury | C165: Epic | D165: Plate | E165: Craftable | F165: Craftable | G165: Blacksmithing | H165: =IF(AND(VLOOKUP(C165,FilterRareLookup,2,FALSE)="Yes",VLOOKUP(E165,FilterLootLookup,2,FALSE)="Yes",I165>=iLevelFilter),"Yes","No") -> Yes | I165: 378 | J165: 2264 | K165: 454 | L165: 282 | M165: 9 | N165: 9 | O165: 187 | P165: 197 | Q165: 0 | R165: 0 | S165: 0 | T165: 0 | U165: 0 | V165: 0 | Y165: r | AC165: Str | AD165: 10 | AG165: Gloves | AH165: MyGloves
B167: ----User Added----
B171: -----Plate-----
B172: Submariner's Weighted Treads | C172: Rare | D172: Plate | E172: Quest | F172: Quest | G172: Defending the Rift | H172: =IF(AND(VLOOKUP(C172,FilterRareLookup,2,FALSE)="Yes",VLOOKUP(E172,FilterLootLookup,2,FALSE)="Yes",I172>=iLevelFilter),"Yes","No") -> No | I172: 288 | J172: 1791 | K172: 196 | L172: 131 | M172: 0 | N172: 0 | O172: 85 | P172: 89 | Q172: 0 | R172: 0 | S172: 0 | T172: 0 | U172: 0 | V172: 0 | AG172: Feet | AH172: MyFeet
B173: Nemesis Crushers | C173: Rare | D173: Plate | E173: Quest | F173: Quest | G173: Finish Nemesis | H173: No | I173: 288 | J173: 1791 | K173: 196 | L173: 131 | M173: 0 | N173: 0 | O173: 96 | P173: 0 | Q173: 0 | R173: 72 | S173: 0 | T173: 0 | U173: 0 | V173: 0 | AG173: Feet | AH173: MyFeet
B174: Deepstone Treads | C174: Rare | D174: Plate | E174: Quest | F174: Quest | G174: The Earth Claims All | H174: No | I174: 289 | J174: 1798 | K174: 198 | L174: 132 | M174: 0 | N174: 0 | O174: 0 | P174: 0 | Q174: 0 | R174: 88 | S174: 88 | T174: 0 | U174: 0 | V174: 0 | AG174: Feet | AH174: MyFeet
B175: Qebnet Greaves | C175: Rare | D175: Plate | E175: Quest | F175: Quest | G175: The Bandit Warlord | H175: No | I175: 312 | J175: 1974 | K175: 245 | L175: 164 | M175: 0 | N175: 0 | O175: 118 | P175: 93 | Q175: 0 | R175: 0 | S175: 0 | T175: 0 | U175: 0 | V175: 0 | AG175: Feet | AH175: MyFeet
B176: Troubled Steps | C176: Rare | D176: Plate | E176: World Drop | F176: World Drop | H176: No | I176: 316 | J176: 2007 | K176: 255 | L176: 170 | M176: 0 | N176: 0 | O176: 99 | P176: 121 | Q176: 0 | R176: 0 | S176: 0 | T176: 0 | U176: 0 | V176: 0 | AG176: Feet | AH176: MyFeet
B177: Statue Climbers | C177: Rare | D177: Plate | E177: Quest | F177: Quest | G177: Do the Honors | H177: No | I177: 325 | J177: 2082 | K177: 277 | L177: 185 | M177: 0 | N177: 0 | O177: 0 | P177: 0 | Q177: 120 | R177: 0 | S177: 125 | T177: 0 | U177: 0 | V177: 0 | AG177: Feet | AH177: MyFeet
B178: Treads of Terror | C178: Rare | D178: Plate | E178: Quest | F178: Quest | G178: Skullcrusher the Mountain | H178: No | I178: 333 | J178: 2151 | K178: 298 | L178: 199 | M178: 0 | N178: 0 | O178: 129 | P178: 135 | Q178: 0 | R178: 0 | S178: 0 | T178: 0 | U178: 0 | V178: 0 | AG178: Feet | AH178: MyFeet
B179: Greaves of Wu the Elder | C179: Rare | D179: Plate | E179: World Drop | F179: Instance Drop | G179: Lost City of the Tol'vir | H179: No | I179: 333 | J179: 2151 | K179: 298 | L179: 199 | M179: 0 | N179: 0 | O179: 116 | P179: 142 | Q179: 0 | R179: 0 | S179: 0 | T179: 0 | U179: 0 | V179: 0 | AG179: Feet | AH179: MyFeet
B180: Waywatcher's Boots | C180: Rare | D180: Plate | E180: Vendor / Badge | F180: Vendor | G180: Guardians of Hyjal | H180: No | I180: 346 | J180: 2268 | K180: 337 | L180: 205 | M180: 0 | N180: 0 | O180: 0 | P180: 150 | Q180: 130 | R180: 0 | S180: 0 | T180: 0 | U180: 0 | V180: 0 | Y180: y | AC180: Str | AD180: 10 | AG180: Feet | AH180: MyFeet
B181: Greaves of Wu the Elder (Heroic) | C181: Rare | D181: Plate | E181: World Drop | F181: Instance Drop | G181: Heroic Lost City of the Tol'vir | H181: No | I181: 346 | J181: 2268 | K181: 337 | L181: 205 | M181: 0 | N181: 0 | O181: 131 | P181: 141 | Q181: 0 | R181: 0 | S181: 0 | T181: 0 | U181: 0 | V181: 0 | Y181: b | AC181: Crit | AD181: 10 | AG181: Feet | AH181: MyFeet
B182: Skullcrusher Warboots | C182: Epic | D182: Plate | E182: Pre-Raid Dungeons | F182: Heroic Zul'Aman | G182: Timed Chest 2 | H182: No | I182: 353 | J182: 2314 | K182: 360 | L182: 220 | M182: 0 | N182: 0 | O182: 148 | P182: 0 | Q182: 0 | R182: 150 | S182: 0 | T182: 0 | U182: 0 | V182: 0 | Y182: y | AC182: Str | AD182: 10 | AG182: Feet | AH182: MyFeet
B183: Woe Breeder's Boots | C183: Epic | D183: Plate | E183: Vendor / Badge | F183: Vendor | G183: 1650 Valor Points | H183: No | I183: 359 | J183: 2355 | K183: 380 | L183: 233 | M183: 0 | N183: 0 | O183: 0 | P183: 169 | Q183: 149 | R183: 0 | S183: 0 | T183: 0 | U183: 0 | V183: 0 | Y183: y | AC183: Crit | AD183: 10 | AG183: Feet | AH183: MyFeet
B184: Treads of Savage Beatings | C184: Epic | D184: Plate | E184: World Drop | F184: Instance Drop | G184: Blackwing Descent | H184: No | I184: 359 | J184: 2355 | K184: 380 | L184: 233 | M184: 0 | N184: 0 | O184: 0 | P184: 169 | Q184: 0 | R184: 149 | S184: 0 | T184: 0 | U184: 0 | V184: 0 | Y184: y | AC184: Crit | AD184: 10 | AG184: Feet | AH184: MyFeet
B185: Massacre Treads | C185: Epic | D185: Plate | E185: Blackwing Descent | F185: Blackwing Descent | G185: Chimaeron | H185: No | I185: 359 | J185: 2355 | K185: 380 | L185: 233 | M185: 0 | N185: 0 | O185: 0 | P185: 0 | Q185: 0 | R185: 169 | S185: 149 | T185: 0 | U185: 0 | V185: 0 | Y185: b | AC185: Str | AD185: 10 | AG185: Feet | AH185: MyFeet
B186: Massacre Treads (Heroic) | C186: Epic | D186: Plate | E186: Blackwing Descent | F186: Heroic Blackwing Descent | G186: Chimaeron | H186: No | I186: 372 | J186: 2447 | K186: 429 | L186: 266 | M186: 0 | N186: 0 | O186: 0 | P186: 0 | Q186: 0 | R186: 191 | S186: 171 | T186: 0 | U186: 0 | V186: 0 | Y186: b | AC186: Str | AD186: 10 | AG186: Feet | AH186: MyFeet
B187: Arachnaflame Treads | C187: Epic | D187: Plate | E187: Firelands | F187: Firelands | G187: Beth'tilac | H187: Yes | I187: 378 | J187: 2490 | K187: 454 | L187: 282 | M187: 0 | N187: 0 | O187: 0 | P187: 202 | Q187: 182 | R187: 0 | S187: 0 | T187: 0 | U187: 0 | V187: 0 | Y187: r | AC187: Str | AD187: 10 | AG187: Feet | AH187: MyFeet
B188: Arachnaflame Treads (Heroic) | C188: Epic | D188: Plate | E188: Firelands | F188: Heroic Firelands | G188: Beth'tilac | H188: Yes | I188: 391 | J188: 2586 | K188: 513 | L188: 322 | M188: 0 | N188: 0 | O188: 0 | P188: 228 | Q188: 208 | R188: 0 | S188: 0 | T188: 0 | U188: 0 | V188: 0 | Y188: r | AC188: Str | AD188: 10 | AG188: Feet | AH188: MyFeet
B190: -----PVP-----
B192: ----Craft----
B193: Redsteel Boots | C193: Rare | D193: Plate | E193: Craftable | F193: Craftable | G193: Blacksmithing | H193: =IF(AND(VLOOKUP(C193,FilterRareLookup,2,FALSE)="Yes",VLOOKUP(E193,FilterLootLookup,2,FALSE)="Yes",I193>=iLevelFilter),"Yes","No") -> No | I193: 316 | J193: 2007 | K193: 255 | L193: 170 | M193: 0 | N193: 0 | O193: 0 | P193: 113 | Q193: 0 | R193: 113 | S193: 0 | T193: 0 | U193: 0 | V193: 0 | AG193: Feet | AH193: MyFeet
B194: Warboots of Mighty Lords | C194: Epic | D194: Plate | E194: Craftable | F194: Craftable | G194: Blacksmithing | H194: =IF(AND(VLOOKUP(C194,FilterRareLookup,2,FALSE)="Yes",VLOOKUP(E194,FilterLootLookup,2,FALSE)="Yes",I194>=iLevelFilter),"Yes","No") -> Yes | I194: 378 | J194: 2490 | K194: 454 | L194: 282 | M194: 0 | N194: 0 | O194: 187 | P194: 197 | Q194: 0 | R194: 0 | S194: 0 | T194: 0 | U194: 0 | V194: 0 | Y194: r | AC194: Str | AD194: 10 | AG194: Feet | AH194: MyFeet
B196: ----User Added----
B200: -----Plate-----
B201: Earthswell Belt | C201: Rare | D201: Plate | E201: Quest | F201: Quest | G201: Sealing the Way | H201: =IF(AND(VLOOKUP(C201,FilterRareLookup,2,FALSE)="Yes",VLOOKUP(E201,FilterLootLookup,2,FALSE)="Yes",I201>=iLevelFilter),"Yes","No") -> No | I201: 289 | J201: 1471 | K201: 198 | L201: 132 | M201: 0 | N201: 0 | O201: 0 | P201: 100 | Q201: 0 | R201: 67 | S201: 0 | T201: 0 | U201: 0 | V201: 0 | AG201: Belt | AH201: MyBelt
B202: Girdle of Heated Deeds | C202: Rare | D202: Plate | E202: World Drop | F202: World Drop | H202: No | I202: 300 | J202: 1538 | K202: 219 | L202: 126 | M202: 0 | N202: 0 | O202: 0 | P202: 77 | Q202: 0 | R202: 97 | S202: 0 | T202: 0 | U202: 0 | V202: 0 | Y202: r | AC202: Str | AD202: 10 | AG202: Belt | AH202: MyBelt
B203: Belt of a Thousand Deaths | C203: Rare | D203: Plate | E203: Quest | F203: Quest | G203: Rescue the Earthspeaker! | H203: No | I203: 308 | J203: 1589 | K203: 237 | L203: 158 | M203: 0 | N203: 0 | O203: 0 | P203: 105 | Q203: 0 | R203: 105 | S203: 0 | T203: 0 | U203: 0 | V203: 0 | AG203: Belt | AH203: MyBelt
B204: Guardian-Killer Waistplate | C204: Rare | D204: Plate | E204: Quest | F204: Quest | G204: I'll Do It By Hand | H204: No | I204: 312 | J204: 1615 | K204: 245 | L204: 164 | M204: 0 | N204: 0 | O204: 0 | P204: 115 | Q204: 0 | R204: 0 | S204: 98 | T204: 0 | U204: 0 | V204: 0 | AG204: Belt | AH204: MyBelt
B205: Stoutwaist Girdle | C205: Rare | D205: Plate | E205: Quest | F205: Quest | G205: The Loyalty of Clan Mullan/Twilight Skies | H205: No | I205: 318 | J205: 1655 | K205: 260 | L205: 173 | M205: 0 | N205: 0 | O205: 98 | P205: 0 | Q205: 0 | R205: 125 | S205: 0 | T205: 0 | U205: 0 | V205: 0 | AG205: Belt | AH205: MyBelt
B206: Gryphon-Seeker Waistplate | C206: Rare | D206: Plate | E206: Quest | F206: Quest | G206: Finding Beak/Parting Packages | H206: No | I206: 318 | J206: 1655 | K206: 260 | L206: 173 | M206: 0 | N206: 0 | O206: 0 | P206: 0 | Q206: 125 | R206: 98 | S206: 0 | T206: 0 | U206: 0 | V206: 0 | AG206: Belt | AH206: MyBelt
B207: Belt of the Forgemaster | C207: Rare | D207: Plate | E207: Pre-Raid Dungeons | F207: Grim Batol | G207: Forgemaster Throngus | H207: No | I207: 333 | J207: 1760 | K207: 298 | L207: 199 | M207: 0 | N207: 0 | O207: 0 | P207: 133 | Q207: 133 | R207: 0 | S207: 0 | T207: 0 | U207: 0 | V207: 0 | AG207: Belt | AH207: MyBelt
B208: Garr's Girdle of Memories | C208: Rare | D208: Plate | E208: World Boss | F208: World Boss | G208: Deprecated | H208: No | I208: 346 | J208: 1855 | K208: 337 | L208: 225 | M208: 0 | N208: 0 | O208: 0 | P208: 150 | Q208: 0 | R208: 150 | S208: 0 | T208: 0 | U208: 0 | V208: 0 | AG208: Belt | AH208: MyBelt
B209: Belt of the Forgemaster (Heroic) | C209: Rare | D209: Plate | E209: Pre-Raid Dungeons | F209: Heroic Grim Batol | G209: Forgemaster Throngus | H209: No | I209: 346 | J209: 1855 | K209: 337 | L209: 205 | M209: 0 | N209: 0 | O209: 0 | P209: 130 | Q209: 150 | R209: 0 | S209: 0 | T209: 0 | U209: 0 | V209: 0 | Y209: y | AC209: Haste | AD209: 10 | AG209: Belt | AH209: MyBelt
B210: Beech Green Belt | C210: Rare | D210: Plate | E210: Vendor / Badge | F210: Vendor | G210: 1650 Justice Points | H210: No | I210: 346 | J210: 1855 | K210: 337 | L210: 205 | M210: 0 | N210: 0 | O210: 0 | P210: 130 | Q210: 0 | R210: 150 | S210: 0 | T210: 0 | U210: 0 | V210: 0 | Y210: y | AC210: Mastery | AD210: 10 | AG210: Belt | AH210: MyBelt
B211: Belt of the Ferocious Wolf | C211: Epic | D211: Plate | E211: Vendor / Badge | F211: Vendor | G211: Guardians of Hyjal Exalted | H211: No | I211: 359 | J211: 1927 | K211: 380 | L211: 233 | M211: 0 | N211: 0 | O211: 0 | P211: 149 | Q211: 0 | R211: 169 | S211: 0 | T211: 0 | U211: 0 | V211: 0 | Y211: b | AC211: Str | AD211: 10 | AG211: Belt | AH211: MyBelt
B212: Belt of Absolute Zero | C212: Epic | D212: Plate | E212: Blackwing Descent | F212: Blackwing Descent | G212: Maloriak | H212: No | I212: 359 | J212: 1927 | K212: 380 | L212: 233 | M212: 0 | N212: 0 | O212: 149 | P212: 169 | Q212: 0 | R212: 0 | S212: 0 | T212: 0 | U212: 0 | V212: 0 | Y212: r | AC212: Hit | AD212: 10 | AG212: Belt | AH212: MyBelt
B213: Garr's Reinforced Girdle of Memories | C213: Epic | D213: Plate | E213: World Boss | F213: World Boss | G213: Garr - Mount Hyjal | H213: No | I213: 359 | J213: 1927 | K213: 380 | L213: 253 | M213: 0 | N213: 0 | O213: 0 | P213: 169 | Q213: 0 | R213: 169 | S213: 0 | T213: 0 | U213: 0 | V213: 0 | AG213: Belt | AH213: MyBelt
B214: Rickety Belt | C214: Epic | D214: Plate | E214: Vendor / Badge | F214: Vendor | G214: Damek Bloombeard - Additional Armaments | H214: Yes | I214: 365 | J214: 1961 | K214: 402 | L214: 248 | M214: 0 | N214: 0 | O214: 0 | P214: 0 | Q214: 188 | R214: 0 | S214: 139 | T214: 0 | U214: 0 | V214: 0 | Y214: r | AC214: Crit | AD214: 10 | AG214: Belt | AH214: MyBelt
B215: Belt of Absolute Zero (Heroic) | C215: Epic | D215: Plate | E215: Blackwing Descent | F215: Heroic Blackwing Descent | G215: Maloriak | H215: No | I215: 372 | J215: 1927 | K215: 429 | L215: 266 | M215: 0 | N215: 0 | O215: 171 | P215: 191 | Q215: 0 | R215: 0 | S215: 0 | T215: 0 | U215: 0 | V215: 0 | Y215: r | AC215: Hit | AD215: 10 | AG215: Belt | AH215: MyBelt
B216: Cinch of the Flaming Ember | C216: Epic | D216: Plate | E216: Vendor / Badge | F216: Vendor | G216: Avengers of Hyjal | H216: Yes | I216: 378 | J216: 2037 | K216: 454 | L216: 282 | M216: 0 | N216: 0 | O216: 133 | P216: 230 | Q216: 0 | R216: 0 | S216: 0 | T216: 0 | U216: 0 | V216: 0 | Y216: b | AC216: Str | AD216: 10 | AG216: Belt | AH216: MyBelt
B217: Cinch of the Flaming Ember (Heroic) | C217: Epic | D217: Plate | E217: Vendor / Badge | F217: Vendor | G217: Not Presently Available | H217: Yes | I217: 391 | J217: 2116 | K217: 513 | L217: 322 | M217: 0 | N217: 0 | O217: 153 | P217: 260 | Q217: 0 | R217: 0 | S217: 0 | T217: 0 | U217: 0 | V217: 0 | Y217: b | AC217: Str | AD217: 10 | AG217: Belt | AH217: MyBelt
B219: -----PVP-----
B221: ----Craft----
B222: Redsteel Belt | C222: Rare | D222: Plate | E222: Craftable | F222: Craftable | G222: Blacksmithing | H222: =IF(AND(VLOOKUP(C222,FilterRareLookup,2,FALSE)="Yes",VLOOKUP(E222,FilterLootLookup,2,FALSE)="Yes",I222>=iLevelFilter),"Yes","No") -> No | I222: 316 | J222: 1642 | K222: 255 | L222: 170 | M222: 0 | N222: 0 | O222: 0 | P222: 0 | Q222: 0 | R222: 113 | S222: 113 | T222: 0 | U222: 0 | V222: 0 | AG222: Belt | AH222: MyBelt
B223: Elementium Girdle of Pain | C223: Epic | D223: Plate | E223: Craftable | F223: Craftable | G223: Blacksmithing | H223: =IF(AND(VLOOKUP(C223,FilterRareLookup,2,FALSE)="Yes",VLOOKUP(E223,FilterLootLookup,2,FALSE)="Yes",I223>=iLevelFilter),"Yes","No") -> No | I223: 359 | J223: 1927 | K223: 380 | L223: 233 | M223: 0 | N223: 0 | O223: 169 | P223: 0 | Q223: 149 | R223: 0 | S223: 0 | T223: 0 | U223: 0 | V223: 0 | Y223: y | AC223: Str | AD223: 10 | AG223: Belt | AH223: MyBelt
B225: ----User Added----
B229: -----Plate-----
B230: Bracers of Bloody Business | C230: Rare | D230: Plate | E230: World Drop | F230: World Drop | G230: World Drop | H230: =IF(AND(VLOOKUP(C230,FilterRareLookup,2,FALSE)="Yes",VLOOKUP(E230,FilterLootLookup,2,FALSE)="Yes",I230>=iLevelFilter),"Yes","No") -> No | I230: 292 | J230: 1158 | K230: 153 | L230: 102 | M230: 0 | N230: 0 | O230: 0 | P230: 68 | Q230: 0 | R230: 0 | S230: 68 | T230: 0 | U230: 0 | V230: 0 | AG230: Bracer | AH230: MyBracer
B231: Petrified Stone Bracers | C231: Rare | D231: Plate | E231: Quest | F231: Quest | G231: Rock Bottom | H231: No | I231: 305 | J231: 1221 | K231: 173 | L231: 115 | M231: 0 | N231: 0 | O231: 0 | P231: 73 | Q231: 0 | R231: 0 | S231: 79 | T231: 0 | U231: 0 | V231: 0 | AG231: Bracer | AH231: MyBracer
B232: Bracers of Cooled Anger | C232: Rare | D232: Plate | E232: Pre-Raid Dungeons | F232: Blackrock Caverns | G232: Karsh Steelbender | H232: No | I232: 308 | J232: 1236 | K232: 177 | L232: 118 | M232: 0 | N232: 0 | O232: 0 | P232: 79 | Q232: 0 | R232: 0 | S232: 79 | T232: 0 | U232: 0 | V232: 0 | AG232: Bracer | AH232: MyBracer
B233: Weaponseeker Bracers | C233: Rare | D233: Plate | E233: Quest | F233: Quest | G233: Ancient Weapons | H233: No | I233: 312 | J233: 1256 | K233: 184 | L233: 123 | M233: 0 | N233: 0 | O233: 0 | P233: 64 | Q233: 92 | R233: 0 | S233: 0 | T233: 0 | U233: 0 | V233: 0 | AG233: Bracer | AH233: MyBracer
B234: Scavenger Bracers | C234: Rare | D234: Plate | E234: Quest | F234: Quest | G234: Missing Parts/Unfamiliar Waters | H234: No | I234: 318 | J234: 1287 | K234: 195 | L234: 130 | M234: 0 | N234: 0 | O234: 71 | P234: 0 | Q234: 95 | R234: 0 | S234: 0 | T234: 0 | U234: 0 | V234: 0 | AG234: Bracer | AH234: MyBracer
B235: Bracers of Gleaming Shards | C235: Rare | D235: Plate | E235: Quest | F235: Quest | G235: A Little on the Side | H235: No | I235: 318 | J235: 1287 | K235: 195 | L235: 130 | M235: 0 | N235: 0 | O235: 0 | P235: 87 | Q235: 0 | R235: 0 | S235: 87 | T235: 0 | U235: 0 | V235: 0 | AG235: Bracer | AH235: MyBracer
B236: Alpha Bracers | C236: Rare | D236: Plate | E236: Pre-Raid Dungeons | F236: Halls of Origination | G236: Anraphet | H236: No | I236: 333 | J236: 1369 | K236: 224 | L236: 129 | M236: 0 | N236: 0 | O236: 80 | P236: 0 | Q236: 0 | R236: 100 | S236: 0 | T236: 0 | U236: 0 | V236: 0 | Y236: y | AC236: Mastery | AD236: 10 | AG236: Bracer | AH236: MyBracer
B237: Terborus's Rotating Bands | C237: Rare | D237: Plate | E237: World Drop | F237: Deepholm | G237: Terborus | H237: No | I237: 346 | J237: 1443 | K237: 252 | L237: 148 | M237: 0 | N237: 0 | O237: 92 | P237: 0 | Q237: 0 | R237: 112 | S237: 0 | T237: 0 | U237: 0 | V237: 0 | Y237: y | AC237: Mastery | AD237: 10 | AG237: Bracer | AH237: MyBracer
B238: Bracers of Cooled Anger (Heroic) | C238: Rare | D238: Plate | E238: Pre-Raid Dungeons | F238: Heroic Blackrock Caverns | G238: Karsh Steelbender | H238: No | I238: 346 | J238: 1443 | K238: 252 | L238: 168 | M238: 0 | N238: 0 | O238: 0 | P238: 112 | Q238: 0 | R238: 0 | S238: 112 | T238: 0 | U238: 0 | V238: 0 | AG238: Bracer | AH238: MyBracer
B239: Alpha Bracers (Heroic) | C239: Rare | D239: Plate | E239: Pre-Raid Dungeons | F239: Heroic Halls of Origination | G239: Anraphet | H239: No | I239: 346 | J239: 1443 | K239: 252 | L239: 148 | M239: 0 | N239: 0 | O239: 92 | P239: 0 | Q239: 0 | R239: 112 | S239: 0 | T239: 0 | U239: 0 | V239: 0 | Y239: y | AC239: Mastery | AD239: 10 | AG239: Bracer | AH239: MyBracer
B240: Deathcharged Wristguards | C240: Epic | D240: Plate | E240: Pre-Raid Dungeons | F240: Heroic Zul'Gurub | G240: Bloodlord Mandokir | H240: No | I240: 353 | J240: 1473 | K240: 270 | L240: 180 | M240: 0 | N240: 0 | O240: 0 | P240: 111 | Q240: 0 | R240: 0 | S240: 125 | T240: 0 | U240: 0 | V240: 0 | AG240: Bracer | AH240: MyBracer
B241: Electron Inductor Coils | C241: Epic | D241: Plate | E241: Blackwing Descent | F241: Blackwing Descent | G241: Omnotron Defense | H241: No | I241: 359 | J241: 1499 | K241: 286 | L241: 190 | M241: 0 | N241: 0 | O241: 127 | P241: 0 | Q241: 127 | R241: 0 | S241: 0 | T241: 0 | U241: 0 | V241: 0 | AG241: Bracer | AH241: MyBracer
... 386 more rows

Sheet Sheet2 (hidden)
A1: Selected Gear
A2: All | C2: Mygear
A3: =MyHead -> Reinforced Sapphirium Helmet | C3: Myhead
A4: =MyShoulder -> Reinforced Sapphirium Pauldrons | C4: myshoulder
A5: =MyChest -> Immolation Battleplate | C5: mychest
A6: =MyLegs -> Immolation Legplates | C6: mylegs
A7: =MyGloves -> Fireskin Gauntlets | C7: mygloves
A8: =MyFeet -> Arachnaflame Treads | C8: myfeet
A9: =MyBelt -> Cinch of the Flaming Ember | C9: mybelt
A10: =MyBracer -> Earthcrack Bracers | C10: mybracer
A11: =MyBack -> Bladed Flamewrath Cover | C11: myback
A12: =MyNeck -> Gift of Nadun | C12: myneck
A13: =MyTrinket1 -> Essence of the Eternal Flame | C13: mytrinket1
A14: =MyTrinket2 -> Darkmoon Card: Hurricane | C14: mytrinket2
A15: =MyRing1 -> Serrated Brimstone Signet | C15: myring1
A16: =MyRing2 -> Alysrazor's Band | C16: myring2
A17: =MyLibram -> Relic of the Elemental Lords | C17: mylibram
A18: =MyWeapon -> Zoid's Firelit Greatsword | C18: myweapon
A19: AnalysisRange: | C19: =VLOOKUP('Item Calc'!B3,A2:C18,3,FALSE) -> Mygear
A22: Insert Item Lookup
A23: Helm | B23: UserHelm | C23: Head | D23: MyHead
A24: Shoulder | B24: UserShoulder | C24: Shoulder | D24: MyShoulder
A25: Chest | B25: UserChest | C25: Chest | D25: MyChest
A26: Legs | B26: UserLegs | C26: Legs | D26: MyLegs
A27: Gloves | B27: UserGloves | C27: Gloves | D27: MyGloves
A28: Boots | B28: UserBoots | C28: Feet | D28: MyFeet
A29: Belt | B29: UserBelt | C29: Belt | D29: MyBelt
A30: Bracers | B30: UserBracer | C30: Bracer | D30: MyBracer
A31: Cloak | B31: UserCloak | C31: Back | D31: MyBack
A32: Neck | B32: UserNeck | C32: Neck | D32: MyNeck
A33: Ring | B33: UserRing | C33: Ring | D33: MyRing
A34: Trinket | B34: UserTrinket | C34: Trinket | D34: MyTrinket
A35: Weapon | B35: UserWeapon | C35: Weapon | D35: MyWeapon
A36: Libram | B36: UserLibram | C36: Libram | D36: MyLibram
A37: Gem | B37: UserGem | C37: Gem | D37: MyGem
A38: Meta Gem | B38: UserMeta | C38: MetaGem | D38: MyMetaGem

Sheet Race Type (hidden)
A1: Information | B1: Stam | C1: Int | D1: Str | E1: AP | F1: Agi | G1: Hit | H1: Crit | I1: Haste | J1: Mastery | K1: WE | L1: SpD | M1: Dam (S) | N1: SpH | O1: SpC | P1: Mp5 | Q1: Health | R1: Mana
A2: Base Information (Dwarf) | B2: 157 | C2: 105 | D2: 169 | E2: =235 + (D2 * 2) -> 573 | F2: 93 | H2: 0.65 | K2: =IF(ISNONTEXT(MyWeapon),0,IF(VLOOKUP(MyWeapon,Gear!B411:AI453,34,FALSE)="Mace",3,0)) -> 0 | L2: =ROUNDDOWN((C2-10),0) -> 95 | O2: 3.33 | P2: 1171 | Q2: 44675 | R2: 23142
A3: Base Information (Human) | B3: 156 | C3: 106 | D3: 164 | E3: =235 + (D3 * 2) -> 563 | F3: 97 | H3: 0.65 | K3: =IF(ISNONTEXT(MyWeapon),0,IF(VLOOKUP(MyWeapon,Gear!B411:AI453,34,FALSE)="Mace",3,IF(VLOOKUP(MyWeapon,Gear!B411:AI453,34,FALSE)="Sword",3,0))) -> 3 | L3: =ROUNDDOWN((C3-10),0) -> 96 | O3: 3.33 | P3: 1171 | Q3: 44665 | R3: 23142
A4: Base Information (Blood Elf) | B4: 156 | C4: 109 | D4: 161 | E4: =235 + (D4 * 2) -> 557 | F4: 99 | H4: 0.65 | L4: 99 | O4: 3.33 | P4: =1171 + 483/24 -> 1191.125 | Q4: 44665 | R4: 23142
A5: Base Information (Draenei) | B5: 156 | C5: 106 | D5: 165 | E5: =235 + (D5 * 2) -> 565 | F5: 94 | G5: 1 | H5: 0.65 | L5: 96 | N5: 1 | O5: 3.33 | P5: 1171 | Q5: 44665 | R5: 23142
A6: Base Information (Tauren) | C6: 102 | D6: 177 | E6: =235 + (D6 * 2) -> 589 | F6: 93 | H6: 0.65 | L6: 92 | O6: 3.33 | P6: 1171 | R6: 23142

Sheet DPS Calc
A1: DPS CALCULATIONS
B3: Weapon | F3: White | G3: Normal | H3: AW | J3: SoR | K3: Normal | L3: AW | N3: Hammer of Wrath | O3: Normal | P3: AW | R3: Coefficients | S3: 80 | T3: Attack Power | U3: Spelldamage
B4: Speed | C4: =Weaponspeed -> 3.6 | F4: Cooldown | G4: =ROUND(HastedWeaponspeed,2) -> 2.58 | J4: =CONCATENATE("Procs in ",Length," seconds") -> Procs in 450 seconds | K4: =IF(CSDPS>(DSDPS * (ExtraTargets+1)),SUM(G23:G24),SUM(G38:G39)) + ((SUM(G7:G9) + SUM(G52:G53) + SUM(K14:K15)) * (ExtraTargets+1)) -> 308.695449 | L4: =IF(CSDPS>(DSDPS * (ExtraTargets+1)),SUM(H23:H24),SUM(H38:H39)) + ((SUM(H7:H9) + SUM(H52:H53) + SUM(L14:L15)) * (ExtraTargets+1)) -> 78.06261715 | N4: Effective Cooldown | O4: =IF((SUM(O5:P5)=0),0,(Length / SUM(O5:P5))) -> 23.52195885 | R4: SoR | S4: =Weaponspeed -> 3.6 | T4: 0.011 | U4: 0.022
B5: Hasted | C5: =Weaponspeed/((1 + WindFuryHaste) * (1 + JotPHaste) * (1 + (CurrentHaste / 100))) -> 2.578197779 | F5: =CONCATENATE("Total Attacks in ",Length," seconds") -> Total Attacks in 450 seconds | G5: =Length/HastedWeaponspeed * 5/6 -> 145.4504395 | H5: =Length/HastedWeaponspeed * 1/6 -> 29.09008789 | J5: Av Hit | K5: =SoRBase * ((SoRAP * CharTotalAP) + (SoRSP * CharSpelldamage)) -> 1032.780982 | L5: =K5 * 1.2 -> 1239.337179 | N5: =CONCATENATE("Total Attacks in ",Length," seconds") -> Total Attacks in 450 seconds | O5: =NumHoW -> 9.320259874 | P5: =NumAWHoW -> 9.810799867 | R5: JoR | S5: 1 | T5: 0.2 | U5: 0.32
B6: Weapon Dps | C6: =WeaponDPS -> 744.1 | F6: =CONCATENATE("Avoidance in ",Length," seconds") -> Avoidance in 450 seconds | G6: =Avoidance * G5 -> 0 | H6: =Avoidance * H5 -> 0 | J6: Av Hit Post Buffs/Miti | K6: =K5 * Communion * TotT * TwoHWeapSpec * Inquisition * SealDamage * CoE -> 2069.435695 | L6: =K6 * 1.2 -> 2483.322834 | N6: =CONCATENATE("Miss in ",Length," seconds") -> Miss in 450 seconds | O6: =O5 * MeleeMiss -> 0 | P6: =P5 * MeleeMiss -> 0 | R6: SoT | S6: =0.15 * WeaponDamage -> 1001.588743 | T6: 0 | U6: 0
B7: Av. Hit | C7: =((WeaponDPS * Weaponspeed) + ((CharTotalAP / 14) * Weaponspeed)) -> 6677.258288 | F7: =CONCATENATE("Crits in ",Length," seconds") -> Crits in 450 seconds | G7: =MIN((G5 * (CritTotal% - CritReduction)),(NumMelee - G6)) -> 14.46724711 | H7: =MIN((H5 * (CritTotal% - CritReduction)),(NumAWMelee - H6)) -> 2.893449421 | J7: Total Damage | K7: =K6 * K4 -> 638825.3811 | L7: =L6 * L4 -> 193854.6797 | N7: =CONCATENATE("Full Resists in ",Length," seconds") -> Full Resists in 450 seconds | O7: =O5 * FullResist -> 0.04660129937 | P7: =P5 * FullResist -> 0.04905399934 | R7: Censure (SoT Tick) | S7: 0 | T7: 0.027 | U7: 0.014
B8: Dps | C8: =WeaponDamage / HastedWeaponspeed -> 2589.89374 | F8: =CONCATENATE("Glancing in ",Length," seconds") -> Glancing in 450 seconds | G8: =MIN((GlanceFreq * G5),(NumMelee - G6)) -> 34.90810547 | H8: =MIN((GlanceFreq * H5),(NumAWMelee - H6)) -> 6.981621094 | J8: Dps | L8: =(K7 + L7)/Length * (1 + ICCBuff) -> 1850.400135 | N8: =CONCATENATE("Crits in ",Length," seconds") -> Crits in 450 seconds | O8: =MIN((O5 * HoWCrit),(O5 - SUM(O6:O7))) -> 6.724619428 | P8: =MIN((P5 * HoWCrit),(P5 - SUM(P6:P7))) -> 7.078546766 | R8: JoT | S8: 1 | T8: 0.1421 | U8: 0.2229
F9: =CONCATENATE("Hits in ",Length," seconds") -> Hits in 450 seconds | G9: =G5 - SUM(G6:G8) -> 96.07508689 | H9: =H5 - SUM(H6:H8) -> 19.21501738 | N9: =CONCATENATE("Hits in ",Length," seconds") -> Hits in 450 seconds | O9: =O5 - SUM(O6:O8) -> 2.549039147 | P9: =P5 - SUM(P6:P8) -> 2.683199102 | R9: Consecration | S9: 810 | T9: 0.27 | U9: 0.27
B10: Spell GCD | C10: =MAX((1.5 / (( 1 + WoAHaste) * (1 + JotPHaste) * (1 + (CurrentHaste / 100)))),1) -> 1.125403792 | F10: Av Hit | G10: =WeaponDamage -> 6677.258288 | H10: =G10 * 1.2 -> 8012.709946 | J10: JoR | K10: Normal | L10: AW | N10: Av Hit | O10: =HoWBase + (HoWAP * CharTotalAP) + (HoWSP * CharSpelldamage) -> 10695.42989 | P10: =O10 * 1.2 -> 12834.51587 | R10: Exorcism | S10: 2741 | T10: =IF(CharTotalAP>CharSpelldamage,0.344,0) -> 0.344 | U10: =IF(CharTotalAP>CharSpelldamage,0,0.344) -> 0
B11: CS CD | C11: =MAX(3,(4.5/(( 1 + WoAHaste) * (1 + JotPHaste) * (1 + (CurrentHaste / 100))))) -> 3.376211377 | F11: Av Crit | G11: =G10 + G10 -> 13354.51658 | H11: 16025.41989 | J11: Effective Cooldown | K11: =JudgementCD -> 13.58016216 | N11: Av Crit | O11: =O10 + O10 -> 21390.85978 | P11: =O11 * 1.2 -> 25669.03173 | R11: Holy Wrath | S11: 2402 | T11: 0 | U11: 0.61
B12: Mastery | C12: =(16.8% + (Mastery% * 2.1)) -> 0.3414772423 | F12: Av Glance | G12: =G10*(100%-GlanceAmt) -> 5007.943716 | H12: 6009.532459 | J12: =CONCATENATE("Total Attacks in ",Length," seconds") -> Total Attacks in 450 seconds | K12: =NumJudge -> 27.6138087 | L12: =NumAWJudge -> 5.52276174 | N12: Av Hit Post Buffs/Miti | O12: =O10 * Communion * TotT * CoE * Inquisition -> 15945.66662 | P12: =O12 * 1.2 -> 19134.79995 | R12: Hammer of Wrath | S12: 4015 | T12: 0.39 | U12: 0.117
B13: Inq Uptime | C13: =IF(InqRefresh="Unused",0%,(MIN(1,((36 + IF(T11Bonus>3,12,0))/((36 + IF(T11Bonus>3,12,0)) + (G49 / 2) - InqRefresh) - IF(T11Bonus>3,(TVCooldown / Length),((TVCooldown * 2) / Length )))))) -> 0.9842833516 | F13: Av Hit Post Buffs/Miti | G13: =G10 * ArmorMitigation * Communion * TotT * TwoHWeapSpec * BloodFrenzy -> 6324.296926 | H13: 7589.156311 | J13: =CONCATENATE("Miss in ",Length," seconds") -> Miss in 450 seconds | K13: =K12 * MeleeMiss -> 0 | L13: =L12 * MeleeMiss -> 0 | N13: Av Crit Post Buffs/Miti | O13: =(O12 + O12) * CritBonus -> 32848.07324 | P13: =O13 * 1.2 -> 39417.68789 | R13: Retribution Aura | S13: 121 | T13: 0 | U13: 0.0333
F14: Av Crit Post Buffs/Miti | G14: =(G13 + G13) * CritBonus -> 13028.05167 | H14: 15633.662 | J14: =CONCATENATE("Crits in ",Length," seconds") -> Crits in 450 seconds | K14: =MIN((K12 * JCrit),(NumJudge2 - K13)) -> 6.06026816 | L14: =MIN((L12 * JCrit),(NumAWJudge2 - L13)) -> 1.212053632 | N14: Total Damage | O14: =(O12 * O9) + (O13 * O8) -> 261536.9199 | P14: =(P12 * P9) + (P13 * P8) -> 330362.4252
B15: DPS SoR | C15: =AutoattackDPS + SoRDPS + JoRDPS + IF(ExtraTargets>2,(DSDPS * (ExtraTargets + 1)),CSDPS) + TVDPS + ConsDPS + HoWDPS + ExoDPS + HWDPS + SoCDPS + IF(GlyphOfExorcism="On",ExoGlyphDPS,0) -> 22794.75057 | F15: Av Glance | G15: =G13*(100%-GlanceAmt) -> 4743.222694 | H15: 5691.867233 | J15: =CONCATENATE("Hits in ",Length," seconds") -> Hits in 450 seconds | K15: =K12 - SUM(K13:K14) -> 21.55354054 | L15: =L12 - SUM(L13:L14) -> 4.310708107 | N15: Dps | P15: =(O14 + P14)/Length * (1 + ICCBuff) -> 1315.331878
B16: DPS SoT | C16: =AutoattackDPS + SoTDPS + JoTDPS + SoTDoTDPS + IF(ExtraTargets>2,(DSDPS * (ExtraTargets + 1)),CSDPS) + TVDPS + ConsDPS + HoWDPS + ExoDPS + HWDPS + SoCDPS + IF(GlyphOfExorcism="On",ExoGlyphDPS,0) -> 25866.36821 | F16: Total Damage | G16: =(G13 * G9) + (G14 * G7) + (G15 * G8) -> 961664.3375 | H16: =(H13 * H9) + (H14 * H7) + (H15 * H8) -> 230799.441 | J16: Av Hit | K16: =JoRBase + (JoRAP * CharTotalAP) + (JoRSP * CharSpelldamage) -> 4795.841077 | L16: =K16 * 1.2 -> 5755.009292
F17: Dps | H17: =(G16 + H16)/Length * (1 + ICCBuff) -> 2649.919508 | J17: Av Crit | K17: =K16 + K16 -> 9591.682153 | L17: =K17 * 1.2 -> 11510.01858 | N17: Consecration | O17: Normal | P17: AW
B18: Modifiers | J18: Av Hit Post Buffs/Miti | K18: =K16 * Communion * TotT * TwoHWeapSpec * Inquisition * JudgementDamage * CoE -> 8580.06275 | L18: =K18 * 1.2 -> 10296.0753 | N18: Effective Cooldown | O18: =ConsCooldown -> 55.66496776
F19: CS | G19: Normal | H19: AW | J19: Av Crit Post Buffs/Miti | K19: =(K18 + K18) * CritBonus -> 17674.92926 | L19: =K19 * 1.2 -> 21209.91512 | N19: =CONCATENATE("Total Ticks in ",Length," seconds") -> Total Ticks in 450 seconds | O19: =NumCons * IF(GlyphOfConsecration="On",12,10) -> 67.36732546 | P19: =NumAWCons * IF(GlyphOfConsecration="On",12,10) -> 13.47346509
B20: Avoidance | F20: Effective Cooldown | G20: =CSCooldown -> 3.942289282 | J20: Total Damage | K20: =(K19 * K14) + (K18 * K15) -> 292045.5413 | L20: =(L19 * L14) + (L18 * L15) -> 70090.92992 | N20: =CONCATENATE("Miss in ",Length," seconds") -> Miss in 450 seconds | O20: =O19 * SpellMiss -> 0 | P20: =P19 * SpellMiss -> 0
B21: Spell Miss | C21: =IF(SpellHit%>17%,0%,(17% - SpellHit%)) -> 0 | F21: =CONCATENATE("Total Attacks in ",Length," seconds") -> Total Attacks in 450 seconds | G21: =NumCS -> 95.12239543 | H21: =NumAWCS -> 19.02447909 | J21: Dps | L21: =(K20 + L20)/Length * (1 + ICCBuff) -> 804.7477139 | N21: =CONCATENATE("Full Resists in ",Length," seconds") -> Full Resists in 450 seconds | O21: =IF(ConsCooldown=0,0,(O19/ConsCooldown) * FullResist) -> 0.006051142054 | P21: =IF(ConsCooldown=0,0,(P19/ConsCooldown) * FullResist) -> 0.001210228411
B22: Melee Miss | C22: =IF(HitTotal>8,0%,(8% - HitTotal%)) -> 0 | F22: =CONCATENATE("Avoidance in ",Length," seconds") -> Avoidance in 450 seconds | G22: =G21 * Avoidance -> 0 | H22: =H21 * Avoidance -> 0 | N22: =CONCATENATE("Crits in ",Length," seconds") -> Crits in 450 seconds | O22: =MIN((O19 * SpellCritChance),(O19 - SUM(O20:O21))) -> 8.185505389 | P22: =MIN((P19 * SpellCritChance),(P19 - SUM(P20:P21))) -> 1.637101078
B23: Dodge | C23: =(IF(6.5% - (0.25% * CurrentExpertise)<0,0%,(6.5% - (0.25% * CurrentExpertise)))) -> 0 | F23: =CONCATENATE("Crits in ",Length," seconds") -> Crits in 450 seconds | G23: =MIN((G21 * CSCrit),(G21 - G22)) -> 23.7297209 | H23: =MIN((H21 * CSCrit),(H21 - H22)) -> 4.745944179 | J23: SoT | K23: Normal | L23: AW | N23: =CONCATENATE("Hits in ",Length," seconds") -> Hits in 450 seconds | O23: =O19 - SUM(O20:O22) -> 59.17576893 | P23: =P19 - SUM(P20:P22) -> 11.83515379
B24: Parry | C24: =MAX(0,IF(FrontOfBoss="Never",0,((FrontOfBoss * (12% - (CurrentExpertise * 0.25%)))))) -> 0 | F24: =CONCATENATE("Hits in ",Length," seconds") -> Hits in 450 seconds | G24: =G21 - SUM(G22:G23) -> 71.39267453 | H24: =H21 - SUM(H22:H23) -> 14.27853491 | J24: =CONCATENATE("Procs in ",Length," seconds") -> Procs in 450 seconds | K24: =SUM(G7:G9) + SUM(G23:G24) + SUM(G52:G53) + SUM(K49:K50) + SUM(O36:O37) + SUM(O8:O9) -> 345.0941777 | L24: =SUM(H7:H9) + SUM(H23:H24) + SUM(H52:H53) + SUM(L49:L50) + SUM(P36:P37) + SUM(P8:P9) -> 93.24937704 | N24: Av Hit | O24: =(ConsBase + (ConsAP * CharTotalAP) + (ConsSP * (CharSpelldamage))) / 10 -> 643.0055859 | P24: =O24 * 1.2 -> 771.6067031
B25: Avoidance | C25: =SUM(C22:C24) -> 0 | F25: Av Hit | G25: =((C6 * Weaponspeed) + ((CharTotalAP / 14) * 3.3)) * 135% -> 8564.467632 | H25: =G25 * 1.2 -> 10277.36116 | J25: =CONCATENATE("Avoidance in ",Length," seconds") -> Avoidance in 450 seconds | K25: 0 | L25: 0 | N25: Av Crit | O25: =O24 + (O24/2) -> 964.5083789 | P25: =O25 * 1.2 -> 1157.410055
B26: Hit | C26: =100% - Avoidance -> 1 | F26: Av Crit | G26: =G25 + G25 -> 17128.93526 | H26: =G26 * 1.2 -> 20554.72232 | J26: =CONCATENATE("Crits in ",Length," seconds") -> Crits in 450 seconds | K26: =MIN((K24* (CritTotal% - CritReduction)),(K24 - K25)) -> 34.32483781 | L26: =MIN((L24 * (CritTotal% - CritReduction)),(L24 - L25)) -> 9.275061561 | N26: Av Hit Post Buffs/Miti | O26: =O24 * Communion * TotT * Inquisition * CoE -> 958.6480223 | P26: =O26 * 1.2 -> 1150.377627
F27: Av hit Post Buffs/Miti | G27: =G25 * ArmorMitigation * Communion * TotT * CSDamage * TwoHWeapSpec * BloodFrenzy -> 10545.27235 | H27: =G27 * 1.2 -> 12654.32682 | J27: =CONCATENATE("Hits in ",Length," seconds") -> Hits in 450 seconds | K27: =K24 - SUM(K25:K26) -> 310.7693399 | L27: =L24 - SUM(L25:L26) -> 83.97431548 | N27: Av Crit Post Buffs/Miti | O27: =(O26 + (O26/2)) * CritBonus -> 1481.111194 | P27: =O27 * 1.2 -> 1777.333433
B28: Glancing | F28: Av Crit Post Buffs/Miti | G28: =(G27 + G27) * CritBonus -> 21723.26104 | H28: =G28 * 1.2 -> 26067.91325 | J28: Av Hit | K28: =SoTBase -> 1001.588743 | L28: =K28 * 1.2 -> 1201.906492 | N28: Total Damage | O28: =(O26 * O23) + (O27 * O22) -> 68852.37752 | P28: =(P26 * P23) + (P27 * P22) -> 16524.5706
B29: Frequency | C29: 0.24 | F29: Mastery | G29: =((G27 * G24) + (G28 * G23)) * MasteryDamageBonus * Inquisition * CoE -> 605880.9162 | H29: =((H27 * H24) + (H28 * H23)) * MasteryDamageBonus * Inquisition * CoE -> 145411.4199 | J29: Average Crit | K29: =K28 + K28 -> 2003.177486 | L29: =K29 * 1.2 -> 2403.812984 | N29: Dps | P29: =(O28 + P28)/Length * (1 + ICCBuff) -> 189.7265514
B30: Amount | C30: 0.25 | F30: T12 Bonus | G30: =IF(T12Bonus>1,(((G27 * G24) + (G28 * G23)) * 0.15),0) -> 190251.3177 | H30: =IF(T12Bonus>1,(((H27 * H24) + (H28 * H23)) * 0.15),0) -> 45660.31626 | J30: Av Hit Post Buffs/Miti | K30: =K28 * Communion * TotT * TwoHWeapSpec * Inquisition * SealDamage * CoE -> 2006.934222 | L30: =K30 * 1.2 -> 2408.321066
F31: Total Damage | G31: =((G27 * G24) + (G28 * G23)) + G29 + G30 -> 2064474.352 | H31: =((H27 * H24) + (H28 * H23)) + H29 + H30 -> 495473.8445 | J31: Average Crit Post Buffs/Miti | K31: =(K30 + K30) * CritBonus -> 4134.284497 | L31: =K31 * 1.2 -> 4961.141396 | N31: Exorcism | O31: Normal | P31: AW
B32: Mitigation | F32: Dps | H32: =(G31 + H31)/Length * (1 + ICCBuff) -> 5688.773771 | J32: Total Damage | K32: =(K31 * K26) + (K30 * K27) -> 765602.2682 | L32: =(L31 * L26) + (L30 * L27) -> 248252.0048 | N32: Effective Cooldown | O32: =ExoCooldown -> 13.7557248
B33: Boss Armour | C33: 11977 | J33: Dps | L33: =(K32 + L32) / Length * (1 + ICCBuff) -> 2253.009496 | N33: =CONCATENATE("Total Attacks in ",Length," seconds") -> Total Attacks in 450 seconds | O33: =NumExo -> 27.26137702 | P33: =NumAWExo -> 5.452275404
B34: Reduction | C34: =(BossArmour/(26070 + BossArmour)) -> 0.314794859 | F34: Divine Storm | G34: Normal | H34: AW | N34: =CONCATENATE("Miss in ",Length," seconds") -> Miss in 450 seconds | O34: =O33 * SpellMiss -> 0 | P34: =P33 * SpellMiss -> 0
B35: Modified Armour | C35: =BossArmour * (1 - IF(ArmorDebuff="On",0.12,0)) -> 10539.76 | F35: Cooldown | G35: N/A | J35: Censure Ticks (SoT DoT) | K35: Normal | L35: AW | N35: =CONCATENATE("Full Resists in ",Length," seconds") -> Full Resists in 450 seconds | O35: =O33 * FullResist -> 0.1363068851 | P35: =P33 * FullResist -> 0.02726137702
B36: Reduction | C36: =(ModifiedArmour/(26070 + ModifiedArmour)) -> 0.2878948127 | F36: =CONCATENATE("Total Attacks in ",Length," seconds") -> Total Attacks in 450 seconds | G36: =NumCS -> 95.12239543 | H36: =NumAWCS -> 19.02447909 | J36: =CONCATENATE("Total Ticks in ",Length," seconds") -> Total Ticks in 450 seconds | K36: =Length/(3 / (( 1 + WoAHaste) * (1 + JotPHaste) * (1 + (CurrentHaste / 100)))) * 5/6 -> 166.606867 | L36: =Length/(3 / (( 1 + WoAHaste) * (1 + JotPHaste) * (1 + (CurrentHaste / 100)))) * 1/6 -> 33.3213734 | N36: =CONCATENATE("Crits in ",Length," seconds") -> Crits in 450 seconds | O36: =MIN((O33 * SpellCritChance),(O33 - SUM(O34:O35))) -> 3.312409198 | P36: =MIN((P33 * SpellCritChance),(P33 - SUM(P34:P35))) -> 0.6624818396
B37: Dmg Post Mitigation | C37: =100% - ArmorReduction -> 0.7121051873 | F37: =CONCATENATE("Avoidance in ",Length," seconds") -> Avoidance in 450 seconds | G37: =G36 * Avoidance -> 0 | H37: =H36 * Avoidance -> 0 | J37: =CONCATENATE("Crits in ",Length," seconds") -> Crits in 450 seconds | K37: =K36 * (CritTotal% - CritReduction) -> 16.57157396 | L37: =L36 * (CritTotal% - CritReduction) -> 3.314314791 | N37: =CONCATENATE("Hits in ",Length," seconds") -> Hits in 450 seconds | O37: =O33 - SUM(O34:O36) -> 23.81266094 | P37: =P33 - SUM(P34:P36) -> 4.762532188
B38: Full Resist | C38: 0.005 | F38: =CONCATENATE("Crits in ",Length," seconds") -> Crits in 450 seconds | G38: =MIN((G36 * (CritTotal% - CritReduction)),(G36 - G37)) -> 9.461361581 | H38: =MIN((H36 * (CritTotal% - CritReduction)),(H36 - H37)) -> 1.892272316 | J38: =CONCATENATE("Hits in ",Length," seconds") -> Hits in 450 seconds | K38: =K36 - K37 -> 150.0352931 | L38: =L36 - L37 -> 30.00705861 | N38: Av Hit | O38: =ExoBase + (ExoAP * CharTotalAP) + (ExoSP * CharSpelldamage) -> 8090.102154 | P38: =O38 * 1.2 -> 9708.122585
F39: =CONCATENATE("Hits in ",Length," seconds") -> Hits in 450 seconds | G39: =G36 - SUM(G37:G38) -> 85.66103385 | H39: =H36 - SUM(H37:H38) -> 17.13220677 | J39: =CONCATENATE("DoT Tick (every ",ROUND(((3 / (( 1 + WoAHaste) * (1 + JotPHaste) * (1 + (CurrentHaste / 100))))),2)," sec)") -> DoT Tick (every 2.25 sec) | K39: =(((SoTDoTAP * CharTotalAP) + (SoTDoTSP * CharSpelldamage)) * 5) * (SealDamage + (IoFTalent * 10%)) * Communion * TotT * Inquisition * CoE -> 5224.440083 | L39: =K39 * 1.2 -> 6269.3281 | N39: Av Crit | O39: =O38 + (O38/2) -> 12135.15323 | P39: =O39 * 1.2 -> 14562.18388
B40: Critical Chance Reduction | F40: Av Hit | G40: =((C6 * Weaponspeed) + ((CharTotalAP / 14) * Weaponspeed)) -> 6677.258288 | H40: =G40 * 1.2 -> 8012.709946 | J40: DoT Crit | K40: =(K39 + K39) * CritBonus -> 10762.34657 | L40: =K40 * 1.2 -> 12914.81589 | N40: Av Hit Post Buffs/Miti | O40: =O38 * Communion * TotT * ExoDamage * Inquisition * CoE -> 26535.12399 | P40: =O40 * 1.2 -> 31842.14878
B41: Melee | C41: 0.048 | F41: Av Crit | G41: =G40 + G40 -> 13354.51658 | H41: =G41 * 1.2 -> 16025.41989 | J41: Total Damage | K41: =(K39 * K38) + (K40 * K37) -> 962199.4212 | L41: =(L39 * L38) + (L40 * L37) -> 230927.8611 | N41: Av Crit Post Buffs/Miti | O41: =(O40 + (O40/2)) * CritBonus -> 40996.76656 | P41: =O41 * 1.2 -> 49196.11987
B42: Spell | C42: 0.021 | F42: Av Hit Post Buffs/Miti | G42: =G40 * ArmorMitigation * Communion * TotT * TwoHWeapSpec * BloodFrenzy -> 6324.296926 | H42: =G42 * 1.2 -> 7589.156311 | J42: SoT stack up-time | K42: =(Length - ((TrinketReset + 1) * 5))/Length -> 0.9888888889 | N42: Total Damage | O42: =(O40 * O37) + (O41 * O36) -> 767669.9771 | P42: =(P40 * P37) + (P41 * P36) -> 184240.7945
F43: Av Crit Post Buffs/Miti | G43: =(G42 + G42) * CritBonus -> 13028.05167 | H43: =G43 * 1.2 -> 15633.662 | J43: Dps | L43: =SUM(K41:L41) * K42 /Length * (1 + ICCBuff) -> 2621.934028 | N43: Dps | P43: =(O42 + P42)/Length * (1 + ICCBuff) -> 2115.35727
B44: Damage Buffs | F44: Mastery | G44: =((G43 * G38) + (G42 * G39)) * MasteryDamageBonus * Inquisition * CoE -> 317671.5559 | H44: =((H43 * H38) + (H42 * H39)) * MasteryDamageBonus * Inquisition * CoE -> 76241.1734
F45: Total Damage | G45: =((G43 * G38) + (G42 * G39)) + G44 -> 982680.4764 | H45: =((H43 * H38) + (H42 * H39)) + H44 -> 235843.3143 | J45: JoT | K45: Normal | L45: AW | N45: Glyph of Exorcism | O45: Normal | P45: AW
B46: All Damage | F46: Dps (per Target) | H46: =(G45 + H45)/Length * (1 + ICCBuff) -> 2707.830646 | J46: Effective Cooldown | K46: =JudgementCD -> 13.58016216 | N46: =CONCATENATE("Crits in ",Length," seconds") -> Crits in 450 seconds | O46: =(SUM(O36:O37) * (1 - (0.2 * 0.2))) * SpellCritChance -> 3.164013266 | P46: =(SUM(P36:P37) * (1 - (0.2 * 0.2))) * SpellCritChance -> 0.6328026532
B47: Communion | D47: =100% * IF(CommunionTalent>0,105%,IF(PercentDamageBuff="On",103%,100%)) -> 1.05 | J47: =CONCATENATE("Total Attacks in ",Length," seconds") -> Total Attacks in 450 seconds | K47: =NumJudge -> 27.6138087 | L47: =NumAWJudge -> 5.52276174 | N47: =CONCATENATE("Hits in ",Length," seconds") -> Hits in 450 seconds | O47: =(SUM(O36:O37) * (1 - (0.2 * 0.2))) - O46 -> 22.87605407 | P47: =(SUM(P36:P37) * (1 - (0.2 * 0.2))) - P46 -> 4.575210813
B48: Tricks of the Trade | D48: =100% + IF(AND(Estimations="On",TotTBuff="On"),1.5%,0%) -> 1.015 | F48: Templar's Verdict | G48: Normal | H48: AW | J48: =CONCATENATE("Miss in ",Length," seconds") -> Miss in 450 seconds | K48: =K47 * MeleeMiss -> 0 | L48: =L47 * MeleeMiss -> 0 | N48: Av Hit (all 3 ticks) | O48: =0.2 * O38 -> 1618.020431 | P48: =O48 * 1.2 -> 1941.624517
B49: Crit Bonus | D49: =100% * IF(MetaBonus="Crit",103%,100%) -> 1.03 | F49: Effective Cooldown | G49: =TVCooldown -> 6.930103635 | J49: =CONCATENATE("Crits in ",Length," seconds") -> Crits in 450 seconds | K49: =MIN((K47 * JCrit),(NumJudge3 - K48)) -> 6.06026816 | L49: =MIN((L47 * JCrit),(NumAWJudge3 - L48)) -> 1.212053632 | N49: Av Crit (all 3 ticks) | O49: =O48 + (O48/2) -> 2427.030646 | P49: =O49 * 1.2 -> 2912.436776
F50: =CONCATENATE("Total Attacks in ",Length," seconds") -> Total Attacks in 450 seconds | G50: =NumTV -> 40.50880544 | H50: =NumAWTV -> 24.42528843 | J50: =CONCATENATE("Hits in ",Length," seconds") -> Hits in 450 seconds | K50: =K47 - SUM(K48:K49) -> 21.55354054 | L50: =L47 - SUM(L48:L49) -> 4.310708107 | N50: Av Hit Post Buffs/Miti | O50: =0.2 * O40 -> 5307.024797 | P50: =O50 * 1.2 -> 6368.429756
B51: Holy Damage | F51: =CONCATENATE("Avoidance in ",Length," seconds") -> Avoidance in 450 seconds | G51: =G50 * Avoidance -> 0 | H51: =H50*Avoidance -> 0 | J51: Av Hit | K51: =(JoTBase + (JoTAP * CharTotalAP) + (JoTSP * CharSpelldamage)) * (1.5) -> 5076.376979 | L51: =K51 * 1.2 -> 6091.652375 | N51: Av Crit Post Buffs/Miti | O51: =O50 + ((O50/2) * CritBonus) -> 8040.142568 | P51: =O51 * 1.2 -> 9648.171081
B52: Spell Damage Debuff | D52: =IF(CoEBuff="On",108%,100%) -> 1.08 | F52: =CONCATENATE("Crits in ",Length," seconds") -> Crits in 450 seconds | G52: =MIN((G50 * TVCrit),(G50 - G51)) -> 8.890270319 | H52: =MIN((H50 * TVCrit),(H50 - H51)) -> 5.36049914 | J52: Av Crit | K52: =K51 + K51 -> 10152.75396 | L52: =K52 * 1.2 -> 12183.30475 | N52: Total Damage | O52: =(O50 * O47) + (O51 * O46) -> 146842.9039 | P52: =(P50 * P47) + (P51 * P46) -> 35242.29694
B53: Inquisition | D53: =100% + (30% * InqUptime) -> 1.295285005 | F53: =CONCATENATE("Hits in ",Length," seconds") -> Hits in 450 seconds | G53: =G50 - SUM(G51:G52) -> 31.61853513 | H53: =H50 - SUM(H51:H52) -> 19.06478929 | J53: Av Hit Post Buffs/Miti | K53: =K51 * Communion * TotT * TwoHWeapSpec * Inquisition * JudgementDamage * CoE -> 9081.959208 | L53: =K53 * 1.2 -> 10898.35105 | N53: Dps | P53: =(O52+P52)/Length * (1 + ICCBuff) -> 404.6337797
B54: Crit Chance | D54: =IF((SpellCrit% - SpellCritReduction) > 100%,100%,(SpellCrit% - SpellCritReduction)) -> 0.1215055716 | F54: Av Hit | G54: =((C6 * Weaponspeed) + ((CharTotalAP / 14) * Weaponspeed)) * 235% -> 15691.55698 | H54: =G54 * 1.2 -> 18829.86837 | J54: Av Crit Post Buffs/Miti | K54: =(K53 + K53) * CritBonus -> 18708.83597 | L54: =K54 * 1.2 -> 22450.60316
F55: Av Crit | G55: =G54 + G54 -> 31383.11395 | H55: =G55 * 1.2 -> 37659.73675 | J55: Total Damage | K55: =(K54 * K49) + (K53 * K50) -> 309128.9389 | L55: =(L54 * L49) + (L53 * L50) -> 74190.94533 | N55: Holy Wrath | O55: Normal | P55: AW
B56: Physical Damage | F56: Av Hit Post Buffs/Miti | G56: =G54 * ArmorMitigation * Communion * TotT * TVDamage * TwoHWeapSpec * BloodFrenzy -> 23036.25155 | H56: =G56 * 1.2 -> 27643.50186 | J56: Dps | L56: =(K55 + L55)/Length * (1 + ICCBuff) -> 851.8219649 | N56: Effective Cooldown | O56: =HWCooldown -> 26.9988263
B57: Blood Frenzy / Savage Combat / Brittle Bones | D57: =IF(BF="On",104%,100%) -> 1.04 | F57: Av Crit Post Buffs/Miti | G57: =(G56 + G56) * CritBonus -> 47454.6782 | H57: =G57 * 1.2 -> 56945.61384 | N57: =CONCATENATE("Total Attacks in ",Length," seconds") -> Total Attacks in 450 seconds | O57: =NumHW -> 13.88949267 | P57: =NumAWHW -> 2.777898534
F58: Mastery | G58: =((G57 * G52) + (G56 * G53)) * MasteryDamageBonus * Inquisition * CoE -> 549472.4374 | H58: =((H57 * H52) + (H56 * H53)) * MasteryDamageBonus * Inquisition * CoE -> 397573.4941 | J58: Seals of Command | K58: Normal | L58: AW | N58: =CONCATENATE("Miss in ",Length," seconds") -> Miss in 450 seconds | O58: =O57 * SpellMiss -> 0 | P58: =P57 * SpellMiss -> 0
B59: Two Handed Weapon Spec | D59: =120% -> 1.2 | F59: Total Damage | G59: =((G57 * G52) + (G56 * G53)) + G58 -> 1699729.883 | H59: =((H57 * H52) + (H56 * H53)) + H58 -> 1229847.946 | J59: =CONCATENATE("Procs in ",Length," seconds") -> Procs in 450 seconds | K59: =IF(SealSelection="SoT",((5 * (TrinketReset +1)) + SUM(K49:K50)),SUM(K14:K15)) + IF(ExtraTargets<3,SUM(G23:G24),(SUM(G38:G39) * (ExtraTargets + 1))) + SUM(G7:G9) + SUM(G52:G53) + SUM(O8:O9) + SUM(O36:O37) -> 350.0941777 | L59: =IF(SealSelection="SoT",((5 * (TrinketReset +1)) + SUM(L49:L50)),SUM(L14:L15)) + IF(ExtraTargets<3,SUM(H23:H24),(SUM(H38:H39) * (ExtraTargets + 1))) + SUM(H7:H9) + SUM(H52:H53) + SUM(P8:P9) + SUM(P36:P37) -> 98.24937704 | N59: =CONCATENATE("Full Resists in ",Length," seconds") -> Full Resists in 450 seconds | O59: =O57 * FullResist -> 0.06944746335 | P59: =P57 * FullResist -> 0.01388949267
F60: Dps | H60: =(G59+H59)/Length * (1 + ICCBuff) -> 6510.172955 | J60: =CONCATENATE("Avoidance in ",Length," seconds") -> Avoidance in 450 seconds | K60: =K59 * Avoidance -> 0 | L60: =L59 * Avoidance -> 0 | N60: =CONCATENATE("Crits in ",Length," seconds") -> Crits in 450 seconds | O60: =MIN((O57 * SpellCritChance),(O57 - SUM(O58:O59))) -> 1.687650746 | P60: =MIN((P57 * SpellCritChance),(P57 - SUM(P58:P59))) -> 0.3375301493
B61: Attack Damage | J61: =CONCATENATE("Crits in ",Length," seconds") -> Crits in 450 seconds | K61: =MIN((K59 * (CritTotal% - CritReduction)),(K59 - K60)) -> 34.82216347 | L61: =MIN((L59 * (CritTotal% - CritReduction)),(L59 - L60)) -> 9.772387219 | N61: =CONCATENATE("Hits in ",Length," seconds") -> Hits in 450 seconds | O61: =O57 - SUM(O58:O60) -> 12.13239446 | P61: =P57 - SUM(P58:P60) -> 2.426478892
B62: Crusader Strike | D62: =100% * (100% + (CrusadeTalent * 10%) + IF(PvPGloveBonus > 0,5%,0%)) -> 1.3 | J62: =CONCATENATE("Hits in ",Length," seconds") -> Hits in 450 seconds | K62: =K59 - SUM(K60:K61) -> 315.2720143 | L62: =L59 - SUM(L60:L61) -> 88.47698982 | N62: Av Hit | O62: =HWBase + (HWAP * CharTotalAP) + (HWSP * CharSpelldamage) -> 5613.836743 | P62: =O62 * 1.2 -> 6736.604092
B63: Exorcism | D63: =100% * ((10% * BLTalent) + (IF(AoWTalent>0,200%,100%))) -> 2.2 | J63: Av Hit | K63: =IF(SoCTalent=1,(7% * WeaponDamage),0) -> 467.4080802 | L63: =K63 * 1.2 -> 560.8896962 | N63: Av Crit | O63: =O62 + (O62/2) -> 8420.755115 | P63: =O63 * 1.2 -> 10104.90614
B64: Judgement | D64: =100% * IF(GlyphOfJudgement="On",110%,100%) -> 1 | J64: Average Crit | K64: =K63 + K63 -> 934.8161603 | L64: =K64 * 1.2 -> 1121.779392 | N64: Av Hit Post Buffs/Miti | O64: =O62 * Communion * TotT * Inquisition * CoE -> 8369.590574 | P64: =O64 * 1.2 -> 10043.50869
B65: Seals | D65: =100% * (100% + (SotPTalent * 6%)) -> 1.12 | J65: Av Hit Post Buffs/Miti | K65: =K63 * Communion * TotT * TwoHWeapSpec * BloodFrenzy * Inquisition -> 805.2513852 | L65: =K65 * 1.2 -> 966.3016623 | N65: Av Crit Post Buffs/Miti | O65: =(O64 + (O64/2)) * CritBonus -> 12931.01744 | P65: =O65 * 1.2 -> 15517.22092
B66: Templar's Verdict | D66: =100% * ((100% + (CrusadeTalent * 10%)) + IF(GlyphOfTV="On",15%,0%) + IF(T11Bonus>1, 10%,0%)) -> 1.55 | J66: Average Crit Post Buffs/Miti | K66: =(K65 + K65) * CritBonus -> 1658.817854 | L66: =K66 * 1.2 -> 1990.581424 | N66: Total Damage | O66: =(O64 * O61) + (O65 * O60) -> 123366.2155 | P66: =(P64 * P61) + (P65 * P60) -> 29607.89173
J67: Total Damage | K67: =(K66 * K61) + (K65 * K62) -> 311636.8527 | L67: =(L66 * L61) + (L65 * L62) -> 104948.1948 | N67: Dps | P67: =(O66 + P66)/Length * (1 + ICCBuff) -> 339.9424606
B68: Attack Crit Chance | J68: Dps | L68: =(K67+L67) / Length * (1 + ICCBuff) -> 925.74455
B69: Crusader Strike | D69: =(CritTotal% + IF(GlyphOfCS="On",5%,0%)) - CritReduction + (MIN(RoLTalent,3) * 5%) -> 0.2494651316 | N69: Guardian of Ancient Kings | O69: Normal | P69: AW
B70: Hammer of Wrath | D70: =MIN(100%,(SpellCritChance + (SancWrath * 20%))) -> 0.7215055716 | N70: Effective Cooldown
B71: Judgement | D71: =CritTotal% - CritReduction + (AoLTalent * 6%) -> 0.2194651316 | N71: =CONCATENATE("Total Attacks in ",Length," seconds") -> Total Attacks in 450 seconds
B72: Templar's Verdict | D72: =CritTotal% - CritReduction + (AoLTalent * 6%) -> 0.2194651316 | N72: =CONCATENATE("Miss in ",Length," seconds") -> Miss in 450 seconds | O72: =O71 * SpellMiss -> 0 | P72: =P71 * SpellMiss -> 0
N73: =CONCATENATE("Full Resists in ",Length," seconds") -> Full Resists in 450 seconds | O73: =O71 * FullResist -> 0 | P73: =P71 * FullResist -> 0
B74: Special Item Modifiers | N74: =CONCATENATE("Crits in ",Length," seconds") -> Crits in 450 seconds | O74: =(O71 - SUM(O72:O73)) * SpellCritChance -> 0 | P74: =(P71 - SUM(P72:P73)) * SpellCritChance -> 0
N75: =CONCATENATE("Hits in ",Length," seconds") -> Hits in 450 seconds | O75: =O71 - SUM(O72:O74) -> 0 | P75: =P71 - SUM(P72:P74) -> 0
B76: Special Items | N76: Av Hit | O76: =S25 + (T25 * CharTotalAP) + (U25 * CharSpelldamage) -> 0 | P76: =O76 * 1.2 -> 0
N77: Av Crit | O77: =O76 + (O76/2) -> 0 | P77: =O77 * 1.2 -> 0
N78: Av Hit Post Buffs/Miti | O78: =O76 * Communion * TotT * Inquisition * CoE -> 0 | P78: =O78 * 1.2 -> 0
N79: Av Crit Post Buffs/Miti | O79: =O78 +((O78/2) * CritBonus) -> 0 | P79: =O79 * 1.2 -> 0
N80: Total Damage | O80: =(O78 * O75) + (O79 * O74) -> 0 | P80: =(P78 * P75) + (P79 * P74) -> 0
N81: Dps | P81: =(O80 + P80)/Length * (1 + ICCBuff) -> 0

Sheet WoL Compare
E1: Length | F1: =CONCATENATE(ROUNDDOWN(Length/60,0),":",MOD(Length,60)) -> 7:30
A4: Damage Done
A7: Spell | B7: Damage done | D7: Hits | G7: Crits | J7: Ticks | M7: Tick Crits | P7: Glances | S7: Misses
D8: # | E8: Avg | F8: Total | G8: # | H8: Avg | I8: Total | J8: # | K8: Avg | L8: Total | M8: # | N8: Avg | O8: Total | P8: # | Q8: Avg | R8: Total | S8: Total
A9: Templar's Verdict | B9: =SUM(F9,I9) -> 1905280.139 | C9: =B9/$B$21 -> 0.1747603439 | D9: =SUM('DPS Calc'!G53:H53) -> 50.68332442 | E9: =('DPS Calc'!G56 * (5/6)) + ('DPS Calc'!H56 / 6) -> 23804.1266 | F9: =D9*E9 -> 1206472.271 | G9: =SUM('DPS Calc'!G52:H52) -> 14.25076946 | H9: =('DPS Calc'!G57 * (5/6)) + ('DPS Calc'!H57 / 6) -> 49036.5008 | I9: =G9*H9 -> 698807.868 | S9: =SUM('DPS Calc'!G51:H51) / SUM(D9,G9,SUM('DPS Calc'!G51:H51)) -> 0
A10: Hand of Light | B10: =SUM('DPS Calc'!G29:H29,'DPS Calc'!G58:H58) -> 1698338.268 | C10: =B10/$B$21 -> 0.1557787612 | D10: =VLOOKUP("Templar's Verdict",$A$9:$G$20,4,FALSE) + VLOOKUP("Templar's Verdict",$A$9:$G$20,7,FALSE) + VLOOKUP("Crusader Strike",$A$9:$G$20,4,FALSE) + VLOOKUP("Crusader Strike",$A$9:$G$20,7,FALSE) -> 179.0809684 | E10: =F10/D10 -> 9483.633481 | F10: =B10 -> 1698338.268
A11: Crusader Strike | B11: =SUM(F11,I11) -> 1572744.227 | C11: =B11/$B$21 -> 0.1442587451 | D11: =SUM('DPS Calc'!G24:H24) -> 85.67120944 | E11: =('DPS Calc'!G27 * (5/6)) + ('DPS Calc'!H27 / 6) -> 10896.78143 | F11: =D11*E11 -> 933540.444 | G11: =SUM('DPS Calc'!G23:H23) -> 28.47566507 | H11: =('DPS Calc'!G28 * (5/6)) + ('DPS Calc'!H28 / 6) -> 22447.36974 | I11: =G11*H11 -> 639203.7826 | S11: =SUM('DPS Calc'!G22:H22) / SUM(D10,G10,SUM('DPS Calc'!G22:H22)) -> 0
A12: Censure | B12: =SUM(L12,O12) -> 1193127.282 | C12: =B12/$B$21 -> 0.1094386751 | J12: =SUM('DPS Calc'!K38:L38) -> 180.0423517 | K12: =('DPS Calc'!K39 * (5/6)) + ('DPS Calc'!L39 / 6) -> 5398.588086 | L12: =J12*K12 -> 971974.4948 | M12: =SUM('DPS Calc'!K37:L37) -> 19.88588875 | N12: =('DPS Calc'!K40 * (5/6)) + ('DPS Calc'!L40 / 6) -> 11121.09146 | O12: =M12*N12 -> 221152.7875
A13: Seal of Truth | B13: =SUM(F13,I13) -> 1004894.903 | C13: =B13/$B$21 -> 0.09217320609 | D13: =SUM('DPS Calc'!K27:L27) -> 394.7436554 | E13: =('DPS Calc'!K30 * (5/6)) + ('DPS Calc'!L30 / 6) -> 2073.832029 | F13: =D13*E13 -> 818632.0359 | G13: =SUM('DPS Calc'!K26:L26) -> 43.59989937 | H13: =('DPS Calc'!K31 * (5/6)) + ('DPS Calc'!L31 / 6) -> 4272.09398 | I13: =G13*H13 -> 186262.8676
A14: Melee | B14: =SUM(F14,I14) -> 987148.4 | C14: =B14/$B$21 -> 0.09054542181 | D14: =SUM('DPS Calc'!G9:H9) -> 115.2901043 | E14: =('DPS Calc'!G13 * (5/6)) + ('DPS Calc'!H13 / 6) -> 6535.106823 | F14: =D14*E14 -> 753433.147 | G14: =SUM('DPS Calc'!G7:H7) -> 17.36069653 | H14: =('DPS Calc'!G14 * (5/6)) + ('DPS Calc'!H14 / 6) -> 13462.32006 | I14: =G14*H14 -> 233715.253 | P14: =SUM('DPS Calc'!G8:H8) -> 41.88972657 | Q14: =AVERAGE('DPS Calc'!G15:H15) -> 5217.544964 | R14: =P14*Q14 -> 218561.5319 | S14: =SUM('DPS Calc'!G6:H6) / SUM(D13,G13,SUM('DPS Calc'!G6:H6)) -> 0
A15: Exorcism | B15: =SUM(F15,I15) -> 951910.7716 | C15: =B15/$B$21 -> 0.08731327766 | D15: =SUM('DPS Calc'!O37:P37) -> 28.57519313 | E15: =('DPS Calc'!O40 * (5/6)) + ('DPS Calc'!P40 / 6) -> 27419.62812 | F15: =D15*E15 -> 783521.1689 | G15: =SUM('DPS Calc'!O36:P36) -> 3.974891038 | H15: =('DPS Calc'!O41 * (5/6)) + ('DPS Calc'!P41 / 6) -> 42363.32544 | I15: =G15*H15 -> 168389.6026 | J15: =SUM('DPS Calc'!O47:P47) * 3 -> 82.35379464 | K15: =(('DPS Calc'!O50 * (5/6)) + ('DPS Calc'!P50 / 6)) / 3 -> 1827.975208 | L15: =J15*K15 -> 150540.6949 | M15: =SUM('DPS Calc'!O46:P46) * 3 -> 11.39044776 | N15: =(('DPS Calc'!O51 * (5/6)) + ('DPS Calc'!P51 / 6)) / 3 -> 2769.38244 | O15: =M15*N15 -> 31544.506 | S15: =SUM('DPS Calc'!O20:P21) / SUM(D14,G14,SUM('DPS Calc'!O20:P21)) -> 5.473749839e-05
A16: Hammer of Wrath | B16: =SUM(F16,I16) -> 554733.5723 | C16: =B16/$B$21 -> 0.05088250692 | D16: =SUM('DPS Calc'!O9:P9) -> 5.232238248 | E16: =('DPS Calc'!O12 * (5/6)) + ('DPS Calc'!P12 / 6) -> 16477.18884 | F16: =D16*E16 -> 86212.57769 | G16: =SUM('DPS Calc'!O8:P8) -> 13.80316619 | H16: =('DPS Calc'!O13 * (5/6)) + ('DPS Calc'!P13 / 6) -> 33943.00902 | I16: =G16*H16 -> 468520.9946 | S16: =SUM('DPS Calc'!O6:P7) / SUM(D15,G15,SUM('DPS Calc'!O6:P7)) -> 0.002930100536
A17: Seals of Command | B17: =SUM(F17,I17) -> 412396.8044 | C17: =B17/$B$21 -> 0.03782677722 | D17: =SUM('DPS Calc'!K62:L62) -> 403.7490041 | E17: =('DPS Calc'!K65 * (5/6)) + ('DPS Calc'!L65 / 6) -> 832.0930981 | F17: =D17*E17 -> 335956.7597 | G17: =SUM('DPS Calc'!K61:L61) -> 44.59455069 | H17: =('DPS Calc'!K66 * (5/6)) + ('DPS Calc'!L66 / 6) -> 1714.111782 | I17: =G17*H17 -> 76440.04475 | S17: =SUM('DPS Calc'!K60:L60) / SUM(D16,G16,SUM('DPS Calc'!K60:L60)) -> 0
A18: Judgement of Truth | B18: =SUM(F18,I18) -> 383319.8842 | C18: =B18/$B$21 -> 0.03515971925 | D18: =SUM('DPS Calc'!K50:L50) -> 25.86424864 | E18: =('DPS Calc'!K53 * (5/6)) + ('DPS Calc'!L53 / 6) -> 9384.691181 | F18: =D18*E18 -> 242727.9862 | G18: =SUM('DPS Calc'!K49:L49) -> 7.272321792 | H18: =('DPS Calc'!K54 * (5/6)) + ('DPS Calc'!L54 / 6) -> 19332.46383 | I18: =G18*H18 -> 140591.898 | S18: =SUM('DPS Calc'!K48:L48) / SUM(D17,G17,SUM('DPS Calc'!K48:L48)) -> 0
A19: Holy Wrath | B19: =SUM(F19,I19) -> 152974.1073 | C19: =B19/$B$21 -> 0.01403143141 | D19: =SUM('DPS Calc'!O61:P61) -> 14.55887335 | E19: =('DPS Calc'!O64 * (5/6)) + ('DPS Calc'!P64 / 6) -> 8648.576927 | F19: =D19*E19 -> 125913.5361 | G19: =SUM('DPS Calc'!O60:P60) -> 2.025180896 | H19: =('DPS Calc'!O65 * (5/6)) + ('DPS Calc'!P65 / 6) -> 13362.05135 | I19: =G19*H19 -> 27060.57112 | S19: =SUM('DPS Calc'!O58:P59) / SUM(D18,G18,SUM('DPS Calc'!O58:P59)) -> 0.002508645043
A20: Consecration | B20: =SUM(F20,I20) -> 85376.94812 | C20: =B20/$B$21 -> 0.007831134387 | D20: =SUM('DPS Calc'!O23:P23) -> 71.01092272 | E20: =('DPS Calc'!O26 * (5/6)) + ('DPS Calc'!P26 / 6) -> 990.6029563 | F20: =D20*E20 -> 70343.62998 | G20: =SUM('DPS Calc'!O22:P22) -> 9.822606467 | H20: =('DPS Calc'!O27 * (5/6)) + ('DPS Calc'!P27 / 6) -> 1530.481568 | I20: =G20*H20 -> 15033.31814 | S20: =SUM('DPS Calc'!O20:P21) / SUM(D19,G19,SUM('DPS Calc'!O20:P21)) -> 0.0004376609204
B21: =SUM(B9:B20) -> 10902245.31 | C21: 1 | D21: 1374.459742 | E21: 116546.2615 | F21: 7055091.824 | G21: 185.1797475 | H21: 201463.7276 | I21: 2654026.201 | J21: 262.3961463 | K21: 7226.563294 | L21: 1122515.19 | M21: 31.27633651 | N21: 13890.4739 | O21: 252697.2935 | P21: 41.88972657 | Q21: 5217.544964 | R21: 218561.5319

Sheet Export (hidden)
A1: Current | B1: 4.0.1 | D1: 25 Man (Alliance) | F1: Crusader Strike
A2: Sanctified Lightsworn Helmet (Heroic) | C2: On | E2: Off | F2: Hammer of Wrath
A3: None | C3: Off | D3: On | E3: Off | F3: Exorcism
A4: Arcanum of Torment | C4: Off | D4: On | E4: Off | F4: Judgement
A5: 21 agi & 3% Increased Crit Dmg | C5: On | D5: On | E5: Off | F5: Holy Wrath
A6: Bold Cardinal Ruby (20 Str) | B6: 0 | C6: On | D6: On | E6: Off | F6: Consecration
A7: Bold Cardinal Ruby (20 Str) | B7: 0 | C7: Off | D7: On | E7: On | F7: 0.19
A8: Bonus: | B8: 3 | C8: Off | D8: On | E8: Off | F8: SoT
A9: Sanctified Lightsworn Shoulderplates | B9: 0 | C9: Off | D9: On | E9: Off
A10: None | B10: 0 | C10: On | D10: On | E10: Off
A11: Greater Inscription of the Axe | B11: 2 | C11: Off | D11: 10 | E11: Off
A12: Bold Cardinal Ruby (20 Str) | B12: 0 | C12: On | D12: On | E12: Off
A13: Bold Cardinal Ruby (20 Str) | B13: 1 | C13: On | D13: Off | E13: Off
A14: Bold Cardinal Ruby (20 Str) | B14: 3 | D14: On | E14: On
A15: Bonus: | B15: 2 | D15: On | E15: On
A16: Sanctified Lightsworn Battleplate (Heroic) | B16: 0 | D16: On | E16: Off
A17: Reforge: Haste to Hit | B17: 3 | D17: On | E17: Str
A18: Powerful Stats | B18: 2 | D18: On
A19: Bold Cardinal Ruby (20 Str) | B19: 1 | D19: On
A20: Nightmare Tear (+10 stats) | B20: 3 | D20: 0
A21: Bold Cardinal Ruby (20 Str) | B21: 2
A22: Bonus: | B22: 1
A23: Sanctified Lightsworn Legplates | B23: 1
A24: Reforge: Expertise to Haste | B24: 1
A25: Icescale Leg Armor/Nerubian Leg Reinf. | B25: 1
A26: Bold Cardinal Ruby (20 Str) | B26: 3
A27: Bold Cardinal Ruby (20 Str) | B27: 0
A28: Bold Cardinal Ruby (20 Str) | B28: 1
A29: Bonus: | B29: 2
A30: Fleshrending Gauntlets (Heroic) | B30: 3
A31: None | B31: 0
A32: Crusher | B32: 1
A33: Inscribed Ametrine (10 Str/10 Crit)
A34: Bold Cardinal Ruby (20 Str)
A35: Bold Cardinal Ruby (20 Str)
A36: Bonus:
A37: Blood-Soaked Saronite Stompers
A38: None
A39: Greater Assault (Boots)
A40: Bold Cardinal Ruby (20 Str)
A41: Bold Cardinal Ruby (20 Str)
A42: Bold Cardinal Ruby (20 Str)
A43: Bonus:
A44: Coldwraith Links (Heroic)
A45: None
A46: Inscribed Ametrine (10 Str/10 Crit)
A47: Bold Cardinal Ruby (20 Str)
A48: Bold Cardinal Ruby (20 Str)
A49: Bonus:
A50: Polar Bear Claw Bracers (Heroic)
A51: None
A52: Greater Assault (Bracer)
A53: Bold Cardinal Ruby (20 Str)
A54: Bold Cardinal Ruby (20 Str)
A55: Bold Cardinal Ruby (20 Str)
A56: Bonus:
A57: Winding Sheet (Heroic)
A58: None
A59: Major Agility (Cloak)
A60: Inscribed Ametrine (10 Str/10 Crit)
A61: Bold Cardinal Ruby (20 Str)
A62: Bold Cardinal Ruby (20 Str)
A63: Bonus:
A64: Penumbra Pendant
A65: None
A66: Inscribed Ametrine (10 Str/10 Crit)
A67: Bold Cardinal Ruby (20 Str)
A68: Bold Cardinal Ruby (20 Str)
A69: Bonus:
A70: Skeleton Lord's Circle (Heroic)
A71: None
A72: None
A73: Bold Cardinal Ruby (20 Str)
A74: Bold Cardinal Ruby (20 Str)
A75: Bold Cardinal Ruby (20 Str)
A76: Bonus:
A77: Ashen Band of Endless Might
A78: None
A79: None
A80: Bold Cardinal Ruby (20 Str)
A81: Bold Cardinal Ruby (20 Str)
A82: Bold Cardinal Ruby (20 Str)
A83: Bonus:
A84: Tiny Abomination in a Jar
A85: None
A86: Bold Cardinal Ruby (20 Str)
A87: Bold Cardinal Ruby (20 Str)
A88: Bold Cardinal Ruby (20 Str)
A89: Bonus:
A90: Death's Verdict
A91: None
A92: Bold Cardinal Ruby (20 Str)
A93: Bold Cardinal Ruby (20 Str)
A94: Bold Cardinal Ruby (20 Str)
A95: Bonus:
A96: Libram of Three Truths
A97: Bold Cardinal Ruby (20 Str)
A98: Shadowmourne
A100: Berserking
A101: Bold Cardinal Ruby (20 Str)
A102: Bold Cardinal Ruby (20 Str)
A103: Bold Cardinal Ruby (20 Str)
A104: Bonus:

Sheet Saved (hidden)
A1: Current | B1: T12 | C1: Heroic T12 | AA1: 25 Man | AB1: Self-Buff (Might) | AC1: None
A2: Reinforced Sapphirium Helmet | B2: Immolation Helmet | C2: Immolation Helmet (Heroic)
A3: Reforge: Expertise to Mastery | B3: Reforge: Hit to Mastery | C3: Reforge: Hit to Mastery | AA3: On | AB3: On | AC3: Off
A4: Arcanum of the Wildhammer | B4: Arcanum of the Wildhammer | C4: Arcanum of the Wildhammer | AA4: On | AB4: Off | AC4: Off
A5: 54 Str & 3% Increased Crit Dmg | B5: 54 Str & 3% Increased Crit Dmg | C5: 54 Str & 3% Increased Crit Dmg | AA5: On | AB5: On | AC5: Off
A6: Skillful Ember Topaz (20 Str/20 Mastery) | B6: Bold Chimera's Eye (67 Str) | C6: Bold Chimera's Eye (67 Str) | AA6: On | AB6: Off | AC6: Off
A7: Bold Chimera's Eye (67 Str) | B7: Bold Chimera's Eye (67 Str) | C7: Bold Chimera's Eye (67 Str) | AA7: On | AB7: Off | AC7: Off
A8: Bonus: | B8: Bonus: | C8: Bonus: | AA8: On | AB8: Off | AC8: Off
A9: Reinforced Sapphirium Pauldrons | B9: Immolation Pauldrons | C9: Immolation Pauldrons (Heroic) | AA9: On | AB9: Off | AC9: Off
A10: Reforge: Haste to Mastery | B10: Reforge: Haste to Hit | C10: Reforge: Crit to Mastery | AA10: On | AB10: Off | AC10: Off
A11: Greater Inscription of Jagged Stone | B11: Greater Inscription of Jagged Stone | C11: Greater Inscription of Jagged Stone | AA11: 10 | AB11: Off | AC11: Off
A12: Bold Chimera's Eye (67 Str) | B12: Skillful Ember Topaz (20 Str/20 Mastery) | C12: Skillful Ember Topaz (20 Str/20 Mastery) | AA12: On | AB12: Off | AC12: Off
A13: Bold Chimera's Eye (67 Str) | B13: Bold Chimera's Eye (67 Str) | C13: Bold Chimera's Eye (67 Str) | AA13: On | AB13: Off | AC13: Off
A14: Bold Inferno Ruby (40 Str) | B14: Bold Inferno Ruby (40 Str) | C14: Bold Inferno Ruby (40 Str) | AA14: On | AB14: Off | AC14: Off
A15: Bonus: | B15: Bonus: | C15: Bonus: | AA15: On | AB15: Off | AC15: Off
A16: Immolation Battleplate | B16: Immolation Battleplate | C16: Immolation Battleplate (Heroic) | AA16: On | AB16: Off | AC16: Off
A17: Reforge: Expertise to Mastery | B17: Reforge: Expertise to Mastery | C17: Reforge: Expertise to Mastery | AA17: On | AB17: Off | AC17: Off
A18: Peerless Stats | B18: Peerless Stats | C18: Peerless Stats | AA18: On | AB18: Off | AC18: Off
A19: Bold Inferno Ruby (40 Str) | B19: Bold Inferno Ruby (40 Str) | C19: Bold Inferno Ruby (40 Str) | AA19: Off | AB19: Off | AC19: Off
A20: Etched Demonseye (20 Str/20 Hit) | B20: Etched Demonseye (20 Str/20 Hit) | C20: Etched Demonseye (20 Str/20 Hit)
A21: Bold Inferno Ruby (40 Str) | B21: Bold Inferno Ruby (40 Str) | C21: Bold Inferno Ruby (40 Str)
A22: Bonus: | B22: Bonus: | C22: Bonus:
A23: Immolation Legplates | B23: Immolation Legplates | C23: Lavawork Legplates (Heroic)
A24: Reforge: Crit to Hit | B24: Reforge: Crit to Hit | C24: Reforge: Hit to Haste
A25: Dragonscale Leg Armor | B25: Dragonscale Leg Armor | C25: Dragonscale Leg Armor
A26: Bold Inferno Ruby (40 Str) | B26: Bold Inferno Ruby (40 Str) | C26: Bold Inferno Ruby (40 Str)
A27: Skillful Ember Topaz (20 Str/20 Mastery) | B27: Skillful Ember Topaz (20 Str/20 Mastery) | C27: Skillful Ember Topaz (20 Str/20 Mastery)
A28: Bold Inferno Ruby (40 Str) | B28: Bold Inferno Ruby (40 Str) | C28: Bold Inferno Ruby (40 Str)
A29: Bonus: | B29: Bonus: | C29: Bonus:
A30: Fireskin Gauntlets | B30: Fireskin Gauntlets | C30: Immolation Gauntlets (Heroic)
A31: None | B31: Reforge: Hit to Haste | C31: Reforge: Hit to Haste
A32: Mighty Strength | B32: Mighty Strength | C32: Mighty Strength
A33: Bold Inferno Ruby (40 Str) | B33: Bold Inferno Ruby (40 Str) | C33: Etched Demonseye (20 Str/20 Hit)
A34: Bold Inferno Ruby (40 Str) | B34: Bold Inferno Ruby (40 Str) | C34: Bold Inferno Ruby (40 Str)
A35: Bold Inferno Ruby (40 Str) | B35: Bold Inferno Ruby (40 Str) | C35: Bold Inferno Ruby (40 Str)
A36: Bonus: | B36: Bonus: | C36: Bonus:
A37: None | B37: None | C37: None
A38: Arachnaflame Treads | B38: Warboots of Mighty Lords | C38: Arachnaflame Treads (Heroic)
A39: Reforge: Crit to Mastery | B39: Reforge: Hit to Expertise | C39: Reforge: Haste to Hit
A40: Mastery | B40: Mastery | C40: Mastery
A41: Bold Inferno Ruby (40 Str) | B41: Bold Inferno Ruby (40 Str) | C41: Bold Inferno Ruby (40 Str)
A42: Bold Inferno Ruby (40 Str) | B42: Bold Inferno Ruby (40 Str) | C42: Bold Inferno Ruby (40 Str)
A43: Bold Inferno Ruby (40 Str) | B43: Bold Inferno Ruby (40 Str) | C43: Bold Inferno Ruby (40 Str)
A44: Bonus: | B44: Bonus: | C44: Bonus:
A45: Cinch of the Flaming Ember | B45: Cinch of the Flaming Ember | C45: Cinch of the Flaming Ember
A47: Reforge: Crit to Mastery | B47: Reforge: Hit to Mastery | C47: Reforge: Crit to Mastery
A48: Etched Demonseye (20 Str/20 Hit) | B48: Etched Demonseye (20 Str/20 Hit) | C48: Etched Demonseye (20 Str/20 Hit)
A49: Bold Inferno Ruby (40 Str) | B49: Bold Inferno Ruby (40 Str) | C49: Bold Inferno Ruby (40 Str)
A50: Bold Inferno Ruby (40 Str) | B50: Bold Inferno Ruby (40 Str) | C50: Bold Inferno Ruby (40 Str)
A51: Bonus: | B51: Bonus: | C51: Bonus:
A52: Earthcrack Bracers | B52: Gigantiform Bracers | C52: Gigantiform Bracers (Heroic)
A53: Reforge: Crit to Mastery | B53: Reforge: Hit to Haste | C53: Reforge: Hit to Haste
A54: Major Strength | B54: Major Strength | C54: Major Strength
A55: Bold Inferno Ruby (40 Str) | B55: Bold Inferno Ruby (40 Str) | C55: Bold Inferno Ruby (40 Str)
A56: Bold Inferno Ruby (40 Str) | B56: Bold Inferno Ruby (40 Str) | C56: Bold Inferno Ruby (40 Str)
A57: Bold Inferno Ruby (40 Str) | B57: Bold Inferno Ruby (40 Str) | C57: Bold Inferno Ruby (40 Str)
A58: Bonus: | B58: Bonus: | C58: Bonus:
A59: Bladed Flamewrath Cover | B59: Bladed Flamewrath Cover | C59: Bladed Flamewrath Cover
A60: Reforge: Expertise to Mastery | B60: Reforge: Expertise to Mastery | C60: Reforge: Expertise to Mastery
A61: Critical Strike | B61: Greater Critical Strike | C61: Greater Critical Strike
A62: Bold Inferno Ruby (40 Str) | B62: Bold Inferno Ruby (40 Str) | C62: Bold Inferno Ruby (40 Str)
A63: Bold Inferno Ruby (40 Str) | B63: Bold Inferno Ruby (40 Str) | C63: Bold Inferno Ruby (40 Str)
A64: Bold Inferno Ruby (40 Str) | B64: Bold Inferno Ruby (40 Str) | C64: Bold Inferno Ruby (40 Str)
A65: Gift of Nadun | B65: Necklace of Fetishes | C65: Necklace of Fetishes (Heroic)
A66: Reforge: Crit to Mastery | B66: Reforge: Hit to Mastery | C66: Reforge: Hit to Mastery
A67: Bold Inferno Ruby (40 Str) | B67: Bold Inferno Ruby (40 Str) | C67: Bold Inferno Ruby (40 Str)
A68: Bold Inferno Ruby (40 Str) | B68: Bold Inferno Ruby (40 Str) | C68: Bold Inferno Ruby (40 Str)
A69: Bold Inferno Ruby (40 Str) | B69: Bold Inferno Ruby (40 Str) | C69: Bold Inferno Ruby (40 Str)
A70: Bonus: | B70: Bonus: | C70: Bonus:
A71: Serrated Brimstone Signet | B71: Alysrazor's Band | C71: Alysrazor's Band (Heroic)
A72: Reforge: Crit to Hit | B72: Reforge: Expertise to Hit | C72: Reforge: Expertise to Mastery
A73: None | B73: None | C73: None
A74: Bold Inferno Ruby (40 Str) | B74: Bold Inferno Ruby (40 Str) | C74: Bold Inferno Ruby (40 Str)
A75: Bold Inferno Ruby (40 Str) | B75: Bold Inferno Ruby (40 Str) | C75: Bold Inferno Ruby (40 Str)
A76: Bold Inferno Ruby (40 Str) | B76: Bold Inferno Ruby (40 Str) | C76: Bold Inferno Ruby (40 Str)
A77: Bonus: | B77: Bonus: | C77: Bonus:
A78: Alysrazor's Band | B78: Obsidian Signet of the Avengers | C78: Obsidian Signet of the Avengers
A79: Reforge: Expertise to Hit | B79: Reforge: Crit to Mastery | C79: Reforge: Hit to Mastery
A80: None | B80: None | C80: None
A81: Bold Inferno Ruby (40 Str) | B81: Bold Inferno Ruby (40 Str) | C81: Bold Inferno Ruby (40 Str)
A82: Bold Inferno Ruby (40 Str) | B82: Bold Inferno Ruby (40 Str) | C82: Bold Inferno Ruby (40 Str)
A83: Bold Inferno Ruby (40 Str) | B83: Bold Inferno Ruby (40 Str) | C83: Bold Inferno Ruby (40 Str)
A84: Bonus: | B84: Bonus: | C84: Bonus:
A85: Essence of the Eternal Flame | B85: Essence of the Eternal Flame | C85: Apparatus of Khaz'goroth (Heroic)
A86: Reforge: Mastery to Hit | B86: Reforge: Hit to Haste | C86: None
A87: None | B87: None | C87: None
A88: Bold Inferno Ruby (40 Str) | B88: Bold Inferno Ruby (40 Str) | C88: Bold Inferno Ruby (40 Str)
A89: Bold Inferno Ruby (40 Str) | B89: Bold Inferno Ruby (40 Str) | C89: Bold Inferno Ruby (40 Str)
A90: Bold Inferno Ruby (40 Str) | B90: Bold Inferno Ruby (40 Str) | C90: Bold Inferno Ruby (40 Str)
A91: Bonus: | B91: Bonus: | C91: Bonus:
A92: Darkmoon Card: Hurricane | B92: Vessel of Acceleration | C92: Vessel of Acceleration (Heroic)
A93: None | B93: None | C93: None
A94: None | B94: None | C94: None
A95: Bold Inferno Ruby (40 Str) | B95: Bold Inferno Ruby (40 Str) | C95: Bold Inferno Ruby (40 Str)
A96: Bold Inferno Ruby (40 Str) | B96: Bold Inferno Ruby (40 Str) | C96: Bold Inferno Ruby (40 Str)
A97: Bold Inferno Ruby (40 Str) | B97: Bold Inferno Ruby (40 Str) | C97: Bold Inferno Ruby (40 Str)
A98: Bonus: | B98: Bonus: | C98: Bonus:
A99: Relic of the Elemental Lords | B99: Relic of the Elemental Lords | C99: Relic of the Elemental Lords (Heroic)
A100: Reforge: Crit to Hit | B100: Reforge: Crit to Mastery | C100: Reforge: Crit to Expertise
A101: None | B101: None | C101: None
A102: Bold Inferno Ruby (40 Str) | B102: Bold Inferno Ruby (40 Str) | C102: Bold Inferno Ruby (40 Str)
A103: None | B103: None | C103: None
A104: None | B104: None | C104: None
A105: Zoid's Firelit Greatsword | B105: Sulfuras- The Extinguished Hand | C105: Sulfuras- The Extinguished Hand (Heroic)
A106: Reforge: Crit to Mastery | B106: Reforge: Crit to Haste | C106: Reforge: Crit to Haste
A107: Landslide | B107: Landslide | C107: Landslide
A108: Etched Demonseye (20 Str/20 Hit) | B108: Bold Inferno Ruby (40 Str) | C108: Bold Inferno Ruby (40 Str)
A109: Bold Inferno Ruby (40 Str) | B109: Bold Inferno Ruby (40 Str) | C109: Bold Inferno Ruby (40 Str)
A110: Bold Inferno Ruby (40 Str) | B110: Bold Inferno Ruby (40 Str) | C110: Bold Inferno Ruby (40 Str)
A111: Bonus: | B111: Bonus: | C111: Bonus:
A112: Bold Inferno Ruby (40 Str)
A113: Bonus:

Sheet Probability (hidden)
A1: Base Information | F1: Templar's Verdict Calculations | K1: Ability Usage
A2: Ability | B2: Minimum Cooldowns | C2: GCD | F2: Ability | G2: # | H2: Divine Purpose | I2: Totals | K2: Ability | M2: Total Usage | N2: In AW | O2: Outside AW | P2: Effective CD
A3: Consecration | B3: =IF(Fillers=2,(30 * IF(GlyphOfConsecration="On",1.2,1)),CEILING((30 * IF(GlyphOfConsecration="On",1.2,1)),CSCD)) -> 30 | C3: =SpellGCD -> 1.125403792 | F3: Crusader Strike | G3: =VLOOKUP(F3,$A$17:$L$66,12,FALSE) -> 114.1468745 | H3: N/A | I3: =(G3 * IF(T12Bonus>3,(35/120),(20/120))) + ((G3 * (1 - IF(T12Bonus>3,(35/120),(20/120)))) / 3) -> 50.73194423 | K3: Consecration | M3: =VLOOKUP(K3,$A$17:$L$66,12,FALSE) -> 8.084079056 | N3: =M3 / 6 -> 1.347346509 | O3: =M3 * 5 / 6 -> 6.736732546 | P3: =Length / SUM(N3:O3) -> 55.66496776
A4: Crusader Strike | B4: =CSCD -> 3.376211377 | C4: 1.5 | F4: Exorcism | G4: =VLOOKUP(F4,$A$17:$L$66,12,FALSE) -> 32.71365243 | H4: =IF(DivPurpTalent=1,7%,IF(DivPurpTalent=2,15%,0)) -> 0.15 | I4: =G4*H4 -> 4.907047864 | K4: Crusader Strike | M4: 114.1468745 | N4: =M4 / 6 -> 19.02447909 | O4: =M4 * 5 / 6 -> 95.12239543 | P4: 3.942289282
A5: Exorcism | B5: =IF(Fillers=2,(HastedWeaponspeed / 0.2),CEILING((HastedWeaponspeed / 0.2),CSCD)) -> 12.8909889 | C5: =SpellGCD -> 1.125403792 | F5: Hammer of Wrath | G5: =VLOOKUP(F5,$A$17:$L$66,12,FALSE) -> 19.13105974 | H5: 0.15 | I5: =G5*H5 -> 2.869658961 | K5: Exorcism | M5: 32.71365243 | N5: =M5 / 6 -> 5.452275404 | O5: =M5 * 5 / 6 -> 27.26137702 | P5: 13.7557248
A6: Hammer of Wrath | B6: =IF(Fillers=2,(Length / (((HoWPercent * Length) / 6) + (((1 - HoWPercent) * Length) * (IF(VLOOKUP("Templar's Verdict",A17:D66,4,FALSE)<VLOOKUP("Exorcism",A17:D66,4,FALSE),2,3) / 20) * (1 / 6)))),CEILING((Length / (((HoWPercent * Length) / 6) + (((1 - HoWPercent) * Length) * (IF(VLOOKUP("Templar's Verdict",A17:D66,4,FALSE)<VLOOKUP("Exorcism",A17:D66,4,FALSE),2,3) / 20) * (1 / 6)))),CSCD)) -> 19.26163724 | C6: 1.5 | F6: Holy Wrath | G6: 16.6673912 | H6: 0.15 | I6: 2.50010868 | K6: Hammer of Wrath | M6: 19.13105974 | N6: =((HoWPercent / 6) + ((1 - HoWPercent) / 6)) / (HoWPercent + ((1 - HoWPercent) / 6)) * M6 -> 9.810799867 | O6: =(1 - ((HoWPercent / 6) + ((1 - HoWPercent) / 6)) / (HoWPercent + ((1 - HoWPercent) / 6))) * M6 -> 9.320259874 | P6: 23.52195885
A7: Holy Wrath | B7: =IF(Fillers=2,15,CEILING(15,CSCD)) -> 15 | C7: =SpellGCD -> 1.125403792 | F7: =IF(InqRefresh="Unused","Unused","Inquisition") -> Inquisition | G7: 12.68854765 | H7: 0.15 | I7: 1.903282148 | K7: Holy Wrath | M7: 16.6673912 | N7: =M7 / 6 -> 2.777898534 | O7: =M7 * 5 / 6 -> 13.88949267 | P7: 26.9988263
A8: =IF(SealSelection="SoT","Judgement of Truth","Judgement of Righteousness") -> Judgement of Truth | B8: =IF(Fillers=2,(8 - IF(PvPBonus>3,1,0)),CEILING((8 - IF(PvPBonus>3,1,0)),CSCD)) -> 8 | C8: 1.5 | F8: =IF(SealSelection="SoT","Judgement of Truth", "Judgement of Righteousness") -> Judgement of Truth | G8: 33.13657044 | H8: 0.15 | I8: 4.970485566 | K8: =IF(SealSelection="SoT","Judgement of Truth", "Judgement of Righteousness") -> Judgement of Truth | M8: 33.13657044 | N8: =M8 / 6 -> 5.52276174 | O8: =M8 * 5 / 6 -> 27.6138087 | P8: 13.58016216
A9: Inquisition | B9: =IF(T11Bonus>3,IF(Fillers=2,(IF(InqRefresh="Unused",0,(24 - AVERAGE(InqRefresh,(InqRefresh - TVMinCD))))),IF(CEILING((IF(InqRefresh="Unused",0,(24 - AVERAGE(InqRefresh,(InqRefresh - TVMinCD))))),CSCD)>24,(CEILING((IF(InqRefresh="Unused",0,(24 - AVERAGE(InqRefresh,(InqRefresh - TVMinCD))))),CSCD) - CSCD),CEILING((IF(InqRefresh="Unused",0,(24 - AVERAGE(InqRefresh,(InqRefresh - TVMinCD))))),CSCD))),IF(Fillers=2,(IF(InqRefresh="Unused",0,(36 - AVERAGE(InqRefresh,(InqRefresh - TVMinCD))))),IF(CEILING((IF(InqRefresh="Unused",0,(36 - AVERAGE(InqRefresh,(InqRefresh - TVMinCD))))),CSCD)>36,(CEILING((IF(InqRefresh="Unused",0,(36 - AVERAGE(InqRefresh,(InqRefresh - TVMinCD))))),CSCD) - CSCD),CEILING((IF(InqRefresh="Unused",0,(36 - AVERAGE(InqRefresh,(InqRefresh - TVMinCD))))),CSCD)))) -> 35.46505182 | C9: =SpellGCD -> 1.125403792 | F9: Templar's Verdict | G9: 64.93409388 | H9: 0.15 | I9: 9.740114081 | K9: =IF(InqRefresh="Unused","Unused","Inquisition") -> Inquisition | M9: 12.68854765 | N9: =M9 / 6 -> 2.114757942 | O9: =M9 * 5 / 6 -> 10.57378971 | P9: =IF(InqRefresh="Unused",0,(Length / SUM(N9:O9))) -> 35.46505182
A10: Templar's Verdict | B10: =IF(Fillers=2,I11,CEILING(I11,CSCD)) -> 6.930103635 | C10: 1.5 | H10: Total | I10: =SUM(I3:I9) - IF(T11Bonus>3,(G7/2),G7) -> 64.93409388 | K10: Templar's Verdict | M10: =IF(CircRef="Off",6.5,SUM(N10:O10)) -> 64.93409388 | N10: =IF(CircRef="Off",5,IF(AWZeal="Together",(N4 + (0.15 * SUM(N5:N10)) - IF(T11Bonus>3,(N9/2),N9)),((N4 / 3) + (0.15 * SUM(N5:N10)) - IF(T11Bonus>3,(N9/2),N9)))) -> 24.42528843 | O10: =IF(CircRef="Off",5,IF(AWZeal="Together",((IF(T12Bonus>3,((O4 * 15/120) + (O4 * (1 -15/120) / 3)),(O4/3))) + (0.15 * SUM(O5:O10)) - IF(T11Bonus>3,(O9/2),O9)),((O4 * (IF(T12Bonus>3,35,20)/100)) + (O4 * (IF(T12Bonus>3,65,80)/100) / 3) + (0.15 * SUM(O5:O10)) - IF(T11Bonus>3,(O9/2),O9)))) -> 40.50880544 | P10: 6.930103635
H11: Average CD | I11: =Length / I10 -> 6.930103635
A12: Timeslice | B12: 0.01
A13: Circular References | B13: On
F16: Ability per Timeslice | G16: Chance happens * timeslices in GCD | H16: Total chance * new ability's chance | I16: Length / Timeslice / Timeslice | J16: Timeslices Lost | K16: Remaining Timeslice | L16: # | M16: Adjusted Ability per Timeslice
A17: =IF(InqRefresh="Unused","Unused","Inquisition") -> Inquisition | C17: =IF(InqRefresh="Unused",0,VLOOKUP(A17,Probability!A3:C10,3,FALSE)) -> 1.125403792 | D17: 1 | F17: =IF(InqRefresh="Unused",0,(1/VLOOKUP(A17,$A$3:$B$10,2,FALSE)) * TimeSlice) -> 0.0002819677256 | G17: =IF(InqRefresh="Unused",0,(M18 * ((IF(Fillers=1,CSCD,C18) / TimeSlice) - TimeSlice))) -> 0.3804642157 | K17: =(Length / TimeSlice) -> 45000 | L17: =IF(CircRef="Off",6,(K17*F17)) -> 12.68854765 | M17: =IF(InqRefresh="Unused",0,(1/VLOOKUP(A17,$A$3:$B$10,2,FALSE)) * TimeSlice) -> 0.0002819677256
A18: =IF(AND(SealSelection="SoR",Ability1="Judgement of Truth"),"Judgement of Righteousness",Ability1) -> Crusader Strike | B18: =IF(InqRefresh="Unused","Unused","Inquisition") -> Inquisition | C18: =VLOOKUP(A18,Probability!$A$3:$C$10,3,FALSE) -> 1.5 | D18: 2 | E18: 1 | F18: =(1/VLOOKUP(A18,$A$3:$B$10,2,FALSE)) * TimeSlice -> 0.002961899858 | G18: =IF(InqRefresh="Unused",0,(M17 * ((IF(Fillers=1,CSCD,C17) / TimeSlice) - TimeSlice))) -> 0.0317299351 | H18: =$M$18*G18 -> 8.048606489e-05 | I18: =Length / TimeSlice / TimeSlice -> 4500000 | J18: =H18*I18 -> 362.187292 | K18: =IF(A18="Exorcism",((Length / TimeSlice) - SUM(J18:J24)),(K17 - SUM(J18:J24))) -> 38538.39764 | L18: =IF(A18="Templar's Verdict",$M$10,IF(CircRef="Off",6,(K18*F18))) -> 114.1468745 | M18: =TimeSlice / (Length / L18) -> 0.002536597211
A19: Crusader Strike | B19: =IF(AND(SealSelection="SoR",Ability2="Judgement of Truth"),"Judgement of Righteousness",Ability2) -> Hammer of Wrath | C19: =VLOOKUP(A19,Probability!$A$3:$C$10,3,FALSE) -> 1.5 | D19: 2 | E19: 3 | F19: 0.002961899858 | G19: =(VLOOKUP(B19,$A$17:$M$66,13,FALSE) * ((IF(Fillers=1,CSCD,VLOOKUP(B19,$A$17:$C$66,3,FALSE)) / TimeSlice) - TimeSlice)) -> 0.06376594779 | H19: =$M$18*G19 -> 0.0001617485253 | I19: 4500000 | J19: =H19*I19 -> 727.868364
A20: Crusader Strike | B20: =IF(AND(SealSelection="SoR",Ability3="Judgement of Truth"),"Judgement of Righteousness",Ability3) -> Exorcism | C20: =VLOOKUP(A20,Probability!$A$3:$C$10,3,FALSE) -> 1.5 | D20: 2 | E20: 4 | F20: 0.002961899858 | G20: =(VLOOKUP(B20,$A$17:$M$66,13,FALSE) * (IF(Fillers=1,CSCD,(VLOOKUP(B20,$A$17:$C$66,3,FALSE)) / TimeSlice) - TimeSlice)) -> 0.08180621587 | H20: 0.0002075094191 | I20: 4500000 | J20: 933.7923857
A21: Crusader Strike | B21: =IF(AND(SealSelection="SoR",Ability4="Judgement of Truth"),"Judgement of Righteousness",Ability4) -> Templar's Verdict | C21: =VLOOKUP(A21,Probability!$A$3:$C$10,3,FALSE) -> 1.5 | D21: 2 | E21: 5 | F21: 0.002961899858 | G21: =(VLOOKUP(B21,$A$17:$M$66,13,FALSE) * (IF(Fillers=1,CSCD,(VLOOKUP(B21,$A$17:$C$66,3,FALSE)) / TimeSlice) - TimeSlice)) -> 0.2164325498 | H21: 0.0005490022022 | I21: 4500000 | J21: 2470.50991
A22: Crusader Strike | B22: =IF(AND(SealSelection="SoR",Ability5="Judgement of Truth"),"Judgement of Righteousness",Ability5) -> Judgement of Truth | C22: =VLOOKUP(A22,Probability!$A$3:$C$10,3,FALSE) -> 1.5 | D22: 2 | E22: 6 | F22: 0.002961899858 | G22: =(VLOOKUP(B22,$A$17:$M$66,13,FALSE) * (IF(Fillers=1,CSCD,(VLOOKUP(B22,$A$17:$C$66,3,FALSE)) / TimeSlice) - TimeSlice)) -> 0.1104478711 | H22: 0.0002801617619 | I22: 4500000 | J22: 1260.727928
A23: Crusader Strike | B23: =IF(AND(SealSelection="SoR",Ability6="Judgement of Truth"),"Judgement of Righteousness",Ability6) -> Holy Wrath | C23: =VLOOKUP(A23,Probability!$A$3:$C$10,3,FALSE) -> 1.5 | D23: 2 | E23: 7 | F23: 0.002961899858 | G23: =(VLOOKUP(B23,$A$17:$M$66,13,FALSE) * (IF(Fillers=1,CSCD,(VLOOKUP(B23,$A$17:$C$66,3,FALSE)) / TimeSlice) - TimeSlice)) -> 0.04167973007 | H23: 0.0001057246871 | I23: 4500000 | J23: 475.7610918
A24: Crusader Strike | B24: =IF(AND(SealSelection="SoR",Ability7="Judgement of Truth"),"Judgement of Righteousness",Ability7) -> Consecration | C24: =VLOOKUP(A24,Probability!$A$3:$C$10,3,FALSE) -> 1.5 | D24: 2 | E24: 8 | F24: 0.002961899858 | G24: =(VLOOKUP(B24,$A$17:$M$66,13,FALSE) * (IF(Fillers=1,CSCD,(VLOOKUP(B24,$A$17:$C$66,3,FALSE)) / TimeSlice) - TimeSlice)) -> 0.02021565516 | H24: 5.127897449e-05 | I24: 4500000 | J24: 230.7553852
A25: =IF(AND(SealSelection="SoR",Ability2="Judgement of Truth"),"Judgement of Righteousness",Ability2) -> Hammer of Wrath | B25: =IF(InqRefresh="Unused","Unused","Inquisition") -> Inquisition | C25: =VLOOKUP(A25,Probability!$A$3:$C$10,3,FALSE) -> 1.5 | D25: 3 | E25: 1 | F25: 0.0005191666667 | G25: =IF(InqRefresh="Unused",0,(M17 * ((IF(Fillers=1,CSCD,C17) / TimeSlice) - TimeSlice))) -> 0.0317299351 | H25: =$M$25*G25 -> 1.34894952e-05 | I25: 4500000 | J25: 60.7027284 | K25: =IF(A25="Exorcism",((Length / TimeSlice) - SUM(J25:J31)),(K17 - SUM(J18:J31))) -> 36849.55327 | L25: =IF(A25="Templar's Verdict",$M$10,IF(CircRef="Off",6,(K25*F25))) -> 19.13105974 | M25: =TimeSlice / (Length / L25) -> 0.0004251346609
A26: Hammer of Wrath | B26: =IF(AND(SealSelection="SoR",Ability1="Judgement of Truth"),"Judgement of Righteousness",Ability1) -> Crusader Strike | C26: =VLOOKUP(A26,Probability!$A$3:$C$10,3,FALSE) -> 1.5 | D26: 3 | E26: 2 | F26: 0.0005191666667 | G26: =(VLOOKUP(B26,$A$17:$M$66,13,FALSE) * (IF(Fillers=1,CSCD,(VLOOKUP(B26,$A$17:$C$66,3,FALSE)) / TimeSlice) - TimeSlice)) -> 0.3804642157 | H26: 0.0001617485253 | I26: 4500000 | J26: 727.868364
A27: Hammer of Wrath | B27: =IF(AND(SealSelection="SoR",Ability3="Judgement of Truth"),"Judgement of Righteousness",Ability3) -> Exorcism | C27: =VLOOKUP(A27,Probability!$A$3:$C$10,3,FALSE) -> 1.5 | D27: 3 | E27: 4 | F27: 0.0005191666667 | G27: 0.08180621587 | H27: 3.477865784e-05 | I27: 4500000 | J27: 156.5039603
A28: Hammer of Wrath | B28: =IF(AND(SealSelection="SoR",Ability4="Judgement of Truth"),"Judgement of Righteousness",Ability4) -> Templar's Verdict | C28: =VLOOKUP(A28,Probability!$A$3:$C$10,3,FALSE) -> 1.5 | D28: 3 | E28: 5 | F28: 0.0005191666667 | G28: 0.2164325498 | H28: 9.201297866e-05 | I28: 4500000 | J28: 414.058404
A29: Hammer of Wrath | B29: =IF(AND(SealSelection="SoR",Ability5="Judgement of Truth"),"Judgement of Righteousness",Ability5) -> Judgement of Truth | C29: =VLOOKUP(A29,Probability!$A$3:$C$10,3,FALSE) -> 1.5 | D29: 3 | E29: 6 | F29: 0.0005191666667 | G29: 0.1104478711 | H29: 4.695521823e-05 | I29: 4500000 | J29: 211.298482
A30: Hammer of Wrath | B30: =IF(AND(SealSelection="SoR",Ability6="Judgement of Truth"),"Judgement of Righteousness",Ability6) -> Holy Wrath | C30: =VLOOKUP(A30,Probability!$A$3:$C$10,3,FALSE) -> 1.5 | D30: 3 | E30: 7 | F30: 0.0005191666667 | G30: 0.04167973007 | H30: 1.771949791e-05 | I30: 4500000 | J30: 79.7377406
A31: Hammer of Wrath | B31: =IF(AND(SealSelection="SoR",Ability7="Judgement of Truth"),"Judgement of Righteousness",Ability7) -> Consecration | C31: =VLOOKUP(A31,Probability!$A$3:$C$10,3,FALSE) -> 1.5 | D31: 3 | E31: 8 | F31: 0.0005191666667 | G31: 0.02021565516 | H31: 8.5943757e-06 | I31: 4500000 | J31: 38.67469065
A32: =IF(AND(SealSelection="SoR",Ability3="Judgement of Truth"),"Judgement of Righteousness",Ability3) -> Exorcism | B32: =IF(InqRefresh="Unused","Unused","Inquisition") -> Inquisition | C32: =VLOOKUP(A32,Probability!$A$3:$C$10,3,FALSE) -> 1.125403792 | D32: 4 | E32: 1 | F32: 0.0007757356771 | G32: =IF(InqRefresh="Unused",0,(M17 * ((IF(Fillers=1,CSCD,C17) / TimeSlice) - TimeSlice))) -> 0.0317299351 | H32: =$M$32*G32 -> 2.306671263e-05 | I32: 4500000 | J32: 103.8002068 | K32: =IF(A32="Exorcism",((Length / TimeSlice) - SUM(J32:J38)),(K17 - SUM(J18:J38))) -> 42171.13302 | L32: =IF(A32="Templar's Verdict",$M$10,IF(CircRef="Off",6,(K32*F32))) -> 32.71365243 | M32: =TimeSlice / (Length / L32) -> 0.0007269700539
A33: Exorcism | B33: =IF(AND(SealSelection="SoR",Ability1="Judgement of Truth"),"Judgement of Righteousness",Ability1) -> Crusader Strike | C33: =VLOOKUP(A33,Probability!$A$3:$C$10,3,FALSE) -> 1.125403792 | D33: 4 | E33: 2 | F33: 0.0007757356771 | G33: =(VLOOKUP(B33,$A$17:$M$66,13,FALSE) * (IF(Fillers=1,CSCD,(VLOOKUP(B33,$A$17:$C$66,3,FALSE)) / TimeSlice) - TimeSlice)) -> 0.3804642157 | H33: 0.0002765860914 | I33: 4500000 | J33: 1244.637411
A34: Exorcism | B34: =IF(AND(SealSelection="SoR",Ability2="Judgement of Truth"),"Judgement of Righteousness",Ability2) -> Hammer of Wrath | C34: =VLOOKUP(A34,Probability!$A$3:$C$10,3,FALSE) -> 1.125403792 | D34: 4 | E34: 3 | F34: 0.0007757356771 | G34: 0.06376594779 | H34: 4.63559345e-05 | I34: 4500000 | J34: 208.6017053
A35: Exorcism | B35: =IF(AND(SealSelection="SoR",Ability4="Judgement of Truth"),"Judgement of Righteousness",Ability4) -> Templar's Verdict | C35: =VLOOKUP(A35,Probability!$A$3:$C$10,3,FALSE) -> 1.125403792 | D35: 4 | E35: 5 | F35: 0.0007757356771 | G35: 0.2164325498 | H35: 0.0001573399824 | I35: 4500000 | J35: 708.0299207
A36: Exorcism | B36: =IF(AND(SealSelection="SoR",Ability5="Judgement of Truth"),"Judgement of Righteousness",Ability5) -> Judgement of Truth | C36: =VLOOKUP(A36,Probability!$A$3:$C$10,3,FALSE) -> 1.125403792 | D36: 4 | E36: 6 | F36: 0.0007757356771 | G36: 0.1104478711 | H36: 8.029229482e-05 | I36: 4500000 | J36: 361.3153267
A37: Exorcism | B37: =IF(AND(SealSelection="SoR",Ability6="Judgement of Truth"),"Judgement of Righteousness",Ability6) -> Holy Wrath | C37: =VLOOKUP(A37,Probability!$A$3:$C$10,3,FALSE) -> 1.125403792 | D37: 4 | E37: 7 | F37: 0.0007757356771 | G37: 0.04167973007 | H37: 3.029991562e-05 | I37: 4500000 | J37: 136.3496203
A38: Exorcism | B38: =IF(AND(SealSelection="SoR",Ability7="Judgement of Truth"),"Judgement of Righteousness",Ability7) -> Consecration | C38: =VLOOKUP(A38,Probability!$A$3:$C$10,3,FALSE) -> 1.125403792 | D38: 4 | E38: 8 | F38: 0.0007757356771 | G38: 0.02021565516 | H38: 1.469617592e-05 | I38: 4500000 | J38: 66.13279163
A39: =IF(AND(SealSelection="SoR",Ability4="Judgement of Truth"),"Judgement of Righteousness",Ability4) -> Templar's Verdict | B39: =IF(InqRefresh="Unused","Unused","Inquisition") -> Inquisition | C39: =VLOOKUP(A39,Probability!$A$3:$C$10,3,FALSE) -> 1.5 | D39: 5 | E39: 1 | F39: 0.001442979864 | G39: =IF(InqRefresh="Unused",0,(M17 * ((IF(Fillers=1,CSCD,C17) / TimeSlice) - TimeSlice))) -> 0.0317299351 | H39: =$M$39*G39 -> 4.578565743e-05 | I39: 4500000 | J39: 206.0354584 | K39: =IF(A39="Exorcism",((Length / TimeSlice) - SUM(J39:J45)),(K17 - SUM(J18:J45))) -> 29279.78595 | L39: =IF(A39="Templar's Verdict",$M$10,IF(CircRef="Off",6,(K39*F39))) -> 64.93409388 | M39: =TimeSlice / (Length / L39) -> 0.001442979864
A40: Templar's Verdict | B40: =IF(AND(SealSelection="SoR",Ability1="Judgement of Truth"),"Judgement of Righteousness",Ability1) -> Crusader Strike | C40: =VLOOKUP(A40,Probability!$A$3:$C$10,3,FALSE) -> 1.5 | D40: 5 | E40: 2 | F40: 0.001442979864 | G40: =(VLOOKUP(B40,$A$17:$M$66,13,FALSE) * (IF(Fillers=1,CSCD,(VLOOKUP(B40,$A$17:$C$66,3,FALSE)) / TimeSlice) - TimeSlice)) -> 0.3804642157 | H40: 0.0005490022022 | I40: 4500000 | J40: 2470.50991
A41: Templar's Verdict | B41: =IF(AND(SealSelection="SoR",Ability2="Judgement of Truth"),"Judgement of Righteousness",Ability2) -> Hammer of Wrath | C41: =VLOOKUP(A41,Probability!$A$3:$C$10,3,FALSE) -> 1.5 | D41: 5 | E41: 3 | F41: 0.001442979864 | G41: 0.06376594779 | H41: 9.201297866e-05 | I41: 4500000 | J41: 414.058404
A42: Templar's Verdict | B42: =IF(AND(SealSelection="SoR",Ability3="Judgement of Truth"),"Judgement of Righteousness",Ability3) -> Exorcism | C42: =VLOOKUP(A42,Probability!$A$3:$C$10,3,FALSE) -> 1.5 | D42: 5 | E42: 4 | F42: 0.001442979864 | G42: 0.08180621587 | H42: 0.0001180447222 | I42: 4500000 | J42: 531.2012501
A43: Templar's Verdict | B43: =IF(AND(SealSelection="SoR",Ability5="Judgement of Truth"),"Judgement of Righteousness",Ability5) -> Judgement of Truth | C43: =VLOOKUP(A43,Probability!$A$3:$C$10,3,FALSE) -> 1.5 | D43: 5 | E43: 6 | F43: 0.001442979864 | G43: 0.1104478711 | H43: 0.000159374054 | I43: 4500000 | J43: 717.1832431
A44: Templar's Verdict | B44: =IF(AND(SealSelection="SoR",Ability6="Judgement of Truth"),"Judgement of Righteousness",Ability6) -> Holy Wrath | C44: =VLOOKUP(A44,Probability!$A$3:$C$10,3,FALSE) -> 1.5 | D44: 5 | E44: 7 | F44: 0.001442979864 | G44: 0.04167973007 | H44: 6.014301122e-05 | I44: 4500000 | J44: 270.6435505
A45: Templar's Verdict | B45: =IF(AND(SealSelection="SoR",Ability7="Judgement of Truth"),"Judgement of Righteousness",Ability7) -> Consecration | C45: =VLOOKUP(A45,Probability!$A$3:$C$10,3,FALSE) -> 1.5 | D45: 5 | E45: 8 | F45: 0.001442979864 | G45: 0.02021565516 | H45: 2.917078333e-05 | I45: 4500000 | J45: 131.268525
A46: =IF(AND(SealSelection="SoR",Ability5="Judgement of Truth"),"Judgement of Righteousness",Ability5) -> Judgement of Truth | B46: =IF(InqRefresh="Unused","Unused","Inquisition") -> Inquisition | C46: =VLOOKUP(A46,Probability!$A$3:$C$10,3,FALSE) -> 1.5 | D46: 6 | E46: 1 | F46: 0.00125 | G46: =IF(InqRefresh="Unused",0,(M17 * ((IF(Fillers=1,CSCD,C17) / TimeSlice) - TimeSlice))) -> 0.0317299351 | H46: =$M$46*G46 -> 2.336491621e-05 | I46: 4500000 | J46: 105.1421229 | K46: =IF(A46="Exorcism",((Length / TimeSlice) - SUM(J46:J52)),(K17 - SUM(J18:J52))) -> 26509.25635 | L46: =IF(A46="Templar's Verdict",$M$10,IF(CircRef="Off",6,(K46*F46))) -> 33.13657044 | M46: =TimeSlice / (Length / L46) -> 0.0007363682319
A47: Judgement of Truth | B47: =IF(AND(SealSelection="SoR",Ability1="Judgement of Truth"),"Judgement of Righteousness",Ability1) -> Crusader Strike | C47: =VLOOKUP(A47,Probability!$A$3:$C$10,3,FALSE) -> 1.5 | D47: 6 | E47: 2 | F47: 0.00125 | G47: =(VLOOKUP(B47,$A$17:$M$66,13,FALSE) * (IF(Fillers=1,CSCD,(VLOOKUP(B47,$A$17:$C$66,3,FALSE)) / TimeSlice) - TimeSlice)) -> 0.3804642157 | H47: 0.0002801617619 | I47: 4500000 | J47: 1260.727928
A48: Judgement of Truth | B48: =IF(AND(SealSelection="SoR",Ability2="Judgement of Truth"),"Judgement of Righteousness",Ability2) -> Hammer of Wrath | C48: =VLOOKUP(A48,Probability!$A$3:$C$10,3,FALSE) -> 1.5 | D48: 6 | E48: 3 | F48: 0.00125 | G48: 0.06376594779 | H48: 4.695521823e-05 | I48: 4500000 | J48: 211.298482
A49: Judgement of Truth | B49: =IF(AND(SealSelection="SoR",Ability3="Judgement of Truth"),"Judgement of Righteousness",Ability3) -> Exorcism | C49: =VLOOKUP(A49,Probability!$A$3:$C$10,3,FALSE) -> 1.5 | D49: 6 | E49: 4 | F49: 0.00125 | G49: 0.08180621587 | H49: 6.023949854e-05 | I49: 4500000 | J49: 271.0777434
A50: Judgement of Truth | B50: =IF(AND(SealSelection="SoR",Ability4="Judgement of Truth"),"Judgement of Righteousness",Ability4) -> Templar's Verdict | C50: =VLOOKUP(A50,Probability!$A$3:$C$10,3,FALSE) -> 1.5 | D50: 6 | E50: 5 | F50: =(1/VLOOKUP(A50,$A$3:$B$10,2,FALSE)) * TimeSlice -> 0.00125 | G50: 0.2164325498 | H50: 0.000159374054 | I50: =Length / TimeSlice / TimeSlice -> 4500000 | J50: 717.1832431
A51: Judgement of Truth | B51: =IF(AND(SealSelection="SoR",Ability6="Judgement of Truth"),"Judgement of Righteousness",Ability6) -> Holy Wrath | C51: =VLOOKUP(A51,Probability!$A$3:$C$10,3,FALSE) -> 1.5 | D51: 6 | E51: 7 | F51: 0.00125 | G51: 0.04167973007 | H51: 3.069162914e-05 | I51: 4500000 | J51: 138.1123311
A52: Judgement of Truth | B52: =IF(AND(SealSelection="SoR",Ability7="Judgement of Truth"),"Judgement of Righteousness",Ability7) -> Consecration | C52: =VLOOKUP(A52,Probability!$A$3:$C$10,3,FALSE) -> 1.5 | D52: 6 | E52: 8 | F52: 0.00125 | G52: 0.02021565516 | H52: 1.488616624e-05 | I52: 4500000 | J52: 66.9877481
A53: =IF(AND(SealSelection="SoR",Ability6="Judgement of Truth"),"Judgement of Righteousness",Ability6) -> Holy Wrath | B53: =IF(InqRefresh="Unused","Unused","Inquisition") -> Inquisition | C53: =VLOOKUP(A53,Probability!$A$3:$C$10,3,FALSE) -> 1.125403792 | D53: 7 | E53: 1 | F53: 0.0006666666667 | G53: =IF(InqRefresh="Unused",0,(M17 * ((IF(Fillers=1,CSCD,C17) / TimeSlice) - TimeSlice))) -> 0.0317299351 | H53: =$M$53*G53 -> 1.175233869e-05 | I53: 4500000 | J53: 52.88552412 | K53: =IF(A53="Exorcism",((Length / TimeSlice) - SUM(J53:J59)),(K17 - SUM(J18:J59))) -> 25001.0868 | L53: =IF(A53="Templar's Verdict",$M$10,IF(CircRef="Off",6,(K53*F53))) -> 16.6673912 | M53: =TimeSlice / (Length / L53) -> 0.0003703864712
A54: Holy Wrath | B54: =IF(AND(SealSelection="SoR",Ability1="Judgement of Truth"),"Judgement of Righteousness",Ability1) -> Crusader Strike | C54: =VLOOKUP(A54,Probability!$A$3:$C$10,3,FALSE) -> 1.125403792 | D54: 7 | E54: 2 | F54: 0.0006666666667 | G54: =(VLOOKUP(B54,$A$17:$M$66,13,FALSE) * (IF(Fillers=1,CSCD,(VLOOKUP(B54,$A$17:$C$66,3,FALSE)) / TimeSlice) - TimeSlice)) -> 0.3804642157 | H54: 0.0001409187983 | I54: 4500000 | J54: 634.1345922
A55: Holy Wrath | B55: =IF(AND(SealSelection="SoR",Ability2="Judgement of Truth"),"Judgement of Righteousness",Ability2) -> Hammer of Wrath | C55: =VLOOKUP(A55,Probability!$A$3:$C$10,3,FALSE) -> 1.125403792 | D55: 7 | E55: 3 | F55: 0.0006666666667 | G55: 0.06376594779 | H55: 2.361804438e-05 | I55: 4500000 | J55: 106.2811997
